Workbook

Sheet Пн День 1 Нед 1
A1: Расход продуктов питания в образовательных учереждениях
F2: Меню с 1 по 4 класс 69,43 РУБ | J2: ИТОГО | K2: Меню с 5 по 11 класс 69,43 РУБ | O2: ИТОГО | P2: Меню на сумму 9,60 РУБ | R2: ИТОГО | S2: Меню КАШИ НА молоке | V2: ИТОГО | W2: Меню СУПА | Z2: ИТОГО | AA2: ВСЕГО ЗА ДЕНЬ расход продуктов по всем рационам | AB2: остаток на конец
B3: ДЕНЬ 1 неделя 1 | D3: остаток на начало | E3: приход | F3: яблоко свежее | G3: Сырники с кашей "Дружба" с маслом сливочным | H3: чай с сахаром | I3: Хлеб пшеничн /ржаной | K3: яблоко свежее | L3: Сырники из творога с кашей молочной "Дружба" с масло сливочным | M3: Чай с сахаром | N3: Хлеб пшеничн /ржаной | P3: Печенье | Q3: компот из с/ф | S3: каша вязкая гречневая с масл слив | T3: кисель | U3: Хлеб ржаной | W3: Рассольник ленин с куриными фрикадель ками со сметаной | X3: компот из св яблок и изюма | Y3: Хлеб ржаной
B4: КОЛИЧЕСТВО ДЕТЕЙ | F4: 7-11 | G4: 7-11 | H4: 7-11 | I4: 7-11 | K4: 12-18 | L4: 12-18 | M4: 12-18 | N4: 7-11 | P4: 12-18 | Q4: 12-18 | S4: 12-18 | T4: 12-18 | U4: 12-18 | W4: 12-18 | X4: 12-18 | Y4: 12-18
B5: Выход,гр | F5: 100 | G5: 60/150/5 | H5: 200 | I5: 0/25 | J5: 1 | K5: 100 | L5: 60/180/3 | M5: 200 | N5: 0/30 | O5: 1 | P5: 20 | Q5: 200 | R5: 1 | S5: 150/3 | T5: 200 | U5: 30 | V5: 0 | W5: 250/10/5 | X5: 200 | Y5: 30 | Z5: 1 | AA5: =J5+O5+R5+Z5 -> 4
B6: Хлеб
A7: 1 | B7: батон | C7: кг | J7: =(F7+G7+H7+I7)*$J$5 -> 0.0000 | O7: =(K7+L7+M7+N7)*$O$5 -> 0.0000 | R7: =(P7+Q7)*$R$5 -> 0.0000 | V7: =(U7+T7+S7)*V$5 -> 0.0000 | Z7: =(W7+X7+Y7)*$Z$5 -> 0.0000 | AA7: =J7+O7+R7+Z7 -> 0.000 | AB7: =(D7+E7)-AA7 -> 0.000
A8: 2 | B8: хлеб пшеничный | C8: кг | J8: =(F8+G8+H8+I8)*$J$5 -> 0.0000 | O8: =(K8+L8+M8+N8)*$O$5 -> 0.0000 | R8: =(P8+Q8)*$R$5 -> 0.0000 | V8: =(U8+T8+S8)*V$5 -> 0.0000 | Z8: 0.0000 | AA8: =J8+O8+R8+Z8 -> 0.000 | AB8: =(D8+E8)-AA8 -> 0.000
A9: 3 | B9: хлеб ржаной | C9: кг | I9: 0.0250 | J9: =(F9+G9+H9+I9)*$J$5 -> 0.0250 | N9: 0.0300 | O9: =(K9+L9+M9+N9)*$O$5 -> 0.0300 | R9: 0.0000 | U9: 0.0300 | V9: 0.0000 | Y9: 0.0300 | Z9: 0.0300 | AA9: 0.085 | AB9: =(D9+E9)-AA9 -> -0.085
A10: 4 | B10: булоч/выпечка готов с х/ком | C10: шт | J10: =(F10+G10+H10+I10)*$J$5 -> 0.0000 | O10: =(K10+L10+M10+N10)*$O$5 -> 0.0000 | R10: 0.0000 | V10: 0.0000 | Z10: 0.0000 | AA10: 0.000 | AB10: =(D10+E10)-AA10 -> 0.000
B11: Молочка | J11: =(F11+G11+H11+I11)*$J$5 -> 0.0000 | O11: =(K11+L11+M11+N11)*$O$5 -> 0.0000 | R11: 0.0000 | V11: 0.0000 | Z11: 0.0000 | AA11: 0.000 | AB11: =(D11+E11)-AA11 -> 0.000
A12: 5 | B12: молоко 2,5% | C12: кг | G12: 0.0650 | J12: =(F12+G12+H12+I12)*$J$5 -> 0.0650 | L12: 0.0900 | O12: =(K12+L12+M12+N12)*$O$5 -> 0.0900 | R12: 0.0000 | V12: 0.0000 | Z12: 0.0000 | AA12: 0.155 | AB12: =(D12+E12)-AA12 -> -0.155
A13: 6 | B13: творог 5% | C13: кг | J13: =(F13+G13+H13+I13)*$J$5 -> 0.0000 | O13: =(K13+L13+M13+N13)*$O$5 -> 0.0000 | R13: 0.0000 | V13: 0.0000 | Z13: 0.0000 | AA13: 0.000 | AB13: =(D13+E13)-AA13 -> 0.000
A14: 7 | B14: сметана 15% | C14: кг | J14: =(F14+G14+H14+I14)*$J$5 -> 0.0000 | O14: =(K14+L14+M14+N14)*$O$5 -> 0.0000 | R14: 0.0000 | V14: 0.0000 | W14: 0.0050 | Z14: 0.0050 | AA14: 0.005 | AB14: =(D14+E14)-AA14 -> -0.005
A15: 8 | B15: йогурт фруктов | C15: кг | J15: =(F15+G15+H15+I15)*$J$5 -> 0.0000 | O15: =(K15+L15+M15+N15)*$O$5 -> 0.0000 | R15: 0.0000 | V15: 0.0000 | Z15: 0.0000 | AA15: 0.000 | AB15: =(D15+E15)-AA15 -> 0.000
A16: 9 | B16: катык 2,5% | C16: кг | J16: =(F16+G16+H16+I16)*$J$5 -> 0.0000 | O16: =(K16+L16+M16+N16)*$O$5 -> 0.0000 | R16: 0.0000 | V16: 0.0000 | Z16: 0.0000 | AA16: 0.000 | AB16: =(D16+E16)-AA16 -> 0.000
A17: 10 | B17: кефир 2,5% | C17: кг | J17: =(F17+G17+H17+I17)*$J$5 -> 0.0000 | O17: =(K17+L17+M17+N17)*$O$5 -> 0.0000 | R17: 0.0000 | V17: 0.0000 | Z17: 0.0000 | AA17: 0.000 | AB17: =(D17+E17)-AA17 -> 0.000
A18: 11 | B18: ряженка 2,5% | C18: кг | J18: =(F18+G18+H18+I18)*$J$5 -> 0.0000 | O18: =(K18+L18+M18+N18)*$O$5 -> 0.0000 | R18: 0.0000 | V18: 0.0000 | Z18: 0.0000 | AA18: 0.000 | AB18: =(D18+E18)-AA18 -> 0.000
A19: 12 | B19: напиток ацидофильный | C19: кг | J19: =(F19+G19+H19+I19)*$J$5 -> 0.0000 | O19: =(K19+L19+M19+N19)*$O$5 -> 0.0000 | R19: 0.0000 | V19: 0.0000 | Z19: 0.0000 | AA19: 0.000 | AB19: =(D19+E19)-AA19 -> 0.000
B20: Масло / сыр | J20: =(F20+G20+H20+I20)*$J$5 -> 0.0000 | O20: =(K20+L20+M20+N20)*$O$5 -> 0.0000 | R20: 0.0000 | V20: 0.0000 | Z20: 0.0000 | AA20: 0.000 | AB20: =(D20+E20)-AA20 -> 0.000
A21: 13 | B21: масло растительное | C21: кг | G21: 0.0010 | J21: =(F21+G21+H21+I21)*$J$5 -> 0.0010 | L21: 0.0010 | O21: =(K21+L21+M21+N21)*$O$5 -> 0.0010 | R21: 0.0000 | V21: 0.0000 | W21: 0.0005 | Z21: 0.0005 | AA21: 0.003 | AB21: =(D21+E21)-AA21 -> -0.003
A22: 14 | B22: масло сливочное | C22: кг | G22: 0.0050 | J22: =(F22+G22+H22+I22)*$J$5 -> 0.0050 | L22: 0.0030 | O22: =(K22+L22+M22+N22)*$O$5 -> 0.0030 | R22: 0.0000 | S22: 0.0030 | V22: 0.0000 | Z22: 0.0000 | AA22: 0.008 | AB22: =(D22+E22)-AA22 -> -0.008
A23: 15 | B23: сыр голландский | C23: кг | J23: =(F23+G23+H23+I23)*$J$5 -> 0.0000 | O23: =(K23+L23+M23+N23)*$O$5 -> 0.0000 | R23: 0.0000 | V23: 0.0000 | Z23: 0.0000 | AA23: 0.000 | AB23: =(D23+E23)-AA23 -> 0.000
B24: Мясо | J24: =(F24+G24+H24+I24)*$J$5 -> 0.0000 | O24: =(K24+L24+M24+N24)*$O$5 -> 0.0000 | R24: 0.0000 | V24: 0.0000 | Z24: 0.0000 | AA24: 0.000 | AB24: =(D24+E24)-AA24 -> 0.000
A25: 16 | B25: говядина (котлетное мясо) | C25: кг | J25: =(F25+G25+H25+I25)*$J$5 -> 0.0000 | O25: =(K25+L25+M25+N25)*$O$5 -> 0.0000 | R25: 0.0000 | V25: 0.0000 | Z25: 0.0000 | AA25: 0.000 | AB25: =(D25+E25)-AA25 -> 0.000
A26: 17 | B26: фарш говяжий | C26: кг | J26: =(F26+G26+H26+I26)*$J$5 -> 0.0000 | O26: =(K26+L26+M26+N26)*$O$5 -> 0.0000 | R26: 0.0000 | V26: 0.0000 | Z26: 0.0000 | AA26: 0.000 | AB26: =(D26+E26)-AA26 -> 0.000
A27: 18 | B27: говядина лопатка б/к | C27: кг | J27: =(F27+G27+H27+I27)*$J$5 -> 0.0000 | O27: =(K27+L27+M27+N27)*$O$5 -> 0.0000 | R27: 0.0000 | V27: 0.0000 | Z27: 0.0000 | AA27: 0.000 | AB27: =(D27+E27)-AA27 -> 0.000
A28: 19 | B28: сосиски | C28: кг | J28: =(F28+G28+H28+I28)*$J$5 -> 0.0000 | O28: =(K28+L28+M28+N28)*$O$5 -> 0.0000 | R28: 0.0000 | V28: 0.0000 | Z28: 0.0000 | AA28: 0.000 | AB28: =(D28+E28)-AA28 -> 0.000
A29: 20 | B29: колбаса п/к "Халяль" | C29: кг | J29: =(F29+G29+H29+I29)*$J$5 -> 0.0000 | O29: =(K29+L29+M29+N29)*$O$5 -> 0.0000 | R29: 0.0000 | V29: 0.0000 | Z29: 0.0000 | AA29: 0.000 | AB29: =(D29+E29)-AA29 -> 0.000
A30: 21 | B30: куриное бедро | C30: кг | J30: =(F30+G30+H30+I30)*$J$5 -> 0.0000 | O30: =(K30+L30+M30+N30)*$O$5 -> 0.0000 | R30: 0.0000 | V30: 0.0000 | Z30: 0.0000 | AA30: 0.000 | AB30: =(D30+E30)-AA30 -> 0.000
A31: 22 | B31: куриная грудка | C31: кг | J31: =(F31+G31+H31+I31)*$J$5 -> 0.0000 | O31: =(K31+L31+M31+N31)*$O$5 -> 0.0000 | R31: 0.0000 | V31: 0.0000 | W31: 0.0132 | Z31: 0.0132 | AA31: 0.013 | AB31: =(D31+E31)-AA31 -> -0.013
A32: 23 | B32: куры/цыплята потрош. | C32: кг | J32: =(F32+G32+H32+I32)*$J$5 -> 0.0000 | O32: =(K32+L32+M32+N32)*$O$5 -> 0.0000 | R32: 0.0000 | V32: 0.0000 | Z32: 0.0000 | AA32: 0.000 | AB32: =(D32+E32)-AA32 -> 0.000
A33: 24 | B33: или фарш куриный | C33: кг | J33: =(F33+G33+H33+I33)*$J$5 -> 0.0000 | O33: =(K33+L33+M33+N33)*$O$5 -> 0.0000 | R33: 0.0000 | V33: 0.0000 | Z33: 0.0000 | AA33: 0.000 | AB33: =(D33+E33)-AA33 -> 0.000
A34: 25 | B34: индейка бедро филе | C34: кг | J34: =(F34+G34+H34+I34)*$J$5 -> 0.0000 | O34: =(K34+L34+M34+N34)*$O$5 -> 0.0000 | R34: 0.0000 | V34: 0.0000 | Z34: 0.0000 | AA34: 0.000 | AB34: =(D34+E34)-AA34 -> 0.000
A35: 26 | B35: индейка грудка филе | C35: кг | J35: =(F35+G35+H35+I35)*$J$5 -> 0.0000 | O35: =(K35+L35+M35+N35)*$O$5 -> 0.0000 | R35: 0.0000 | V35: 0.0000 | Z35: 0.0000 | AA35: 0.000 | AB35: =(D35+E35)-AA35 -> 0.000
B36: Рыба | J36: =(F36+G36+H36+I36)*$J$5 -> 0.0000 | O36: =(K36+L36+M36+N36)*$O$5 -> 0.0000 | R36: 0.0000 | V36: 0.0000 | Z36: 0.0000 | AA36: 0.000 | AB36: =(D36+E36)-AA36 -> 0.000
A37: 27 | B37: горбуша ПБГ с/м | C37: кг | J37: =(F37+G37+H37+I37)*$J$5 -> 0.0000 | O37: =(K37+L37+M37+N37)*$O$5 -> 0.0000 | R37: 0.0000 | V37: 0.0000 | Z37: 0.0000 | AA37: 0.000 | AB37: =(D37+E37)-AA37 -> 0.000
A38: 28 | B38: минтай б/г с/м | C38: кг | J38: =(F38+G38+H38+I38)*$J$5 -> 0.0000 | O38: =(K38+L38+M38+N38)*$O$5 -> 0.0000 | R38: 0.0000 | V38: 0.0000 | Z38: 0.0000 | AA38: 0.000 | AB38: =(D38+E38)-AA38 -> 0.000
A39: 29 | B39: фарш минтая | C39: кг | J39: =(F39+G39+H39+I39)*$J$5 -> 0.0000 | O39: =(K39+L39+M39+N39)*$O$5 -> 0.0000 | R39: =(P39+Q39)*$R$5 -> 0.0000 | V39: 0.0000 | Z39: =(W39+X39+Y39)*$Z$5 -> 0.0000 | AA39: 0.000 | AB39: =(D39+E39)-AA39 -> 0.000
B40: Сыпучка | J40: =(F40+G40+H40+I40)*$J$5 -> 0.0000 | O40: =(K40+L40+M40+N40)*$O$5 -> 0.0000 | R40: 0.0000 | V40: 0.0000 | Z40: 0.0000 | AA40: 0.000 | AB40: =(D40+E40)-AA40 -> 0.000
A41: 30 | B41: вермишель | C41: кг | J41: =(F41+G41+H41+I41)*$J$5 -> 0.0000 | O41: =(K41+L41+M41+N41)*$O$5 -> 0.0000 | R41: 0.0000 | V41: 0.0000 | Z41: 0.0000 | AA41: 0.000 | AB41: =(D41+E41)-AA41 -> 0.000
A42: 31 | B42: геркулес | C42: кг | J42: =(F42+G42+H42+I42)*$J$5 -> 0.0000 | O42: =(K42+L42+M42+N42)*$O$5 -> 0.0000 | R42: 0.0000 | V42: 0.0000 | Z42: 0.0000 | AA42: 0.000 | AB42: =(D42+E42)-AA42 -> 0.000
A43: 32 | B43: горох | C43: кг | J43: =(F43+G43+H43+I43)*$J$5 -> 0.0000 | O43: =(K43+L43+M43+N43)*$O$5 -> 0.0000 | R43: 0.0000 | V43: 0.0000 | Z43: 0.0000 | AA43: 0.000 | AB43: =(D43+E43)-AA43 -> 0.000
A44: 33 | B44: гречневая крупа | C44: кг | J44: =(F44+G44+H44+I44)*$J$5 -> 0.0000 | O44: =(K44+L44+M44+N44)*$O$5 -> 0.0000 | R44: 0.0000 | S44: 0.0375 | V44: 0.0000 | Z44: 0.0000 | AA44: 0.000 | AB44: =(D44+E44)-AA44 -> 0.000
A45: 34 | B45: кукурузная крупа | C45: кг | J45: =(F45+G45+H45+I45)*$J$5 -> 0.0000 | O45: =(K45+L45+M45+N45)*$O$5 -> 0.0000 | R45: 0.0000 | V45: 0.0000 | Z45: 0.0000 | AA45: 0.000 | AB45: =(D45+E45)-AA45 -> 0.000
A46: 35 | B46: макаронные изделия | C46: кг | J46: =(F46+G46+H46+I46)*$J$5 -> 0.0000 | O46: =(K46+L46+M46+N46)*$O$5 -> 0.0000 | R46: 0.0000 | V46: 0.0000 | Z46: 0.0000 | AA46: 0.000 | AB46: =(D46+E46)-AA46 -> 0.000
A47: 36 | B47: манная крупа | C47: кг | J47: =(F47+G47+H47+I47)*$J$5 -> 0.0000 | O47: =(K47+L47+M47+N47)*$O$5 -> 0.0000 | R47: 0.0000 | V47: 0.0000 | Z47: 0.0000 | AA47: 0.000 | AB47: =(D47+E47)-AA47 -> 0.000
A48: 37 | B48: перловая крупа | C48: кг | J48: =(F48+G48+H48+I48)*$J$5 -> 0.0000 | O48: =(K48+L48+M48+N48)*$O$5 -> 0.0000 | R48: 0.0000 | V48: 0.0000 | W48: 0.0050 | Z48: 0.0050 | AA48: 0.005 | AB48: =(D48+E48)-AA48 -> -0.005
A49: 38 | B49: полбяная крупа | C49: кг | J49: =(F49+G49+H49+I49)*$J$5 -> 0.0000 | O49: =(K49+L49+M49+N49)*$O$5 -> 0.0000 | R49: 0.0000 | V49: 0.0000 | Z49: 0.0000 | AA49: 0.000 | AB49: =(D49+E49)-AA49 -> 0.000
A50: 39 | B50: пшеничная крупа | C50: кг | J50: =(F50+G50+H50+I50)*$J$5 -> 0.0000 | O50: =(K50+L50+M50+N50)*$O$5 -> 0.0000 | R50: 0.0000 | V50: 0.0000 | Z50: 0.0000 | AA50: 0.000 | AB50: =(D50+E50)-AA50 -> 0.000
A51: 40 | B51: пшено | C51: кг | G51: 0.0145 | J51: =(F51+G51+H51+I51)*$J$5 -> 0.0145 | L51: 0.0100 | O51: =(K51+L51+M51+N51)*$O$5 -> 0.0100 | R51: 0.0000 | V51: 0.0000 | Z51: 0.0000 | AA51: 0.025 | AB51: =(D51+E51)-AA51 -> -0.025
A52: 41 | B52: рис | C52: кг | G52: 0.0100 | J52: =(F52+G52+H52+I52)*$J$5 -> 0.0100 | L52: 0.1350 | O52: =(K52+L52+M52+N52)*$O$5 -> 0.1350 | R52: 0.0000 | V52: =(S52+T52)*$V$5 -> 0.0000 | Z52: 0.0000 | AA52: 0.145 | AB52: =(D52+E52)-AA52 -> -0.145
A53: 42 | B53: яневая крупа | C53: кг | J53: =(F53+G53+H53+I53)*$J$5 -> 0.0000 | O53: =(K53+L53+M53+N53)*$O$5 -> 0.0000 | R53: 0.0000 | V53: 0.0000 | Z53: 0.0000 | AA53: 0.000 | AB53: =(D53+E53)-AA53 -> 0.000
A54: 43 | B54: лапша домашняя п/ф | C54: кг | J54: =(F54+G54+H54+I54)*$J$5 -> 0.0000 | O54: =(K54+L54+M54+N54)*$O$5 -> 0.0000 | R54: 0.0000 | V54: 0.0000 | Z54: 0.0000 | AA54: 0.000 | AB54: =(D54+E54)-AA54 -> 0.000
A55: 44 | B55: мука пшеничная в/с | C55: кг | J55: =(F55+G55+H55+I55)*$J$5 -> 0.0000 | O55: =(K55+L55+M55+N55)*$O$5 -> 0.0000 | R55: 0.0000 | V55: 0.0000 | Z55: 0.0000 | AA55: 0.000 | AB55: =(D55+E55)-AA55 -> 0.000
A56: 45 | B56: сахарный песок | C56: кг | G56: 0.0008 | H56: 0.0100 | J56: =(F56+G56+H56+I56)*$J$5 -> 0.0108 | L56: 0.0005 | M56: 0.0100 | O56: =(K56+L56+M56+N56)*$O$5 -> 0.0105 | Q56: 0.0100 | R56: 0.0100 | T56: 0.0100 | V56: 0.0000 | X56: 0.0060 | Z56: 0.0060 | AA56: 0.037 | AB56: =(D56+E56)-AA56 -> -0.037
A57: 46 | B57: соль | C57: кг | G57: 0.0003 | J57: =(F57+G57+H57+I57)*$J$5 -> 0.0003 | L57: 0.0003 | O57: =(K57+L57+M57+N57)*$O$5 -> 0.0003 | R57: 0.0000 | S57: 0.0005 | V57: 0.0000 | W57: 0.0009 | Z57: 0.0009 | AA57: 0.002 | AB57: =(D57+E57)-AA57 -> -0.002
A58: 47 | B58: сухари панировочные | C58: кг | J58: =(F58+G58+H58+I58)*$J$5 -> 0.0000 | O58: =(K58+L58+M58+N58)*$O$5 -> 0.0000 | R58: 0.0000 | V58: 0.0000 | Z58: 0.0000 | AA58: 0.000 | AB58: =(D58+E58)-AA58 -> 0.000
A59: 48 | B59: дрожжи сухие | C59: кг | J59: =(F59+G59+H59+I59)*$J$5 -> 0.0000 | O59: =(K59+L59+M59+N59)*$O$5 -> 0.0000 | R59: 0.0000 | V59: 0.0000 | Z59: 0.0000 | AA59: 0.000 | AB59: =(D59+E59)-AA59 -> 0.000
A60: 49 | B60: фасоль | C60: кг | J60: =(F60+G60+H60+I60)*$J$5 -> 0.0000 | O60: =(K60+L60+M60+N60)*$O$5 -> 0.0000 | R60: 0.0000 | V60: 0.0000 | Z60: 0.0000 | AA60: 0.000 | AB60: =(D60+E60)-AA60 -> 0.000
B61: Консервы | J61: =(F61+G61+H61+I61)*$J$5 -> 0.0000 | O61: =(K61+L61+M61+N61)*$O$5 -> 0.0000 | R61: 0.0000 | V61: 0.0000 | Z61: 0.0000 | AA61: 0.000 | AB61: =(D61+E61)-AA61 -> 0.000
A62: 50 | B62: зеленый горошек к/с | C62: кг | J62: =(F62+G62+H62+I62)*$J$5 -> 0.0000 | O62: =(K62+L62+M62+N62)*$O$5 -> 0.0000 | R62: 0.0000 | V62: 0.0000 | Z62: 0.0000 | AA62: 0.000 | AB62: =(D62+E62)-AA62 -> 0.000
A63: 51 | B63: кукуруза к/с | C63: кг | J63: =(F63+G63+H63+I63)*$J$5 -> 0.0000 | O63: =(K63+L63+M63+N63)*$O$5 -> 0.0000 | R63: 0.0000 | V63: 0.0000 | Z63: 0.0000 | AA63: 0.000 | AB63: =(D63+E63)-AA63 -> 0.000
A64: 52 | B64: фасоль к/с | C64: кг | J64: =(F64+G64+H64+I64)*$J$5 -> 0.0000 | O64: =(K64+L64+M64+N64)*$O$5 -> 0.0000 | R64: 0.0000 | V64: 0.0000 | Z64: 0.0000 | AA64: 0.000 | AB64: =(D64+E64)-AA64 -> 0.000
A65: 53 | B65: икра кабачк/икра баклажан | C65: кг | J65: =(F65+G65+H65+I65)*$J$5 -> 0.0000 | O65: =(K65+L65+M65+N65)*$O$5 -> 0.0000 | R65: 0.0000 | V65: 0.0000 | Z65: 0.0000 | AA65: 0.000 | AB65: =(D65+E65)-AA65 -> 0.000
A66: 54 | B66: капуста морская сушеная | C66: кг | J66: =(F66+G66+H66+I66)*$J$5 -> 0.0000 | O66: =(K66+L66+M66+N66)*$O$5 -> 0.0000 | R66: 0.0000 | V66: 0.0000 | Z66: 0.0000 | AA66: 0.000 | AB66: =(D66+E66)-AA66 -> 0.000
A67: 55 | B67: квашеная капуста | C67: кг | J67: =(F67+G67+H67+I67)*$J$5 -> 0.0000 | O67: =(K67+L67+M67+N67)*$O$5 -> 0.0000 | R67: 0.0000 | V67: 0.0000 | Z67: 0.0000 | AA67: 0.000 | AB67: =(D67+E67)-AA67 -> 0.000
A68: 56 | B68: молоко сгущенное | C68: кг | J68: =(F68+G68+H68+I68)*$J$5 -> 0.0000 | O68: =(K68+L68+M68+N68)*$O$5 -> 0.0000 | R68: 0.0000 | V68: 0.0000 | Z68: 0.0000 | AA68: 0.000 | AB68: =(D68+E68)-AA68 -> 0.000
A69: 57 | B69: огурцы соленые | C69: кг | J69: =(F69+G69+H69+I69)*$J$5 -> 0.0000 | O69: =(K69+L69+M69+N69)*$O$5 -> 0.0000 | R69: 0.0000 | V69: 0.0000 | W69: 0.0273 | Z69: 0.0273 | AA69: 0.027 | AB69: =(D69+E69)-AA69 -> -0.027
A70: 58 | B70: повидло | C70: кг | J70: =(F70+G70+H70+I70)*$J$5 -> 0.0000 | O70: =(K70+L70+M70+N70)*$O$5 -> 0.0000 | R70: 0.0000 | V70: 0.0000 | Z70: 0.0000 | AA70: 0.000 | AB70: =(D70+E70)-AA70 -> 0.000
A71: 59 | B71: томатная паста | C71: кг | J71: =(F71+G71+H71+I71)*$J$5 -> 0.0000 | O71: =(K71+L71+M71+N71)*$O$5 -> 0.0000 | R71: =(P71+Q71)*$R$5 -> 0.0000 | V71: 0.0000 | Z71: =(W71+X71+Y71)*$Z$5 -> 0.0000 | AA71: 0.000 | AB71: =(D71+E71)-AA71 -> 0.000
A72: 60 | B72: рыбные консервы | C72: кг | J72: =(F72+G72+H72+I72)*$J$5 -> 0.0000 | O72: =(K72+L72+M72+N72)*$O$5 -> 0.0000 | R72: 0.0000 | V72: =(U72+T72+S72)*V$5 -> 0.0000 | Z72: 0.0000 | AA72: =J72+O72+R72+Z72 -> 0.000 | AB72: =(D72+E72)-AA72 -> 0.000
B73: Напитки | J73: =(F73+G73+H73+I73)*$J$5 -> 0.0000 | O73: =(K73+L73+M73+N73)*$O$5 -> 0.0000 | R73: 0.0000 | V73: 0.0000 | Z73: 0.0000 | AA73: 0.000 | AB73: =(D73+E73)-AA73 -> 0.000
A74: 61 | B74: чай весовой | C74: кг | H74: 0.0005 | J74: =(F74+G74+H74+I74)*$J$5 -> 0.0005 | M74: 0.0005 | O74: =(K74+L74+M74+N74)*$O$5 -> 0.0005 | R74: 0.0000 | V74: 0.0000 | Z74: 0.0000 | AA74: 0.001 | AB74: =(D74+E74)-AA74 -> -0.001
A75: 62 | B75: какао | C75: кг | J75: =(F75+G75+H75+I75)*$J$5 -> 0.0000 | O75: =(K75+L75+M75+N75)*$O$5 -> 0.0000 | R75: 0.0000 | V75: 0.0000 | Z75: 0.0000 | AA75: 0.000 | AB75: =(D75+E75)-AA75 -> 0.000
A76: 63 | B76: кисель | C76: кг | J76: =(F76+G76+H76+I76)*$J$5 -> 0.0000 | O76: =(K76+L76+M76+N76)*$O$5 -> 0.0000 | R76: 0.0000 | T76: 0.0240 | V76: 0.0000 | Z76: 0.0000 | AA76: 0.000 | AB76: =(D76+E76)-AA76 -> 0.000
A77: 64 | B77: кофейный напиток | C77: кг | J77: =(F77+G77+H77+I77)*$J$5 -> 0.0000 | O77: =(K77+L77+M77+N77)*$O$5 -> 0.0000 | R77: 0.0000 | V77: 0.0000 | Z77: 0.0000 | AA77: 0.000 | AB77: =(D77+E77)-AA77 -> 0.000
A78: 65 | B78: цикорий | C78: кг | J78: =(F78+G78+H78+I78)*$J$5 -> 0.0000 | O78: =(K78+L78+M78+N78)*$O$5 -> 0.0000 | R78: 0.0000 | V78: 0.0000 | Z78: 0.0000 | AA78: 0.000 | AB78: =(D78+E78)-AA78 -> 0.000
B79: Сухофрукты | J79: =(F79+G79+H79+I79)*$J$5 -> 0.0000 | O79: =(K79+L79+M79+N79)*$O$5 -> 0.0000 | R79: 0.0000 | V79: 0.0000 | Z79: 0.0000 | AA79: 0.000 | AB79: =(D79+E79)-AA79 -> 0.000
A80: 66 | B80: ассорти для компота (сухофрукты) | C80: кг | J80: =(F80+G80+H80+I80)*$J$5 -> 0.0000 | O80: =(K80+L80+M80+N80)*$O$5 -> 0.0000 | Q80: 0.0204 | R80: 0.0204 | V80: 0.0000 | Z80: 0.0000 | AA80: 0.020 | AB80: =(D80+E80)-AA80 -> -0.020
A81: 67 | B81: изюм | C81: кг | J81: =(F81+G81+H81+I81)*$J$5 -> 0.0000 | O81: =(K81+L81+M81+N81)*$O$5 -> 0.0000 | R81: 0.0000 | V81: 0.0000 | X81: 0.0102 | Z81: 0.0102 | AA81: 0.010 | AB81: =(D81+E81)-AA81 -> -0.010
A82: 68 | B82: курага | C82: кг | J82: =(F82+G82+H82+I82)*$J$5 -> 0.0000 | O82: =(K82+L82+M82+N82)*$O$5 -> 0.0000 | R82: 0.0000 | V82: 0.0000 | Z82: 0.0000 | AA82: 0.000 | AB82: =(D82+E82)-AA82 -> 0.000
A83: 69 | B83: урюк | C83: кг | J83: =(F83+G83+H83+I83)*$J$5 -> 0.0000 | O83: =(K83+L83+M83+N83)*$O$5 -> 0.0000 | R83: 0.0000 | V83: 0.0000 | Z83: 0.0000 | AA83: 0.000 | AB83: =(D83+E83)-AA83 -> 0.000
A84: 70 | B84: шиповник | C84: кг | J84: =(F84+G84+H84+I84)*$J$5 -> 0.0000 | O84: =(K84+L84+M84+N84)*$O$5 -> 0.0000 | R84: 0.0000 | V84: 0.0000 | Z84: 0.0000 | AA84: 0.000 | AB84: =(D84+E84)-AA84 -> 0.000
A85: 71 | B85: компотная смесь с/м | C85: кг | J85: =(F85+G85+H85+I85)*$J$5 -> 0.0000 | O85: =(K85+L85+M85+N85)*$O$5 -> 0.0000 | R85: 0.0000 | V85: 0.0000 | Z85: 0.0000 | AA85: 0.000 | AB85: =(D85+E85)-AA85 -> 0.000
A86: 72 | B86: вишня с/м | C86: кг | J86: =(F86+G86+H86+I86)*$J$5 -> 0.0000 | O86: =(K86+L86+M86+N86)*$O$5 -> 0.0000 | R86: 0.0000 | V86: 0.0000 | Z86: 0.0000 | AA86: 0.000 | AB86: =(D86+E86)-AA86 -> 0.000
A87: 73 | B87: клюква с/м | C87: кг | J87: =(F87+G87+H87+I87)*$J$5 -> 0.0000 | O87: =(K87+L87+M87+N87)*$O$5 -> 0.0000 | R87: 0.0000 | V87: 0.0000 | Z87: 0.0000 | AA87: 0.000 | AB87: =(D87+E87)-AA87 -> 0.000
A88: 74 | B88: смородина в ассорт с/м | C88: кг | J88: =(F88+G88+H88+I88)*$J$5 -> 0.0000 | O88: =(K88+L88+M88+N88)*$O$5 -> 0.0000 | R88: 0.0000 | V88: 0.0000 | Z88: 0.0000 | AA88: 0.000 | AB88: =(D88+E88)-AA88 -> 0.000
A89: 75 | B89: облепиха с/м | C89: кг | J89: =(F89+G89+H89+I89)*$J$5 -> 0.0000 | O89: =(K89+L89+M89+N89)*$O$5 -> 0.0000 | R89: 0.0000 | V89: 0.0000 | Z89: 0.0000 | AA89: 0.000 | AB89: =(D89+E89)-AA89 -> 0.000
B90: Сок | J90: =(F90+G90+H90+I90)*$J$5 -> 0.0000 | O90: =(K90+L90+M90+N90)*$O$5 -> 0.0000 | R90: 0.0000 | V90: 0.0000 | Z90: 0.0000 | AA90: 0.000 | AB90: =(D90+E90)-AA90 -> 0.000
A91: 76 | B91: сок 0,125л или 0,2л | C91: л | J91: =(F91+G91+H91+I91)*$J$5 -> 0.0000 | O91: =(K91+L91+M91+N91)*$O$5 -> 0.0000 | R91: 0.0000 | V91: 0.0000 | Z91: 0.0000 | AA91: 0.000 | AB91: =(D91+E91)-AA91 -> 0.000
A92: 77 | B92: нектоар плодовый | C92: л | J92: =(F92+G92+H92+I92)*$J$5 -> 0.0000 | O92: =(K92+L92+M92+N92)*$O$5 -> 0.0000 | R92: 0.0000 | V92: 0.0000 | Z92: 0.0000 | AA92: 0.000 | AB92: =(D92+E92)-AA92 -> 0.000
B93: Кондитерка | J93: =(F93+G93+H93+I93)*$J$5 -> 0.0000 | O93: =(K93+L93+M93+N93)*$O$5 -> 0.0000 | R93: 0.0000 | V93: 0.0000 | Z93: 0.0000 | AA93: 0.000 | AB93: =(D93+E93)-AA93 -> 0.000
A94: 78 | B94: батончик злаковый | C94: шт | J94: =(F94+G94+H94+I94)*$J$5 -> 0.0000 | O94: =(K94+L94+M94+N94)*$O$5 -> 0.0000 | R94: 0.0000 | V94: 0.0000 | Z94: 0.0000 | AA94: 0.000 | AB94: =(D94+E94)-AA94 -> 0.000
A95: 79 | B95: пряник | C95: кг | J95: =(F95+G95+H95+I95)*$J$5 -> 0.0000 | O95: =(K95+L95+M95+N95)*$O$5 -> 0.0000 | R95: 0.0000 | V95: 0.0000 | Z95: 0.0000 | AA95: 0.000 | AB95: =(D95+E95)-AA95 -> 0.000
A96: 80 | B96: вафли | C96: кг | J96: =(F96+G96+H96+I96)*$J$5 -> 0.0000 | O96: =(K96+L96+M96+N96)*$O$5 -> 0.0000 | R96: 0.0000 | V96: 0.0000 | Z96: 0.0000 | AA96: 0.000 | AB96: =(D96+E96)-AA96 -> 0.000
A97: 81 | B97: печенье | C97: кг | J97: =(F97+G97+H97+I97)*$J$5 -> 0.0000 | O97: =(K97+L97+M97+N97)*$O$5 -> 0.0000 | P97: 0.0200 | R97: 0.0200 | V97: 0.0000 | Z97: 0.0000 | AA97: 0.020 | AB97: =(D97+E97)-AA97 -> -0.020
A98: 82 | B98: крекер | C98: кг | J98: =(F98+G98+H98+I98)*$J$5 -> 0.0000 | O98: =(K98+L98+M98+N98)*$O$5 -> 0.0000 | R98: 0.0000 | V98: 0.0000 | Z98: 0.0000 | AA98: 0.000 | AB98: =(D98+E98)-AA98 -> 0.000
A99: 83 | B99: сушки | C99: кг | J99: =(F99+G99+H99+I99)*$J$5 -> 0.0000 | O99: =(K99+L99+M99+N99)*$O$5 -> 0.0000 | R99: 0.0000 | V99: 0.0000 | Z99: 0.0000 | AA99: 0.000 | AB99: =(D99+E99)-AA99 -> 0.000
A100: 84 | B100: мармелад | C100: кг | J100: =(F100+G100+H100+I100)*$J$5 -> 0.0000 | O100: =(K100+L100+M100+N100)*$O$5 -> 0.0000 | R100: 0.0000 | V100: 0.0000 | Z100: 0.0000 | AA100: 0.000 | AB100: =(D100+E100)-AA100 -> 0.000
A101: 85 | B101: блины п/ф | C101: кг | J101: =(F101+G101+H101+I101)*$J$5 -> 0.0000 | O101: =(K101+L101+M101+N101)*$O$5 -> 0.0000 | R101: 0.0000 | V101: 0.0000 | Z101: 0.0000 | AA101: 0.000 | AB101: =(D101+E101)-AA101 -> 0.000
A102: 86 | B102: выпечка п/ф со склада | C102: шт | J102: =(F102+G102+H102+I102)*$J$5 -> 0.0000 | O102: =(K102+L102+M102+N102)*$O$5 -> 0.0000 | R102: 0.0000 | V102: 0.0000 | Z102: 0.0000 | AA102: 0.000 | AB102: =(D102+E102)-AA102 -> 0.000
B103: Яйцо | J103: =(F103+G103+H103+I103)*$J$5 -> 0.0000 | O103: =(K103+L103+M103+N103)*$O$5 -> 0.0000 | R103: =(P103+Q103)*$R$5 -> 0.0000 | V103: 0.0000 | Z103: =(W103+X103+Y103)*$Z$5 -> 0.0000 | AA103: 0.000 | AB103: =(D103+E103)-AA103 -> 0.000
A104: 87 | B104: яйцо куриное | C104: кг | J104: =(F104+G104+H104+I104)*$J$5 -> 0.0000 | O104: =(K104+L104+M104+N104)*$O$5 -> 0.0000 | R104: 0.0000 | V104: 0.0000 | W104: 0.0010 | Z104: 0.0010 | AA104: 0.001 | AB104: =(D104+E104)-AA104 -> -0.001
B105: 0.048 | C105: шт | J105: =(F105+G105+H105+I105)*$J$5 -> 0.0000 | O105: =(K105+L105+M105+N105)*$O$5 -> 0.0000 | R105: 0.0000 | V105: 0.0000 | Z105: 0.0000 | AA105: 0.000 | AB105: =(D105+E105)-AA105 -> 0.000
B106: Овощи заморозка | J106: =(F106+G106+H106+I106)*$J$5 -> 0.0000 | O106: =(K106+L106+M106+N106)*$O$5 -> 0.0000 | R106: 0.0000 | V106: 0.0000 | Z106: 0.0000 | AA106: 0.000 | AB106: =(D106+E106)-AA106 -> 0.000
A107: 88 | B107: зеленый горошек с/м | C107: кг | J107: =(F107+G107+H107+I107)*$J$5 -> 0.0000 | O107: =(K107+L107+M107+N107)*$O$5 -> 0.0000 | R107: 0.0000 | V107: 0.0000 | Z107: 0.0000 | AA107: 0.000 | AB107: =(D107+E107)-AA107 -> 0.000
A108: 89 | B108: кабачки с/м | C108: кг | J108: =(F108+G108+H108+I108)*$J$5 -> 0.0000 | O108: =(K108+L108+M108+N108)*$O$5 -> 0.0000 | R108: 0.0000 | V108: 0.0000 | Z108: 0.0000 | AA108: 0.000 | AB108: =(D108+E108)-AA108 -> 0.000
A109: 90 | B109: мексиканс смесь с/м | C109: кг | J109: =(F109+G109+H109+I109)*$J$5 -> 0.0000 | O109: =(K109+L109+M109+N109)*$O$5 -> 0.0000 | R109: 0.0000 | V109: 0.0000 | Z109: 0.0000 | AA109: 0.000 | AB109: =(D109+E109)-AA109 -> 0.000
A110: 91 | B110: капуста цветная с/м | C110: кг | J110: =(F110+G110+H110+I110)*$J$5 -> 0.0000 | O110: =(K110+L110+M110+N110)*$O$5 -> 0.0000 | R110: 0.0000 | V110: 0.0000 | Z110: 0.0000 | AA110: 0.000 | AB110: =(D110+E110)-AA110 -> 0.000
A111: 92 | B111: брокколи с/м | C111: кг | J111: =(F111+G111+H111+I111)*$J$5 -> 0.0000 | O111: =(K111+L111+M111+N111)*$O$5 -> 0.0000 | R111: 0.0000 | V111: 0.0000 | Z111: 0.0000 | AA111: 0.000 | AB111: =(D111+E111)-AA111 -> 0.000
A112: 93 | B112: кукуруза с/м | C112: кг | J112: =(F112+G112+H112+I112)*$J$5 -> 0.0000 | O112: =(K112+L112+M112+N112)*$O$5 -> 0.0000 | R112: 0.0000 | V112: 0.0000 | Z112: 0.0000 | AA112: 0.000 | AB112: =(D112+E112)-AA112 -> 0.000
A113: 94 | B113: фасоль стручковая с/м | C113: кг | J113: =(F113+G113+H113+I113)*$J$5 -> 0.0000 | O113: =(K113+L113+M113+N113)*$O$5 -> 0.0000 | R113: 0.0000 | V113: 0.0000 | Z113: 0.0000 | AA113: 0.000 | AB113: =(D113+E113)-AA113 -> 0.000
B114: Фрукты | J114: =(F114+G114+H114+I114)*$J$5 -> 0.0000 | O114: =(K114+L114+M114+N114)*$O$5 -> 0.0000 | R114: 0.0000 | V114: 0.0000 | Z114: 0.0000 | AA114: 0.000 | AB114: =(D114+E114)-AA114 -> 0.000
A115: 95 | B115: апельсин | C115: кг | J115: =(F115+G115+H115+I115)*$J$5 -> 0.0000 | O115: =(K115+L115+M115+N115)*$O$5 -> 0.0000 | R115: 0.0000 | V115: 0.0000 | Z115: 0.0000 | AA115: 0.000 | AB115: =(D115+E115)-AA115 -> 0.000
A116: 96 | B116: банан | C116: кг | J116: =(F116+G116+H116+I116)*$J$5 -> 0.0000 | O116: =(K116+L116+M116+N116)*$O$5 -> 0.0000 | R116: 0.0000 | V116: 0.0000 | Z116: 0.0000 | AA116: 0.000 | AB116: =(D116+E116)-AA116 -> 0.000
A117: 97 | B117: груши | C117: кг | J117: =(F117+G117+H117+I117)*$J$5 -> 0.0000 | O117: =(K117+L117+M117+N117)*$O$5 -> 0.0000 | R117: 0.0000 | V117: 0.0000 | Z117: 0.0000 | AA117: 0.000 | AB117: =(D117+E117)-AA117 -> 0.000
A118: 98 | B118: мандарины | C118: кг | J118: =(F118+G118+H118+I118)*$J$5 -> 0.0000 | O118: =(K118+L118+M118+N118)*$O$5 -> 0.0000 | R118: 0.0000 | V118: 0.0000 | Z118: 0.0000 | AA118: 0.000 | AB118: =(D118+E118)-AA118 -> 0.000
A119: 99 | B119: лимон | C119: кг | J119: =(F119+G119+H119+I119)*$J$5 -> 0.0000 | O119: =(K119+L119+M119+N119)*$O$5 -> 0.0000 | R119: 0.0000 | V119: 0.0000 | Z119: 0.0000 | AA119: 0.000 | AB119: =(D119+E119)-AA119 -> 0.000
A120: 100 | B120: яблоки свежие | C120: кг | F120: 0.1000 | J120: =(F120+G120+H120+I120)*$J$5 -> 0.1000 | K120: 0.1000 | O120: =(K120+L120+M120+N120)*$O$5 -> 0.1000 | R120: 0.0000 | V120: 0.0000 | X120: 0.0228 | Z120: 0.0228 | AA120: 0.223 | AB120: =(D120+E120)-AA120 -> -0.223
B121: Овощи / зелень | J121: =(F121+G121+H121+I121)*$J$5 -> 0.0000 | O121: =(K121+L121+M121+N121)*$O$5 -> 0.0000 | R121: 0.0000 | V121: 0.0000 | Z121: 0.0000 | AA121: 0.000 | AB121: =(D121+E121)-AA121 -> 0.000
A122: 101 | B122: капуста свежая | C122: кг | J122: =(F122+G122+H122+I122)*$J$5 -> 0.0000 | O122: =(K122+L122+M122+N122)*$O$5 -> 0.0000 | R122: 0.0000 | V122: 0.0000 | Z122: 0.0000 | AA122: 0.000 | AB122: =(D122+E122)-AA122 -> 0.000
A123: 102 | B123: картофель | C123: кг | J123: =(F123+G123+H123+I123)*$J$5 -> 0.0000 | O123: =(K123+L123+M123+N123)*$O$5 -> 0.0000 | R123: 0.0000 | V123: 0.0000 | W123: 0.1000 | Z123: 0.1000 | AA123: 0.100 | AB123: =(D123+E123)-AA123 -> -0.100
A124: 103 | B124: лук репчатый | C124: кг | J124: =(F124+G124+H124+I124)*$J$5 -> 0.0000 | O124: =(K124+L124+M124+N124)*$O$5 -> 0.0000 | R124: 0.0000 | V124: 0.0000 | W124: 0.0072 | Z124: 0.0072 | AA124: 0.007 | AB124: =(D124+E124)-AA124 -> -0.007
A125: 104 | B125: морковь | C125: кг | J125: =(F125+G125+H125+I125)*$J$5 -> 0.0000 | O125: =(K125+L125+M125+N125)*$O$5 -> 0.0000 | R125: 0.0000 | V125: 0.0000 | W125: 0.0125 | Z125: 0.0125 | AA125: 0.013 | AB125: =(D125+E125)-AA125 -> -0.013
A126: 105 | B126: свекла | C126: кг | J126: =(F126+G126+H126+I126)*$J$5 -> 0.0000 | O126: =(K126+L126+M126+N126)*$O$5 -> 0.0000 | R126: 0.0000 | V126: 0.0000 | Z126: 0.0000 | AA126: 0.000 | AB126: =(D126+E126)-AA126 -> 0.000
A127: 106 | B127: огурцы св. | C127: кг | J127: =(F127+G127+H127+I127)*$J$5 -> 0.0000 | O127: =(K127+L127+M127+N127)*$O$5 -> 0.0000 | R127: 0.0000 | V127: 0.0000 | Z127: 0.0000 | AA127: 0.000 | AB127: =(D127+E127)-AA127 -> 0.000
A128: 107 | B128: томаты св. | C128: кг | J128: =(F128+G128+H128+I128)*$J$5 -> 0.0000 | O128: =(K128+L128+M128+N128)*$O$5 -> 0.0000 | R128: 0.0000 | V128: 0.0000 | Z128: 0.0000 | AA128: 0.000 | AB128: =(D128+E128)-AA128 -> 0.000
A129: 108 | B129: перец болг.красный | C129: кг | J129: =(F129+G129+H129+I129)*$J$5 -> 0.0000 | O129: =(K129+L129+M129+N129)*$O$5 -> 0.0000 | R129: 0.0000 | V129: 0.0000 | Z129: 0.0000 | AA129: 0.000 | AB129: =(D129+E129)-AA129 -> 0.000
A130: 109 | B130: тыква | C130: кг | J130: =(F130+G130+H130+I130)*$J$5 -> 0.0000 | O130: =(K130+L130+M130+N130)*$O$5 -> 0.0000 | R130: 0.0000 | V130: 0.0000 | Z130: 0.0000 | AA130: 0.000 | AB130: =(D130+E130)-AA130 -> 0.000
A131: Овощи очищ ПФ | J131: =(F131+G131+H131+I131)*$J$5 -> 0.0000 | O131: =(K131+L131+M131+N131)*$O$5 -> 0.0000 | R131: 0.0000 | V131: 0.0000 | Z131: 0.0000 | AA131: 0.000 | AB131: =(D131+E131)-AA131 -> 0.000
A132: 110 | B132: капуста св.очищенная | C132: кг | J132: =(F132+G132+H132+I132)*$J$5 -> 0.0000 | O132: =(K132+L132+M132+N132)*$O$5 -> 0.0000 | R132: 0.0000 | V132: 0.0000 | Z132: 0.0000 | AA132: 0.000 | AB132: =(D132+E132)-AA132 -> 0.000
A133: 111 | B133: картофель св. очищенный | C133: кг | J133: =(F133+G133+H133+I133)*$J$5 -> 0.0000 | O133: =(K133+L133+M133+N133)*$O$5 -> 0.0000 | R133: 0.0000 | V133: 0.0000 | Z133: 0.0000 | AA133: 0.000 | AB133: =(D133+E133)-AA133 -> 0.000
A134: 112 | B134: лук репчатый св.очищенный | C134: кг | J134: =(F134+G134+H134+I134)*$J$5 -> 0.0000 | O134: =(K134+L134+M134+N134)*$O$5 -> 0.0000 | R134: 0.0000 | V134: 0.0000 | Z134: 0.0000 | AA134: 0.000 | AB134: =(D134+E134)-AA134 -> 0.000
A135: 113 | B135: морковь св.очищенная | C135: кг | J135: =(F135+G135+H135+I135)*$J$5 -> 0.0000 | O135: =(K135+L135+M135+N135)*$O$5 -> 0.0000 | R135: =(P135+Q135)*$R$5 -> 0.0000 | V135: 0.0000 | Z135: =(W135+X135+Y135)*$Z$5 -> 0.0000 | AA135: 0.000 | AB135: =(D135+E135)-AA135 -> 0.000
A136: 114 | B136: свекла св.очищенная | C136: кг | J136: =(F136+G136+H136+I136)*$J$5 -> 0.0000 | O136: =(K136+L136+M136+N136)*$O$5 -> 0.0000 | R136: 0.0000 | V136: =(U136+T136+S136)*V$5 -> 0.0000 | Z136: 0.0000 | AA136: =J136+O136+R136+Z136 -> 0.000 | AB136: =(D136+E136)-AA136 -> 0.000
B137: Полуфабрикаты | J137: =(F137+G137+H137+I137)*$J$5 -> 0.0000 | O137: =(K137+L137+M137+N137)*$O$5 -> 0.0000 | R137: 0.0000 | V137: 0.0000 | Z137: 0.0000 | AA137: 0.000 | AB137: =(D137+E137)-AA137 -> 0.000
A138: 115 | B138: сырники ПФ | C138: шт | G138: 1.0000 | J138: =(F138+G138+H138+I138)*$J$5 -> 1.0000 | L138: 1.0000 | O138: =(K138+L138+M138+N138)*$O$5 -> 1.0000 | AA138: 2.000 | AB138: =(D138+E138)-AA138 -> -2.000
A139: 116 | B139: пельмени ПФ | C139: кг | J139: =(F139+G139+H139+I139)*$J$5 -> 0.0000 | O139: =(K139+L139+M139+N139)*$O$5 -> 0.0000 | R139: 0.0000 | V139: 0.0000 | Z139: 0.0000 | AA139: 0.000 | AB139: =(D139+E139)-AA139 -> 0.000
A140: 117 | B140: биточки рыбные | C140: шт | J140: =(F140+G140+H140+I140)*$J$5 -> 0.0000 | O140: =(K140+L140+M140+N140)*$O$5 -> 0.0000 | R140: 0.0000 | V140: 0.0000 | Z140: 0.0000 | AA140: 0.000 | AB140: =(D140+E140)-AA140 -> 0.000
A141: 118 | B141: фрикадельки мясные | C141: кг | J141: =(F141+G141+H141+I141)*$J$5 -> 0.0000 | O141: =(K141+L141+M141+N141)*$O$5 -> 0.0000 | R141: 0.0000 | V141: 0.0000 | Z141: 0.0000 | AA141: 0.000 | AB141: =(D141+E141)-AA141 -> 0.000
A142: 119 | B142: фрикадельки куриные | C142: кг | J142: =(F142+G142+H142+I142)*$J$5 -> 0.0000 | O142: =(K142+L142+M142+N142)*$O$5 -> 0.0000 | R142: 0.0000 | V142: 0.0000 | Z142: 0.0000 | AA142: 0.000 | AB142: =(D142+E142)-AA142 -> 0.000
A143: 120 | B143: хинкали п/ф из говядины | C143: кг | J143: =(F143+G143+H143+I143)*$J$5 -> 0.0000 | O143: =(K143+L143+M143+N143)*$O$5 -> 0.0000 | R143: 0.0000 | V143: 0.0000 | Z143: 0.0000 | AA143: 0.000 | AB143: =(D143+E143)-AA143 -> 0.000
A144: 121 | B144: котлеты из говядины "Домашние" | C144: шт | J144: =(F144+G144+H144+I144)*$J$5 -> 0.0000 | O144: =(K144+L144+M144+N144)*$O$5 -> 0.0000 | R144: 0.0000 | V144: 0.0000 | Z144: 0.0000 | AA144: 0.000 | AB144: =(D144+E144)-AA144 -> 0.000
A145: 122 | B145: бифштекс из говядины | C145: шт | J145: =(F145+G145+H145+I145)*$J$5 -> 0.0000 | O145: =(K145+L145+M145+N145)*$O$5 -> 0.0000 | R145: 0.0000 | V145: 0.0000 | Z145: 0.0000 | AA145: 0.000 | AB145: =(D145+E145)-AA145 -> 0.000
A146: 123 | B146: котлеты из мяса кур | C146: шт | J146: =(F146+G146+H146+I146)*$J$5 -> 0.0000 | O146: =(K146+L146+M146+N146)*$O$5 -> 0.0000 | R146: 0.0000 | V146: 0.0000 | Z146: 0.0000 | AA146: 0.000 | AB146: =(D146+E146)-AA146 -> 0.000
A147: 124 | B147: котлеты "Аппетитные" мясо-куриные | C147: шт | J147: =(F147+G147+H147+I147)*$J$5 -> 0.0000 | O147: =(K147+L147+M147+N147)*$O$5 -> 0.0000 | R147: 0.0000 | V147: 0.0000 | Z147: 0.0000 | AA147: 0.000 | AB147: =(D147+E147)-AA147 -> 0.000
A148: 125 | B148: ежики мясные с рисом | C148: шт | J148: =(F148+G148+H148+I148)*$J$5 -> 0.0000 | O148: =(K148+L148+M148+N148)*$O$5 -> 0.0000 | R148: 0.0000 | V148: 0.0000 | Z148: 0.0000 | AA148: 0.000 | AB148: =(D148+E148)-AA148 -> 0.000

Sheet Вт День 2 Нед 1
A1: Расход продуктов питания в образовательных учереждениях
F2: Меню с 1 по 4 класс 69,43 РУБ | L2: ВСЕГО | M2: Меню с 5 по 11 класс 69,43 РУБ | T2: ВСЕГО | U2: Меню на сумму 9,60 РУБ | W2: ИТОГО | X2: Меню КАШИ НА молоке | AA2: ИТОГО | AB2: Меню СУПА | AE2: ИТОГО | AF2: ВСЕГО ЗА ДЕНЬ расход продуктов по всем рационам | AG2: остаток на конец
B3: ДЕНЬ 2 неделя 1 | D3: остаток на начало | E3: приход | G3: Тефтели мясные запеченые в сметанно-томатном соусе | I3: Макароны отварные с маслом сливочным | J3: чай с сахаром. С лимоном | K3: Хлеб пшенич | N3: Ежики мясные запеченные в сметанно-томатном соусе | O3: Макароные изделия отварные | Q3: чай с сахаром, с лимоном | R3: Хлеб пшенич | U3: вафли | V3: чай с сахаром, с лимоном | X3: каша ячневая с масл слив | Y3: чай с сахаром с лимоном | Z3: хлеб ржаной | AB3: Суп лапша ПФ дом с мясом пицы | AC3: напиток из шиповника | AD3: Хлеб ржаной
B4: КОЛИЧЕСТВО ДЕТЕЙ | G4: 7-11 | I4: 7-11 | J4: 7-11 | K4: 7-11 | N4: 12-18 | O4: 12-18 | Q4: 12-18 | R4: 12-18 | U4: 12-18 | V4: 12-18 | X4: 12-18 | Y4: 12-18 | Z4: 12-18 | AB4: 12-18 | AC4: 12-18 | AD4: 12-18
B5: Выход,гр | G5: 60/40 | I5: 150/3 | J5: 185/10/5 | K5: 30/30 | L5: 1 | N5: 60/40 | O5: 200 | Q5: 185/10/5 | R5: 20/30 | T5: 1 | U5: 20 | V5: 190/10/5 | W5: 1 | X5: 150/3 | Y5: 185/10/5 | Z5: 30 | AA5: 0 | AB5: 250/10 | AC5: 200 | AD5: 30 | AE5: 1 | AF5: =L5+T5+W5+AE5 -> 4
B6: Хлеб
A7: 1 | B7: батон | C7: кг | D7: ='Пн День 1 Нед 1'!AB7 -> 0 | L7: =(G7+I7+J7+K7)*$L$5 -> 0.0000 | T7: =(N7+O7+Q7+R7)*$T$5 -> 0.0000 | W7: =(U7+V7)*$W$5 -> 0.0000 | AA7: =(X7+Y7+Z7)*$AA$5 -> 0.0000 | AE7: =(AB7+AC7+AD7)*$AE$5 -> 0.0000 | AF7: =L7+T7+W7+AE7 -> 0.000 | AG7: =(D7+E7)-AF7 -> 0.000
A8: 2 | B8: хлеб пшеничный | C8: кг | D8: ='Пн День 1 Нед 1'!AB8 -> 0 | K8: 0.0300 | L8: =(G8+I8+J8+K8)*$L$5 -> 0.0300 | R8: 0.0200 | T8: =(N8+O8+Q8+R8)*$T$5 -> 0.0200 | W8: =(U8+V8)*$W$5 -> 0.0000 | AA8: =(X8+Y8+Z8)*$AA$5 -> 0.0000 | AE8: =(AB8+AC8+AD8)*$AE$5 -> 0.0000 | AF8: 0.050 | AG8: -0.050
A9: 3 | B9: хлеб ржаной | C9: кг | D9: ='Пн День 1 Нед 1'!AB9 -> -0.085 | K9: 0.0300 | L9: 0.0300 | R9: 0.0300 | T9: 0.0300 | W9: 0.0000 | Z9: 0.0300 | AA9: 0.0000 | AD9: 0.0300 | AE9: 0.0300 | AF9: 0.090 | AG9: -0.175
A10: 4 | B10: булоч/выпечка готов с х/ком | C10: шт | D10: ='Пн День 1 Нед 1'!AB10 -> 0 | L10: 0.0000 | T10: 0.0000 | W10: 0.0000 | AA10: 0.0000 | AE10: 0.0000 | AF10: 0.000 | AG10: 0.000
B11: Молочка | D11: ='Пн День 1 Нед 1'!AB11 -> 0 | L11: 0.0000 | T11: 0.0000 | W11: 0.0000 | AA11: 0.0000 | AE11: 0.0000 | AF11: 0.000 | AG11: 0.000
A12: 5 | B12: молоко 2,5% | C12: кг | D12: ='Пн День 1 Нед 1'!AB12 -> -0.155 | L12: 0.0000 | T12: 0.0000 | W12: 0.0000 | X12: 0.0750 | AA12: 0.0000 | AE12: 0.0000 | AF12: 0.000 | AG12: -0.155
A13: 6 | B13: творог 5% | C13: кг | D13: ='Пн День 1 Нед 1'!AB13 -> 0 | L13: 0.0000 | T13: 0.0000 | W13: 0.0000 | AA13: 0.0000 | AE13: 0.0000 | AF13: 0.000 | AG13: 0.000
A14: 7 | B14: сметана 15% | C14: кг | D14: ='Пн День 1 Нед 1'!AB14 -> -0.005 | G14: 0.0100 | L14: 0.0100 | N14: 0.0100 | T14: 0.0100 | W14: 0.0000 | AA14: 0.0000 | AE14: 0.0000 | AF14: 0.020 | AG14: -0.025
A15: 8 | B15: йогурт фруктов | C15: кг | D15: ='Пн День 1 Нед 1'!AB15 -> 0 | L15: 0.0000 | T15: 0.0000 | W15: 0.0000 | AA15: 0.0000 | AE15: 0.0000 | AF15: 0.000 | AG15: 0.000
A16: 9 | B16: катык 2,5% | C16: кг | D16: ='Пн День 1 Нед 1'!AB16 -> 0 | L16: 0.0000 | T16: 0.0000 | W16: 0.0000 | AA16: 0.0000 | AE16: 0.0000 | AF16: 0.000 | AG16: 0.000
A17: 10 | B17: кефир 2,5% | C17: кг | D17: ='Пн День 1 Нед 1'!AB17 -> 0 | L17: 0.0000 | T17: 0.0000 | W17: 0.0000 | AA17: 0.0000 | AE17: 0.0000 | AF17: 0.000 | AG17: 0.000
A18: 11 | B18: ряженка 2,5% | C18: кг | D18: ='Пн День 1 Нед 1'!AB18 -> 0 | L18: 0.0000 | T18: 0.0000 | W18: 0.0000 | AA18: 0.0000 | AE18: 0.0000 | AF18: 0.000 | AG18: 0.000
A19: 12 | B19: напиток ацидофильный | C19: шт | D19: ='Пн День 1 Нед 1'!AB19 -> 0 | L19: 0.0000 | T19: 0.0000 | W19: 0.0000 | AA19: 0.0000 | AE19: 0.0000 | AF19: 0.000 | AG19: 0.000
B20: Масло / сыр | D20: ='Пн День 1 Нед 1'!AB20 -> 0 | L20: 0.0000 | T20: 0.0000 | W20: 0.0000 | AA20: 0.0000 | AE20: 0.0000 | AF20: 0.000 | AG20: 0.000
A21: 13 | B21: масло растительное | C21: кг | D21: ='Пн День 1 Нед 1'!AB21 -> -0.0025 | G21: 0.0050 | L21: 0.0050 | N21: 0.0050 | T21: 0.0050 | W21: 0.0000 | AA21: 0.0000 | AB21: 0.0050 | AE21: 0.0050 | AF21: 0.015 | AG21: -0.018
A22: 14 | B22: масло сливочное | C22: кг | D22: ='Пн День 1 Нед 1'!AB22 -> -0.008 | L22: 0.0000 | T22: 0.0000 | W22: 0.0000 | X22: 0.0030 | AA22: 0.0000 | AE22: 0.0000 | AF22: 0.000 | AG22: -0.008
A23: 15 | B23: сыр голландский | C23: кг | D23: ='Пн День 1 Нед 1'!AB23 -> 0 | L23: 0.0000 | T23: 0.0000 | W23: 0.0000 | AA23: 0.0000 | AE23: 0.0000 | AF23: 0.000 | AG23: 0.000
B24: Мясо | D24: ='Пн День 1 Нед 1'!AB24 -> 0 | L24: 0.0000 | T24: 0.0000 | W24: 0.0000 | AA24: 0.0000 | AE24: 0.0000 | AF24: 0.000 | AG24: 0.000
A25: 16 | B25: говядина (котлетное мясо) | C25: кг | D25: ='Пн День 1 Нед 1'!AB25 -> 0 | L25: 0.0000 | T25: 0.0000 | W25: 0.0000 | AA25: 0.0000 | AE25: 0.0000 | AF25: 0.000 | AG25: 0.000
A26: 17 | B26: фарш говяжий | C26: кг | D26: ='Пн День 1 Нед 1'!AB26 -> 0 | G26: 0.0380 | L26: 0.0380 | N26: 0.0380 | T26: 0.0380 | W26: 0.0000 | AA26: 0.0000 | AE26: 0.0000 | AF26: 0.076 | AG26: -0.076
A27: 18 | B27: говядина лопатка б/к | C27: кг | D27: ='Пн День 1 Нед 1'!AB27 -> 0 | L27: 0.0000 | T27: 0.0000 | W27: 0.0000 | AA27: 0.0000 | AE27: 0.0000 | AF27: 0.000 | AG27: 0.000
A28: 19 | B28: сосиски | C28: кг | D28: ='Пн День 1 Нед 1'!AB28 -> 0 | L28: 0.0000 | T28: 0.0000 | W28: 0.0000 | AA28: 0.0000 | AE28: 0.0000 | AF28: 0.000 | AG28: 0.000
A29: 20 | B29: колбаса п/к "Халяль" | C29: кг | D29: ='Пн День 1 Нед 1'!AB29 -> 0 | L29: 0.0000 | T29: 0.0000 | W29: 0.0000 | AA29: 0.0000 | AE29: 0.0000 | AF29: 0.000 | AG29: 0.000
A30: 21 | B30: куриное бедро | C30: кг | D30: ='Пн День 1 Нед 1'!AB30 -> 0 | L30: 0.0000 | T30: 0.0000 | W30: 0.0000 | AA30: 0.0000 | AE30: 0.0000 | AF30: 0.000 | AG30: 0.000
A31: 22 | B31: куриная грудка | C31: кг | D31: ='Пн День 1 Нед 1'!AB31 -> -0.01317 | L31: 0.0000 | T31: 0.0000 | W31: 0.0000 | AA31: 0.0000 | AB31: 0.0162 | AE31: 0.0162 | AF31: 0.016 | AG31: -0.029
A32: 23 | B32: куры/цыплята потрош. | C32: кг | D32: ='Пн День 1 Нед 1'!AB32 -> 0 | L32: 0.0000 | T32: 0.0000 | W32: 0.0000 | AA32: 0.0000 | AE32: 0.0000 | AF32: 0.000 | AG32: 0.000
A33: 24 | B33: фарш куриный | C33: кг | D33: ='Пн День 1 Нед 1'!AB33 -> 0 | L33: 0.0000 | T33: 0.0000 | W33: 0.0000 | AA33: 0.0000 | AE33: 0.0000 | AF33: 0.000 | AG33: 0.000
A34: 25 | B34: индейка бедро филе | C34: кг | D34: ='Пн День 1 Нед 1'!AB34 -> 0 | L34: 0.0000 | T34: 0.0000 | W34: 0.0000 | AA34: 0.0000 | AE34: 0.0000 | AF34: 0.000 | AG34: 0.000
A35: 26 | B35: индейка грудка филе | C35: кг | D35: ='Пн День 1 Нед 1'!AB35 -> 0 | L35: 0.0000 | T35: 0.0000 | W35: 0.0000 | AA35: 0.0000 | AE35: 0.0000 | AF35: 0.000 | AG35: 0.000
B36: Рыба | D36: ='Пн День 1 Нед 1'!AB36 -> 0 | L36: 0.0000 | T36: 0.0000 | W36: 0.0000 | AA36: 0.0000 | AE36: 0.0000 | AF36: 0.000 | AG36: 0.000
A37: 27 | B37: горбуша ПБГ с/м | C37: кг | D37: ='Пн День 1 Нед 1'!AB37 -> 0 | L37: 0.0000 | T37: 0.0000 | W37: 0.0000 | AA37: 0.0000 | AE37: 0.0000 | AF37: 0.000 | AG37: 0.000
A38: 28 | B38: минтай б/г с/м | C38: кг | D38: ='Пн День 1 Нед 1'!AB38 -> 0 | L38: 0.0000 | T38: 0.0000 | W38: 0.0000 | AA38: 0.0000 | AE38: 0.0000 | AF38: 0.000 | AG38: 0.000
A39: 29 | B39: фарш минтая | C39: кг | D39: ='Пн День 1 Нед 1'!AB39 -> 0 | L39: 0.0000 | T39: 0.0000 | W39: 0.0000 | AA39: 0.0000 | AE39: 0.0000 | AF39: =L39+T39+W39+AE39 -> 0.000 | AG39: =(D39+E39)-AF39 -> 0.000
B40: Сыпучка | D40: ='Пн День 1 Нед 1'!AB40 -> 0 | L40: 0.0000 | T40: 0.0000 | W40: 0.0000 | AA40: 0.0000 | AE40: 0.0000 | AF40: 0.000 | AG40: 0.000
A41: 30 | B41: вермишель | C41: кг | D41: ='Пн День 1 Нед 1'!AB41 -> 0 | L41: 0.0000 | T41: 0.0000 | W41: 0.0000 | AA41: 0.0000 | AE41: 0.0000 | AF41: 0.000 | AG41: 0.000
A42: 31 | B42: геркулес | C42: кг | D42: ='Пн День 1 Нед 1'!AB42 -> 0 | L42: 0.0000 | T42: 0.0000 | W42: 0.0000 | AA42: 0.0000 | AE42: 0.0000 | AF42: 0.000 | AG42: 0.000
A43: 32 | B43: горох | C43: кг | D43: ='Пн День 1 Нед 1'!AB43 -> 0 | L43: 0.0000 | T43: 0.0000 | W43: 0.0000 | AA43: 0.0000 | AE43: 0.0000 | AF43: 0.000 | AG43: 0.000
A44: 33 | B44: гречневая крупа | C44: кг | D44: ='Пн День 1 Нед 1'!AB44 -> 0 | L44: 0.0000 | T44: 0.0000 | W44: 0.0000 | AA44: 0.0000 | AE44: 0.0000 | AF44: 0.000 | AG44: 0.000
A45: 34 | B45: кукурузная крупа | C45: кг | D45: ='Пн День 1 Нед 1'!AB45 -> 0 | L45: 0.0000 | T45: 0.0000 | W45: 0.0000 | AA45: 0.0000 | AE45: 0.0000 | AF45: 0.000 | AG45: 0.000
A46: 35 | B46: макаронные изделия | C46: кг | D46: ='Пн День 1 Нед 1'!AB46 -> 0 | L46: 0.0000 | O46: 0.0710 | T46: 0.0710 | W46: 0.0000 | AA46: 0.0000 | AE46: 0.0000 | AF46: 0.071 | AG46: -0.071
A47: 36 | B47: манная крупа | C47: кг | D47: ='Пн День 1 Нед 1'!AB47 -> 0 | L47: 0.0000 | T47: 0.0000 | W47: 0.0000 | AA47: 0.0000 | AE47: 0.0000 | AF47: 0.000 | AG47: 0.000
A48: 37 | B48: перловая крупа | C48: кг | D48: ='Пн День 1 Нед 1'!AB48 -> -0.005 | L48: 0.0000 | T48: 0.0000 | W48: 0.0000 | AA48: 0.0000 | AE48: 0.0000 | AF48: 0.000 | AG48: -0.005
A49: 38 | B49: полбяная крупа | C49: кг | D49: ='Пн День 1 Нед 1'!AB49 -> 0 | L49: 0.0000 | T49: 0.0000 | W49: 0.0000 | AA49: 0.0000 | AE49: 0.0000 | AF49: 0.000 | AG49: 0.000
A50: 39 | B50: пшеничная крупа | C50: кг | D50: ='Пн День 1 Нед 1'!AB50 -> 0 | L50: 0.0000 | T50: 0.0000 | W50: 0.0000 | AA50: 0.0000 | AE50: 0.0000 | AF50: 0.000 | AG50: 0.000
A51: 40 | B51: пшено | C51: кг | D51: ='Пн День 1 Нед 1'!AB51 -> -0.0245 | L51: 0.0000 | T51: 0.0000 | W51: 0.0000 | AA51: 0.0000 | AE51: 0.0000 | AF51: 0.000 | AG51: -0.025
A52: 41 | B52: рис | C52: кг | D52: ='Пн День 1 Нед 1'!AB52 -> -0.145 | G52: 0.0050 | L52: 0.0050 | N52: 0.0050 | T52: 0.0050 | W52: 0.0000 | AA52: 0.0000 | AE52: 0.0000 | AF52: 0.010 | AG52: -0.155
A53: 42 | B53: ячневая крупа | C53: кг | D53: ='Пн День 1 Нед 1'!AB53 -> 0 | L53: 0.0000 | T53: 0.0000 | W53: 0.0000 | X53: 0.0283 | AA53: 0.0000 | AE53: 0.0000 | AF53: 0.000 | AG53: 0.000
A54: 43 | B54: лапша доиашняя п/ф | C54: кг | D54: ='Пн День 1 Нед 1'!AB54 -> 0 | L54: 0.0000 | T54: 0.0000 | W54: 0.0000 | AA54: 0.0000 | AB54: 0.0200 | AE54: 0.0200 | AF54: 0.020 | AG54: -0.020
A55: 44 | B55: мука пшеничная в/с | C55: кг | D55: ='Пн День 1 Нед 1'!AB55 -> 0 | G55: 0.0070 | L55: 0.0070 | N55: 0.0070 | T55: 0.0070 | W55: 0.0000 | AA55: 0.0000 | AE55: 0.0000 | AF55: 0.014 | AG55: -0.014
A56: 45 | B56: сахарный песок | C56: кг | D56: ='Пн День 1 Нед 1'!AB56 -> -0.0373 | J56: 0.0100 | L56: 0.0100 | Q56: 0.0100 | T56: 0.0100 | V56: 0.0100 | W56: 0.0100 | X56: 0.0008 | Y56: 0.0100 | AA56: 0.0000 | AC56: 0.0100 | AE56: 0.0100 | AF56: 0.040 | AG56: -0.077
A57: 46 | B57: соль | C57: кг | D57: ='Пн День 1 Нед 1'!AB57 -> -0.0015 | G57: 0.0004 | L57: 0.0004 | N57: 0.0004 | O57: 0.0020 | T57: 0.0024 | W57: 0.0000 | X57: 0.0004 | AA57: 0.0000 | AB57: 0.0009 | AE57: 0.0009 | AF57: 0.004 | AG57: -0.005
A58: 47 | B58: сухари панировочные | C58: кг | D58: ='Пн День 1 Нед 1'!AB58 -> 0 | L58: 0.0000 | T58: 0.0000 | W58: 0.0000 | AA58: 0.0000 | AE58: 0.0000 | AF58: 0.000 | AG58: 0.000
A59: 48 | B59: дрожжи сухие | C59: кг | D59: ='Пн День 1 Нед 1'!AB59 -> 0 | L59: 0.0000 | T59: 0.0000 | W59: 0.0000 | AA59: 0.0000 | AE59: 0.0000 | AF59: 0.000 | AG59: 0.000
A60: 49 | B60: фасоль | C60: кг | D60: ='Пн День 1 Нед 1'!AB60 -> 0 | L60: 0.0000 | T60: 0.0000 | W60: 0.0000 | AA60: 0.0000 | AE60: 0.0000 | AF60: 0.000 | AG60: 0.000
B61: Консервы | D61: ='Пн День 1 Нед 1'!AB61 -> 0 | L61: 0.0000 | T61: 0.0000 | W61: 0.0000 | AA61: 0.0000 | AE61: 0.0000 | AF61: 0.000 | AG61: 0.000
A62: 50 | B62: зеленый горошек к/с | C62: кг | D62: ='Пн День 1 Нед 1'!AB62 -> 0 | L62: 0.0000 | T62: 0.0000 | W62: 0.0000 | AA62: 0.0000 | AE62: 0.0000 | AF62: 0.000 | AG62: 0.000
A63: 51 | B63: кукуруза к/с | C63: кг | D63: ='Пн День 1 Нед 1'!AB63 -> 0 | L63: 0.0000 | T63: 0.0000 | W63: 0.0000 | AA63: 0.0000 | AE63: 0.0000 | AF63: 0.000 | AG63: 0.000
A64: 52 | B64: фасоль к/с | C64: кг | D64: ='Пн День 1 Нед 1'!AB64 -> 0 | L64: 0.0000 | T64: 0.0000 | W64: 0.0000 | AA64: 0.0000 | AE64: 0.0000 | AF64: 0.000 | AG64: 0.000
A65: 53 | B65: икра кабачк/икра баклажан | C65: кг | D65: ='Пн День 1 Нед 1'!AB65 -> 0 | L65: 0.0000 | T65: 0.0000 | W65: 0.0000 | AA65: 0.0000 | AE65: 0.0000 | AF65: 0.000 | AG65: 0.000
A66: 54 | B66: капуста морская сушеная | C66: кг | D66: ='Пн День 1 Нед 1'!AB66 -> 0 | L66: 0.0000 | T66: 0.0000 | W66: 0.0000 | AA66: 0.0000 | AE66: 0.0000 | AF66: 0.000 | AG66: 0.000
A67: 55 | B67: капуста квашеная | C67: кг | D67: ='Пн День 1 Нед 1'!AB67 -> 0 | L67: 0.0000 | T67: 0.0000 | W67: 0.0000 | AA67: 0.0000 | AE67: 0.0000 | AF67: 0.000 | AG67: 0.000
A68: 56 | B68: молоко сгущенное | C68: кг | D68: ='Пн День 1 Нед 1'!AB68 -> 0 | L68: 0.0000 | T68: 0.0000 | W68: 0.0000 | AA68: 0.0000 | AE68: 0.0000 | AF68: 0.000 | AG68: 0.000
A69: 57 | B69: огурцы соленые | C69: кг | D69: ='Пн День 1 Нед 1'!AB69 -> -0.0273 | L69: 0.0000 | T69: 0.0000 | W69: 0.0000 | AA69: 0.0000 | AE69: 0.0000 | AF69: 0.000 | AG69: -0.027
A70: 58 | B70: повидло | C70: кг | D70: ='Пн День 1 Нед 1'!AB70 -> 0 | L70: 0.0000 | T70: 0.0000 | W70: 0.0000 | AA70: 0.0000 | AE70: 0.0000 | AF70: 0.000 | AG70: 0.000
A71: 59 | B71: томатная паста | C71: кг | D71: ='Пн День 1 Нед 1'!AB71 -> 0 | G71: 0.0016 | L71: 0.0016 | N71: 0.0016 | T71: 0.0016 | W71: 0.0000 | AA71: 0.0000 | AE71: 0.0000 | AF71: =L71+T71+W71+AE71 -> 0.003 | AG71: =(D71+E71)-AF71 -> -0.003
A72: 60 | B72: рыбные консервы | C72: кг | D72: ='Пн День 1 Нед 1'!AB72 -> 0 | L72: =(G72+I72+J72+K72)*$L$5 -> 0.0000 | T72: =(N72+O72+Q72+R72)*$T$5 -> 0.0000 | W72: =(U72+V72)*$W$5 -> 0.0000 | AA72: =(X72+Y72+Z72)*$AA$5 -> 0.0000 | AE72: =(AB72+AC72+AD72)*$AE$5 -> 0.0000 | AF72: 0.000 | AG72: 0.000
B73: Напитки | D73: ='Пн День 1 Нед 1'!AB73 -> 0 | L73: 0.0000 | T73: 0.0000 | W73: 0.0000 | AA73: 0.0000 | AE73: 0.0000 | AF73: 0.000 | AG73: 0.000
A74: 61 | B74: чай весовой | C74: кг | D74: ='Пн День 1 Нед 1'!AB74 -> -0.001 | J74: 0.0005 | L74: 0.0005 | Q74: 0.0005 | T74: 0.0005 | V74: 0.0005 | W74: 0.0005 | Y74: 0.0010 | AA74: 0.0000 | AE74: 0.0000 | AF74: 0.002 | AG74: -0.003
A75: 62 | B75: какао | C75: кг | D75: ='Пн День 1 Нед 1'!AB75 -> 0 | L75: 0.0000 | T75: 0.0000 | W75: 0.0000 | AA75: 0.0000 | AE75: 0.0000 | AF75: 0.000 | AG75: 0.000
A76: 63 | B76: кисель | C76: кг | D76: ='Пн День 1 Нед 1'!AB76 -> 0 | L76: 0.0000 | T76: 0.0000 | W76: 0.0000 | AA76: 0.0000 | AE76: 0.0000 | AF76: 0.000 | AG76: 0.000
A77: 64 | B77: кофейный напиток | C77: кг | D77: ='Пн День 1 Нед 1'!AB77 -> 0 | L77: 0.0000 | T77: 0.0000 | W77: 0.0000 | AA77: 0.0000 | AE77: 0.0000 | AF77: 0.000 | AG77: 0.000
A78: 65 | B78: цикорий | C78: кг | D78: ='Пн День 1 Нед 1'!AB78 -> 0 | L78: 0.0000 | T78: 0.0000 | W78: 0.0000 | AA78: 0.0000 | AE78: 0.0000 | AF78: 0.000 | AG78: 0.000
B79: Сухофрукты | D79: ='Пн День 1 Нед 1'!AB79 -> 0 | L79: 0.0000 | T79: 0.0000 | W79: 0.0000 | AA79: 0.0000 | AE79: 0.0000 | AF79: 0.000 | AG79: 0.000
A80: 66 | B80: ассорти для компота (сухофрукты) | C80: кг | D80: ='Пн День 1 Нед 1'!AB80 -> -0.0204 | L80: 0.0000 | T80: 0.0000 | W80: 0.0000 | AA80: 0.0000 | AE80: 0.0000 | AF80: 0.000 | AG80: -0.020
A81: 67 | B81: изюм | C81: кг | D81: ='Пн День 1 Нед 1'!AB81 -> -0.0102 | L81: 0.0000 | T81: 0.0000 | W81: 0.0000 | AA81: 0.0000 | AE81: 0.0000 | AF81: 0.000 | AG81: -0.010
A82: 68 | B82: курага | C82: кг | D82: ='Пн День 1 Нед 1'!AB82 -> 0 | L82: 0.0000 | T82: 0.0000 | W82: 0.0000 | AA82: 0.0000 | AE82: 0.0000 | AF82: 0.000 | AG82: 0.000
A83: 69 | B83: урюк | C83: кг | D83: ='Пн День 1 Нед 1'!AB83 -> 0 | L83: 0.0000 | T83: 0.0000 | W83: 0.0000 | AA83: 0.0000 | AE83: 0.0000 | AF83: 0.000 | AG83: 0.000
A84: 70 | B84: шиповник | C84: кг | D84: ='Пн День 1 Нед 1'!AB84 -> 0 | L84: 0.0000 | T84: 0.0000 | W84: 0.0000 | AA84: 0.0000 | AC84: 0.0153 | AE84: 0.0153 | AF84: 0.015 | AG84: -0.015
A85: 71 | B85: компотная смесь с/м | C85: кг | D85: ='Пн День 1 Нед 1'!AB85 -> 0 | L85: 0.0000 | T85: 0.0000 | W85: 0.0000 | AA85: 0.0000 | AE85: 0.0000 | AF85: 0.000 | AG85: 0.000
A86: 72 | B86: вишня с/м | C86: кг | D86: ='Пн День 1 Нед 1'!AB86 -> 0 | L86: 0.0000 | T86: 0.0000 | W86: 0.0000 | AA86: 0.0000 | AE86: 0.0000 | AF86: 0.000 | AG86: 0.000
A87: 73 | B87: клюква с/м | C87: кг | D87: ='Пн День 1 Нед 1'!AB87 -> 0 | L87: 0.0000 | T87: 0.0000 | W87: 0.0000 | AA87: 0.0000 | AE87: 0.0000 | AF87: 0.000 | AG87: 0.000
A88: 74 | B88: смородина в ассорт с/м | C88: кг | D88: ='Пн День 1 Нед 1'!AB88 -> 0 | L88: 0.0000 | T88: 0.0000 | W88: 0.0000 | AA88: 0.0000 | AE88: 0.0000 | AF88: 0.000 | AG88: 0.000
A89: 75 | B89: облепиха с/м | C89: кг | D89: ='Пн День 1 Нед 1'!AB89 -> 0 | L89: 0.0000 | T89: 0.0000 | W89: 0.0000 | AA89: 0.0000 | AE89: 0.0000 | AF89: 0.000 | AG89: 0.000
B90: Сок | D90: ='Пн День 1 Нед 1'!AB90 -> 0 | L90: 0.0000 | T90: 0.0000 | W90: 0.0000 | AA90: 0.0000 | AE90: 0.0000 | AF90: 0.000 | AG90: 0.000
A91: 76 | B91: сок 0,125л или 0,2л | C91: л | D91: ='Пн День 1 Нед 1'!AB91 -> 0 | L91: 0.0000 | T91: 0.0000 | W91: 0.0000 | AA91: 0.0000 | AE91: 0.0000 | AF91: 0.000 | AG91: 0.000
A92: 77 | B92: нектар плодовый | C92: л | D92: ='Пн День 1 Нед 1'!AB92 -> 0 | L92: 0.0000 | T92: 0.0000 | W92: 0.0000 | AA92: 0.0000 | AE92: 0.0000 | AF92: 0.000 | AG92: 0.000
B93: Кондитерка | D93: ='Пн День 1 Нед 1'!AB93 -> 0 | L93: 0.0000 | T93: 0.0000 | W93: 0.0000 | AA93: 0.0000 | AE93: 0.0000 | AF93: 0.000 | AG93: 0.000
A94: 78 | B94: батончик злаковый | C94: шт | D94: ='Пн День 1 Нед 1'!AB94 -> 0 | L94: 0.0000 | T94: 0.0000 | W94: 0.0000 | AA94: 0.0000 | AE94: 0.0000 | AF94: 0.000 | AG94: 0.000
A95: 79 | B95: пряник | C95: кг | D95: ='Пн День 1 Нед 1'!AB95 -> 0 | L95: 0.0000 | T95: 0.0000 | W95: 0.0000 | AA95: 0.0000 | AE95: 0.0000 | AF95: 0.000 | AG95: 0.000
A96: 80 | B96: вафли | C96: кг | D96: ='Пн День 1 Нед 1'!AB96 -> 0 | L96: 0.0000 | T96: 0.0000 | U96: 0.2000 | W96: 0.2000 | AA96: 0.0000 | AE96: 0.0000 | AF96: 0.200 | AG96: -0.200
A97: 81 | B97: печенье | C97: кг | D97: ='Пн День 1 Нед 1'!AB97 -> -0.02 | L97: 0.0000 | T97: 0.0000 | W97: 0.0000 | AA97: 0.0000 | AE97: 0.0000 | AF97: 0.000 | AG97: -0.020
A98: 82 | B98: крекер | C98: кг | D98: ='Пн День 1 Нед 1'!AB98 -> 0 | L98: 0.0000 | T98: 0.0000 | W98: 0.0000 | AA98: 0.0000 | AE98: 0.0000 | AF98: 0.000 | AG98: 0.000
A99: 83 | B99: сушки | C99: кг | D99: ='Пн День 1 Нед 1'!AB99 -> 0 | L99: 0.0000 | T99: 0.0000 | W99: 0.0000 | AA99: 0.0000 | AE99: 0.0000 | AF99: 0.000 | AG99: 0.000
A100: 84 | B100: мармелад | C100: кг | D100: ='Пн День 1 Нед 1'!AB100 -> 0 | L100: 0.0000 | T100: 0.0000 | W100: 0.0000 | AA100: 0.0000 | AE100: 0.0000 | AF100: 0.000 | AG100: 0.000
A101: 85 | B101: блины п/ф | C101: кг | D101: ='Пн День 1 Нед 1'!AB101 -> 0 | L101: 0.0000 | T101: 0.0000 | W101: 0.0000 | AA101: 0.0000 | AE101: 0.0000 | AF101: 0.000 | AG101: 0.000
A102: 86 | B102: выпечка п/ф со склада | C102: шт | D102: ='Пн День 1 Нед 1'!AB102 -> 0 | L102: 0.0000 | T102: 0.0000 | W102: 0.0000 | AA102: 0.0000 | AE102: 0.0000 | AF102: 0.000 | AG102: 0.000
B103: Яйцо | D103: ='Пн День 1 Нед 1'!AB103 -> 0 | L103: 0.0000 | T103: 0.0000 | W103: 0.0000 | AA103: 0.0000 | AE103: 0.0000 | AF103: =L103+T103+W103+AE103 -> 0.000 | AG103: =(D103+E103)-AF103 -> 0.000
A104: 87 | B104: яйцо куриное | C104: кг | D104: ='Пн День 1 Нед 1'!AB104 -> -0.00096 | L104: 0.0000 | T104: 0.0000 | W104: 0.0000 | AA104: 0.0000 | AE104: 0.0000 | AF104: 0.000 | AG104: -0.001
B105: 0.048 | C105: шт | D105: ='Пн День 1 Нед 1'!AB105 -> 0 | L105: 0.0000 | T105: 0.0000 | W105: 0.0000 | AA105: 0.0000 | AE105: 0.0000 | AF105: 0.000 | AG105: 0.000
B106: Овощи заморозка | D106: ='Пн День 1 Нед 1'!AB106 -> 0 | L106: 0.0000 | T106: 0.0000 | W106: 0.0000 | AA106: 0.0000 | AE106: 0.0000 | AF106: 0.000 | AG106: 0.000
A107: 88 | B107: зеленый горошек с/м | C107: кг | D107: ='Пн День 1 Нед 1'!AB107 -> 0 | L107: 0.0000 | T107: 0.0000 | W107: 0.0000 | AA107: 0.0000 | AE107: 0.0000 | AF107: 0.000 | AG107: 0.000
A108: 89 | B108: кабачки с/м | C108: кг | D108: ='Пн День 1 Нед 1'!AB108 -> 0 | L108: 0.0000 | T108: 0.0000 | W108: 0.0000 | AA108: 0.0000 | AE108: 0.0000 | AF108: 0.000 | AG108: 0.000
A109: 90 | B109: мексиканс смесь с/м | C109: кг | D109: ='Пн День 1 Нед 1'!AB109 -> 0 | L109: 0.0000 | T109: 0.0000 | W109: 0.0000 | AA109: 0.0000 | AE109: 0.0000 | AF109: 0.000 | AG109: 0.000
A110: 91 | B110: капуста цветная с/м | C110: кг | D110: ='Пн День 1 Нед 1'!AB110 -> 0 | L110: 0.0000 | T110: 0.0000 | W110: 0.0000 | AA110: 0.0000 | AE110: 0.0000 | AF110: 0.000 | AG110: 0.000
A111: 92 | B111: брокколи с/м | C111: кг | D111: ='Пн День 1 Нед 1'!AB111 -> 0 | L111: 0.0000 | T111: 0.0000 | W111: 0.0000 | AA111: 0.0000 | AE111: 0.0000 | AF111: 0.000 | AG111: 0.000
A112: 93 | B112: кукуруза с/м | C112: кг | D112: ='Пн День 1 Нед 1'!AB112 -> 0 | L112: 0.0000 | T112: 0.0000 | W112: 0.0000 | AA112: 0.0000 | AE112: 0.0000 | AF112: 0.000 | AG112: 0.000
A113: 94 | B113: фасоль стручковая с/м | C113: кг | D113: ='Пн День 1 Нед 1'!AB113 -> 0 | L113: 0.0000 | T113: 0.0000 | W113: 0.0000 | AA113: 0.0000 | AE113: 0.0000 | AF113: 0.000 | AG113: 0.000
B114: Фрукты | D114: ='Пн День 1 Нед 1'!AB114 -> 0 | L114: 0.0000 | T114: 0.0000 | W114: 0.0000 | AA114: 0.0000 | AE114: 0.0000 | AF114: 0.000 | AG114: 0.000
A115: 95 | B115: апельсин | C115: кг | D115: ='Пн День 1 Нед 1'!AB115 -> 0 | L115: 0.0000 | T115: 0.0000 | W115: 0.0000 | AA115: 0.0000 | AE115: 0.0000 | AF115: 0.000 | AG115: 0.000
A116: 96 | B116: банан | C116: кг | D116: ='Пн День 1 Нед 1'!AB116 -> 0 | L116: 0.0000 | T116: 0.0000 | W116: 0.0000 | AA116: 0.0000 | AE116: 0.0000 | AF116: 0.000 | AG116: 0.000
A117: 97 | B117: груши | C117: кг | D117: ='Пн День 1 Нед 1'!AB117 -> 0 | L117: 0.0000 | T117: 0.0000 | W117: 0.0000 | AA117: 0.0000 | AE117: 0.0000 | AF117: 0.000 | AG117: 0.000
A118: 98 | B118: мандарины | C118: кг | D118: ='Пн День 1 Нед 1'!AB118 -> 0 | L118: 0.0000 | T118: 0.0000 | W118: 0.0000 | AA118: 0.0000 | AE118: 0.0000 | AF118: 0.000 | AG118: 0.000
A119: 99 | B119: лимон | C119: кг | D119: ='Пн День 1 Нед 1'!AB119 -> 0 | J119: 0.005 | L119: 0.0050 | T119: 0.0000 | V119: 0.007 | W119: 0.0070 | Y119: 0.0056 | AA119: 0.0000 | AE119: 0.0000 | AF119: 0.012 | AG119: -0.012
A120: 100 | B120: яблоки свежие | C120: кг | D120: ='Пн День 1 Нед 1'!AB120 -> -0.2228 | L120: 0.0000 | T120: 0.0000 | W120: 0.0000 | AA120: 0.0000 | AE120: 0.0000 | AF120: 0.000 | AG120: -0.223
B121: Овощи / зелень | D121: ='Пн День 1 Нед 1'!AB121 -> 0 | L121: 0.0000 | T121: 0.0000 | W121: 0.0000 | AA121: 0.0000 | AE121: 0.0000 | AF121: 0.000 | AG121: 0.000
A122: 101 | B122: капуста свежая | C122: кг | D122: ='Пн День 1 Нед 1'!AB122 -> 0 | L122: 0.0000 | T122: 0.0000 | W122: 0.0000 | AA122: 0.0000 | AE122: 0.0000 | AF122: 0.000 | AG122: 0.000
A123: 102 | B123: картофель | C123: кг | D123: ='Пн День 1 Нед 1'!AB123 -> -0.1 | L123: 0.0000 | T123: 0.0000 | W123: 0.0000 | AA123: 0.0000 | AE123: 0.0000 | AF123: 0.000 | AG123: -0.100
A124: 103 | B124: лук репчатый | C124: кг | D124: ='Пн День 1 Нед 1'!AB124 -> -0.0072 | G124: 0.0216 | L124: 0.0216 | N124: 0.0216 | T124: 0.0216 | W124: 0.0000 | AA124: 0.0000 | AB124: 0.0060 | AE124: 0.0060 | AF124: 0.049 | AG124: -0.056
A125: 104 | B125: морковь | C125: кг | D125: ='Пн День 1 Нед 1'!AB125 -> -0.0125 | L125: 0.0000 | T125: 0.0000 | W125: 0.0000 | AA125: 0.0000 | AB125: 0.0063 | AE125: 0.0063 | AF125: 0.006 | AG125: -0.019
A126: 105 | B126: свекла | C126: кг | D126: ='Пн День 1 Нед 1'!AB126 -> 0 | L126: 0.0000 | T126: 0.0000 | W126: 0.0000 | AA126: 0.0000 | AE126: 0.0000 | AF126: 0.000 | AG126: 0.000
A127: 106 | B127: огурцы св. | C127: кг | D127: ='Пн День 1 Нед 1'!AB127 -> 0 | L127: 0.0000 | T127: 0.0000 | W127: 0.0000 | AA127: 0.0000 | AE127: 0.0000 | AF127: 0.000 | AG127: 0.000
A128: 107 | B128: томаты св. | C128: кг | D128: ='Пн День 1 Нед 1'!AB128 -> 0 | L128: 0.0000 | T128: 0.0000 | W128: 0.0000 | AA128: 0.0000 | AE128: 0.0000 | AF128: 0.000 | AG128: 0.000
A129: 108 | B129: перец болг.красный | C129: кг | D129: ='Пн День 1 Нед 1'!AB129 -> 0 | L129: 0.0000 | T129: 0.0000 | W129: 0.0000 | AA129: 0.0000 | AE129: 0.0000 | AF129: 0.000 | AG129: 0.000
A130: 109 | B130: тыква | C130: кг | D130: ='Пн День 1 Нед 1'!AB130 -> 0 | L130: 0.0000 | T130: 0.0000 | W130: 0.0000 | AA130: 0.0000 | AE130: 0.0000 | AF130: 0.000 | AG130: 0.000
B131: Овощи очищенные | D131: ='Пн День 1 Нед 1'!AB131 -> 0 | L131: 0.0000 | T131: 0.0000 | W131: 0.0000 | AA131: 0.0000 | AE131: 0.0000 | AF131: 0.000 | AG131: 0.000
A132: 110 | B132: капуста св.очищенная | C132: кг | D132: ='Пн День 1 Нед 1'!AB132 -> 0 | L132: 0.0000 | T132: 0.0000 | W132: 0.0000 | AA132: 0.0000 | AE132: 0.0000 | AF132: 0.000 | AG132: 0.000
A133: 111 | B133: картофель св. очищенный | C133: кг | D133: ='Пн День 1 Нед 1'!AB133 -> 0 | L133: 0.0000 | T133: 0.0000 | W133: 0.0000 | AA133: 0.0000 | AE133: 0.0000 | AF133: 0.000 | AG133: 0.000
A134: 112 | B134: лук репчатый св.очищенный | C134: кг | D134: ='Пн День 1 Нед 1'!AB134 -> 0 | L134: 0.0000 | T134: 0.0000 | W134: 0.0000 | AA134: 0.0000 | AE134: 0.0000 | AF134: 0.000 | AG134: 0.000
A135: 113 | B135: морковь св.очищенная | C135: кг | D135: ='Пн День 1 Нед 1'!AB135 -> 0 | L135: 0.0000 | T135: 0.0000 | W135: 0.0000 | AA135: 0.0000 | AE135: 0.0000 | AF135: =L135+T135+W135+AE135 -> 0.000 | AG135: =(D135+E135)-AF135 -> 0.000
A136: 114 | B136: свекла св.очищенная | C136: кг | D136: ='Пн День 1 Нед 1'!AB136 -> 0 | L136: =(G136+I136+J136+K136)*$L$5 -> 0.0000 | T136: =(N136+O136+Q136+R136)*$T$5 -> 0.0000 | W136: =(U136+V136)*$W$5 -> 0.0000 | AA136: =(X136+Y136+Z136)*$AA$5 -> 0.0000 | AE136: =(AB136+AC136+AD136)*$AE$5 -> 0.0000 | AF136: 0.000 | AG136: 0.000
B137: Полуфабрикаты | D137: ='Пн День 1 Нед 1'!AB137 -> 0 | L137: 0.0000 | T137: 0.0000 | W137: 0.0000 | AA137: 0.0000 | AE137: 0.0000 | AF137: 0.000 | AG137: 0.000
A138: 115 | B138: сырники ПФ | C138: шт | D138: ='Пн День 1 Нед 1'!AB138 -> -2 | L138: 0.0000 | T138: 0.0000 | AF138: 0.000 | AG138: -2.000
A139: 116 | B139: пельмени ПФ | C139: кг | D139: ='Пн День 1 Нед 1'!AB139 -> 0 | L139: 0.0000 | T139: 0.0000 | W139: 0.0000 | AA139: 0.0000 | AE139: 0.0000 | AF139: 0.000 | AG139: 0.000
A140: 117 | B140: биточки рыбные | C140: шт | D140: ='Пн День 1 Нед 1'!AB140 -> 0 | L140: 0.0000 | T140: 0.0000 | W140: 0.0000 | AA140: 0.0000 | AE140: 0.0000 | AF140: 0.000 | AG140: 0.000
A141: 118 | B141: фрикадельки мясные | C141: кг | D141: ='Пн День 1 Нед 1'!AB141 -> 0 | L141: 0.0000 | T141: 0.0000 | W141: 0.0000 | AA141: 0.0000 | AE141: 0.0000 | AF141: 0.000 | AG141: 0.000
A142: 119 | B142: фрикадельки куриные | C142: кг | D142: ='Пн День 1 Нед 1'!AB142 -> 0 | L142: 0.0000 | T142: 0.0000 | W142: 0.0000 | AA142: 0.0000 | AE142: 0.0000 | AF142: 0.000 | AG142: 0.000
A143: 120 | B143: хинкали п/ф из говядины | C143: кг | D143: ='Пн День 1 Нед 1'!AB143 -> 0 | L143: 0.0000 | T143: 0.0000 | W143: 0.0000 | AA143: 0.0000 | AE143: 0.0000 | AF143: 0.000 | AG143: 0.000
A144: 121 | B144: котлеты из говядины "Домашние" | C144: шт | D144: ='Пн День 1 Нед 1'!AB144 -> 0 | L144: 0.0000 | T144: 0.0000 | W144: 0.0000 | AA144: 0.0000 | AE144: 0.0000 | AF144: 0.000 | AG144: 0.000
A145: 122 | B145: бифштекс из говядины | C145: шт | D145: ='Пн День 1 Нед 1'!AB145 -> 0 | L145: 0.0000 | T145: 0.0000 | W145: 0.0000 | AA145: 0.0000 | AE145: 0.0000 | AF145: 0.000 | AG145: 0.000
A146: 123 | B146: котлеты из мяса кур | C146: шт | D146: ='Пн День 1 Нед 1'!AB146 -> 0 | L146: 0.0000 | T146: 0.0000 | W146: 0.0000 | AA146: 0.0000 | AE146: 0.0000 | AF146: 0.000 | AG146: 0.000
A147: 124 | B147: котлеты "Аппетитные" мясо-куриные | C147: шт | D147: ='Пн День 1 Нед 1'!AB147 -> 0 | L147: 0.0000 | T147: 0.0000 | W147: 0.0000 | AA147: 0.0000 | AE147: 0.0000 | AF147: 0.000 | AG147: 0.000
A148: 125 | B148: ежики мясные с рисом | C148: шт | D148: ='Пн День 1 Нед 1'!AB148 -> 0 | L148: 0.0000 | T148: 0.0000 | W148: 0.0000 | AA148: 0.0000 | AE148: 0.0000 | AF148: 0.000 | AG148: 0.000

Sheet Ср День 3 Нед 1
A1: Расход продуктов питания в образовательных учереждениях
F2: Меню с 1 по 4 класс 69,43 РУБ | L2: ВСЕГО | M2: Меню с 5 по 11 класс 69,43 РУБ | R2: ВСЕГО | S2: Меню на сумму 9,60 РУБ | U2: ИТОГО | V2: Меню КАШИ НА молоке | Y2: ИТОГО | Z2: Меню СУПА | AC2: ИТОГО | AD2: ВСЕГО ЗА ДЕНЬ расход продуктов по всем рационам | AE2: остаток на конец
B3: ДЕНЬ 3 неделя 1 | D3: остаток на начало | E3: приход | F3: Фрикассе из куриной грудки | G3: Картофельное пюре с маслом сливочным | H3: Капуста тушеная (доп.гарнир) | I3: Чай с сахаром с яблоком | K3: Хлеб пшеничн /ржаной | M3: Фрикассе из куриной грудки | N3: Картофельное пюре | O3: Капуста тушенная (доп.гарнир) | P3: чай с сахаром с яблоком | Q3: Хлеб пшеничный /ржаной | S3: пряники | T3: Чай с сахаром | V3: макарон изд отварн с маслом слив | W3: Компот из сухофруктов | X3: хлеб ржаной | Z3: Борщ из св.капусты с мясными фрикаделькаими | AA3: Компот из урюка | AB3: хлеб ржаной
B4: КОЛИЧЕСТВО ДЕТЕЙ | F4: 7-11 | G4: 7-11 | H4: 7-11 | I4: 7-11 | K4: 7-11 | M4: 12-18 | N4: 12-18 | O4: 12-18 | P4: 12-18 | Q4: 12-18 | S4: 12-18 | T4: 12-18 | V4: 12-18 | W4: 12-18 | X4: 12-18 | Z4: 12-18 | AA4: 12-18 | AB4: 12-18
B5: Выход,гр | F5: 50/50 | G5: 150/3 | H5: 50 | I5: 180/10/10 | K5: 25/30 | L5: 1 | M5: 50/50 | N5: 180 | O5: 50 | P5: 180/10/10 | Q5: 25/40 | R5: 1 | S5: 35 | T5: 190/10 | U5: 1 | V5: 150/3 | W5: 200 | X5: 30 | Y5: 0 | Z5: 250/10/5 | AA5: 200 | AB5: 30 | AC5: 1 | AD5: =L5+R5+U5+AC5 -> 4
B6: Хлеб
A7: 1 | B7: батон | C7: кг | D7: ='Вт День 2 Нед 1'!AG7 -> 0 | L7: =(F7+G7+H7+I7+K7)*$L$5 -> 0.0000 | R7: =(M7+N7+O7+P7+Q7)*$R$5 -> 0.0000 | U7: =(T7+S7)*$U$5 -> 0.0000 | Y7: =(X7+W7+V7)*$Y$5 -> 0.0000 | AC7: =(Z7+AA7+AB7)*$AC$5 -> 0.0000 | AD7: =L7+R7+U7+AC7 -> 0.000 | AE7: =(D7+E7)-AD7 -> 0.000
A8: 2 | B8: хлеб пшеничный | C8: кг | D8: ='Вт День 2 Нед 1'!AG8 -> -0.05 | K8: 0.0250 | L8: =(F8+G8+H8+I8+K8)*$L$5 -> 0.0250 | Q8: 0.0250 | R8: =(M8+N8+O8+P8+Q8)*$R$5 -> 0.0250 | U8: =(T8+S8)*$U$5 -> 0.0000 | Y8: =(X8+W8+V8)*$Y$5 -> 0.0000 | AC8: =(Z8+AA8+AB8)*$AC$5 -> 0.0000 | AD8: 0.050 | AE8: -0.100
A9: 3 | B9: хлеб ржаной | C9: кг | D9: ='Вт День 2 Нед 1'!AG9 -> -0.175 | K9: 0.0500 | L9: 0.0500 | Q9: 0.0400 | R9: 0.0400 | U9: 0.0000 | X9: 0.0300 | Y9: 0.0000 | AB9: 0.0300 | AC9: 0.0300 | AD9: 0.120 | AE9: -0.295
A10: 4 | B10: булоч/выпечка готов с х/ком | C10: кг | D10: ='Вт День 2 Нед 1'!AG10 -> 0 | L10: 0.0000 | R10: 0.0000 | U10: 0.0000 | Y10: 0.0000 | AC10: 0.0000 | AD10: 0.000 | AE10: 0.000
B11: Молочка | D11: ='Вт День 2 Нед 1'!AG11 -> 0 | L11: 0.0000 | R11: 0.0000 | U11: 0.0000 | Y11: 0.0000 | AC11: 0.0000 | AD11: 0.000 | AE11: 0.000
A12: 5 | B12: молоко 2,5% | C12: кг | D12: ='Вт День 2 Нед 1'!AG12 -> -0.155 | F12: 0.0250 | G12: 0.0237 | L12: 0.0487 | M12: 0.0250 | N12: 0.0284 | R12: 0.0534 | U12: 0.0000 | Y12: 0.0000 | AC12: 0.0000 | AD12: 0.102 | AE12: -0.257
A13: 6 | B13: творог 5% | C13: кг | D13: ='Вт День 2 Нед 1'!AG13 -> 0 | L13: 0.0000 | R13: 0.0000 | U13: 0.0000 | Y13: 0.0000 | AC13: 0.0000 | AD13: 0.000 | AE13: 0.000
A14: 7 | B14: сметана 15% | C14: кг | D14: ='Вт День 2 Нед 1'!AG14 -> -0.025 | L14: 0.0000 | R14: 0.0000 | U14: 0.0000 | Y14: 0.0000 | Z14: 0.0050 | AC14: 0.0050 | AD14: 0.005 | AE14: -0.030
A15: 8 | B15: йогурт фруктов | C15: кг | D15: ='Вт День 2 Нед 1'!AG15 -> 0 | L15: 0.0000 | R15: 0.0000 | U15: 0.0000 | Y15: 0.0000 | AC15: 0.0000 | AD15: 0.000 | AE15: 0.000
A16: 9 | B16: катык 2,5% | C16: кг | D16: ='Вт День 2 Нед 1'!AG16 -> 0 | L16: 0.0000 | R16: 0.0000 | U16: 0.0000 | Y16: 0.0000 | AC16: 0.0000 | AD16: 0.000 | AE16: 0.000
A17: 10 | B17: кефир 2,5% | C17: кг | D17: ='Вт День 2 Нед 1'!AG17 -> 0 | L17: 0.0000 | R17: 0.0000 | U17: 0.0000 | Y17: 0.0000 | AC17: 0.0000 | AD17: 0.000 | AE17: 0.000
A18: 11 | B18: ряженка 2,5% | C18: кг | D18: ='Вт День 2 Нед 1'!AG18 -> 0 | L18: 0.0000 | R18: 0.0000 | U18: 0.0000 | Y18: 0.0000 | AC18: 0.0000 | AD18: 0.000 | AE18: 0.000
A19: 12 | B19: напиток ацидофильный | C19: кг | D19: ='Вт День 2 Нед 1'!AG19 -> 0 | L19: 0.0000 | R19: 0.0000 | U19: 0.0000 | Y19: 0.0000 | AC19: 0.0000 | AD19: 0.000 | AE19: 0.000
B20: Масло / сыр | D20: ='Вт День 2 Нед 1'!AG20 -> 0 | L20: 0.0000 | R20: 0.0000 | U20: 0.0000 | Y20: 0.0000 | AC20: 0.0000 | AD20: 0.000 | AE20: 0.000
A21: 13 | B21: масло растительное | C21: кг | D21: ='Вт День 2 Нед 1'!AG21 -> -0.0175 | F21: 0.0020 | L21: 0.0020 | M21: 0.0020 | R21: 0.0020 | U21: 0.0000 | Y21: 0.0000 | Z21: 0.0050 | AC21: 0.0050 | AD21: 0.009 | AE21: -0.027
A22: 14 | B22: масло сливочное | C22: кг | D22: ='Вт День 2 Нед 1'!AG22 -> -0.008 | F22: 0.0055 | G22: 0.0070 | L22: 0.0125 | M22: 0.0055 | N22: 0.0050 | R22: 0.0105 | U22: 0.0000 | V22: 0.0030 | Y22: 0.0000 | AC22: 0.0000 | AD22: 0.023 | AE22: -0.031
A23: 15 | B23: сыр голландский | C23: кг | D23: ='Вт День 2 Нед 1'!AG23 -> 0 | L23: 0.0000 | R23: 0.0000 | U23: 0.0000 | Y23: 0.0000 | AC23: 0.0000 | AD23: 0.000 | AE23: 0.000
B24: Мясо | D24: ='Вт День 2 Нед 1'!AG24 -> 0 | L24: 0.0000 | R24: 0.0000 | U24: 0.0000 | Y24: 0.0000 | AC24: 0.0000 | AD24: 0.000 | AE24: 0.000
A25: 16 | B25: говядина (котлетное мясо) | C25: кг | D25: ='Вт День 2 Нед 1'!AG25 -> 0 | L25: 0.0000 | R25: 0.0000 | U25: 0.0000 | Y25: 0.0000 | AC25: 0.0000 | AD25: 0.000 | AE25: 0.000
A26: 17 | B26: фарш говяжий | C26: кг | D26: ='Вт День 2 Нед 1'!AG26 -> -0.076 | L26: 0.0000 | R26: 0.0000 | U26: 0.0000 | Y26: 0.0000 | Z26: 0.0120 | AC26: 0.0120 | AD26: 0.012 | AE26: -0.088
A27: 18 | B27: говядина лопатка б/к | C27: кг | D27: ='Вт День 2 Нед 1'!AG27 -> 0 | L27: 0.0000 | R27: 0.0000 | U27: 0.0000 | Y27: 0.0000 | AC27: 0.0000 | AD27: 0.000 | AE27: 0.000
A28: 19 | B28: сосиски | C28: кг | D28: ='Вт День 2 Нед 1'!AG28 -> 0 | L28: 0.0000 | R28: 0.0000 | U28: 0.0000 | Y28: 0.0000 | AC28: 0.0000 | AD28: 0.000 | AE28: 0.000
A29: 20 | B29: колбаса п/к "Халяль" | C29: кг | D29: ='Вт День 2 Нед 1'!AG29 -> 0 | L29: 0.0000 | R29: 0.0000 | U29: 0.0000 | Y29: 0.0000 | AC29: 0.0000 | AD29: 0.000 | AE29: 0.000
A30: 21 | B30: куриное бедро | C30: кг | D30: ='Вт День 2 Нед 1'!AG30 -> 0 | L30: 0.0000 | R30: 0.0000 | U30: 0.0000 | Y30: 0.0000 | AC30: 0.0000 | AD30: 0.000 | AE30: 0.000
A31: 22 | B31: куриная грудка | C31: кг | D31: ='Вт День 2 Нед 1'!AG31 -> -0.02941 | F31: 0.0812 | L31: 0.0812 | M31: 0.0812 | R31: 0.0812 | U31: 0.0000 | Y31: 0.0000 | AC31: 0.0000 | AD31: 0.162 | AE31: -0.192
A32: 23 | B32: куры/цыплята потрош | C32: кг | D32: ='Вт День 2 Нед 1'!AG32 -> 0 | L32: 0.0000 | R32: 0.0000 | U32: 0.0000 | Y32: 0.0000 | AC32: 0.0000 | AD32: 0.000 | AE32: 0.000
A33: 24 | B33: фарш куриный | C33: кг | D33: ='Вт День 2 Нед 1'!AG33 -> 0 | L33: 0.0000 | R33: 0.0000 | U33: 0.0000 | Y33: 0.0000 | AC33: 0.0000 | AD33: 0.000 | AE33: 0.000
A34: 25 | B34: индейка бедро филе | C34: кг | D34: ='Вт День 2 Нед 1'!AG34 -> 0 | L34: 0.0000 | R34: 0.0000 | U34: 0.0000 | Y34: 0.0000 | AC34: 0.0000 | AD34: 0.000 | AE34: 0.000
A35: 26 | B35: индейка грудка филе | C35: кг | D35: ='Вт День 2 Нед 1'!AG35 -> 0 | L35: 0.0000 | R35: 0.0000 | U35: 0.0000 | Y35: 0.0000 | AC35: 0.0000 | AD35: 0.000 | AE35: 0.000
B36: Рыба | D36: ='Вт День 2 Нед 1'!AG36 -> 0 | L36: 0.0000 | R36: 0.0000 | U36: 0.0000 | Y36: 0.0000 | AC36: 0.0000 | AD36: 0.000 | AE36: 0.000
A37: 27 | B37: горбуша ПБГ с/м | C37: кг | D37: ='Вт День 2 Нед 1'!AG37 -> 0 | L37: 0.0000 | R37: 0.0000 | U37: 0.0000 | Y37: 0.0000 | AC37: 0.0000 | AD37: 0.000 | AE37: 0.000
A38: 28 | B38: минтай б/г с/м | C38: кг | D38: ='Вт День 2 Нед 1'!AG38 -> 0 | L38: 0.0000 | R38: 0.0000 | U38: 0.0000 | Y38: 0.0000 | AC38: 0.0000 | AD38: 0.000 | AE38: 0.000
A39: 29 | B39: фарш минтая | C39: кг | D39: ='Вт День 2 Нед 1'!AG39 -> 0 | L39: 0.0000 | R39: 0.0000 | U39: 0.0000 | Y39: 0.0000 | AC39: 0.0000 | AD39: =L39+R39+U39+AC39 -> 0.000 | AE39: =(D39+E39)-AD39 -> 0.000
B40: Сыпучка | D40: ='Вт День 2 Нед 1'!AG40 -> 0 | L40: 0.0000 | R40: 0.0000 | U40: 0.0000 | Y40: 0.0000 | AC40: 0.0000 | AD40: 0.000 | AE40: 0.000
A41: 30 | B41: вермишель | C41: кг | D41: ='Вт День 2 Нед 1'!AG41 -> 0 | L41: 0.0000 | R41: 0.0000 | U41: 0.0000 | Y41: 0.0000 | AC41: 0.0000 | AD41: 0.000 | AE41: 0.000
A42: 31 | B42: геркулес | C42: кг | D42: ='Вт День 2 Нед 1'!AG42 -> 0 | L42: 0.0000 | R42: 0.0000 | U42: 0.0000 | Y42: 0.0000 | AC42: 0.0000 | AD42: 0.000 | AE42: 0.000
A43: 32 | B43: горох | C43: кг | D43: ='Вт День 2 Нед 1'!AG43 -> 0 | L43: 0.0000 | R43: 0.0000 | U43: 0.0000 | Y43: 0.0000 | AC43: 0.0000 | AD43: 0.000 | AE43: 0.000
A44: 33 | B44: гречневая крупа | C44: кг | D44: ='Вт День 2 Нед 1'!AG44 -> 0 | L44: 0.0000 | R44: 0.0000 | U44: 0.0000 | Y44: 0.0000 | AC44: 0.0000 | AD44: 0.000 | AE44: 0.000
A45: 34 | B45: кукурузная крупа | C45: кг | D45: ='Вт День 2 Нед 1'!AG45 -> 0 | L45: 0.0000 | R45: 0.0000 | U45: 0.0000 | Y45: 0.0000 | AC45: 0.0000 | AD45: 0.000 | AE45: 0.000
A46: 35 | B46: макаронные изделия | C46: кг | D46: ='Вт День 2 Нед 1'!AG46 -> -0.071 | L46: 0.0000 | R46: 0.0000 | U46: 0.0000 | V46: 0.0610 | Y46: 0.0000 | AC46: 0.0000 | AD46: 0.000 | AE46: -0.071
A47: 36 | B47: манная крупа | C47: кг | D47: ='Вт День 2 Нед 1'!AG47 -> 0 | L47: 0.0000 | R47: 0.0000 | U47: 0.0000 | Y47: 0.0000 | AC47: 0.0000 | AD47: 0.000 | AE47: 0.000
A48: 37 | B48: перловая крупа | C48: кг | D48: ='Вт День 2 Нед 1'!AG48 -> -0.005 | L48: 0.0000 | R48: 0.0000 | U48: 0.0000 | Y48: 0.0000 | AC48: 0.0000 | AD48: 0.000 | AE48: -0.005
A49: 38 | B49: полбяная крупа | C49: кг | D49: ='Вт День 2 Нед 1'!AG49 -> 0 | L49: 0.0000 | R49: 0.0000 | U49: 0.0000 | Y49: 0.0000 | AC49: 0.0000 | AD49: 0.000 | AE49: 0.000
A50: 39 | B50: пшеничная крупа | C50: кг | D50: ='Вт День 2 Нед 1'!AG50 -> 0 | L50: 0.0000 | R50: 0.0000 | U50: 0.0000 | Y50: 0.0000 | AC50: 0.0000 | AD50: 0.000 | AE50: 0.000
A51: 40 | B51: пшено | C51: кг | D51: ='Вт День 2 Нед 1'!AG51 -> -0.0245 | L51: 0.0000 | R51: 0.0000 | U51: 0.0000 | Y51: 0.0000 | AC51: 0.0000 | AD51: 0.000 | AE51: -0.025
A52: 41 | B52: рис | C52: кг | D52: ='Вт День 2 Нед 1'!AG52 -> -0.155 | L52: 0.0000 | R52: 0.0000 | U52: 0.0000 | Y52: 0.0000 | AC52: 0.0000 | AD52: 0.000 | AE52: -0.155
A53: 42 | B53: ячневая крупа | C53: кг | D53: ='Вт День 2 Нед 1'!AG53 -> 0 | L53: 0.0000 | R53: 0.0000 | U53: 0.0000 | Y53: 0.0000 | AC53: 0.0000 | AD53: 0.000 | AE53: 0.000
A54: 43 | B54: лапша домашняя п/ф | C54: кг | D54: ='Вт День 2 Нед 1'!AG54 -> -0.02 | L54: 0.0000 | R54: 0.0000 | U54: 0.0000 | Y54: 0.0000 | AC54: 0.0000 | AD54: 0.000 | AE54: -0.020
A55: 44 | B55: мука пшеничная в/с | C55: кг | D55: ='Вт День 2 Нед 1'!AG55 -> -0.014 | F55: 0.0055 | H55: 0.0005 | L55: 0.0060 | M55: 0.0055 | O55: 0.0005 | R55: 0.0060 | U55: 0.0000 | Y55: 0.0000 | AC55: 0.0000 | AD55: 0.012 | AE55: -0.026
A56: 45 | B56: сахарный песок | C56: кг | D56: ='Вт День 2 Нед 1'!AG56 -> -0.0773 | H56: 0.0015 | I56: 0.0100 | L56: 0.0115 | O56: 0.0015 | P56: 0.0100 | R56: 0.0115 | T56: 0.0100 | U56: 0.0100 | W56: 0.0100 | Y56: 0.0000 | Z56: 0.0025 | AA56: 0.0100 | AC56: 0.0125 | AD56: 0.046 | AE56: -0.123
A57: 46 | B57: соль | C57: кг | D57: ='Вт День 2 Нед 1'!AG57 -> -0.0052 | F57: =0.0007+0.0004 -> 0.0011 | G57: 0.0005 | H57: 0.0003 | L57: 0.0019 | M57: =0.0007+0.0004 -> 0.0011 | N57: 0.0006 | O57: 0.0003 | R57: 0.0020 | U57: 0.0000 | V57: 0.0005 | Y57: 0.0000 | Z57: 0.0011 | AC57: 0.0011 | AD57: 0.005 | AE57: -0.010
A58: 47 | B58: сухари панировочные | C58: кг | D58: ='Вт День 2 Нед 1'!AG58 -> 0 | L58: 0.0000 | R58: 0.0000 | U58: 0.0000 | Y58: 0.0000 | AC58: 0.0000 | AD58: 0.000 | AE58: 0.000
A59: 48 | B59: дрожжи сухие | C59: кг | D59: ='Вт День 2 Нед 1'!AG59 -> 0 | L59: 0.0000 | R59: 0.0000 | U59: 0.0000 | Y59: 0.0000 | AC59: 0.0000 | AD59: 0.000 | AE59: 0.000
A60: 49 | B60: фасоль | C60: кг | D60: ='Вт День 2 Нед 1'!AG60 -> 0 | L60: 0.0000 | R60: 0.0000 | U60: 0.0000 | Y60: 0.0000 | AC60: 0.0000 | AD60: 0.000 | AE60: 0.000
B61: Консервы | D61: ='Вт День 2 Нед 1'!AG61 -> 0 | L61: 0.0000 | R61: 0.0000 | U61: 0.0000 | Y61: 0.0000 | AC61: 0.0000 | AD61: 0.000 | AE61: 0.000
A62: 50 | B62: зеленый горошек к/с | C62: кг | D62: ='Вт День 2 Нед 1'!AG62 -> 0 | L62: 0.0000 | R62: 0.0000 | U62: 0.0000 | Y62: 0.0000 | AC62: 0.0000 | AD62: 0.000 | AE62: 0.000
A63: 51 | B63: кукуруза к/с | C63: кг | D63: ='Вт День 2 Нед 1'!AG63 -> 0 | L63: 0.0000 | R63: 0.0000 | U63: 0.0000 | Y63: 0.0000 | AC63: 0.0000 | AD63: 0.000 | AE63: 0.000
A64: 52 | B64: фасоль к/с | C64: кг | D64: ='Вт День 2 Нед 1'!AG64 -> 0 | L64: 0.0000 | R64: 0.0000 | U64: 0.0000 | Y64: 0.0000 | AC64: 0.0000 | AD64: 0.000 | AE64: 0.000
A65: 53 | B65: икра кабачк/икра баклаж | C65: кг | D65: ='Вт День 2 Нед 1'!AG65 -> 0 | L65: 0.0000 | R65: 0.0000 | U65: 0.0000 | Y65: 0.0000 | AC65: 0.0000 | AD65: 0.000 | AE65: 0.000
A66: 54 | B66: капуста морская сушеная | C66: кг | D66: ='Вт День 2 Нед 1'!AG66 -> 0 | L66: 0.0000 | R66: 0.0000 | U66: 0.0000 | Y66: 0.0000 | AC66: 0.0000 | AD66: 0.000 | AE66: 0.000
A67: 55 | B67: капуста квашеная | C67: кг | D67: ='Вт День 2 Нед 1'!AG67 -> 0 | L67: 0.0000 | R67: 0.0000 | U67: 0.0000 | Y67: 0.0000 | AC67: 0.0000 | AD67: 0.000 | AE67: 0.000
A68: 56 | B68: молоко сгущенное | C68: кг | D68: ='Вт День 2 Нед 1'!AG68 -> 0 | L68: 0.0000 | R68: 0.0000 | U68: 0.0000 | Y68: 0.0000 | AC68: 0.0000 | AD68: 0.000 | AE68: 0.000
A69: 57 | B69: огурцы соленые | C69: кг | D69: ='Вт День 2 Нед 1'!AG69 -> -0.0273 | L69: 0.0000 | R69: 0.0000 | U69: 0.0000 | Y69: 0.0000 | AC69: 0.0000 | AD69: 0.000 | AE69: -0.027
A70: 58 | B70: повидло | C70: кг | D70: ='Вт День 2 Нед 1'!AG70 -> 0 | L70: 0.0000 | R70: 0.0000 | U70: 0.0000 | Y70: 0.0000 | AC70: 0.0000 | AD70: 0.000 | AE70: 0.000
A71: 59 | B71: томатная паста | C71: кг | D71: ='Вт День 2 Нед 1'!AG71 -> -0.0032 | H71: 0.0012 | L71: 0.0012 | O71: 0.0012 | R71: 0.0012 | U71: 0.0000 | Y71: 0.0000 | Z71: 0.0030 | AC71: 0.0030 | AD71: =L71+R71+U71+AC71 -> 0.005 | AE71: =(D71+E71)-AD71 -> -0.009
A72: 60 | B72: рыбные консервы | C72: кг | D72: ='Вт День 2 Нед 1'!AG72 -> 0 | L72: =(F72+G72+H72+I72+K72)*$L$5 -> 0.0000 | R72: =(M72+N72+O72+P72+Q72)*$R$5 -> 0.0000 | U72: =(T72+S72)*$U$5 -> 0.0000 | Y72: =(X72+W72+V72)*$Y$5 -> 0.0000 | AC72: =(Z72+AA72+AB72)*$AC$5 -> 0.0000 | AD72: 0.000 | AE72: 0.000
B73: Напитки | D73: ='Вт День 2 Нед 1'!AG73 -> 0 | L73: 0.0000 | R73: 0.0000 | U73: 0.0000 | Y73: 0.0000 | AC73: 0.0000 | AD73: 0.000 | AE73: 0.000
A74: 61 | B74: чай весовой | C74: кг | D74: ='Вт День 2 Нед 1'!AG74 -> -0.0025 | I74: 0.0005 | L74: 0.0005 | P74: 0.0005 | R74: 0.0005 | T74: 0.0005 | U74: 0.0005 | Y74: 0.0000 | AC74: 0.0000 | AD74: 0.002 | AE74: -0.004
A75: 62 | B75: какао | C75: кг | D75: ='Вт День 2 Нед 1'!AG75 -> 0 | L75: 0.0000 | R75: 0.0000 | U75: 0.0000 | Y75: 0.0000 | AC75: 0.0000 | AD75: 0.000 | AE75: 0.000
A76: 63 | B76: кисель | C76: кг | D76: ='Вт День 2 Нед 1'!AG76 -> 0 | L76: 0.0000 | R76: 0.0000 | U76: 0.0000 | Y76: 0.0000 | AC76: 0.0000 | AD76: 0.000 | AE76: 0.000
A77: 64 | B77: кофейный напиток | C77: кг | D77: ='Вт День 2 Нед 1'!AG77 -> 0 | L77: 0.0000 | R77: 0.0000 | U77: 0.0000 | Y77: 0.0000 | AC77: 0.0000 | AD77: 0.000 | AE77: 0.000
A78: 65 | B78: цикорий | C78: кг | D78: ='Вт День 2 Нед 1'!AG78 -> 0 | L78: 0.0000 | R78: 0.0000 | U78: 0.0000 | Y78: 0.0000 | AC78: 0.0000 | AD78: 0.000 | AE78: 0.000
B79: Сухофрукты | D79: ='Вт День 2 Нед 1'!AG79 -> 0 | L79: 0.0000 | R79: 0.0000 | U79: 0.0000 | Y79: 0.0000 | AC79: 0.0000 | AD79: 0.000 | AE79: 0.000
A80: 66 | B80: ассорти для компота (сухофрукты) | C80: кг | D80: ='Вт День 2 Нед 1'!AG80 -> -0.0204 | L80: 0.0000 | R80: 0.0000 | U80: 0.0000 | W80: 0.0204 | Y80: 0.0000 | AC80: 0.0000 | AD80: 0.000 | AE80: -0.020
A81: 67 | B81: изюм | C81: кг | D81: ='Вт День 2 Нед 1'!AG81 -> -0.0102 | L81: 0.0000 | R81: 0.0000 | U81: 0.0000 | Y81: 0.0000 | AC81: 0.0000 | AD81: 0.000 | AE81: -0.010
A82: 68 | B82: курага | C82: кг | D82: ='Вт День 2 Нед 1'!AG82 -> 0 | L82: 0.0000 | R82: 0.0000 | U82: 0.0000 | Y82: 0.0000 | AC82: 0.0000 | AD82: 0.000 | AE82: 0.000
A83: 69 | B83: урюк | C83: кг | D83: ='Вт День 2 Нед 1'!AG83 -> 0 | L83: 0.0000 | R83: 0.0000 | U83: 0.0000 | Y83: 0.0000 | AA83: 0.0204 | AC83: 0.0204 | AD83: 0.020 | AE83: -0.020
A84: 70 | B84: шиповник | C84: кг | D84: ='Вт День 2 Нед 1'!AG84 -> -0.0153 | L84: 0.0000 | R84: 0.0000 | U84: 0.0000 | Y84: 0.0000 | AC84: 0.0000 | AD84: 0.000 | AE84: -0.015
A85: 71 | B85: компотная смесь с/м | C85: кг | D85: ='Вт День 2 Нед 1'!AG85 -> 0 | L85: 0.0000 | R85: 0.0000 | U85: 0.0000 | Y85: 0.0000 | AC85: 0.0000 | AD85: 0.000 | AE85: 0.000
A86: 72 | B86: вишня с/м | C86: кг | D86: ='Вт День 2 Нед 1'!AG86 -> 0 | L86: 0.0000 | R86: 0.0000 | U86: 0.0000 | Y86: 0.0000 | AC86: 0.0000 | AD86: 0.000 | AE86: 0.000
A87: 73 | B87: клюква с/м | C87: кг | D87: ='Вт День 2 Нед 1'!AG87 -> 0 | L87: 0.0000 | R87: 0.0000 | U87: 0.0000 | Y87: 0.0000 | AC87: 0.0000 | AD87: 0.000 | AE87: 0.000
A88: 74 | B88: смородина в ассорт с/м | C88: кг | D88: ='Вт День 2 Нед 1'!AG88 -> 0 | L88: 0.0000 | R88: 0.0000 | U88: 0.0000 | Y88: 0.0000 | AC88: 0.0000 | AD88: 0.000 | AE88: 0.000
A89: 75 | B89: облепиха с/м | C89: кг | D89: ='Вт День 2 Нед 1'!AG89 -> 0 | L89: 0.0000 | R89: 0.0000 | U89: 0.0000 | Y89: 0.0000 | AC89: 0.0000 | AD89: 0.000 | AE89: 0.000
B90: Сок | D90: ='Вт День 2 Нед 1'!AG90 -> 0 | L90: 0.0000 | R90: 0.0000 | U90: 0.0000 | Y90: 0.0000 | AC90: 0.0000 | AD90: 0.000 | AE90: 0.000
A91: 76 | B91: сок 0,125л или 0,2л | C91: л | D91: ='Вт День 2 Нед 1'!AG91 -> 0 | L91: 0.0000 | R91: 0.0000 | U91: 0.0000 | Y91: 0.0000 | AC91: 0.0000 | AD91: 0.000 | AE91: 0.000
A92: 77 | B92: нектар плодовый | C92: л | D92: ='Вт День 2 Нед 1'!AG92 -> 0 | L92: 0.0000 | R92: 0.0000 | U92: 0.0000 | Y92: 0.0000 | AC92: 0.0000 | AD92: 0.000 | AE92: 0.000
B93: Кондитерка | D93: ='Вт День 2 Нед 1'!AG93 -> 0 | L93: 0.0000 | R93: 0.0000 | U93: 0.0000 | Y93: 0.0000 | AC93: 0.0000 | AD93: 0.000 | AE93: 0.000
A94: 78 | B94: батончик злаковый | C94: шт | D94: ='Вт День 2 Нед 1'!AG94 -> 0 | L94: 0.0000 | R94: 0.0000 | U94: 0.0000 | Y94: 0.0000 | AC94: 0.0000 | AD94: 0.000 | AE94: 0.000
A95: 79 | B95: пряник | C95: кг | D95: ='Вт День 2 Нед 1'!AG95 -> 0 | L95: 0.0000 | R95: 0.0000 | S95: 0.0350 | U95: 0.0350 | Y95: 0.0000 | AC95: 0.0000 | AD95: 0.035 | AE95: -0.035
A96: 80 | B96: вафли | C96: кг | D96: ='Вт День 2 Нед 1'!AG96 -> -0.2 | L96: 0.0000 | R96: 0.0000 | U96: 0.0000 | Y96: 0.0000 | AC96: 0.0000 | AD96: 0.000 | AE96: -0.200
A97: 81 | B97: печенье | C97: кг | D97: ='Вт День 2 Нед 1'!AG97 -> -0.02 | L97: 0.0000 | R97: 0.0000 | U97: 0.0000 | Y97: 0.0000 | AC97: 0.0000 | AD97: 0.000 | AE97: -0.020
A98: 82 | B98: крекер | C98: кг | D98: ='Вт День 2 Нед 1'!AG98 -> 0 | L98: 0.0000 | R98: 0.0000 | U98: 0.0000 | Y98: 0.0000 | AC98: 0.0000 | AD98: 0.000 | AE98: 0.000
A99: 83 | B99: сушки | C99: кг | D99: ='Вт День 2 Нед 1'!AG99 -> 0 | L99: 0.0000 | R99: 0.0000 | U99: 0.0000 | Y99: 0.0000 | AC99: 0.0000 | AD99: 0.000 | AE99: 0.000
A100: 84 | B100: мармелад | C100: кг | D100: ='Вт День 2 Нед 1'!AG100 -> 0 | L100: 0.0000 | R100: 0.0000 | U100: 0.0000 | Y100: 0.0000 | AC100: 0.0000 | AD100: 0.000 | AE100: 0.000
A101: 85 | B101: блины п/ф | C101: кг | D101: ='Вт День 2 Нед 1'!AG101 -> 0 | L101: 0.0000 | R101: 0.0000 | U101: 0.0000 | Y101: 0.0000 | AC101: 0.0000 | AD101: 0.000 | AE101: 0.000
A102: 86 | B102: выпечка п/ф со склада | C102: шт | D102: ='Вт День 2 Нед 1'!AG102 -> 0 | L102: 0.0000 | R102: 0.0000 | U102: 0.0000 | Y102: 0.0000 | AC102: 0.0000 | AD102: 0.000 | AE102: 0.000
B103: Яйцо | D103: ='Вт День 2 Нед 1'!AG103 -> 0 | L103: 0.0000 | R103: 0.0000 | U103: 0.0000 | Y103: 0.0000 | AC103: 0.0000 | AD103: =L103+R103+U103+AC103 -> 0.000 | AE103: =(D103+E103)-AD103 -> 0.000
A104: 87 | B104: яйцо куриное | C104: кг | D104: ='Вт День 2 Нед 1'!AG104 -> -0.00096 | L104: 0.0000 | R104: 0.0000 | U104: 0.0000 | Y104: 0.0000 | Z104: 0.0010 | AC104: 0.0010 | AD104: 0.001 | AE104: -0.002
B105: 0.048 | C105: шт | D105: ='Вт День 2 Нед 1'!AG105 -> 0 | L105: 0.0000 | R105: 0.0000 | U105: 0.0000 | Y105: 0.0000 | AC105: 0.0000 | AD105: 0.000 | AE105: 0.000
B106: Овощи заморозка | D106: ='Вт День 2 Нед 1'!AG106 -> 0 | L106: 0.0000 | R106: 0.0000 | U106: 0.0000 | Y106: 0.0000 | AC106: 0.0000 | AD106: 0.000 | AE106: 0.000
A107: 88 | B107: зеленый горошек с/м | C107: кг | D107: ='Вт День 2 Нед 1'!AG107 -> 0 | L107: 0.0000 | R107: 0.0000 | U107: 0.0000 | Y107: 0.0000 | AC107: 0.0000 | AD107: 0.000 | AE107: 0.000
A108: 89 | B108: кабачки с/м | C108: кг | D108: ='Вт День 2 Нед 1'!AG108 -> 0 | L108: 0.0000 | R108: 0.0000 | U108: 0.0000 | Y108: 0.0000 | AC108: 0.0000 | AD108: 0.000 | AE108: 0.000
A109: 90 | B109: мексиканс смесь с/м | C109: кг | D109: ='Вт День 2 Нед 1'!AG109 -> 0 | L109: 0.0000 | R109: 0.0000 | U109: 0.0000 | Y109: 0.0000 | AC109: 0.0000 | AD109: 0.000 | AE109: 0.000
A110: 91 | B110: капуста цветная с/м | C110: кг | D110: ='Вт День 2 Нед 1'!AG110 -> 0 | L110: 0.0000 | R110: 0.0000 | U110: 0.0000 | Y110: 0.0000 | AC110: 0.0000 | AD110: 0.000 | AE110: 0.000
A111: 92 | B111: брокколи с/м | C111: кг | D111: ='Вт День 2 Нед 1'!AG111 -> 0 | L111: 0.0000 | R111: 0.0000 | U111: 0.0000 | Y111: 0.0000 | AC111: 0.0000 | AD111: 0.000 | AE111: 0.000
A112: 93 | B112: кукуруза с/м | C112: кг | D112: ='Вт День 2 Нед 1'!AG112 -> 0 | L112: 0.0000 | R112: 0.0000 | U112: 0.0000 | Y112: 0.0000 | AC112: 0.0000 | AD112: 0.000 | AE112: 0.000
A113: 94 | B113: фасоль стручковая с/м | C113: кг | D113: ='Вт День 2 Нед 1'!AG113 -> 0 | L113: 0.0000 | R113: 0.0000 | U113: 0.0000 | Y113: 0.0000 | AC113: 0.0000 | AD113: 0.000 | AE113: 0.000
B114: Фрукты | D114: ='Вт День 2 Нед 1'!AG114 -> 0 | L114: 0.0000 | R114: 0.0000 | U114: 0.0000 | Y114: 0.0000 | AC114: 0.0000 | AD114: 0.000 | AE114: 0.000
A115: 95 | B115: апельсин | C115: кг | D115: ='Вт День 2 Нед 1'!AG115 -> 0 | L115: 0.0000 | R115: 0.0000 | U115: 0.0000 | Y115: 0.0000 | AC115: 0.0000 | AD115: 0.000 | AE115: 0.000
A116: 96 | B116: банан | C116: кг | D116: ='Вт День 2 Нед 1'!AG116 -> 0 | L116: 0.0000 | R116: 0.0000 | U116: 0.0000 | Y116: 0.0000 | AC116: 0.0000 | AD116: 0.000 | AE116: 0.000
A117: 97 | B117: груши | C117: кг | D117: ='Вт День 2 Нед 1'!AG117 -> 0 | L117: 0.0000 | R117: 0.0000 | U117: 0.0000 | Y117: 0.0000 | AC117: 0.0000 | AD117: 0.000 | AE117: 0.000
A118: 98 | B118: мандарины | C118: кг | D118: ='Вт День 2 Нед 1'!AG118 -> 0 | L118: 0.0000 | R118: 0.0000 | U118: 0.0000 | Y118: 0.0000 | AC118: 0.0000 | AD118: 0.000 | AE118: 0.000
A119: 99 | B119: лимон | C119: кг | D119: ='Вт День 2 Нед 1'!AG119 -> -0.012 | L119: 0.0000 | R119: 0.0000 | U119: 0.0000 | Y119: 0.0000 | AC119: 0.0000 | AD119: 0.000 | AE119: -0.012
A120: 100 | B120: яблоки свежие | C120: кг | D120: ='Вт День 2 Нед 1'!AG120 -> -0.2228 | I120: 0.0114 | L120: 0.0114 | P120: 0.0114 | R120: 0.0114 | U120: 0.0000 | Y120: 0.0000 | AC120: 0.0000 | AD120: 0.023 | AE120: -0.246
B121: Овощи / зелень | D121: ='Вт День 2 Нед 1'!AG121 -> 0 | L121: 0.0000 | R121: 0.0000 | U121: 0.0000 | Y121: 0.0000 | AC121: 0.0000 | AD121: 0.000 | AE121: 0.000
A122: 101 | B122: капуста свежая | C122: кг | D122: ='Вт День 2 Нед 1'!AG122 -> 0 | H122: 0.0713 | L122: 0.0713 | O122: 0.0713 | R122: 0.0713 | U122: 0.0000 | Y122: 0.0000 | Z122: 0.0250 | AC122: 0.0250 | AD122: 0.168 | AE122: -0.168
A123: 102 | B123: картофель | C123: кг | D123: ='Вт День 2 Нед 1'!AG123 -> -0.1 | G123: 0.1710 | L123: 0.1710 | N123: 0.2052 | R123: 0.2052 | U123: 0.0000 | Y123: 0.0000 | Z123: 0.0268 | AC123: 0.0268 | AD123: 0.403 | AE123: -0.503
A124: 103 | B124: лук репчатый | C124: кг | D124: ='Вт День 2 Нед 1'!AG124 -> -0.0564 | F124: 0.0108 | H124: 0.0048 | L124: 0.0156 | M124: 0.0108 | O124: 0.0048 | R124: 0.0156 | U124: 0.0000 | Y124: 0.0000 | Z124: 0.0120 | AC124: 0.0120 | AD124: 0.043 | AE124: -0.100
A125: 104 | B125: морковь | C125: кг | D125: ='Вт День 2 Нед 1'!AG125 -> -0.01875 | F125: 0.0125 | H125: 0.0038 | L125: 0.0163 | M125: 0.0125 | O125: 0.0038 | R125: 0.0163 | U125: 0.0000 | Y125: 0.0000 | Z125: 0.0125 | AC125: 0.0125 | AD125: 0.045 | AE125: -0.064
A126: 105 | B126: свекла | C126: кг | D126: ='Вт День 2 Нед 1'!AG126 -> 0 | L126: 0.0000 | R126: 0.0000 | U126: 0.0000 | Y126: 0.0000 | Z126: 0.0500 | AC126: 0.0500 | AD126: 0.050 | AE126: -0.050
A127: 106 | B127: огурцы св. | C127: кг | D127: ='Вт День 2 Нед 1'!AG127 -> 0 | L127: 0.0000 | R127: 0.0000 | U127: 0.0000 | Y127: 0.0000 | AC127: 0.0000 | AD127: 0.000 | AE127: 0.000
A128: 107 | B128: томаты св. | C128: кг | D128: ='Вт День 2 Нед 1'!AG128 -> 0 | L128: 0.0000 | R128: 0.0000 | U128: 0.0000 | Y128: 0.0000 | AC128: 0.0000 | AD128: 0.000 | AE128: 0.000
A129: 108 | B129: перец болг.красный | C129: кг | D129: ='Вт День 2 Нед 1'!AG129 -> 0 | L129: 0.0000 | R129: 0.0000 | U129: 0.0000 | Y129: 0.0000 | AC129: 0.0000 | AD129: 0.000 | AE129: 0.000
A130: 109 | B130: тыква | C130: кг | D130: ='Вт День 2 Нед 1'!AG130 -> 0 | L130: 0.0000 | R130: 0.0000 | U130: 0.0000 | Y130: 0.0000 | AC130: 0.0000 | AD130: 0.000 | AE130: 0.000
B131: Овощи очищенные | D131: ='Вт День 2 Нед 1'!AG131 -> 0 | L131: 0.0000 | R131: 0.0000 | U131: 0.0000 | Y131: 0.0000 | AC131: 0.0000 | AD131: 0.000 | AE131: 0.000
A132: 110 | B132: капуста св.очищенная | C132: кг | D132: ='Вт День 2 Нед 1'!AG132 -> 0 | L132: 0.0000 | R132: 0.0000 | U132: 0.0000 | Y132: 0.0000 | AC132: 0.0000 | AD132: 0.000 | AE132: 0.000
A133: 111 | B133: картофель св. очищенный | C133: кг | D133: ='Вт День 2 Нед 1'!AG133 -> 0 | L133: 0.0000 | R133: 0.0000 | U133: 0.0000 | Y133: 0.0000 | AC133: 0.0000 | AD133: 0.000 | AE133: 0.000
A134: 112 | B134: лук репчатый св.очищенный | C134: кг | D134: ='Вт День 2 Нед 1'!AG134 -> 0 | L134: 0.0000 | R134: 0.0000 | U134: 0.0000 | Y134: 0.0000 | AC134: 0.0000 | AD134: 0.000 | AE134: 0.000
A135: 113 | B135: морковь св.очищенная | C135: кг | D135: ='Вт День 2 Нед 1'!AG135 -> 0 | L135: 0.0000 | R135: 0.0000 | U135: 0.0000 | Y135: 0.0000 | AC135: 0.0000 | AD135: =L135+R135+U135+AC135 -> 0.000 | AE135: =(D135+E135)-AD135 -> 0.000
A136: 114 | B136: свекла св.очищенная | C136: кг | D136: ='Вт День 2 Нед 1'!AG136 -> 0 | L136: =(F136+G136+H136+I136+K136)*$L$5 -> 0.0000 | R136: =(M136+N136+O136+P136+Q136)*$R$5 -> 0.0000 | U136: =(T136+S136)*$U$5 -> 0.0000 | Y136: =(X136+W136+V136)*$Y$5 -> 0.0000 | AC136: =(Z136+AA136+AB136)*$AC$5 -> 0.0000 | AD136: 0.000 | AE136: 0.000
B137: Полуфабрикаты | D137: ='Вт День 2 Нед 1'!AG137 -> 0 | L137: 0.0000 | R137: 0.0000 | U137: 0.0000 | Y137: 0.0000 | AC137: 0.0000 | AD137: 0.000 | AE137: 0.000
A138: 115 | B138: сырники ПФ | C138: шт | D138: ='Вт День 2 Нед 1'!AG138 -> -2 | L138: 0.0000 | R138: 0.0000 | AD138: 0.000 | AE138: -2.000
A139: 116 | B139: пельмени ПФ | C139: кг | D139: ='Вт День 2 Нед 1'!AG139 -> 0 | L139: 0.0000 | R139: 0.0000 | U139: 0.0000 | Y139: 0.0000 | AC139: 0.0000 | AD139: 0.000 | AE139: 0.000
A140: 117 | B140: биточки рыбные | C140: шт | D140: ='Вт День 2 Нед 1'!AG140 -> 0 | L140: 0.0000 | R140: 0.0000 | U140: 0.0000 | Y140: 0.0000 | AC140: 0.0000 | AD140: 0.000 | AE140: 0.000
A141: 118 | B141: фрикадельки мясные | C141: кг | D141: ='Вт День 2 Нед 1'!AG141 -> 0 | L141: 0.0000 | R141: 0.0000 | U141: 0.0000 | Y141: 0.0000 | AC141: 0.0000 | AD141: 0.000 | AE141: 0.000
A142: 119 | B142: фрикадельки куриные | C142: кг | D142: ='Вт День 2 Нед 1'!AG142 -> 0 | L142: 0.0000 | R142: 0.0000 | U142: 0.0000 | Y142: 0.0000 | AC142: 0.0000 | AD142: 0.000 | AE142: 0.000
A143: 120 | B143: хинкали п/ф из говядины | C143: кг | D143: ='Вт День 2 Нед 1'!AG143 -> 0 | L143: 0.0000 | R143: 0.0000 | U143: 0.0000 | Y143: 0.0000 | AC143: 0.0000 | AD143: 0.000 | AE143: 0.000
A144: 121 | B144: котлеты из говядины "Домашние" | C144: шт | D144: ='Вт День 2 Нед 1'!AG144 -> 0 | L144: 0.0000 | R144: 0.0000 | U144: 0.0000 | Y144: 0.0000 | AC144: 0.0000 | AD144: 0.000 | AE144: 0.000
A145: 122 | B145: бифштекс из говядины | C145: шт | D145: ='Вт День 2 Нед 1'!AG145 -> 0 | L145: 0.0000 | R145: 0.0000 | U145: 0.0000 | Y145: 0.0000 | AC145: 0.0000 | AD145: 0.000 | AE145: 0.000
A146: 123 | B146: котлеты из мяса кур | C146: шт | D146: ='Вт День 2 Нед 1'!AG146 -> 0 | L146: 0.0000 | R146: 0.0000 | U146: 0.0000 | Y146: 0.0000 | AC146: 0.0000 | AD146: 0.000 | AE146: 0.000
A147: 124 | B147: котлеты "Аппетитные" мясо-куриные | C147: шт | D147: ='Вт День 2 Нед 1'!AG147 -> 0 | L147: 0.0000 | R147: 0.0000 | U147: 0.0000 | Y147: 0.0000 | AC147: 0.0000 | AD147: 0.000 | AE147: 0.000
A148: 125 | B148: ежики мясные с рисом | C148: шт | D148: ='Вт День 2 Нед 1'!AG148 -> 0 | L148: 0.0000 | R148: 0.0000 | U148: 0.0000 | Y148: 0.0000 | AC148: 0.0000 | AD148: 0.000 | AE148: 0.000

Sheet Чт День 4 Нед 1
A1: Расход продуктов питания в образовательных учереждениях
F2: Меню с 1 по 4 класс 69,43 РУБ | L2: ИТОГО с сосисками, с чаем | M2: ИТОГО с котлетой | N2: Меню с 5 по 11 класс 69,43 РУБ | T2: ИТОГО с сосисками с чаем | U2: ИТОГО с котлетой | V2: Меню на сумму 9,60 РУБ | X2: ИТОГО | Y2: Меню КАШИ НА молоке | AB2: ИТОГО | AC2: Меню СУПА | AF2: ИТОГО | AG2: ВСЕГО ЗА ДЕНЬ расход продуктов по всем рационам | AH2: остаток на конец
B3: ДЕНЬ 4 неделя 1 | D3: остаток на начало | E3: приход | F3: яблоко свежее | G3: Котлета домашняя из говядины с кашей гречневой рассыпчатой с маслом сливочным | H3: ИЛИ сосиски с кашей гречневой | I3: Кофейный напиток с молоком | J3: Чай Витаминный с шиповником | K3: Хлеб ржаной | N3: яблоко свежее | O3: Котлета домашняя из говядины с кашей гречневой рассыпчатой с маслом сливочным | P3: ИЛИ сосиски с кашей гречневой | Q3: Кофейный напиток с молоком | R3: Чай Витаминный с шиповником | S3: Хлеб пшеничный/ржаной | V3: булочка готов с х/к | W3: Компот из св яблок | Y3: каша геркулес с маслом слив | Z3: напиток из шиповника | AA3: Хлеб ржаной | AC3: Суп крест с крупой /пшено/ с кур фрик, с смет | AD3: Чай с сахаром | AE3: Хлеб ржаной
B4: КОЛИЧЕСТВО ДЕТЕЙ | F4: 7-11 | G4: 7-11 | H4: 7-11 | I4: 7-11 | J4: 200 | K4: 7-11 | N4: 12-18 | O4: 12-18 | Q4: 12-18 | S4: 12-18 | V4: 12-18 | W4: 12-18 | Y4: 12-18 | Z4: 12-18 | AA4: 12-18 | AC4: 12-18 | AD4: 12-18 | AE4: 12-18
B5: Выход,гр | F5: 100 | G5: 75/150/3 | H5: 90/150/3 | I5: 200 | J5: 200 | K5: 30 | L5: 1 | M5: 1 | N5: 100 | O5: 75/150/3 | Q5: 200 | S5: 20/30 | T5: 1 | U5: 1 | V5: 50 | W5: 200 | X5: 1 | Y5: 150/3 | Z5: 200 | AA5: 30 | AB5: 0 | AC5: 250/10/5 | AD5: 190/10 | AE5: 30 | AF5: 1 | AG5: =M5+T5+X5+AF5 -> 4
B6: Хлеб
A7: 1 | B7: батон | C7: кг | D7: ='Ср День 3 Нед 1'!AE7 -> 0 | L7: =(F7+H7+J7+K7)*$L$5 -> 0.0000 | M7: =(F7+G7+I7+K7)*$M$5 -> 0.0000 | T7: =(N7+P7+R7+S7)*$T$5 -> 0.0000 | U7: =(N7+O7+Q7+S7)*$U$5 -> 0.0000 | X7: =(W7+V7)*$X$5 -> 0.0000 | AB7: =(AA7+Z7+Y7)*$AB$5 -> 0.0000 | AF7: =(AC7+AD7+AE7)*$AF$5 -> 0.0000 | AG7: =L7+M7+T7+U7+X7+AF7 -> 0.000 | AH7: =(D7+E7)-AG7 -> 0.000
A8: 2 | B8: хлеб пшеничный | C8: кг | D8: ='Ср День 3 Нед 1'!AE8 -> -0.1 | L8: =(F8+H8+J8+K8)*$L$5 -> 0.0000 | M8: =(F8+G8+I8+K8)*$M$5 -> 0.0000 | S8: 0.0200 | T8: =(N8+P8+R8+S8)*$T$5 -> 0.0200 | U8: =(N8+O8+Q8+S8)*$U$5 -> 0.0200 | X8: =(W8+V8)*$X$5 -> 0.0000 | AB8: =(AA8+Z8+Y8)*$AB$5 -> 0.0000 | AF8: =(AC8+AD8+AE8)*$AF$5 -> 0.0000 | AG8: =L8+M8+T8+U8+X8+AF8 -> 0.040 | AH8: -0.140
A9: 3 | B9: хлеб ржаной | C9: кг | D9: ='Ср День 3 Нед 1'!AE9 -> -0.295 | K9: 0.0300 | L9: 0.0300 | M9: 0.0300 | S9: 0.0300 | T9: 0.0300 | U9: 0.0300 | X9: 0.0000 | AA9: 0.0300 | AB9: 0.0000 | AE9: 0.0300 | AF9: 0.0300 | AG9: 0.150 | AH9: -0.445
A10: 4 | B10: булоч/выпечка готов с х/ком | C10: кг | D10: ='Ср День 3 Нед 1'!AE10 -> 0 | L10: 0.0000 | M10: 0.0000 | T10: 0.0000 | U10: 0.0000 | V10: 1.0000 | X10: 1.0000 | AB10: 0.0000 | AF10: 0.0000 | AG10: 1.000 | AH10: -1.000
B11: Молочка | D11: ='Ср День 3 Нед 1'!AE11 -> 0 | L11: 0.0000 | M11: 0.0000 | T11: 0.0000 | U11: 0.0000 | X11: 0.0000 | AB11: 0.0000 | AF11: 0.0000 | AG11: 0.000 | AH11: 0.000
A12: 5 | B12: молоко 2,5% | C12: кг | D12: ='Ср День 3 Нед 1'!AE12 -> -0.2571 | I12: 0.1000 | L12: 0.0000 | M12: 0.1000 | Q12: 0.1000 | T12: 0.0000 | U12: 0.1000 | X12: 0.0000 | Y12: 0.0750 | AB12: 0.0000 | AF12: 0.0000 | AG12: 0.200 | AH12: -0.457
A13: 6 | B13: творог 5% | C13: кг | D13: ='Ср День 3 Нед 1'!AE13 -> 0 | L13: 0.0000 | M13: 0.0000 | T13: 0.0000 | U13: 0.0000 | X13: 0.0000 | AB13: 0.0000 | AF13: 0.0000 | AG13: 0.000 | AH13: 0.000
A14: 7 | B14: сметана 15% | C14: кг | D14: ='Ср День 3 Нед 1'!AE14 -> -0.03 | L14: 0.0000 | M14: 0.0000 | T14: 0.0000 | U14: 0.0000 | X14: 0.0000 | AB14: 0.0000 | AC14: 0.0050 | AF14: 0.0050 | AG14: 0.005 | AH14: -0.035
A15: 8 | B15: йогурт фруктов | C15: кг | D15: ='Ср День 3 Нед 1'!AE15 -> 0 | L15: 0.0000 | M15: 0.0000 | T15: 0.0000 | U15: 0.0000 | X15: 0.0000 | AB15: 0.0000 | AF15: 0.0000 | AG15: 0.000 | AH15: 0.000
A16: 9 | B16: катык 2,5% | C16: кг | D16: ='Ср День 3 Нед 1'!AE16 -> 0 | L16: 0.0000 | M16: 0.0000 | T16: 0.0000 | U16: 0.0000 | X16: 0.0000 | AB16: 0.0000 | AF16: 0.0000 | AG16: 0.000 | AH16: 0.000
A17: 10 | B17: кефир 2,5% | C17: кг | D17: ='Ср День 3 Нед 1'!AE17 -> 0 | L17: 0.0000 | M17: 0.0000 | T17: 0.0000 | U17: 0.0000 | X17: 0.0000 | AB17: 0.0000 | AF17: 0.0000 | AG17: 0.000 | AH17: 0.000
A18: 11 | B18: ряженка 2,5% | C18: кг | D18: ='Ср День 3 Нед 1'!AE18 -> 0 | L18: 0.0000 | M18: 0.0000 | T18: 0.0000 | U18: 0.0000 | X18: 0.0000 | AB18: 0.0000 | AF18: 0.0000 | AG18: 0.000 | AH18: 0.000
A19: 12 | B19: напиток ацидофильный | C19: кг | D19: ='Ср День 3 Нед 1'!AE19 -> 0 | L19: 0.0000 | M19: 0.0000 | T19: 0.0000 | U19: 0.0000 | X19: 0.0000 | AB19: 0.0000 | AF19: 0.0000 | AG19: 0.000 | AH19: 0.000
B20: Масло / сыр | D20: ='Ср День 3 Нед 1'!AE20 -> 0 | L20: 0.0000 | M20: 0.0000 | T20: 0.0000 | U20: 0.0000 | X20: 0.0000 | AB20: 0.0000 | AF20: 0.0000 | AG20: 0.000 | AH20: 0.000
A21: 13 | B21: масло растительное | C21: кг | D21: ='Ср День 3 Нед 1'!AE21 -> -0.0265 | G21: 0.0025 | L21: 0.0000 | M21: 0.0025 | O21: 0.0025 | T21: 0.0000 | U21: 0.0025 | X21: 0.0000 | AB21: 0.0000 | AC21: 0.0050 | AF21: 0.0050 | AG21: 0.010 | AH21: -0.037
A22: 14 | B22: масло сливочное | C22: кг | D22: ='Ср День 3 Нед 1'!AE22 -> -0.031 | G22: 0.0030 | H22: 0.0030 | L22: 0.0030 | M22: 0.0030 | O22: 0.0030 | P22: 0.0030 | T22: 0.0030 | U22: 0.0030 | X22: 0.0000 | Y22: 0.0030 | AB22: 0.0000 | AF22: 0.0000 | AG22: 0.012 | AH22: -0.043
A23: 15 | B23: сыр голландский | C23: кг | D23: ='Ср День 3 Нед 1'!AE23 -> 0 | L23: 0.0000 | M23: 0.0000 | T23: 0.0000 | U23: 0.0000 | X23: 0.0000 | AB23: 0.0000 | AF23: 0.0000 | AG23: 0.000 | AH23: 0.000
B24: Мясо | D24: ='Ср День 3 Нед 1'!AE24 -> 0 | L24: 0.0000 | M24: 0.0000 | T24: 0.0000 | U24: 0.0000 | X24: 0.0000 | AB24: 0.0000 | AF24: 0.0000 | AG24: 0.000 | AH24: 0.000
A25: 16 | B25: говядина (котлетное мясо) | C25: кг | D25: ='Ср День 3 Нед 1'!AE25 -> 0 | L25: 0.0000 | M25: 0.0000 | T25: 0.0000 | U25: 0.0000 | X25: 0.0000 | AB25: 0.0000 | AF25: 0.0000 | AG25: 0.000 | AH25: 0.000
A26: 17 | B26: фарш говяжий | C26: кг | D26: ='Ср День 3 Нед 1'!AE26 -> -0.08797 | L26: 0.0000 | M26: 0.0000 | T26: 0.0000 | U26: 0.0000 | X26: 0.0000 | AB26: 0.0000 | AF26: 0.0000 | AG26: 0.000 | AH26: -0.088
A27: 18 | B27: говядина лопатка б/к | C27: кг | D27: ='Ср День 3 Нед 1'!AE27 -> 0 | L27: 0.0000 | M27: 0.0000 | T27: 0.0000 | U27: 0.0000 | X27: 0.0000 | AB27: 0.0000 | AF27: 0.0000 | AG27: 0.000 | AH27: 0.000
A28: 19 | B28: сосиски | C28: кг | D28: ='Ср День 3 Нед 1'!AE28 -> 0 | H28: 0.1020 | L28: 0.1020 | M28: 0.0000 | P28: 0.1020 | T28: 0.1020 | U28: 0.0000 | X28: 0.0000 | AB28: 0.0000 | AF28: 0.0000 | AG28: 0.204 | AH28: -0.204
A29: 20 | B29: колбаса п/к "Халяль" | C29: кг | D29: ='Ср День 3 Нед 1'!AE29 -> 0 | L29: 0.0000 | M29: 0.0000 | T29: 0.0000 | U29: 0.0000 | X29: 0.0000 | AB29: 0.0000 | AF29: 0.0000 | AG29: 0.000 | AH29: 0.000
A30: 21 | B30: куриное бедро | C30: кг | D30: ='Ср День 3 Нед 1'!AE30 -> 0 | L30: 0.0000 | M30: 0.0000 | T30: 0.0000 | U30: 0.0000 | X30: 0.0000 | AB30: 0.0000 | AF30: 0.0000 | AG30: 0.000 | AH30: 0.000
A31: 22 | B31: куриная грудка | C31: кг | D31: ='Ср День 3 Нед 1'!AE31 -> -0.19181 | L31: 0.0000 | M31: 0.0000 | T31: 0.0000 | U31: 0.0000 | X31: 0.0000 | AB31: 0.0000 | AC31: 0.0132 | AF31: 0.0132 | AG31: 0.013 | AH31: -0.205
A32: 23 | B32: куры/цыплята потрош. | C32: кг | D32: ='Ср День 3 Нед 1'!AE32 -> 0 | L32: 0.0000 | M32: 0.0000 | T32: 0.0000 | U32: 0.0000 | X32: 0.0000 | AB32: 0.0000 | AF32: 0.0000 | AG32: 0.000 | AH32: 0.000
A33: 24 | B33: или фарш куриный | C33: кг | D33: ='Ср День 3 Нед 1'!AE33 -> 0 | L33: 0.0000 | M33: 0.0000 | T33: 0.0000 | U33: 0.0000 | X33: 0.0000 | AB33: 0.0000 | AF33: 0.0000 | AG33: 0.000 | AH33: 0.000
A34: 25 | B34: индека бедро филе | C34: кг | D34: ='Ср День 3 Нед 1'!AE34 -> 0 | L34: 0.0000 | M34: 0.0000 | T34: 0.0000 | U34: 0.0000 | X34: 0.0000 | AB34: 0.0000 | AF34: 0.0000 | AG34: 0.000 | AH34: 0.000
A35: 26 | B35: индейка грудка филе | C35: кг | D35: ='Ср День 3 Нед 1'!AE35 -> 0 | L35: 0.0000 | M35: 0.0000 | T35: 0.0000 | U35: 0.0000 | X35: 0.0000 | AB35: 0.0000 | AF35: 0.0000 | AG35: 0.000 | AH35: 0.000
B36: Рыба | D36: ='Ср День 3 Нед 1'!AE36 -> 0 | L36: 0.0000 | M36: 0.0000 | T36: 0.0000 | U36: 0.0000 | X36: 0.0000 | AB36: 0.0000 | AF36: 0.0000 | AG36: 0.000 | AH36: 0.000
A37: 27 | B37: горбуша ПБГ с/м | C37: кг | D37: ='Ср День 3 Нед 1'!AE37 -> 0 | L37: 0.0000 | M37: 0.0000 | T37: 0.0000 | U37: 0.0000 | X37: 0.0000 | AB37: 0.0000 | AF37: 0.0000 | AG37: 0.000 | AH37: 0.000
A38: 28 | B38: минтай б/г с/м | C38: кг | D38: ='Ср День 3 Нед 1'!AE38 -> 0 | L38: 0.0000 | M38: 0.0000 | T38: 0.0000 | U38: 0.0000 | X38: 0.0000 | AB38: 0.0000 | AF38: 0.0000 | AG38: 0.000 | AH38: 0.000
A39: 29 | B39: фарш минтая | C39: кг | D39: ='Ср День 3 Нед 1'!AE39 -> 0 | L39: 0.0000 | M39: 0.0000 | T39: 0.0000 | U39: 0.0000 | X39: 0.0000 | AB39: 0.0000 | AF39: 0.0000 | AG39: 0.000 | AH39: =(D39+E39)-AG39 -> 0.000
B40: Сыпучка | D40: ='Ср День 3 Нед 1'!AE40 -> 0 | L40: 0.0000 | M40: 0.0000 | T40: 0.0000 | U40: 0.0000 | X40: 0.0000 | AB40: 0.0000 | AF40: 0.0000 | AG40: 0.000 | AH40: 0.000
A41: 30 | B41: вермишель | C41: кг | D41: ='Ср День 3 Нед 1'!AE41 -> 0 | L41: 0.0000 | M41: 0.0000 | T41: 0.0000 | U41: 0.0000 | X41: 0.0000 | AB41: 0.0000 | AF41: 0.0000 | AG41: 0.000 | AH41: 0.000
A42: 31 | B42: геркулес | C42: кг | D42: ='Ср День 3 Нед 1'!AE42 -> 0 | L42: 0.0000 | M42: 0.0000 | T42: 0.0000 | U42: 0.0000 | X42: 0.0000 | Y42: 0.0280 | AB42: 0.0000 | AF42: 0.0000 | AG42: 0.000 | AH42: 0.000
A43: 32 | B43: горох | C43: кг | D43: ='Ср День 3 Нед 1'!AE43 -> 0 | L43: 0.0000 | M43: 0.0000 | T43: 0.0000 | U43: 0.0000 | X43: 0.0000 | AB43: 0.0000 | AF43: 0.0000 | AG43: 0.000 | AH43: 0.000
A44: 33 | B44: гречневая крупа | C44: кг | D44: ='Ср День 3 Нед 1'!AE44 -> 0 | G44: 0.0720 | H44: 0.0720 | L44: 0.0720 | M44: 0.0720 | O44: 0.0720 | P44: 0.0720 | T44: 0.0720 | U44: 0.0720 | X44: 0.0000 | AB44: 0.0000 | AF44: 0.0000 | AG44: 0.288 | AH44: -0.288
A45: 34 | B45: кукурузная крупа | C45: кг | D45: ='Ср День 3 Нед 1'!AE45 -> 0 | L45: 0.0000 | M45: 0.0000 | T45: 0.0000 | U45: 0.0000 | X45: 0.0000 | AB45: 0.0000 | AF45: 0.0000 | AG45: 0.000 | AH45: 0.000
A46: 35 | B46: макаронные изделия | C46: кг | D46: ='Ср День 3 Нед 1'!AE46 -> -0.071 | L46: 0.0000 | M46: 0.0000 | T46: 0.0000 | U46: 0.0000 | X46: 0.0000 | AB46: 0.0000 | AF46: 0.0000 | AG46: 0.000 | AH46: -0.071
A47: 36 | B47: манная крупа | C47: кг | D47: ='Ср День 3 Нед 1'!AE47 -> 0 | L47: 0.0000 | M47: 0.0000 | T47: 0.0000 | U47: 0.0000 | X47: 0.0000 | AB47: 0.0000 | AF47: 0.0000 | AG47: 0.000 | AH47: 0.000
A48: 37 | B48: перловая крупа | C48: кг | D48: ='Ср День 3 Нед 1'!AE48 -> -0.005 | L48: 0.0000 | M48: 0.0000 | T48: 0.0000 | U48: 0.0000 | X48: 0.0000 | AB48: 0.0000 | AF48: 0.0000 | AG48: 0.000 | AH48: -0.005
A49: 38 | B49: полбяная крупа | C49: кг | D49: ='Ср День 3 Нед 1'!AE49 -> 0 | L49: 0.0000 | M49: 0.0000 | T49: 0.0000 | U49: 0.0000 | X49: 0.0000 | AB49: 0.0000 | AF49: 0.0000 | AG49: 0.000 | AH49: 0.000
A50: 39 | B50: пшеничная крупа | C50: кг | D50: ='Ср День 3 Нед 1'!AE50 -> 0 | L50: 0.0000 | M50: 0.0000 | T50: 0.0000 | U50: 0.0000 | X50: 0.0000 | AB50: 0.0000 | AF50: 0.0000 | AG50: 0.000 | AH50: 0.000
A51: 40 | B51: пшено | C51: кг | D51: ='Ср День 3 Нед 1'!AE51 -> -0.0245 | L51: 0.0000 | M51: 0.0000 | T51: 0.0000 | U51: 0.0000 | X51: 0.0000 | AB51: 0.0000 | AC51: 0.0050 | AF51: 0.0050 | AG51: 0.005 | AH51: -0.030
A52: 41 | B52: рис | C52: кг | D52: ='Ср День 3 Нед 1'!AE52 -> -0.155 | L52: 0.0000 | M52: 0.0000 | T52: 0.0000 | U52: 0.0000 | X52: 0.0000 | AB52: 0.0000 | AF52: 0.0000 | AG52: 0.000 | AH52: -0.155
A53: 42 | B53: ячневая крупа | C53: кг | D53: ='Ср День 3 Нед 1'!AE53 -> 0 | L53: 0.0000 | M53: 0.0000 | T53: 0.0000 | U53: 0.0000 | X53: 0.0000 | AB53: 0.0000 | AF53: 0.0000 | AG53: 0.000 | AH53: 0.000
A54: 43 | B54: лапша домашняя п/ф | C54: кг | D54: ='Ср День 3 Нед 1'!AE54 -> -0.02 | L54: 0.0000 | M54: 0.0000 | T54: 0.0000 | U54: 0.0000 | X54: 0.0000 | AB54: 0.0000 | AF54: 0.0000 | AG54: 0.000 | AH54: -0.020
A55: 44 | B55: мука пшеничная в/с | C55: кг | D55: ='Ср День 3 Нед 1'!AE55 -> -0.026 | L55: 0.0000 | M55: 0.0000 | T55: 0.0000 | U55: 0.0000 | X55: 0.0000 | AB55: 0.0000 | AF55: 0.0000 | AG55: 0.000 | AH55: -0.026
A56: 45 | B56: сахарный песок | C56: кг | D56: ='Ср День 3 Нед 1'!AE56 -> -0.1228 | I56: 0.0100 | J56: 0.0100 | L56: 0.0100 | M56: 0.0100 | Q56: 0.0100 | R56: 0.0100 | T56: 0.0100 | U56: 0.0100 | W56: 0.0100 | X56: 0.0100 | Y56: 0.0008 | Z56: 0.0100 | AB56: 0.0000 | AD56: 0.0100 | AF56: 0.0100 | AG56: 0.060 | AH56: -0.183
A57: 46 | B57: соль | C57: кг | D57: ='Ср День 3 Нед 1'!AE57 -> -0.0102 | G57: 0.0005 | H57: 0.0005 | L57: 0.0005 | M57: 0.0005 | O57: 0.0005 | P57: 0.0005 | T57: 0.0005 | U57: 0.0005 | X57: 0.0000 | Y57: 0.0004 | AB57: 0.0000 | AC57: 0.0010 | AF57: 0.0010 | AG57: 0.003 | AH57: -0.013
A58: 47 | B58: сухари панировочные | C58: кг | D58: ='Ср День 3 Нед 1'!AE58 -> 0 | L58: 0.0000 | M58: 0.0000 | T58: 0.0000 | U58: 0.0000 | X58: 0.0000 | AB58: 0.0000 | AF58: 0.0000 | AG58: 0.000 | AH58: 0.000
A59: 48 | B59: дрожжи сухие | C59: кг | D59: ='Ср День 3 Нед 1'!AE59 -> 0 | L59: 0.0000 | M59: 0.0000 | T59: 0.0000 | U59: 0.0000 | X59: 0.0000 | AB59: 0.0000 | AF59: 0.0000 | AG59: 0.000 | AH59: 0.000
A60: 49 | B60: фасоль | C60: кг | D60: ='Ср День 3 Нед 1'!AE60 -> 0 | L60: 0.0000 | M60: 0.0000 | T60: 0.0000 | U60: 0.0000 | X60: 0.0000 | AB60: 0.0000 | AF60: 0.0000 | AG60: 0.000 | AH60: 0.000
B61: Консервы | D61: ='Ср День 3 Нед 1'!AE61 -> 0 | L61: 0.0000 | M61: 0.0000 | T61: 0.0000 | U61: 0.0000 | X61: 0.0000 | AB61: 0.0000 | AF61: 0.0000 | AG61: 0.000 | AH61: 0.000
A62: 50 | B62: зеленый горошек к/с | C62: кг | D62: ='Ср День 3 Нед 1'!AE62 -> 0 | L62: 0.0000 | M62: 0.0000 | T62: 0.0000 | U62: 0.0000 | X62: 0.0000 | AB62: 0.0000 | AF62: 0.0000 | AG62: 0.000 | AH62: 0.000
A63: 51 | B63: кукуруза к/с | C63: кг | D63: ='Ср День 3 Нед 1'!AE63 -> 0 | L63: 0.0000 | M63: 0.0000 | T63: 0.0000 | U63: 0.0000 | X63: 0.0000 | AB63: 0.0000 | AF63: 0.0000 | AG63: 0.000 | AH63: 0.000
A64: 52 | B64: фасоль к/с | C64: кг | D64: ='Ср День 3 Нед 1'!AE64 -> 0 | L64: 0.0000 | M64: 0.0000 | T64: 0.0000 | U64: 0.0000 | X64: 0.0000 | AB64: 0.0000 | AF64: 0.0000 | AG64: 0.000 | AH64: 0.000
A65: 53 | B65: икра кабачк/ икра баклажан | C65: кг | D65: ='Ср День 3 Нед 1'!AE65 -> 0 | L65: 0.0000 | M65: 0.0000 | T65: 0.0000 | U65: 0.0000 | X65: 0.0000 | AB65: 0.0000 | AF65: 0.0000 | AG65: 0.000 | AH65: 0.000
A66: 54 | B66: капуста морская сушеная | C66: кг | D66: ='Ср День 3 Нед 1'!AE66 -> 0 | L66: 0.0000 | M66: 0.0000 | T66: 0.0000 | U66: 0.0000 | X66: 0.0000 | AB66: 0.0000 | AF66: 0.0000 | AG66: 0.000 | AH66: 0.000
A67: 55 | B67: капуста квашеная | C67: кг | D67: ='Ср День 3 Нед 1'!AE67 -> 0 | L67: 0.0000 | M67: 0.0000 | T67: 0.0000 | U67: 0.0000 | X67: 0.0000 | AB67: 0.0000 | AF67: 0.0000 | AG67: 0.000 | AH67: 0.000
A68: 56 | B68: молоко сгущенное | C68: кг | D68: ='Ср День 3 Нед 1'!AE68 -> 0 | L68: 0.0000 | M68: 0.0000 | T68: 0.0000 | U68: 0.0000 | X68: 0.0000 | AB68: 0.0000 | AF68: 0.0000 | AG68: 0.000 | AH68: 0.000
A69: 57 | B69: огурцы соленые | C69: кг | D69: ='Ср День 3 Нед 1'!AE69 -> -0.0273 | L69: 0.0000 | M69: 0.0000 | T69: 0.0000 | U69: 0.0000 | X69: 0.0000 | AB69: 0.0000 | AF69: 0.0000 | AG69: 0.000 | AH69: -0.027
A70: 58 | B70: повидло | C70: кг | D70: ='Ср День 3 Нед 1'!AE70 -> 0 | L70: 0.0000 | M70: 0.0000 | T70: 0.0000 | U70: 0.0000 | X70: 0.0000 | AB70: 0.0000 | AF70: 0.0000 | AG70: 0.000 | AH70: 0.000
A71: 59 | B71: томатная паста | C71: кг | D71: ='Ср День 3 Нед 1'!AE71 -> -0.0086 | L71: 0.0000 | M71: 0.0000 | T71: 0.0000 | U71: 0.0000 | X71: 0.0000 | AB71: 0.0000 | AF71: 0.0000 | AG71: 0.000 | AH71: =(D71+E71)-AG71 -> -0.009
A72: 60 | B72: рыбные консервы | C72: кг | D72: ='Ср День 3 Нед 1'!AE72 -> 0 | L72: =(F72+H72+J72+K72)*$L$5 -> 0.0000 | M72: =(F72+G72+I72+K72)*$M$5 -> 0.0000 | T72: =(N72+P72+R72+S72)*$T$5 -> 0.0000 | U72: =(N72+O72+Q72+S72)*$U$5 -> 0.0000 | X72: =(W72+V72)*$X$5 -> 0.0000 | AB72: =(AA72+Z72+Y72)*$AB$5 -> 0.0000 | AF72: =(AC72+AD72+AE72)*$AF$5 -> 0.0000 | AG72: =L72+M72+T72+U72+X72+AF72 -> 0.000 | AH72: 0.000
B73: Напитки | D73: ='Ср День 3 Нед 1'!AE73 -> 0 | L73: 0.0000 | M73: 0.0000 | T73: 0.0000 | U73: 0.0000 | X73: 0.0000 | AB73: 0.0000 | AF73: 0.0000 | AG73: 0.000 | AH73: 0.000
A74: 61 | B74: чай весовой | C74: кг | D74: ='Ср День 3 Нед 1'!AE74 -> -0.004 | J74: 0.0005 | L74: 0.0005 | M74: 0.0000 | R74: 0.0005 | T74: 0.0005 | U74: 0.0000 | X74: 0.0000 | AB74: 0.0000 | AD74: 0.0005 | AF74: 0.0005 | AG74: 0.002 | AH74: -0.006
A75: 62 | B75: какао | C75: кг | D75: ='Ср День 3 Нед 1'!AE75 -> 0 | L75: 0.0000 | M75: 0.0000 | T75: 0.0000 | U75: 0.0000 | X75: 0.0000 | AB75: 0.0000 | AF75: 0.0000 | AG75: 0.000 | AH75: 0.000
A76: 63 | B76: кисель | C76: кг | D76: ='Ср День 3 Нед 1'!AE76 -> 0 | L76: 0.0000 | M76: 0.0000 | T76: 0.0000 | U76: 0.0000 | X76: 0.0000 | AB76: 0.0000 | AF76: 0.0000 | AG76: 0.000 | AH76: 0.000
A77: 64 | B77: кофейный напиток | C77: кг | D77: ='Ср День 3 Нед 1'!AE77 -> 0 | I77: 0.0050 | L77: 0.0000 | M77: 0.0050 | Q77: 0.0050 | T77: 0.0000 | U77: 0.0050 | X77: 0.0000 | AB77: 0.0000 | AF77: 0.0000 | AG77: 0.010 | AH77: -0.010
A78: 65 | B78: цикорий | C78: кг | D78: ='Ср День 3 Нед 1'!AE78 -> 0 | L78: 0.0000 | M78: 0.0000 | T78: 0.0000 | U78: 0.0000 | X78: 0.0000 | AB78: 0.0000 | AF78: 0.0000 | AG78: 0.000 | AH78: 0.000
B79: Сухофрукты | D79: ='Ср День 3 Нед 1'!AE79 -> 0 | L79: 0.0000 | M79: 0.0000 | T79: 0.0000 | U79: 0.0000 | X79: 0.0000 | AB79: 0.0000 | AF79: 0.0000 | AG79: 0.000 | AH79: 0.000
A80: 66 | B80: ассорти для компота (сухофрукты) | C80: кг | D80: ='Ср День 3 Нед 1'!AE80 -> -0.0204 | L80: 0.0000 | M80: 0.0000 | T80: 0.0000 | U80: 0.0000 | X80: 0.0000 | AB80: 0.0000 | AF80: 0.0000 | AG80: 0.000 | AH80: -0.020
A81: 67 | B81: изюм | C81: кг | D81: ='Ср День 3 Нед 1'!AE81 -> -0.0102 | L81: 0.0000 | M81: 0.0000 | T81: 0.0000 | U81: 0.0000 | X81: 0.0000 | AB81: 0.0000 | AF81: 0.0000 | AG81: 0.000 | AH81: -0.010
A82: 68 | B82: курага | C82: кг | D82: ='Ср День 3 Нед 1'!AE82 -> 0 | L82: 0.0000 | M82: 0.0000 | T82: 0.0000 | U82: 0.0000 | X82: 0.0000 | AB82: 0.0000 | AF82: 0.0000 | AG82: 0.000 | AH82: 0.000
A83: 69 | B83: урюк | C83: кг | D83: ='Ср День 3 Нед 1'!AE83 -> -0.0204 | L83: 0.0000 | M83: 0.0000 | T83: 0.0000 | U83: 0.0000 | X83: 0.0000 | AB83: 0.0000 | AF83: 0.0000 | AG83: 0.000 | AH83: -0.020
A84: 70 | B84: шиповник | C84: кг | D84: ='Ср День 3 Нед 1'!AE84 -> -0.0153 | J84: 0.0050 | L84: 0.0050 | M84: 0.0000 | R84: 0.0050 | T84: 0.0050 | U84: 0.0000 | X84: 0.0000 | Z84: 0.0153 | AB84: 0.0000 | AF84: 0.0000 | AG84: 0.010 | AH84: -0.025
A85: 71 | B85: компотная смесь с/м | C85: кг | D85: ='Ср День 3 Нед 1'!AE85 -> 0 | L85: 0.0000 | M85: 0.0000 | T85: 0.0000 | U85: 0.0000 | X85: 0.0000 | AB85: 0.0000 | AF85: 0.0000 | AG85: 0.000 | AH85: 0.000
A86: 72 | B86: вишня с/м | C86: кг | D86: ='Ср День 3 Нед 1'!AE86 -> 0 | L86: 0.0000 | M86: 0.0000 | T86: 0.0000 | U86: 0.0000 | X86: 0.0000 | AB86: 0.0000 | AF86: 0.0000 | AG86: 0.000 | AH86: 0.000
A87: 73 | B87: клюква с/м | C87: кг | D87: ='Ср День 3 Нед 1'!AE87 -> 0 | L87: 0.0000 | M87: 0.0000 | T87: 0.0000 | U87: 0.0000 | X87: 0.0000 | AB87: 0.0000 | AF87: 0.0000 | AG87: 0.000 | AH87: 0.000
A88: 74 | B88: смородина в ассорт с/м | C88: кг | D88: ='Ср День 3 Нед 1'!AE88 -> 0 | L88: 0.0000 | M88: 0.0000 | T88: 0.0000 | U88: 0.0000 | X88: 0.0000 | AB88: 0.0000 | AF88: 0.0000 | AG88: 0.000 | AH88: 0.000
A89: 75 | B89: облепиха с/м | C89: кг | D89: ='Ср День 3 Нед 1'!AE89 -> 0 | L89: 0.0000 | M89: 0.0000 | T89: 0.0000 | U89: 0.0000 | X89: 0.0000 | AB89: 0.0000 | AF89: 0.0000 | AG89: 0.000 | AH89: 0.000
B90: Сок | D90: ='Ср День 3 Нед 1'!AE90 -> 0 | L90: 0.0000 | M90: 0.0000 | T90: 0.0000 | U90: 0.0000 | X90: 0.0000 | AB90: 0.0000 | AF90: 0.0000 | AG90: 0.000 | AH90: 0.000
A91: 76 | B91: сок 0,125л или 0,2л | C91: л | D91: ='Ср День 3 Нед 1'!AE91 -> 0 | L91: 0.0000 | M91: 0.0000 | T91: 0.0000 | U91: 0.0000 | X91: 0.0000 | AB91: 0.0000 | AF91: 0.0000 | AG91: 0.000 | AH91: 0.000
A92: 77 | B92: нектар плодовый | C92: л | D92: ='Ср День 3 Нед 1'!AE92 -> 0 | L92: 0.0000 | M92: 0.0000 | T92: 0.0000 | U92: 0.0000 | X92: 0.0000 | AB92: 0.0000 | AF92: 0.0000 | AG92: 0.000 | AH92: 0.000
B93: Кондитерка | D93: ='Ср День 3 Нед 1'!AE93 -> 0 | L93: 0.0000 | M93: 0.0000 | T93: 0.0000 | U93: 0.0000 | X93: 0.0000 | AB93: 0.0000 | AF93: 0.0000 | AG93: 0.000 | AH93: 0.000
A94: 78 | B94: батончик злаковый | C94: шт | D94: ='Ср День 3 Нед 1'!AE94 -> 0 | L94: 0.0000 | M94: 0.0000 | T94: 0.0000 | U94: 0.0000 | X94: 0.0000 | AB94: 0.0000 | AF94: 0.0000 | AG94: 0.000 | AH94: 0.000
A95: 79 | B95: пряник | C95: кг | D95: ='Ср День 3 Нед 1'!AE95 -> -0.035 | L95: 0.0000 | M95: 0.0000 | T95: 0.0000 | U95: 0.0000 | X95: 0.0000 | AB95: 0.0000 | AF95: 0.0000 | AG95: 0.000 | AH95: -0.035
A96: 80 | B96: вафли | C96: кг | D96: ='Ср День 3 Нед 1'!AE96 -> -0.2 | L96: 0.0000 | M96: 0.0000 | T96: 0.0000 | U96: 0.0000 | X96: 0.0000 | AB96: 0.0000 | AF96: 0.0000 | AG96: 0.000 | AH96: -0.200
A97: 81 | B97: печенье | C97: кг | D97: ='Ср День 3 Нед 1'!AE97 -> -0.02 | L97: 0.0000 | M97: 0.0000 | T97: 0.0000 | U97: 0.0000 | X97: 0.0000 | AB97: 0.0000 | AF97: 0.0000 | AG97: 0.000 | AH97: -0.020
A98: 82 | B98: крекер | C98: кг | D98: ='Ср День 3 Нед 1'!AE98 -> 0 | L98: 0.0000 | M98: 0.0000 | T98: 0.0000 | U98: 0.0000 | X98: 0.0000 | AB98: 0.0000 | AF98: 0.0000 | AG98: 0.000 | AH98: 0.000
A99: 83 | B99: сушки | C99: кг | D99: ='Ср День 3 Нед 1'!AE99 -> 0 | L99: 0.0000 | M99: 0.0000 | T99: 0.0000 | U99: 0.0000 | X99: 0.0000 | AB99: 0.0000 | AF99: 0.0000 | AG99: 0.000 | AH99: 0.000
A100: 84 | B100: мармелад | C100: кг | D100: ='Ср День 3 Нед 1'!AE100 -> 0 | L100: 0.0000 | M100: 0.0000 | T100: 0.0000 | U100: 0.0000 | X100: 0.0000 | AB100: 0.0000 | AF100: 0.0000 | AG100: 0.000 | AH100: 0.000
A101: 85 | B101: блины с/м | C101: кг | D101: ='Ср День 3 Нед 1'!AE101 -> 0 | L101: 0.0000 | M101: 0.0000 | T101: 0.0000 | U101: 0.0000 | X101: 0.0000 | AB101: 0.0000 | AF101: 0.0000 | AG101: 0.000 | AH101: 0.000
A102: 86 | B102: выпечка п/ф со склада | C102: шт | D102: ='Ср День 3 Нед 1'!AE102 -> 0 | L102: 0.0000 | M102: 0.0000 | T102: 0.0000 | U102: 0.0000 | X102: 0.0000 | AB102: 0.0000 | AF102: 0.0000 | AG102: 0.000 | AH102: 0.000
B103: Яйцо | D103: ='Ср День 3 Нед 1'!AE103 -> 0 | L103: 0.0000 | M103: 0.0000 | T103: 0.0000 | U103: 0.0000 | X103: 0.0000 | AB103: 0.0000 | AF103: 0.0000 | AG103: 0.000 | AH103: =(D103+E103)-AG103 -> 0.000
A104: 87 | B104: яйцо куриное | C104: кг | D104: ='Ср День 3 Нед 1'!AE104 -> -0.00192 | L104: 0.0000 | M104: 0.0000 | T104: 0.0000 | U104: 0.0000 | X104: 0.0000 | AB104: 0.0000 | AC104: 0.0010 | AF104: 0.0010 | AG104: 0.001 | AH104: -0.003
B105: 0.048 | C105: шт | D105: ='Ср День 3 Нед 1'!AE105 -> 0 | L105: 0.0000 | M105: 0.0000 | T105: 0.0000 | U105: 0.0000 | X105: 0.0000 | AB105: 0.0000 | AF105: 0.0000 | AG105: 0.000 | AH105: 0.000
B106: Овощи заморозка | D106: ='Ср День 3 Нед 1'!AE106 -> 0 | L106: 0.0000 | M106: 0.0000 | T106: 0.0000 | U106: 0.0000 | X106: 0.0000 | AB106: 0.0000 | AF106: 0.0000 | AG106: 0.000 | AH106: 0.000
A107: 88 | B107: зеленый горошек с/м | C107: кг | D107: ='Ср День 3 Нед 1'!AE107 -> 0 | L107: 0.0000 | M107: 0.0000 | T107: 0.0000 | U107: 0.0000 | X107: 0.0000 | AB107: 0.0000 | AF107: 0.0000 | AG107: 0.000 | AH107: 0.000
A108: 89 | B108: кабачки с/м | C108: кг | D108: ='Ср День 3 Нед 1'!AE108 -> 0 | L108: 0.0000 | M108: 0.0000 | T108: 0.0000 | U108: 0.0000 | X108: 0.0000 | AB108: 0.0000 | AF108: 0.0000 | AG108: 0.000 | AH108: 0.000
A109: 90 | B109: мексиканс смесь с/м | C109: кг | D109: ='Ср День 3 Нед 1'!AE109 -> 0 | L109: 0.0000 | M109: 0.0000 | T109: 0.0000 | U109: 0.0000 | X109: 0.0000 | AB109: 0.0000 | AF109: 0.0000 | AG109: 0.000 | AH109: 0.000
A110: 91 | B110: капуста цветная с/м | C110: кг | D110: ='Ср День 3 Нед 1'!AE110 -> 0 | L110: 0.0000 | M110: 0.0000 | T110: 0.0000 | U110: 0.0000 | X110: 0.0000 | AB110: 0.0000 | AF110: 0.0000 | AG110: 0.000 | AH110: 0.000
A111: 92 | B111: брокколи с/м | C111: кг | D111: ='Ср День 3 Нед 1'!AE111 -> 0 | L111: 0.0000 | M111: 0.0000 | T111: 0.0000 | U111: 0.0000 | X111: 0.0000 | AB111: 0.0000 | AF111: 0.0000 | AG111: 0.000 | AH111: 0.000
A112: 93 | B112: кукуруза с/м | C112: кг | D112: ='Ср День 3 Нед 1'!AE112 -> 0 | L112: 0.0000 | M112: 0.0000 | T112: 0.0000 | U112: 0.0000 | X112: 0.0000 | AB112: 0.0000 | AF112: 0.0000 | AG112: 0.000 | AH112: 0.000
A113: 94 | B113: фасоль стручковая с/м | C113: кг | D113: ='Ср День 3 Нед 1'!AE113 -> 0 | L113: 0.0000 | M113: 0.0000 | T113: 0.0000 | U113: 0.0000 | X113: 0.0000 | AB113: 0.0000 | AF113: 0.0000 | AG113: 0.000 | AH113: 0.000
B114: Фрукты | D114: ='Ср День 3 Нед 1'!AE114 -> 0 | L114: 0.0000 | M114: 0.0000 | T114: 0.0000 | U114: 0.0000 | X114: 0.0000 | AB114: 0.0000 | AF114: 0.0000 | AG114: 0.000 | AH114: 0.000
A115: 95 | B115: апельсин | C115: кг | D115: ='Ср День 3 Нед 1'!AE115 -> 0 | L115: 0.0000 | M115: 0.0000 | T115: 0.0000 | U115: 0.0000 | X115: 0.0000 | AB115: 0.0000 | AF115: 0.0000 | AG115: 0.000 | AH115: 0.000
A116: 96 | B116: банан | C116: кг | D116: ='Ср День 3 Нед 1'!AE116 -> 0 | L116: 0.0000 | M116: 0.0000 | T116: 0.0000 | U116: 0.0000 | X116: 0.0000 | AB116: 0.0000 | AF116: 0.0000 | AG116: 0.000 | AH116: 0.000
A117: 97 | B117: груши | C117: кг | D117: ='Ср День 3 Нед 1'!AE117 -> 0 | L117: 0.0000 | M117: 0.0000 | T117: 0.0000 | U117: 0.0000 | X117: 0.0000 | AB117: 0.0000 | AF117: 0.0000 | AG117: 0.000 | AH117: 0.000
A118: 98 | B118: мандарины | C118: кг | D118: ='Ср День 3 Нед 1'!AE118 -> 0 | L118: 0.0000 | M118: 0.0000 | T118: 0.0000 | U118: 0.0000 | X118: 0.0000 | AB118: 0.0000 | AF118: 0.0000 | AG118: 0.000 | AH118: 0.000
A119: 99 | B119: лимон | C119: кг | D119: ='Ср День 3 Нед 1'!AE119 -> -0.012 | L119: 0.0000 | M119: 0.0000 | T119: 0.0000 | U119: 0.0000 | X119: 0.0000 | AB119: 0.0000 | AF119: 0.0000 | AG119: 0.000 | AH119: -0.012
A120: 100 | B120: яблоки свежие | C120: кг | D120: ='Ср День 3 Нед 1'!AE120 -> -0.2456 | F120: 0.1000 | L120: 0.1000 | M120: 0.1000 | N120: 0.1000 | T120: 0.1000 | U120: 0.1000 | W120: 0.0454 | X120: 0.0454 | AB120: 0.0000 | AF120: 0.0000 | AG120: 0.445 | AH120: -0.691
B121: Овощи / зелень | D121: ='Ср День 3 Нед 1'!AE121 -> 0 | L121: 0.0000 | M121: 0.0000 | T121: 0.0000 | U121: 0.0000 | X121: 0.0000 | AB121: 0.0000 | AF121: 0.0000 | AG121: 0.000 | AH121: 0.000
A122: 101 | B122: капуста свежая | C122: кг | D122: ='Ср День 3 Нед 1'!AE122 -> -0.1675 | L122: 0.0000 | M122: 0.0000 | T122: 0.0000 | U122: 0.0000 | X122: 0.0000 | AB122: 0.0000 | AC122: 0.0375 | AF122: 0.0375 | AG122: 0.038 | AH122: -0.205
A123: 102 | B123: картофель | C123: кг | D123: ='Ср День 3 Нед 1'!AE123 -> -0.503 | L123: 0.0000 | M123: 0.0000 | T123: 0.0000 | U123: 0.0000 | X123: 0.0000 | AB123: 0.0000 | AC123: 0.0333 | AF123: 0.0333 | AG123: 0.033 | AH123: -0.536
A124: 103 | B124: лук репчатый | C124: кг | D124: ='Ср День 3 Нед 1'!AE124 -> -0.0996 | L124: 0.0000 | M124: 0.0000 | T124: 0.0000 | U124: 0.0000 | X124: 0.0000 | AB124: 0.0000 | AC124: 0.0132 | AF124: 0.0132 | AG124: 0.013 | AH124: -0.113
A125: 104 | B125: морковь | C125: кг | D125: ='Ср День 3 Нед 1'!AE125 -> -0.06375 | L125: 0.0000 | M125: 0.0000 | T125: 0.0000 | U125: 0.0000 | X125: 0.0000 | AB125: 0.0000 | AC125: 0.0125 | AF125: 0.0125 | AG125: 0.013 | AH125: -0.076
A126: 105 | B126: свекла | C126: кг | D126: ='Ср День 3 Нед 1'!AE126 -> -0.05 | L126: 0.0000 | M126: 0.0000 | T126: 0.0000 | U126: 0.0000 | X126: 0.0000 | AB126: 0.0000 | AF126: 0.0000 | AG126: 0.000 | AH126: -0.050
A127: 106 | B127: огурцы св. | C127: кг | D127: ='Ср День 3 Нед 1'!AE127 -> 0 | L127: 0.0000 | M127: 0.0000 | T127: 0.0000 | U127: 0.0000 | X127: 0.0000 | AB127: 0.0000 | AF127: 0.0000 | AG127: 0.000 | AH127: 0.000
A128: 107 | B128: томаты св. | C128: кг | D128: ='Ср День 3 Нед 1'!AE128 -> 0 | L128: 0.0000 | M128: 0.0000 | T128: 0.0000 | U128: 0.0000 | X128: 0.0000 | AB128: 0.0000 | AF128: 0.0000 | AG128: 0.000 | AH128: 0.000
A129: 108 | B129: перец болг.красный | C129: кг | D129: ='Ср День 3 Нед 1'!AE129 -> 0 | L129: 0.0000 | M129: 0.0000 | T129: 0.0000 | U129: 0.0000 | X129: 0.0000 | AB129: 0.0000 | AF129: 0.0000 | AG129: 0.000 | AH129: 0.000
A130: 109 | B130: тыква | C130: кг | D130: ='Ср День 3 Нед 1'!AE130 -> 0 | L130: 0.0000 | M130: 0.0000 | T130: 0.0000 | U130: 0.0000 | X130: 0.0000 | AB130: 0.0000 | AF130: 0.0000 | AG130: 0.000 | AH130: 0.000
B131: Овощи очищенные | D131: ='Ср День 3 Нед 1'!AE131 -> 0 | L131: 0.0000 | M131: 0.0000 | T131: 0.0000 | U131: 0.0000 | X131: 0.0000 | AB131: 0.0000 | AF131: 0.0000 | AG131: 0.000 | AH131: 0.000
A132: 110 | B132: капуста св.очищенная | C132: кг | D132: ='Ср День 3 Нед 1'!AE132 -> 0 | L132: 0.0000 | M132: 0.0000 | T132: 0.0000 | U132: 0.0000 | X132: 0.0000 | AB132: 0.0000 | AF132: 0.0000 | AG132: 0.000 | AH132: 0.000
A133: 111 | B133: картофель св. очищенный | C133: кг | D133: ='Ср День 3 Нед 1'!AE133 -> 0 | L133: 0.0000 | M133: 0.0000 | T133: 0.0000 | U133: 0.0000 | X133: 0.0000 | AB133: 0.0000 | AF133: 0.0000 | AG133: 0.000 | AH133: 0.000
A134: 112 | B134: лук репчатый св.очищенный | C134: кг | D134: ='Ср День 3 Нед 1'!AE134 -> 0 | L134: 0.0000 | M134: 0.0000 | T134: 0.0000 | U134: 0.0000 | X134: 0.0000 | AB134: 0.0000 | AF134: 0.0000 | AG134: 0.000 | AH134: 0.000
A135: 113 | B135: морковь св.очищенная | C135: кг | D135: ='Ср День 3 Нед 1'!AE135 -> 0 | L135: 0.0000 | M135: 0.0000 | T135: 0.0000 | U135: 0.0000 | X135: 0.0000 | AB135: 0.0000 | AF135: 0.0000 | AG135: 0.000 | AH135: =(D135+E135)-AG135 -> 0.000
A136: 114 | B136: свекла св.очищенная | C136: кг | D136: ='Ср День 3 Нед 1'!AE136 -> 0 | L136: =(F136+H136+J136+K136)*$L$5 -> 0.0000 | M136: =(F136+G136+I136+K136)*$M$5 -> 0.0000 | T136: =(N136+P136+R136+S136)*$T$5 -> 0.0000 | U136: =(N136+O136+Q136+S136)*$U$5 -> 0.0000 | X136: =(W136+V136)*$X$5 -> 0.0000 | AB136: =(AA136+Z136+Y136)*$AB$5 -> 0.0000 | AF136: =(AC136+AD136+AE136)*$AF$5 -> 0.0000 | AG136: =L136+M136+T136+U136+X136+AF136 -> 0.000 | AH136: 0.000
B137: Полуфабрикаты | D137: ='Ср День 3 Нед 1'!AE137 -> 0 | L137: 0.0000 | M137: 0.0000 | T137: 0.0000 | U137: 0.0000 | X137: 0.0000 | AB137: 0.0000 | AF137: 0.0000 | AG137: 0.000 | AH137: 0.000
A138: 115 | B138: сырники ПФ | C138: шт | D138: ='Ср День 3 Нед 1'!AE138 -> -2 | L138: 0.0000 | M138: 0.0000 | T138: 0.0000 | U138: 0.0000 | AG138: 0.000 | AH138: -2.000
A139: 116 | B139: пельмени ПФ | C139: кг | D139: ='Ср День 3 Нед 1'!AE139 -> 0 | L139: 0.0000 | M139: 0.0000 | T139: 0.0000 | U139: 0.0000 | X139: 0.0000 | AB139: 0.0000 | AF139: 0.0000 | AG139: 0.000 | AH139: 0.000
A140: 117 | B140: биточки рыбные | C140: шт | D140: ='Ср День 3 Нед 1'!AE140 -> 0 | L140: 0.0000 | M140: 0.0000 | T140: 0.0000 | U140: 0.0000 | X140: 0.0000 | AB140: 0.0000 | AF140: 0.0000 | AG140: 0.000 | AH140: 0.000
A141: 118 | B141: фрикадельки мясные | C141: кг | D141: ='Ср День 3 Нед 1'!AE141 -> 0 | L141: 0.0000 | M141: 0.0000 | T141: 0.0000 | U141: 0.0000 | X141: 0.0000 | AB141: 0.0000 | AF141: 0.0000 | AG141: 0.000 | AH141: 0.000
A142: 119 | B142: фрикадельки куриные | C142: кг | D142: ='Ср День 3 Нед 1'!AE142 -> 0 | L142: 0.0000 | M142: 0.0000 | T142: 0.0000 | U142: 0.0000 | X142: 0.0000 | AB142: 0.0000 | AF142: 0.0000 | AG142: 0.000 | AH142: 0.000
A143: 120 | B143: хинкали п/ф из говядины | C143: кг | D143: ='Ср День 3 Нед 1'!AE143 -> 0 | L143: 0.0000 | M143: 0.0000 | T143: 0.0000 | U143: 0.0000 | X143: 0.0000 | AB143: 0.0000 | AF143: 0.0000 | AG143: 0.000 | AH143: 0.000
A144: 121 | B144: котлеты из говядины "Домашние" | C144: шт | D144: ='Ср День 3 Нед 1'!AE144 -> 0 | G144: 1 | L144: 0.0000 | M144: 1.0000 | O144: 1 | T144: 0.0000 | U144: 1.0000 | X144: 0.0000 | AB144: 0.0000 | AF144: 0.0000 | AG144: 2.000 | AH144: -2.000
A145: 122 | B145: бифштекс из говядины | C145: шт | D145: ='Ср День 3 Нед 1'!AE145 -> 0 | L145: 0.0000 | M145: 0.0000 | T145: 0.0000 | U145: 0.0000 | X145: 0.0000 | AB145: 0.0000 | AF145: 0.0000 | AG145: 0.000 | AH145: 0.000
A146: 123 | B146: котлеты из мяса кур | C146: шт | D146: ='Ср День 3 Нед 1'!AE146 -> 0 | L146: 0.0000 | M146: 0.0000 | T146: 0.0000 | U146: 0.0000 | X146: 0.0000 | AB146: 0.0000 | AF146: 0.0000 | AG146: 0.000 | AH146: 0.000
A147: 124 | B147: котлеты "Аппетитные" мясо-куриные | C147: шт | D147: ='Ср День 3 Нед 1'!AE147 -> 0 | L147: 0.0000 | M147: 0.0000 | T147: 0.0000 | U147: 0.0000 | X147: 0.0000 | AB147: 0.0000 | AF147: 0.0000 | AG147: 0.000 | AH147: 0.000
A148: 125 | B148: ежики мясные с рисом | C148: шт | D148: ='Ср День 3 Нед 1'!AE148 -> 0 | L148: 0.0000 | M148: 0.0000 | T148: 0.0000 | U148: 0.0000 | X148: 0.0000 | AB148: 0.0000 | AF148: 0.0000 | AG148: 0.000 | AH148: 0.000

Sheet Пт День 5 Нед 1
A1: Расход продуктов питания в образовательных учереждениях
F2: Меню с 1 по 4 класс 69,43 РУБ | J2: ИТОГО | K2: Меню с 5 по 11 класс 69,43 РУБ | O2: ИТОГО | P2: Меню на сумму 9,60 РУБ | R2: ИТОГО | S2: Меню КАШИ НА молоке | V2: ИТОГО | W2: Меню СУПА | Z2: ИТОГО | AA2: ВСЕГО ЗА ДЕНЬ расход продуктов по всем рационам | AB2: остаток на конец
B3: ДЕНЬ 5 неделя 1 | D3: остаток на начало | E3: приход | F3: Свекла отварная | G3: Жаркое по- домашнему с индейкой | H3: Компот из с/ф (75 С) | I3: Хлеб пшеничн /ржаной | K3: Свекла отварная | L3: Жаркое по- домашнему с индейкой | M3: Компот из с/ф (75 С) | N3: Хлеб пшеничн /ржаной | P3: печенье /крекер/ | Q3: чай с сахаром | S3: Каша манная с маслом слив | T3: компот из св яблок | U3: Хлеб ржаной | W3: суп Харчо с мясом птицы со смет | X3: компот из сухофруктов | Y3: Хлеб ржаной
B4: КОЛИЧЕСТВО ДЕТЕЙ | F4: 7-11 | G4: 7-11 | H4: 7-11 | I4: 7-11 | K4: 12-18 | L4: 12-18 | M4: 12-18 | N4: 12-18 | P4: 12-18 | Q4: 12-18 | S4: 12-18 | T4: 12-18 | U4: 12-18 | W4: 12-18 | X4: 12-18 | Y4: 12-18
B5: Выход,гр | F5: 60 | G5: 50/150 | H5: 200 | I5: 20/30 | J5: 1 | K5: 100 | L5: 50/150 | M5: 200 | N5: 25/40 | O5: 1 | P5: 30 | Q5: 190/10 | R5: 1 | S5: 150/3 | T5: 200 | U5: 30 | V5: 0 | W5: 250/10/5 | X5: 200 | Y5: 30 | Z5: 1 | AA5: =J5+O5+R5+Z5 -> 4
B6: Хлеб
A7: 1 | B7: батон | C7: кг | D7: ='Чт День 4 Нед 1'!AH7 -> 0 | J7: =(F7+G7+H7+I7)*$J$5 -> 0.0000 | O7: =(K7+L7+M7+N7)*$O$5 -> 0.0000 | R7: =(Q7+P7)*$R$5 -> 0.0000 | V7: =(U7+T7+S7)*$V$5 -> 0.0000 | Z7: =(X7+W7+Y7)*$Z$5 -> 0.0000 | AA7: =J7+O7+R7+Z7 -> 0.000 | AB7: =(D7+E70)-AA7 -> 0.000
A8: 2 | B8: хлеб пшеничный | C8: кг | D8: ='Чт День 4 Нед 1'!AH8 -> -0.14 | I8: 0.0200 | J8: =(F8+G8+H8+I8)*$J$5 -> 0.0200 | N8: 0.0250 | O8: =(K8+L8+M8+N8)*$O$5 -> 0.0250 | R8: =(Q8+P8)*$R$5 -> 0.0000 | V8: =(U8+T8+S8)*$V$5 -> 0.0000 | Z8: =(X8+W8+Y8)*$Z$5 -> 0.0000 | AA8: =J8+O8+R8+Z8 -> 0.045 | AB8: -0.185
A9: 3 | B9: хлеб ржаной | C9: кг | D9: ='Чт День 4 Нед 1'!AH9 -> -0.445 | I9: 0.0300 | J9: 0.0300 | N9: 0.0400 | O9: 0.0400 | R9: 0.0000 | U9: 0.0300 | V9: 0.0000 | Y9: 0.0300 | Z9: 0.0300 | AA9: 0.100 | AB9: -0.545
A10: 4 | B10: булоч/ выпечка готов с х/ком | C10: шт | D10: ='Чт День 4 Нед 1'!AH10 -> -1 | J10: 0.0000 | O10: 0.0000 | R10: 0.0000 | V10: 0.0000 | Z10: 0.0000 | AA10: 0.000 | AB10: -1.000
B11: Молочка | D11: ='Чт День 4 Нед 1'!AH11 -> 0 | J11: 0.0000 | O11: 0.0000 | R11: 0.0000 | V11: 0.0000 | Z11: 0.0000 | AA11: 0.000 | AB11: 0.000
A12: 5 | B12: молоко 2,5% | C12: кг | D12: ='Чт День 4 Нед 1'!AH12 -> -0.4571 | J12: 0.0000 | O12: 0.0000 | R12: 0.0000 | S12: 0.0750 | V12: 0.0000 | Z12: 0.0000 | AA12: 0.000 | AB12: -0.457
A13: 6 | B13: творог 5% | C13: кг | D13: ='Чт День 4 Нед 1'!AH13 -> 0 | J13: 0.0000 | O13: 0.0000 | R13: 0.0000 | V13: 0.0000 | Z13: 0.0000 | AA13: 0.000 | AB13: 0.000
A14: 7 | B14: сметана 15% | C14: кг | D14: ='Чт День 4 Нед 1'!AH14 -> -0.035 | J14: 0.0000 | O14: 0.0000 | R14: 0.0000 | V14: 0.0000 | W14: 0.0050 | Z14: 0.0050 | AA14: 0.005 | AB14: -0.040
A15: 8 | B15: йогурт фруктов | C15: кг | D15: ='Чт День 4 Нед 1'!AH15 -> 0 | J15: 0.0000 | O15: 0.0000 | R15: 0.0000 | V15: 0.0000 | Z15: 0.0000 | AA15: 0.000 | AB15: 0.000
A16: 9 | B16: катык 2,5% | C16: кг | D16: ='Чт День 4 Нед 1'!AH16 -> 0 | J16: 0.0000 | O16: 0.0000 | R16: 0.0000 | V16: 0.0000 | Z16: 0.0000 | AA16: 0.000 | AB16: 0.000
A17: 10 | B17: кефир 2,5% | C17: кг | D17: ='Чт День 4 Нед 1'!AH17 -> 0 | J17: 0.0000 | O17: 0.0000 | R17: 0.0000 | V17: 0.0000 | Z17: 0.0000 | AA17: 0.000 | AB17: 0.000
A18: 11 | B18: ряженка 2,5% | C18: кг | D18: ='Чт День 4 Нед 1'!AH18 -> 0 | J18: 0.0000 | O18: 0.0000 | R18: 0.0000 | V18: 0.0000 | Z18: 0.0000 | AA18: 0.000 | AB18: 0.000
A19: 12 | B19: напиток ацидофильный | C19: кг | D19: ='Чт День 4 Нед 1'!AH19 -> 0 | J19: 0.0000 | O19: 0.0000 | R19: 0.0000 | V19: 0.0000 | Z19: 0.0000 | AA19: 0.000 | AB19: 0.000
B20: Масло / сыр | D20: ='Чт День 4 Нед 1'!AH20 -> 0 | J20: 0.0000 | O20: 0.0000 | R20: 0.0000 | V20: 0.0000 | Z20: 0.0000 | AA20: 0.000 | AB20: 0.000
A21: 13 | B21: масло растительное | C21: кг | D21: ='Чт День 4 Нед 1'!AH21 -> -0.0365 | F21: 0.0030 | G21: 0.0040 | J21: 0.0070 | K21: 0.0050 | L21: 0.0040 | O21: 0.0090 | R21: 0.0000 | V21: 0.0000 | W21: 0.0050 | Z21: 0.0050 | AA21: 0.021 | AB21: -0.058
A22: 14 | B22: масло сливочное | C22: кг | D22: ='Чт День 4 Нед 1'!AH22 -> -0.043 | J22: 0.0000 | O22: 0.0000 | R22: 0.0000 | S22: 0.0030 | V22: 0.0000 | Z22: 0.0000 | AA22: 0.000 | AB22: -0.043
A23: 15 | B23: сыр голландский | C23: кг | D23: ='Чт День 4 Нед 1'!AH23 -> 0 | J23: 0.0000 | O23: 0.0000 | R23: 0.0000 | V23: 0.0000 | Z23: 0.0000 | AA23: 0.000 | AB23: 0.000
B24: Мясо | D24: ='Чт День 4 Нед 1'!AH24 -> 0 | J24: 0.0000 | O24: 0.0000 | R24: 0.0000 | V24: 0.0000 | Z24: 0.0000 | AA24: 0.000 | AB24: 0.000
A25: 16 | B25: говядина (котлетное мясо) | C25: кг | D25: ='Чт День 4 Нед 1'!AH25 -> 0 | J25: 0.0000 | O25: 0.0000 | R25: 0.0000 | V25: 0.0000 | Z25: 0.0000 | AA25: 0.000 | AB25: 0.000
A26: 17 | B26: фарш говяжий | C26: кг | D26: ='Чт День 4 Нед 1'!AH26 -> -0.08797 | J26: 0.0000 | O26: 0.0000 | R26: 0.0000 | V26: 0.0000 | Z26: 0.0000 | AA26: 0.000 | AB26: -0.088
A27: 18 | B27: говядина лопатка б/к | C27: кг | D27: ='Чт День 4 Нед 1'!AH27 -> 0 | J27: 0.0000 | O27: 0.0000 | R27: 0.0000 | V27: 0.0000 | Z27: 0.0000 | AA27: 0.000 | AB27: 0.000
A28: 19 | B28: сосиски | C28: кг | D28: ='Чт День 4 Нед 1'!AH28 -> -0.204 | J28: 0.0000 | O28: 0.0000 | R28: 0.0000 | V28: 0.0000 | Z28: 0.0000 | AA28: 0.000 | AB28: -0.204
A29: 20 | B29: колбаса п/к "Халяль" | C29: кг | D29: ='Чт День 4 Нед 1'!AH29 -> 0 | J29: 0.0000 | O29: 0.0000 | R29: 0.0000 | V29: 0.0000 | Z29: 0.0000 | AA29: 0.000 | AB29: 0.000
A30: 21 | B30: куриное бедро | C30: кг | D30: ='Чт День 4 Нед 1'!AH30 -> 0 | J30: 0.0000 | O30: 0.0000 | R30: 0.0000 | V30: 0.0000 | Z30: 0.0000 | AA30: 0.000 | AB30: 0.000
A31: 22 | B31: куриная грудка | C31: кг | D31: ='Чт День 4 Нед 1'!AH31 -> -0.20498 | J31: 0.0000 | O31: 0.0000 | R31: 0.0000 | V31: 0.0000 | W31: 0.0162 | Z31: 0.0162 | AA31: 0.016 | AB31: -0.221
A32: 23 | B32: куры/цыплята потрош. | C32: кг | D32: ='Чт День 4 Нед 1'!AH32 -> 0 | J32: 0.0000 | O32: 0.0000 | R32: 0.0000 | V32: 0.0000 | Z32: 0.0000 | AA32: 0.000 | AB32: 0.000
A33: 24 | B33: фарш куриный | C33: кг | D33: ='Чт День 4 Нед 1'!AH33 -> 0 | J33: 0.0000 | O33: 0.0000 | R33: 0.0000 | V33: 0.0000 | Z33: 0.0000 | AA33: 0.000 | AB33: 0.000
A34: 25 | B34: индейка бедро филе | C34: кг | D34: ='Чт День 4 Нед 1'!AH34 -> 0 | G34: 0.0735 | J34: 0.0735 | L34: 0.0735 | O34: 0.0735 | R34: 0.0000 | V34: 0.0000 | Z34: 0.0000 | AA34: 0.147 | AB34: -0.147
A35: 26 | B35: индейка грудка филе | C35: кг | D35: ='Чт День 4 Нед 1'!AH35 -> 0 | J35: 0.0000 | O35: 0.0000 | R35: 0.0000 | V35: 0.0000 | Z35: 0.0000 | AA35: 0.000 | AB35: 0.000
B36: Рыба | D36: ='Чт День 4 Нед 1'!AH36 -> 0 | J36: 0.0000 | O36: 0.0000 | R36: 0.0000 | V36: 0.0000 | Z36: 0.0000 | AA36: 0.000 | AB36: 0.000
A37: 27 | B37: горбуша ПБГ с/м | C37: кг | D37: ='Чт День 4 Нед 1'!AH37 -> 0 | J37: 0.0000 | O37: 0.0000 | R37: 0.0000 | V37: 0.0000 | Z37: 0.0000 | AA37: 0.000 | AB37: 0.000
A38: 28 | B38: минтай б/г с/м | C38: кг | D38: ='Чт День 4 Нед 1'!AH38 -> 0 | J38: 0.0000 | O38: 0.0000 | R38: 0.0000 | V38: 0.0000 | Z38: 0.0000 | AA38: 0.000 | AB38: 0.000
A39: 29 | B39: фарш минтая | C39: кг | D39: ='Чт День 4 Нед 1'!AH39 -> 0 | J39: 0.0000 | O39: 0.0000 | R39: =(Q39+P39)*$R$5 -> 0.0000 | V39: 0.0000 | Z39: =(X39+W39+Y39)*$Z$5 -> 0.0000 | AA39: 0.000 | AB39: =(D39+E102)-AA39 -> 0.000
B40: Сыпучка | D40: ='Чт День 4 Нед 1'!AH40 -> 0 | J40: 0.0000 | O40: 0.0000 | R40: 0.0000 | V40: 0.0000 | Z40: 0.0000 | AA40: 0.000 | AB40: 0.000
A41: 30 | B41: вермишель | C41: кг | D41: ='Чт День 4 Нед 1'!AH41 -> 0 | J41: 0.0000 | O41: 0.0000 | R41: 0.0000 | V41: 0.0000 | Z41: 0.0000 | AA41: 0.000 | AB41: 0.000
A42: 31 | B42: геркулес | C42: кг | D42: ='Чт День 4 Нед 1'!AH42 -> 0 | J42: 0.0000 | O42: 0.0000 | R42: 0.0000 | V42: 0.0000 | Z42: 0.0000 | AA42: 0.000 | AB42: 0.000
A43: 32 | B43: горох | C43: кг | D43: ='Чт День 4 Нед 1'!AH43 -> 0 | J43: 0.0000 | O43: 0.0000 | R43: 0.0000 | V43: 0.0000 | Z43: 0.0000 | AA43: 0.000 | AB43: 0.000
A44: 33 | B44: гречневая крупа | C44: кг | D44: ='Чт День 4 Нед 1'!AH44 -> -0.288 | J44: 0.0000 | O44: 0.0000 | R44: 0.0000 | V44: 0.0000 | Z44: 0.0000 | AA44: 0.000 | AB44: -0.288
A45: 34 | B45: кукурузная крупа | C45: кг | D45: ='Чт День 4 Нед 1'!AH45 -> 0 | J45: 0.0000 | O45: 0.0000 | R45: 0.0000 | V45: 0.0000 | Z45: 0.0000 | AA45: 0.000 | AB45: 0.000
A46: 35 | B46: макаронные изделия | C46: кг | D46: ='Чт День 4 Нед 1'!AH46 -> -0.071 | J46: 0.0000 | N46: 0.0710 | O46: 0.0710 | R46: 0.0000 | V46: 0.0000 | Z46: 0.0000 | AA46: 0.071 | AB46: -0.142
A47: 36 | B47: манная крупа | C47: кг | D47: ='Чт День 4 Нед 1'!AH47 -> 0 | J47: 0.0000 | O47: 0.0000 | R47: 0.0000 | S47: 0.0280 | V47: 0.0000 | Z47: 0.0000 | AA47: 0.000 | AB47: 0.000
A48: 37 | B48: перловая крупа | C48: кг | D48: ='Чт День 4 Нед 1'!AH48 -> -0.005 | J48: 0.0000 | O48: 0.0000 | R48: 0.0000 | V48: 0.0000 | Z48: 0.0000 | AA48: 0.000 | AB48: -0.005
A49: 38 | B49: полбяная крупа | C49: кг | D49: ='Чт День 4 Нед 1'!AH49 -> 0 | J49: 0.0000 | O49: 0.0000 | R49: 0.0000 | V49: 0.0000 | Z49: 0.0000 | AA49: 0.000 | AB49: 0.000
A50: 39 | B50: пшеничная крупа | C50: кг | D50: ='Чт День 4 Нед 1'!AH50 -> 0 | J50: 0.0000 | O50: 0.0000 | R50: 0.0000 | V50: 0.0000 | Z50: 0.0000 | AA50: 0.000 | AB50: 0.000
A51: 40 | B51: пшено | C51: кг | D51: ='Чт День 4 Нед 1'!AH51 -> -0.0295 | J51: 0.0000 | O51: 0.0000 | R51: 0.0000 | V51: 0.0000 | Z51: 0.0000 | AA51: 0.000 | AB51: -0.030
A52: 41 | B52: рис | C52: кг | D52: ='Чт День 4 Нед 1'!AH52 -> -0.155 | J52: 0.0000 | O52: 0.0000 | R52: 0.0000 | V52: 0.0000 | W52: 0.0200 | Z52: 0.0200 | AA52: 0.020 | AB52: -0.175
A53: 42 | B53: ячневая крупа | C53: кг | D53: ='Чт День 4 Нед 1'!AH53 -> 0 | J53: 0.0000 | O53: 0.0000 | R53: 0.0000 | V53: 0.0000 | Z53: 0.0000 | AA53: 0.000 | AB53: 0.000
A54: 43 | B54: лапша домашняя п/ф | C54: кг | D54: ='Чт День 4 Нед 1'!AH54 -> -0.02 | J54: 0.0000 | O54: 0.0000 | R54: 0.0000 | V54: 0.0000 | Z54: 0.0000 | AA54: 0.000 | AB54: -0.020
A55: 44 | B55: мука пшеничная в/с | C55: кг | D55: ='Чт День 4 Нед 1'!AH55 -> -0.026 | J55: 0.0000 | O55: 0.0000 | R55: 0.0000 | V55: 0.0000 | Z55: 0.0000 | AA55: 0.000 | AB55: -0.026
A56: 45 | B56: сахарный песок | C56: кг | D56: ='Чт День 4 Нед 1'!AH56 -> -0.1828 | H56: 0.0100 | J56: 0.0100 | M56: 0.0100 | O56: 0.0100 | Q56: 0.0100 | R56: 0.0100 | S56: 0.0005 | T56: 0.0100 | V56: 0.0000 | X56: 0.0100 | Z56: 0.0100 | AA56: 0.040 | AB56: -0.223
A57: 46 | B57: соль | C57: кг | D57: ='Чт День 4 Нед 1'!AH57 -> -0.0132 | G57: 0.0007 | J57: 0.0007 | L57: 0.0007 | N57: 0.0020 | O57: 0.0027 | R57: 0.0000 | S57: 0.0003 | V57: 0.0000 | W57: 0.0008 | Z57: 0.0008 | AA57: 0.004 | AB57: -0.017
A58: 47 | B58: сухари панировочные | C58: кг | D58: ='Чт День 4 Нед 1'!AH58 -> 0 | J58: 0.0000 | O58: 0.0000 | R58: 0.0000 | V58: 0.0000 | Z58: 0.0000 | AA58: 0.000 | AB58: 0.000
A59: 48 | B59: дрожжи сухие | C59: кг | D59: ='Чт День 4 Нед 1'!AH59 -> 0 | J59: 0.0000 | O59: 0.0000 | R59: 0.0000 | V59: 0.0000 | Z59: 0.0000 | AA59: 0.000 | AB59: 0.000
A60: 49 | B60: фасоль | C60: кг | D60: ='Чт День 4 Нед 1'!AH60 -> 0 | J60: 0.0000 | O60: 0.0000 | R60: 0.0000 | V60: 0.0000 | Z60: 0.0000 | AA60: 0.000 | AB60: 0.000
B61: Консервы | D61: ='Чт День 4 Нед 1'!AH61 -> 0 | J61: 0.0000 | O61: 0.0000 | R61: 0.0000 | V61: 0.0000 | Z61: 0.0000 | AA61: 0.000 | AB61: 0.000
A62: 50 | B62: зеленый горошек к/с | C62: кг | D62: ='Чт День 4 Нед 1'!AH62 -> 0 | J62: 0.0000 | O62: 0.0000 | R62: 0.0000 | V62: 0.0000 | Z62: 0.0000 | AA62: 0.000 | AB62: 0.000
A63: 51 | B63: кукуруза к/с | C63: кг | D63: ='Чт День 4 Нед 1'!AH63 -> 0 | J63: 0.0000 | O63: 0.0000 | R63: 0.0000 | V63: 0.0000 | Z63: 0.0000 | AA63: 0.000 | AB63: 0.000
A64: 52 | B64: фасоль к/с | C64: кг | D64: ='Чт День 4 Нед 1'!AH64 -> 0 | J64: 0.0000 | O64: 0.0000 | R64: 0.0000 | V64: 0.0000 | Z64: 0.0000 | AA64: 0.000 | AB64: 0.000
A65: 53 | B65: икра кабач/икра баклаж | C65: кг | D65: ='Чт День 4 Нед 1'!AH65 -> 0 | J65: 0.0000 | O65: 0.0000 | R65: 0.0000 | V65: 0.0000 | Z65: 0.0000 | AA65: 0.000 | AB65: 0.000
A66: 54 | B66: капуста морская сушеная | C66: кг | D66: ='Чт День 4 Нед 1'!AH66 -> 0 | J66: 0.0000 | O66: 0.0000 | R66: 0.0000 | V66: 0.0000 | Z66: 0.0000 | AA66: 0.000 | AB66: 0.000
A67: 55 | B67: капуста квашеная | C67: кг | D67: ='Чт День 4 Нед 1'!AH67 -> 0 | J67: 0.0000 | O67: 0.0000 | R67: 0.0000 | V67: 0.0000 | Z67: 0.0000 | AA67: 0.000 | AB67: 0.000
A68: 56 | B68: молоко сгущенное | C68: кг | D68: ='Чт День 4 Нед 1'!AH68 -> 0 | J68: 0.0000 | O68: 0.0000 | R68: 0.0000 | V68: 0.0000 | Z68: 0.0000 | AA68: 0.000 | AB68: 0.000
A69: 57 | B69: огурцы соленые | C69: кг | D69: ='Чт День 4 Нед 1'!AH69 -> -0.0273 | J69: 0.0000 | O69: 0.0000 | R69: 0.0000 | V69: 0.0000 | Z69: 0.0000 | AA69: 0.000 | AB69: -0.027
A70: 58 | B70: повидло | C70: кг | D70: ='Чт День 4 Нед 1'!AH70 -> 0 | J70: 0.0000 | O70: 0.0000 | R70: 0.0000 | V70: 0.0000 | Z70: 0.0000 | AA70: 0.000 | AB70: 0.000
A71: 59 | B71: томатная паста | C71: кг | D71: ='Чт День 4 Нед 1'!AH71 -> -0.0086 | G71: 0.0018 | J71: 0.0018 | L71: 0.0018 | O71: 0.0018 | R71: =(Q71+P71)*$R$5 -> 0.0000 | V71: 0.0000 | W71: 0.0030 | Z71: =(X71+W71+Y71)*$Z$5 -> 0.0030 | AA71: 0.007 | AB71: =(D71+E134)-AA71 -> -0.015
A72: 60 | B72: рыбные консервы | C72: кг | D72: ='Чт День 4 Нед 1'!AH72 -> 0 | J72: =(F72+G72+H72+I72)*$J$5 -> 0.0000 | O72: =(K72+L72+M72+N72)*$O$5 -> 0.0000 | R72: 0.0000 | V72: =(U72+T72+S72)*$V$5 -> 0.0000 | Z72: 0.0000 | AA72: =J72+O72+R72+Z72 -> 0.000 | AB72: 0.000
B73: Напитки | D73: ='Чт День 4 Нед 1'!AH73 -> 0 | J73: 0.0000 | O73: 0.0000 | R73: 0.0000 | V73: 0.0000 | Z73: 0.0000 | AA73: 0.000 | AB73: 0.000
A74: 61 | B74: чай весовой | C74: кг | D74: ='Чт День 4 Нед 1'!AH74 -> -0.0055 | J74: 0.0000 | O74: 0.0000 | Q74: 0.0005 | R74: 0.0005 | V74: 0.0000 | Z74: 0.0000 | AA74: 0.001 | AB74: -0.006
A75: 62 | B75: какао | C75: кг | D75: ='Чт День 4 Нед 1'!AH75 -> 0 | J75: 0.0000 | O75: 0.0000 | R75: 0.0000 | V75: 0.0000 | Z75: 0.0000 | AA75: 0.000 | AB75: 0.000
A76: 63 | B76: кисель | C76: кг | D76: ='Чт День 4 Нед 1'!AH76 -> 0 | J76: 0.0000 | O76: 0.0000 | R76: 0.0000 | V76: 0.0000 | Z76: 0.0000 | AA76: 0.000 | AB76: 0.000
A77: 64 | B77: кофейный напиток | C77: кг | D77: ='Чт День 4 Нед 1'!AH77 -> -0.01 | J77: 0.0000 | O77: 0.0000 | R77: 0.0000 | V77: 0.0000 | Z77: 0.0000 | AA77: 0.000 | AB77: -0.010
A78: 65 | B78: цикорий | C78: кг | D78: ='Чт День 4 Нед 1'!AH78 -> 0 | J78: 0.0000 | O78: 0.0000 | R78: 0.0000 | V78: 0.0000 | Z78: 0.0000 | AA78: 0.000 | AB78: 0.000
B79: Сухофрукты | D79: ='Чт День 4 Нед 1'!AH79 -> 0 | J79: 0.0000 | O79: 0.0000 | R79: 0.0000 | V79: 0.0000 | Z79: 0.0000 | AA79: 0.000 | AB79: 0.000
A80: 66 | B80: ассорти для компота (сухофрукты) | C80: кг | D80: ='Чт День 4 Нед 1'!AH80 -> -0.0204 | H80: 0.0204 | J80: 0.0204 | M80: 0.0204 | O80: 0.0204 | R80: 0.0000 | V80: 0.0000 | X80: 0.0204 | Z80: 0.0204 | AA80: 0.061 | AB80: -0.082
A81: 67 | B81: изюм | C81: кг | D81: ='Чт День 4 Нед 1'!AH81 -> -0.0102 | J81: 0.0000 | O81: 0.0000 | R81: 0.0000 | V81: 0.0000 | Z81: 0.0000 | AA81: 0.000 | AB81: -0.010
A82: 68 | B82: курага | C82: кг | D82: ='Чт День 4 Нед 1'!AH82 -> 0 | J82: 0.0000 | O82: 0.0000 | R82: 0.0000 | V82: 0.0000 | Z82: 0.0000 | AA82: 0.000 | AB82: 0.000
A83: 69 | B83: урюк | C83: кг | D83: ='Чт День 4 Нед 1'!AH83 -> -0.0204 | J83: 0.0000 | O83: 0.0000 | R83: 0.0000 | V83: 0.0000 | Z83: 0.0000 | AA83: 0.000 | AB83: -0.020
A84: 70 | B84: шиповник | C84: кг | D84: ='Чт День 4 Нед 1'!AH84 -> -0.0253 | J84: 0.0000 | O84: 0.0000 | R84: 0.0000 | V84: 0.0000 | Z84: 0.0000 | AA84: 0.000 | AB84: -0.025
A85: 71 | B85: компотная смесь с/м | C85: кг | D85: ='Чт День 4 Нед 1'!AH85 -> 0 | J85: 0.0000 | O85: 0.0000 | R85: 0.0000 | V85: 0.0000 | Z85: 0.0000 | AA85: 0.000 | AB85: 0.000
A86: 72 | B86: вишня с/м | C86: кг | D86: ='Чт День 4 Нед 1'!AH86 -> 0 | J86: 0.0000 | O86: 0.0000 | R86: 0.0000 | V86: 0.0000 | Z86: 0.0000 | AA86: 0.000 | AB86: 0.000
A87: 73 | B87: клюква с/м | C87: кг | D87: ='Чт День 4 Нед 1'!AH87 -> 0 | J87: 0.0000 | O87: 0.0000 | R87: 0.0000 | V87: 0.0000 | Z87: 0.0000 | AA87: 0.000 | AB87: 0.000
A88: 74 | B88: смородина в ассорт с/м | C88: кг | D88: ='Чт День 4 Нед 1'!AH88 -> 0 | J88: 0.0000 | O88: 0.0000 | R88: 0.0000 | V88: 0.0000 | Z88: 0.0000 | AA88: 0.000 | AB88: 0.000
A89: 75 | B89: облепиха с/м | C89: кг | D89: ='Чт День 4 Нед 1'!AH89 -> 0 | J89: 0.0000 | O89: 0.0000 | R89: 0.0000 | V89: 0.0000 | Z89: 0.0000 | AA89: 0.000 | AB89: 0.000
B90: Сок | D90: ='Чт День 4 Нед 1'!AH90 -> 0 | J90: 0.0000 | O90: 0.0000 | R90: 0.0000 | V90: 0.0000 | Z90: 0.0000 | AA90: 0.000 | AB90: 0.000
A91: 76 | B91: сок 0,125л или 0,2л | C91: л | D91: ='Чт День 4 Нед 1'!AH91 -> 0 | J91: 0.0000 | O91: 0.0000 | R91: 0.0000 | V91: 0.0000 | Z91: 0.0000 | AA91: 0.000 | AB91: 0.000
A92: 77 | B92: нектар плодовый | C92: л | D92: ='Чт День 4 Нед 1'!AH92 -> 0 | J92: 0.0000 | O92: 0.0000 | R92: 0.0000 | V92: 0.0000 | Z92: 0.0000 | AA92: 0.000 | AB92: 0.000
B93: Кондитерка | D93: ='Чт День 4 Нед 1'!AH93 -> 0 | J93: 0.0000 | O93: 0.0000 | R93: 0.0000 | V93: 0.0000 | Z93: 0.0000 | AA93: 0.000 | AB93: 0.000
A94: 78 | B94: батончик злаковый | C94: шт | D94: ='Чт День 4 Нед 1'!AH94 -> 0 | J94: 0.0000 | O94: 0.0000 | R94: 0.0000 | V94: 0.0000 | Z94: 0.0000 | AA94: 0.000 | AB94: 0.000
A95: 79 | B95: пряник | C95: кг | D95: ='Чт День 4 Нед 1'!AH95 -> -0.035 | J95: 0.0000 | O95: 0.0000 | R95: 0.0000 | V95: 0.0000 | Z95: 0.0000 | AA95: 0.000 | AB95: -0.035
A96: 80 | B96: вафли | C96: кг | D96: ='Чт День 4 Нед 1'!AH96 -> -0.2 | J96: 0.0000 | O96: 0.0000 | R96: 0.0000 | V96: 0.0000 | Z96: 0.0000 | AA96: 0.000 | AB96: -0.200
A97: 81 | B97: печенье | C97: кг | D97: ='Чт День 4 Нед 1'!AH97 -> -0.02 | J97: 0.0000 | O97: 0.0000 | R97: 0.0000 | V97: 0.0000 | Z97: 0.0000 | AA97: 0.000 | AB97: -0.020
A98: 82 | B98: крекер | C98: кг | D98: ='Чт День 4 Нед 1'!AH98 -> 0 | J98: 0.0000 | O98: 0.0000 | P98: 0.0300 | R98: 0.0300 | V98: 0.0000 | Z98: 0.0000 | AA98: 0.030 | AB98: -0.030
A99: 83 | B99: сушки | C99: кг | D99: ='Чт День 4 Нед 1'!AH99 -> 0 | J99: 0.0000 | O99: 0.0000 | R99: 0.0000 | V99: 0.0000 | Z99: 0.0000 | AA99: 0.000 | AB99: 0.000
A100: 84 | B100: мармелад | C100: кг | D100: ='Чт День 4 Нед 1'!AH100 -> 0 | J100: 0.0000 | O100: 0.0000 | R100: 0.0000 | V100: 0.0000 | Z100: 0.0000 | AA100: 0.000 | AB100: 0.000
A101: 85 | B101: блины п/ф | C101: кг | D101: ='Чт День 4 Нед 1'!AH101 -> 0 | J101: 0.0000 | O101: 0.0000 | R101: 0.0000 | V101: 0.0000 | Z101: 0.0000 | AA101: 0.000 | AB101: 0.000
A102: 86 | B102: выпечка п/ф со склада | C102: шт | D102: ='Чт День 4 Нед 1'!AH102 -> 0 | J102: 0.0000 | O102: 0.0000 | R102: 0.0000 | V102: 0.0000 | Z102: 0.0000 | AA102: 0.000 | AB102: 0.000
B103: Яйцо | D103: ='Чт День 4 Нед 1'!AH103 -> 0 | J103: 0.0000 | O103: 0.0000 | R103: =(Q103+P103)*$R$5 -> 0.0000 | V103: 0.0000 | Z103: =(X103+W103+Y103)*$Z$5 -> 0.0000 | AA103: 0.000 | AB103: =(D103+E166)-AA103 -> 0.000
A104: 87 | B104: яйцо куриное | C104: кг | D104: ='Чт День 4 Нед 1'!AH104 -> -0.00288 | J104: 0.0000 | O104: 0.0000 | R104: 0.0000 | V104: 0.0000 | Z104: 0.0000 | AA104: 0.000 | AB104: -0.003
B105: 0.048 | C105: шт | D105: ='Чт День 4 Нед 1'!AH105 -> 0 | J105: 0.0000 | O105: 0.0000 | R105: 0.0000 | V105: 0.0000 | Z105: 0.0000 | AA105: 0.000 | AB105: 0.000
B106: Овощи заморозка | D106: ='Чт День 4 Нед 1'!AH106 -> 0 | J106: 0.0000 | O106: 0.0000 | R106: 0.0000 | V106: 0.0000 | Z106: 0.0000 | AA106: 0.000 | AB106: 0.000
A107: 88 | B107: зеленый горошек с/м | C107: кг | D107: ='Чт День 4 Нед 1'!AH107 -> 0 | J107: 0.0000 | O107: 0.0000 | R107: 0.0000 | V107: 0.0000 | Z107: 0.0000 | AA107: 0.000 | AB107: 0.000
A108: 89 | B108: кабачки с/м | C108: кг | D108: ='Чт День 4 Нед 1'!AH108 -> 0 | J108: 0.0000 | O108: 0.0000 | R108: 0.0000 | V108: 0.0000 | Z108: 0.0000 | AA108: 0.000 | AB108: 0.000
A109: 90 | B109: мексиканс смесь с/м | C109: кг | D109: ='Чт День 4 Нед 1'!AH109 -> 0 | J109: 0.0000 | O109: 0.0000 | R109: 0.0000 | V109: 0.0000 | Z109: 0.0000 | AA109: 0.000 | AB109: 0.000
A110: 91 | B110: капуста цветная с/м | C110: кг | D110: ='Чт День 4 Нед 1'!AH110 -> 0 | J110: 0.0000 | O110: 0.0000 | R110: 0.0000 | V110: 0.0000 | Z110: 0.0000 | AA110: 0.000 | AB110: 0.000
A111: 92 | B111: брокколи с/м | C111: кг | D111: ='Чт День 4 Нед 1'!AH111 -> 0 | J111: 0.0000 | O111: 0.0000 | R111: 0.0000 | V111: 0.0000 | Z111: 0.0000 | AA111: 0.000 | AB111: 0.000
A112: 93 | B112: кукуруза с/м | C112: кг | D112: ='Чт День 4 Нед 1'!AH112 -> 0 | J112: 0.0000 | O112: 0.0000 | R112: 0.0000 | V112: 0.0000 | Z112: 0.0000 | AA112: 0.000 | AB112: 0.000
A113: 94 | B113: фасоль стручковая с/м | C113: кг | D113: ='Чт День 4 Нед 1'!AH113 -> 0 | J113: 0.0000 | O113: 0.0000 | R113: 0.0000 | V113: 0.0000 | Z113: 0.0000 | AA113: 0.000 | AB113: 0.000
B114: Фрукты | D114: ='Чт День 4 Нед 1'!AH114 -> 0 | J114: 0.0000 | O114: 0.0000 | R114: 0.0000 | V114: 0.0000 | Z114: 0.0000 | AA114: 0.000 | AB114: 0.000
A115: 95 | B115: апельсин | C115: кг | D115: ='Чт День 4 Нед 1'!AH115 -> 0 | J115: 0.0000 | O115: 0.0000 | R115: 0.0000 | V115: 0.0000 | Z115: 0.0000 | AA115: 0.000 | AB115: 0.000
A116: 96 | B116: банан | C116: кг | D116: ='Чт День 4 Нед 1'!AH116 -> 0 | J116: 0.0000 | O116: 0.0000 | R116: 0.0000 | V116: 0.0000 | Z116: 0.0000 | AA116: 0.000 | AB116: 0.000
A117: 97 | B117: груши | C117: кг | D117: ='Чт День 4 Нед 1'!AH117 -> 0 | J117: 0.0000 | O117: 0.0000 | R117: 0.0000 | V117: 0.0000 | Z117: 0.0000 | AA117: 0.000 | AB117: 0.000
A118: 98 | B118: мандарины | C118: кг | D118: ='Чт День 4 Нед 1'!AH118 -> 0 | J118: 0.0000 | O118: 0.0000 | R118: 0.0000 | V118: 0.0000 | Z118: 0.0000 | AA118: 0.000 | AB118: 0.000
A119: 99 | B119: лимон | C119: кг | D119: ='Чт День 4 Нед 1'!AH119 -> -0.012 | J119: 0.0000 | O119: 0.0000 | R119: 0.0000 | V119: 0.0000 | Z119: 0.0000 | AA119: 0.000 | AB119: -0.012
A120: 100 | B120: яблоки свежие | C120: кг | D120: ='Чт День 4 Нед 1'!AH120 -> -0.691 | J120: 0.0000 | O120: 0.0000 | R120: 0.0000 | T120: 0.0454 | V120: 0.0000 | Z120: 0.0000 | AA120: 0.000 | AB120: -0.691
B121: Овощи / зелень | D121: ='Чт День 4 Нед 1'!AH121 -> 0 | J121: 0.0000 | O121: 0.0000 | R121: 0.0000 | V121: 0.0000 | Z121: 0.0000 | AA121: 0.000 | AB121: 0.000
A122: 101 | B122: капуста свежая | C122: кг | D122: ='Чт День 4 Нед 1'!AH122 -> -0.205 | J122: 0.0000 | O122: 0.0000 | R122: 0.0000 | V122: 0.0000 | Z122: 0.0000 | AA122: 0.000 | AB122: -0.205
A123: 102 | B123: картофель | C123: кг | D123: ='Чт День 4 Нед 1'!AH123 -> -0.53625 | G123: 0.1776 | J123: 0.1776 | L123: 0.1776 | O123: 0.1776 | R123: 0.0000 | V123: 0.0000 | Z123: 0.0000 | AA123: 0.355 | AB123: -0.891
A124: 103 | B124: лук репчатый | C124: кг | D124: ='Чт День 4 Нед 1'!AH124 -> -0.1128 | G124: 0.0120 | J124: 0.0120 | L124: 0.0120 | O124: 0.0120 | R124: 0.0000 | V124: 0.0000 | W124: 0.0120 | Z124: 0.0120 | AA124: 0.036 | AB124: -0.149
A125: 104 | B125: морковь | C125: кг | D125: ='Чт День 4 Нед 1'!AH125 -> -0.07625 | G125: 0.0138 | J125: 0.0138 | L125: 0.0138 | O125: 0.0138 | R125: 0.0000 | V125: 0.0000 | W125: 0.0125 | Z125: 0.0125 | AA125: 0.040 | AB125: -0.116
A126: 105 | B126: свекла | C126: кг | D126: ='Чт День 4 Нед 1'!AH126 -> -0.05 | F126: 0.0730 | J126: 0.0730 | K126: 0.1190 | O126: 0.1190 | R126: 0.0000 | V126: 0.0000 | Z126: 0.0000 | AA126: 0.192 | AB126: -0.242
A127: 106 | B127: огурцы св. | C127: кг | D127: ='Чт День 4 Нед 1'!AH127 -> 0 | J127: 0.0000 | O127: 0.0000 | R127: 0.0000 | V127: 0.0000 | Z127: 0.0000 | AA127: 0.000 | AB127: 0.000
A128: 107 | B128: томаты св. | C128: кг | D128: ='Чт День 4 Нед 1'!AH128 -> 0 | J128: 0.0000 | O128: 0.0000 | R128: 0.0000 | V128: 0.0000 | Z128: 0.0000 | AA128: 0.000 | AB128: 0.000
A129: 108 | B129: перец болг.красный | C129: кг | D129: ='Чт День 4 Нед 1'!AH129 -> 0 | J129: 0.0000 | O129: 0.0000 | R129: 0.0000 | V129: 0.0000 | Z129: 0.0000 | AA129: 0.000 | AB129: 0.000
A130: 109 | B130: тыква | C130: кг | D130: ='Чт День 4 Нед 1'!AH130 -> 0 | J130: 0.0000 | O130: 0.0000 | R130: 0.0000 | V130: 0.0000 | Z130: 0.0000 | AA130: 0.000 | AB130: 0.000
B131: Овощи очищенные | D131: ='Чт День 4 Нед 1'!AH131 -> 0 | J131: 0.0000 | O131: 0.0000 | R131: 0.0000 | V131: 0.0000 | Z131: 0.0000 | AA131: 0.000 | AB131: 0.000
A132: 110 | B132: капуста св.очищенная | C132: кг | D132: ='Чт День 4 Нед 1'!AH132 -> 0 | J132: 0.0000 | O132: 0.0000 | R132: 0.0000 | V132: 0.0000 | Z132: 0.0000 | AA132: 0.000 | AB132: 0.000
A133: 111 | B133: картофель св. очищенный | C133: кг | D133: ='Чт День 4 Нед 1'!AH133 -> 0 | J133: 0.0000 | O133: 0.0000 | R133: 0.0000 | V133: 0.0000 | Z133: 0.0000 | AA133: 0.000 | AB133: 0.000
A134: 112 | B134: лук репчатый св.очищенный | C134: кг | D134: ='Чт День 4 Нед 1'!AH134 -> 0 | J134: 0.0000 | O134: 0.0000 | R134: 0.0000 | V134: 0.0000 | Z134: 0.0000 | AA134: 0.000 | AB134: 0.000
A135: 113 | B135: морковь св.очищенная | C135: кг | D135: ='Чт День 4 Нед 1'!AH135 -> 0 | J135: 0.0000 | O135: 0.0000 | R135: =(Q135+P135)*$R$5 -> 0.0000 | V135: 0.0000 | Z135: =(X135+W135+Y135)*$Z$5 -> 0.0000 | AA135: 0.000 | AB135: =(D135+E198)-AA135 -> 0.000
A136: 114 | B136: свекла св.очищенная | C136: кг | D136: ='Чт День 4 Нед 1'!AH136 -> 0 | J136: =(F136+G136+H136+I136)*$J$5 -> 0.0000 | O136: =(K136+L136+M136+N136)*$O$5 -> 0.0000 | R136: 0.0000 | V136: =(U136+T136+S136)*$V$5 -> 0.0000 | Z136: 0.0000 | AA136: =J136+O136+R136+Z136 -> 0.000 | AB136: 0.000
B137: Полуфабрикаты | D137: ='Чт День 4 Нед 1'!AH137 -> 0 | J137: 0.0000 | O137: 0.0000 | R137: 0.0000 | V137: 0.0000 | Z137: 0.0000 | AA137: 0.000 | AB137: 0.000
A138: 115 | B138: сырники ПФ | C138: шт | D138: ='Чт День 4 Нед 1'!AH138 -> -2 | J138: 0.0000 | O138: 0.0000 | AA138: 0.000 | AB138: -2.000
A139: 116 | B139: пельмени ПФ | C139: кг | D139: ='Чт День 4 Нед 1'!AH139 -> 0 | J139: 0.0000 | O139: 0.0000 | R139: 0.0000 | V139: 0.0000 | Z139: 0.0000 | AA139: 0.000 | AB139: 0.000
A140: 117 | B140: биточки рыбные | C140: шт | D140: ='Чт День 4 Нед 1'!AH140 -> 0 | J140: 0.0000 | O140: 0.0000 | R140: 0.0000 | V140: 0.0000 | Z140: 0.0000 | AA140: 0.000 | AB140: 0.000
A141: 118 | B141: фрикадельки мясные | C141: кг | D141: ='Чт День 4 Нед 1'!AH141 -> 0 | J141: 0.0000 | O141: 0.0000 | R141: 0.0000 | V141: 0.0000 | Z141: 0.0000 | AA141: 0.000 | AB141: 0.000
A142: 119 | B142: фрикадельки куриные | C142: кг | D142: ='Чт День 4 Нед 1'!AH142 -> 0 | J142: 0.0000 | O142: 0.0000 | R142: 0.0000 | V142: 0.0000 | Z142: 0.0000 | AA142: 0.000 | AB142: 0.000
A143: 120 | B143: хинкали п/ф из говядины | C143: кг | D143: ='Чт День 4 Нед 1'!AH143 -> 0 | J143: 0.0000 | O143: 0.0000 | R143: 0.0000 | V143: 0.0000 | Z143: 0.0000 | AA143: 0.000 | AB143: 0.000
A144: 121 | B144: котлеты из говядины "Домашние" | C144: шт | D144: ='Чт День 4 Нед 1'!AH144 -> -2 | J144: 0.0000 | O144: 0.0000 | R144: 0.0000 | V144: 0.0000 | Z144: 0.0000 | AA144: 0.000 | AB144: -2.000
A145: 122 | B145: бифштекс из говядины | C145: шт | D145: ='Чт День 4 Нед 1'!AH145 -> 0 | J145: 0.0000 | O145: 0.0000 | R145: 0.0000 | V145: 0.0000 | Z145: 0.0000 | AA145: 0.000 | AB145: 0.000
A146: 123 | B146: котлеты из мяса кур | C146: шт | D146: ='Чт День 4 Нед 1'!AH146 -> 0 | J146: 0.0000 | O146: 0.0000 | R146: 0.0000 | V146: 0.0000 | Z146: 0.0000 | AA146: 0.000 | AB146: 0.000
A147: 124 | B147: котлеты "Аппетитные" мясо-куриные | C147: шт | D147: ='Чт День 4 Нед 1'!AH147 -> 0 | J147: 0.0000 | O147: 0.0000 | R147: 0.0000 | V147: 0.0000 | Z147: 0.0000 | AA147: 0.000 | AB147: 0.000
A148: 125 | B148: ежики мясные с рисом | C148: шт | D148: ='Чт День 4 Нед 1'!AH148 -> 0 | J148: 0.0000 | O148: 0.0000 | R148: 0.0000 | V148: 0.0000 | Z148: 0.0000 | AA148: 0.000 | AB148: 0.000

Sheet Сб День 6 Нед 1
A1: Расход продуктов питания в образовательных учереждениях
F2: Меню с 1 по 4 класс 69,43 РУБ | L2: Кол-во учащихся 1 - 4 кл БИТОЧКИ на минтае | M2: Кол-во учащихся 1 - 4 кл БИТОЧКИ ПФ | N2: Меню с 5 по 11 класс 69,43 РУБ | U2: Кол-во учащихся 5-11 кл БИТОЧКИ на минтае | V2: Кол-во учащихся 5-11 кл БИТОЧКИ ПФ | W2: Меню на сумму 9,60 РУБ | Y2: ИТОГО | Z2: Меню КАШИ НА молоке | AC2: ИТОГО | AD2: Меню СУПА | AG2: ИТОГО | AH2: ВСЕГО ЗА ДЕНЬ расход продуктов по всем рационам | AI2: остаток на конец
B3: ДЕНЬ 6 неделя 1 | D3: остаток на начало | E3: приход | F3: Салат из з/горошка к/с | G3: биточки рыбные | H3: биточки рыбные ПФ | I3: рис отварной с масл слив | J3: чай с сахаром с лимоном | K3: Хлеб пшеничн /ржаной | N3: Салат из з/горошка к/с | O3: биточки рыбные | P3: биточки рыбные ПФ | Q3: рис отварной с масл слив | R3: чай с сахаром с лимоном | S3: Хлеб пшеничн /ржаной | W3: печенье | X3: Чай с сахаром | Z3: каша пшенная с мас слив | AA3: компот из урюка | AB3: Хлеб ржаной | AD3: Борщ из св капуст с картоф с мяс фрикад и смет | AE3: чай с сахаром | AF3: Хлеб ржаной
B4: КОЛИЧЕСТВО ДЕТЕЙ | F4: 7-11 | G4: 7-11 | H4: 7-11 | I4: 7-11 | J4: 7-11 | K4: 7-11 | N4: 12-18 | O4: 12-18 | P4: 12-18 | Q4: 12-18 | R4: 12-18 | S4: 12-18 | W4: 12-18 | X4: 12-18 | Z4: 12-18 | AA4: 12-18 | AB4: 12-18 | AD4: 12-18 | AE4: 12-18 | AF4: 12-18
B5: Выход,гр | F5: 30 | G5: 75 | H5: 75 | I5: 180/3 | J5: 185/10/5 | K5: 0/30 | L5: 1 | M5: 1 | N5: 60 | O5: 75 | P5: 75 | Q5: 180/3 | R5: 185/10/5 | S5: 20/30 | U5: 1 | V5: 1 | W5: 20 | X5: 190/10 | Y5: 1 | Z5: 150/3 | AA5: 200 | AB5: 30 | AC5: 0 | AD5: 250/10/5 | AE5: 190/10 | AF5: 30 | AG5: 1 | AH5: =L5+M5+U5+V5+Y5+AG5 -> 6
B6: Хлеб
A7: 1 | B7: батон | C7: кг | D7: ='Пт День 5 Нед 1'!AB7 -> 0 | L7: =(K7+J7+G7+F7+I7)*$L$5 -> 0.0000 | M7: =(K7+J7+I7+F7+H7)*$M$5 -> 0.0000 | U7: =(N7+O7+Q7+R7+S7)*$U$5 -> 0.0000 | V7: =(N7+P7+Q7+R7+S7)*$V$5 -> 0.0000 | Y7: =(X7+W7)*$Y$5 -> 0.0000 | AC7: =(AB7+AA7+Z7)*$AC$5 -> 0.0000 | AG7: =(AD7+AE7+AF7)*$AG$5 -> 0.0000 | AH7: =L7+M7+U7+V7+Y7+AG7 -> 0.000 | AI7: =(D7+E7)-AH7 -> 0.000
A8: 2 | B8: хлеб пшеничный | C8: кг | D8: ='Пт День 5 Нед 1'!AB8 -> -0.185 | G8: 0.0083 | L8: =(K8+J8+G8+F8+I8)*$L$5 -> 0.0083 | M8: =(K8+J8+I8+F8+H8)*$M$5 -> 0.0000 | O8: 0.0083 | S8: 0.0200 | U8: =(N8+O8+Q8+R8+S8)*$U$5 -> 0.0283 | V8: =(N8+P8+Q8+R8+S8)*$V$5 -> 0.0200 | Y8: =(X8+W8)*$Y$5 -> 0.0000 | AC8: =(AB8+AA8+Z8)*$AC$5 -> 0.0000 | AG8: =(AD8+AE8+AF8)*$AG$5 -> 0.0000 | AH8: =L8+M8+U8+V8+Y8+AG8 -> 0.057 | AI8: -0.242
A9: 3 | B9: хлеб ржаной | C9: кг | D9: ='Пт День 5 Нед 1'!AB9 -> -0.545 | K9: 0.0300 | L9: 0.0300 | M9: 0.0300 | S9: 0.0300 | U9: 0.0300 | V9: 0.0300 | Y9: 0.0000 | AB9: 0.0300 | AC9: 0.0000 | AF9: 0.0300 | AG9: 0.0300 | AH9: 0.150 | AI9: -0.695
A10: 4 | B10: булоч/выпечка готов с х/ком | C10: шт | D10: ='Пт День 5 Нед 1'!AB10 -> -1 | L10: 0.0000 | M10: 0.0000 | U10: 0.0000 | V10: 0.0000 | Y10: 0.0000 | AC10: 0.0000 | AG10: 0.0000 | AH10: 0.000 | AI10: -1.000
B11: Молочка | D11: ='Пт День 5 Нед 1'!AB11 -> 0 | L11: 0.0000 | M11: 0.0000 | U11: 0.0000 | V11: 0.0000 | Y11: 0.0000 | AC11: 0.0000 | AG11: 0.0000 | AH11: 0.000 | AI11: 0.000
A12: 5 | B12: молоко 2,5% | C12: кг | D12: ='Пт День 5 Нед 1'!AB12 -> -0.4571 | L12: 0.0000 | M12: 0.0000 | U12: 0.0000 | V12: 0.0000 | Y12: 0.0000 | Z12: 0.0750 | AC12: 0.0000 | AG12: 0.0000 | AH12: 0.000 | AI12: -0.457
A13: 6 | B13: творог 5% | C13: кг | D13: ='Пт День 5 Нед 1'!AB13 -> 0 | L13: 0.0000 | M13: 0.0000 | U13: 0.0000 | V13: 0.0000 | Y13: 0.0000 | AC13: 0.0000 | AG13: 0.0000 | AH13: 0.000 | AI13: 0.000
A14: 7 | B14: сметана 15% | C14: кг | D14: ='Пт День 5 Нед 1'!AB14 -> -0.04 | G14: 0.0050 | L14: 0.0050 | M14: 0.0000 | O14: 0.0050 | U14: 0.0050 | V14: 0.0000 | Y14: 0.0000 | AC14: 0.0000 | AD14: 0.0050 | AG14: 0.0050 | AH14: 0.015 | AI14: -0.055
A15: 8 | B15: йогурт фруктов | C15: кг | D15: ='Пт День 5 Нед 1'!AB15 -> 0 | L15: 0.0000 | M15: 0.0000 | U15: 0.0000 | V15: 0.0000 | Y15: 0.0000 | AC15: 0.0000 | AG15: 0.0000 | AH15: 0.000 | AI15: 0.000
A16: 9 | B16: катык 2,5% | C16: кг | D16: ='Пт День 5 Нед 1'!AB16 -> 0 | L16: 0.0000 | M16: 0.0000 | U16: 0.0000 | V16: 0.0000 | Y16: 0.0000 | AC16: 0.0000 | AG16: 0.0000 | AH16: 0.000 | AI16: 0.000
A17: 10 | B17: кефир 2,5% | C17: кг | D17: ='Пт День 5 Нед 1'!AB17 -> 0 | L17: 0.0000 | M17: 0.0000 | U17: 0.0000 | V17: 0.0000 | Y17: 0.0000 | AC17: 0.0000 | AG17: 0.0000 | AH17: 0.000 | AI17: 0.000
A18: 11 | B18: ряженка 2,5% | C18: кг | D18: ='Пт День 5 Нед 1'!AB18 -> 0 | L18: 0.0000 | M18: 0.0000 | U18: 0.0000 | V18: 0.0000 | Y18: 0.0000 | AC18: 0.0000 | AG18: 0.0000 | AH18: 0.000 | AI18: 0.000
A19: 12 | B19: напиток ацидофильный | C19: кг | D19: ='Пт День 5 Нед 1'!AB19 -> 0 | L19: 0.0000 | M19: 0.0000 | U19: 0.0000 | V19: 0.0000 | Y19: 0.0000 | AC19: 0.0000 | AG19: 0.0000 | AH19: 0.000 | AI19: 0.000
B20: Масло / сыр | D20: ='Пт День 5 Нед 1'!AB20 -> 0 | L20: 0.0000 | M20: 0.0000 | U20: 0.0000 | V20: 0.0000 | Y20: 0.0000 | AC20: 0.0000 | AG20: =(AD20+AE20+AF20)*$AG$5 -> 0.0000 | AH20: 0.000 | AI20: 0.000
A21: 13 | B21: масло растительное | C21: кг | D21: ='Пт День 5 Нед 1'!AB21 -> -0.0575 | F21: 0.0015 | G21: =0.0008+0.002 -> 0.0028 | H21: 0.0020 | L21: 0.0043 | M21: 0.0035 | N21: 0.0030 | O21: =0.0008+0.002 -> 0.0028 | P21: 0.0020 | U21: 0.0058 | V21: 0.0050 | Y21: 0.0000 | AC21: 0.0000 | AD21: 0.0050 | AG21: =(AD21+AE21+AF21)*$AG$5 -> 0.0050 | AH21: 0.024 | AI21: -0.081
A22: 14 | B22: масло сливочное | C22: кг | D22: ='Пт День 5 Нед 1'!AB22 -> -0.043 | I22: 0.0030 | L22: 0.0030 | M22: 0.0030 | Q22: 0.0030 | U22: 0.0030 | V22: 0.0030 | Y22: 0.0000 | Z22: 0.0030 | AC22: 0.0000 | AG22: =(AD22+AE22+AF22)*$AG$5 -> 0.0000 | AH22: 0.012 | AI22: -0.055
A23: 15 | B23: сыр голландский | C23: кг | D23: ='Пт День 5 Нед 1'!AB23 -> 0 | L23: 0.0000 | M23: 0.0000 | U23: 0.0000 | V23: 0.0000 | Y23: 0.0000 | AC23: 0.0000 | AG23: =(AD23+AE23+AF23)*$AG$5 -> 0.0000 | AH23: 0.000 | AI23: 0.000
B24: Мясо | D24: ='Пт День 5 Нед 1'!AB24 -> 0 | L24: 0.0000 | M24: 0.0000 | U24: 0.0000 | V24: 0.0000 | Y24: 0.0000 | AC24: 0.0000 | AG24: 0.0000 | AH24: 0.000 | AI24: 0.000
A25: 16 | B25: говядина (котлетное мясо) | C25: кг | D25: ='Пт День 5 Нед 1'!AB25 -> 0 | L25: 0.0000 | M25: 0.0000 | U25: 0.0000 | V25: 0.0000 | Y25: 0.0000 | AC25: 0.0000 | AG25: 0.0000 | AH25: 0.000 | AI25: 0.000
A26: 17 | B26: фарш говяжий | C26: кг | D26: ='Пт День 5 Нед 1'!AB26 -> -0.08797 | L26: 0.0000 | M26: 0.0000 | U26: 0.0000 | V26: 0.0000 | Y26: 0.0000 | AC26: 0.0000 | AD26: 0.0120 | AG26: 0.0120 | AH26: 0.012 | AI26: -0.100
A27: 18 | B27: говядина лопатка б/к | C27: кг | D27: ='Пт День 5 Нед 1'!AB27 -> 0 | L27: 0.0000 | M27: 0.0000 | U27: 0.0000 | V27: 0.0000 | Y27: 0.0000 | AC27: 0.0000 | AG27: 0.0000 | AH27: 0.000 | AI27: 0.000
A28: 19 | B28: сосиски | C28: кг | D28: ='Пт День 5 Нед 1'!AB28 -> -0.204 | L28: 0.0000 | M28: 0.0000 | U28: 0.0000 | V28: 0.0000 | Y28: 0.0000 | AC28: 0.0000 | AG28: 0.0000 | AH28: 0.000 | AI28: -0.204
A29: 20 | B29: колбаса п/к "Халяль" | C29: кг | D29: ='Пт День 5 Нед 1'!AB29 -> 0 | L29: 0.0000 | M29: 0.0000 | U29: 0.0000 | V29: 0.0000 | Y29: 0.0000 | AC29: 0.0000 | AG29: 0.0000 | AH29: 0.000 | AI29: 0.000
A30: 21 | B30: куриное бедро | C30: кг | D30: ='Пт День 5 Нед 1'!AB30 -> 0 | L30: 0.0000 | M30: 0.0000 | U30: 0.0000 | V30: 0.0000 | Y30: 0.0000 | AC30: 0.0000 | AG30: 0.0000 | AH30: 0.000 | AI30: 0.000
A31: 22 | B31: куриная грудка | C31: кг | D31: ='Пт День 5 Нед 1'!AB31 -> -0.22122 | L31: 0.0000 | M31: 0.0000 | U31: 0.0000 | V31: 0.0000 | Y31: 0.0000 | AC31: 0.0000 | AG31: 0.0000 | AH31: 0.000 | AI31: -0.221
A32: 23 | B32: куры/цыплята потрош. | C32: кг | D32: ='Пт День 5 Нед 1'!AB32 -> 0 | L32: 0.0000 | M32: 0.0000 | U32: 0.0000 | V32: 0.0000 | Y32: 0.0000 | AC32: 0.0000 | AG32: 0.0000 | AH32: 0.000 | AI32: 0.000
A33: 24 | B33: фарш куриный | C33: кг | D33: ='Пт День 5 Нед 1'!AB33 -> 0 | L33: 0.0000 | M33: 0.0000 | U33: 0.0000 | V33: 0.0000 | Y33: 0.0000 | AC33: 0.0000 | AG33: 0.0000 | AH33: 0.000 | AI33: 0.000
A34: 25 | B34: индейка бедро филе | C34: кг | D34: ='Пт День 5 Нед 1'!AB34 -> -0.147 | L34: 0.0000 | M34: 0.0000 | U34: 0.0000 | V34: 0.0000 | Y34: 0.0000 | AC34: 0.0000 | AG34: 0.0000 | AH34: 0.000 | AI34: -0.147
A35: 26 | B35: индейка грудка филе | C35: кг | D35: ='Пт День 5 Нед 1'!AB35 -> 0 | L35: 0.0000 | M35: 0.0000 | U35: 0.0000 | V35: 0.0000 | Y35: 0.0000 | AC35: 0.0000 | AG35: 0.0000 | AH35: 0.000 | AI35: 0.000
B36: Рыба | D36: ='Пт День 5 Нед 1'!AB36 -> 0 | L36: 0.0000 | M36: 0.0000 | U36: 0.0000 | V36: 0.0000 | Y36: 0.0000 | AC36: 0.0000 | AG36: 0.0000 | AH36: 0.000 | AI36: 0.000
A37: 27 | B37: горбуша ПБГ с/м | C37: кг | D37: ='Пт День 5 Нед 1'!AB37 -> 0 | L37: 0.0000 | M37: 0.0000 | U37: 0.0000 | V37: 0.0000 | Y37: 0.0000 | AC37: 0.0000 | AG37: 0.0000 | AH37: 0.000 | AI37: 0.000
A38: 28 | B38: минтай б/г с/м | C38: кг | D38: ='Пт День 5 Нед 1'!AB38 -> 0 | G38: 0.0776 | L38: 0.0776 | M38: 0.0000 | O38: 0.0776 | U38: 0.0776 | V38: 0.0000 | Y38: 0.0000 | AC38: 0.0000 | AG38: 0.0000 | AH38: 0.155 | AI38: -0.155
A39: 29 | B39: фарш минтая | C39: кг | D39: ='Пт День 5 Нед 1'!AB39 -> 0 | G39: 0.0591 | L39: 0.0591 | M39: 0.0000 | O39: 0.0591 | U39: 0.0591 | V39: 0.0000 | Y39: 0.0000 | AC39: 0.0000 | AG39: 0.0000 | AH39: 0.118 | AI39: =(D39+E39)-AH39 -> -0.118
B40: Сыпучка | D40: ='Пт День 5 Нед 1'!AB40 -> 0 | L40: 0.0000 | M40: 0.0000 | U40: 0.0000 | V40: 0.0000 | Y40: 0.0000 | AC40: 0.0000 | AG40: 0.0000 | AH40: 0.000 | AI40: 0.000
A41: 30 | B41: вермишель | C41: кг | D41: ='Пт День 5 Нед 1'!AB41 -> 0 | L41: 0.0000 | M41: 0.0000 | U41: 0.0000 | V41: 0.0000 | Y41: 0.0000 | AC41: 0.0000 | AG41: 0.0000 | AH41: 0.000 | AI41: 0.000
A42: 31 | B42: геркулес | C42: кг | D42: ='Пт День 5 Нед 1'!AB42 -> 0 | L42: 0.0000 | M42: 0.0000 | U42: 0.0000 | V42: 0.0000 | Y42: 0.0000 | AC42: 0.0000 | AG42: 0.0000 | AH42: 0.000 | AI42: 0.000
A43: 32 | B43: горох | C43: кг | D43: ='Пт День 5 Нед 1'!AB43 -> 0 | L43: 0.0000 | M43: 0.0000 | U43: 0.0000 | V43: 0.0000 | Y43: 0.0000 | AC43: 0.0000 | AG43: 0.0000 | AH43: 0.000 | AI43: 0.000
A44: 33 | B44: гречневая крупа | C44: кг | D44: ='Пт День 5 Нед 1'!AB44 -> -0.288 | L44: 0.0000 | M44: 0.0000 | U44: 0.0000 | V44: 0.0000 | Y44: 0.0000 | AC44: 0.0000 | AG44: 0.0000 | AH44: 0.000 | AI44: -0.288
A45: 34 | B45: кукурузная крупа | C45: кг | D45: ='Пт День 5 Нед 1'!AB45 -> 0 | L45: 0.0000 | M45: 0.0000 | U45: 0.0000 | V45: 0.0000 | Y45: 0.0000 | AC45: 0.0000 | AG45: 0.0000 | AH45: 0.000 | AI45: 0.000
A46: 35 | B46: макаронные изделия | C46: кг | D46: ='Пт День 5 Нед 1'!AB46 -> -0.142 | L46: 0.0000 | M46: 0.0000 | U46: 0.0000 | V46: 0.0000 | Y46: 0.0000 | AC46: 0.0000 | AG46: 0.0000 | AH46: 0.000 | AI46: -0.142
A47: 36 | B47: манная крупа | C47: кг | D47: ='Пт День 5 Нед 1'!AB47 -> 0 | L47: 0.0000 | M47: 0.0000 | U47: 0.0000 | V47: 0.0000 | Y47: 0.0000 | AC47: 0.0000 | AG47: 0.0000 | AH47: 0.000 | AI47: 0.000
A48: 37 | B48: перловая крупа | C48: кг | D48: ='Пт День 5 Нед 1'!AB48 -> -0.005 | L48: 0.0000 | M48: 0.0000 | U48: 0.0000 | V48: 0.0000 | Y48: 0.0000 | AC48: 0.0000 | AG48: 0.0000 | AH48: 0.000 | AI48: -0.005
A49: 38 | B49: полбяная крупа | C49: кг | D49: ='Пт День 5 Нед 1'!AB49 -> 0 | L49: 0.0000 | M49: 0.0000 | U49: 0.0000 | V49: 0.0000 | Y49: 0.0000 | AC49: 0.0000 | AG49: 0.0000 | AH49: 0.000 | AI49: 0.000
A50: 39 | B50: пшеничная крупа | C50: кг | D50: ='Пт День 5 Нед 1'!AB50 -> 0 | L50: 0.0000 | M50: 0.0000 | U50: 0.0000 | V50: 0.0000 | Y50: 0.0000 | AC50: 0.0000 | AG50: 0.0000 | AH50: 0.000 | AI50: 0.000
A51: 40 | B51: пшено | C51: кг | D51: ='Пт День 5 Нед 1'!AB51 -> -0.0295 | L51: 0.0000 | M51: 0.0000 | U51: 0.0000 | V51: 0.0000 | Y51: 0.0000 | Z51: 0.0300 | AC51: 0.0000 | AG51: 0.0000 | AH51: 0.000 | AI51: -0.030
A52: 41 | B52: рис | C52: кг | D52: ='Пт День 5 Нед 1'!AB52 -> -0.175 | I52: 0.0648 | L52: 0.0648 | M52: 0.0648 | Q52: 0.0648 | U52: 0.0648 | V52: 0.0648 | Y52: 0.0000 | AC52: 0.0000 | AG52: 0.0000 | AH52: 0.259 | AI52: -0.434
A53: 42 | B53: ячневая крупа | C53: кг | D53: ='Пт День 5 Нед 1'!AB53 -> 0 | L53: 0.0000 | M53: 0.0000 | U53: 0.0000 | V53: 0.0000 | Y53: 0.0000 | AC53: 0.0000 | AG53: 0.0000 | AH53: 0.000 | AI53: 0.000
A54: 43 | B54: лапша домашняя п/ф | C54: кг | D54: ='Пт День 5 Нед 1'!AB54 -> -0.02 | L54: 0.0000 | M54: 0.0000 | U54: 0.0000 | V54: 0.0000 | Y54: 0.0000 | AC54: 0.0000 | AG54: 0.0000 | AH54: 0.000 | AI54: -0.020
A55: 44 | B55: мука пшеничная в/с | C55: кг | D55: ='Пт День 5 Нед 1'!AB55 -> -0.026 | G55: 0.0013 | L55: 0.0013 | M55: 0.0000 | O55: 0.0013 | U55: 0.0013 | V55: 0.0000 | Y55: 0.0000 | AC55: 0.0000 | AG55: 0.0000 | AH55: 0.003 | AI55: -0.029
A56: 45 | B56: сахарный песок | C56: кг | D56: ='Пт День 5 Нед 1'!AB56 -> -0.2228 | J56: 0.0100 | L56: 0.0100 | M56: 0.0100 | R56: 0.0100 | U56: 0.0100 | V56: 0.0100 | X56: 0.0100 | Y56: 0.0100 | Z56: 0.0008 | AA56: 0.0100 | AC56: 0.0000 | AD56: 0.0025 | AE56: 0.0100 | AG56: 0.0125 | AH56: 0.063 | AI56: -0.285
A57: 46 | B57: соль | C57: кг | D57: ='Пт День 5 Нед 1'!AB57 -> -0.0174 | G57: =0.0006+0.0005 -> 0.0011 | I57: 0.0007 | L57: 0.0018 | M57: 0.0007 | O57: =0.0006+0.0005 -> 0.0011 | Q57: 0.0007 | U57: 0.0018 | V57: 0.0007 | Y57: 0.0000 | Z57: 0.0004 | AC57: 0.0000 | AD57: 0.0011 | AG57: 0.0011 | AH57: 0.006 | AI57: -0.024
A58: 47 | B58: сухари панировочные | C58: кг | D58: ='Пт День 5 Нед 1'!AB58 -> 0 | G58: 0.0075 | L58: 0.0075 | M58: 0.0000 | O58: 0.0075 | U58: 0.0075 | V58: 0.0000 | Y58: 0.0000 | AC58: 0.0000 | AG58: 0.0000 | AH58: 0.015 | AI58: -0.015
A59: 48 | B59: дрожжи сухие | C59: кг | D59: ='Пт День 5 Нед 1'!AB59 -> 0 | L59: 0.0000 | M59: 0.0000 | U59: 0.0000 | V59: 0.0000 | Y59: 0.0000 | AC59: 0.0000 | AG59: 0.0000 | AH59: 0.000 | AI59: 0.000
A60: 49 | B60: фасоль | C60: кг | D60: ='Пт День 5 Нед 1'!AB60 -> 0 | L60: 0.0000 | M60: 0.0000 | U60: 0.0000 | V60: 0.0000 | Y60: 0.0000 | AC60: 0.0000 | AG60: 0.0000 | AH60: 0.000 | AI60: 0.000
B61: Консервы | D61: ='Пт День 5 Нед 1'!AB61 -> 0 | L61: 0.0000 | M61: 0.0000 | U61: 0.0000 | V61: 0.0000 | Y61: 0.0000 | AC61: 0.0000 | AG61: 0.0000 | AH61: 0.000 | AI61: 0.000
A62: 50 | B62: зеленый горошек к/с | C62: кг | D62: ='Пт День 5 Нед 1'!AB62 -> 0 | F62: 0.0481 | L62: 0.0481 | M62: 0.0481 | N62: 0.0970 | U62: 0.0970 | V62: 0.0970 | Y62: 0.0000 | AC62: 0.0000 | AG62: 0.0000 | AH62: 0.290 | AI62: -0.290
A63: 51 | B63: кукуруза к/с | C63: кг | D63: ='Пт День 5 Нед 1'!AB63 -> 0 | L63: 0.0000 | M63: 0.0000 | U63: 0.0000 | V63: 0.0000 | Y63: 0.0000 | AC63: 0.0000 | AG63: 0.0000 | AH63: 0.000 | AI63: 0.000
A64: 52 | B64: фасоль к/с | C64: кг | D64: ='Пт День 5 Нед 1'!AB64 -> 0 | L64: 0.0000 | M64: 0.0000 | U64: 0.0000 | V64: 0.0000 | Y64: 0.0000 | AC64: 0.0000 | AG64: 0.0000 | AH64: 0.000 | AI64: 0.000
A65: 53 | B65: икра кабач/икра баклаж | C65: кг | D65: ='Пт День 5 Нед 1'!AB65 -> 0 | L65: 0.0000 | M65: 0.0000 | U65: 0.0000 | V65: 0.0000 | Y65: 0.0000 | AC65: 0.0000 | AG65: 0.0000 | AH65: 0.000 | AI65: 0.000
A66: 54 | B66: капуста морская сушеная | C66: кг | D66: ='Пт День 5 Нед 1'!AB66 -> 0 | L66: 0.0000 | M66: 0.0000 | U66: 0.0000 | V66: 0.0000 | Y66: 0.0000 | AC66: 0.0000 | AG66: 0.0000 | AH66: 0.000 | AI66: 0.000
A67: 55 | B67: капуста квашеная | C67: кг | D67: ='Пт День 5 Нед 1'!AB67 -> 0 | L67: 0.0000 | M67: 0.0000 | U67: 0.0000 | V67: 0.0000 | Y67: 0.0000 | AC67: 0.0000 | AG67: 0.0000 | AH67: 0.000 | AI67: 0.000
A68: 56 | B68: молоко сгущенное | C68: кг | D68: ='Пт День 5 Нед 1'!AB68 -> 0 | L68: 0.0000 | M68: 0.0000 | U68: 0.0000 | V68: 0.0000 | Y68: 0.0000 | AC68: 0.0000 | AG68: 0.0000 | AH68: 0.000 | AI68: 0.000
A69: 57 | B69: огурцы соленые | C69: кг | D69: ='Пт День 5 Нед 1'!AB69 -> -0.0273 | L69: 0.0000 | M69: 0.0000 | U69: 0.0000 | V69: 0.0000 | Y69: 0.0000 | AC69: 0.0000 | AG69: 0.0000 | AH69: 0.000 | AI69: -0.027
A70: 58 | B70: повидло | C70: кг | D70: ='Пт День 5 Нед 1'!AB70 -> 0 | L70: 0.0000 | M70: 0.0000 | U70: 0.0000 | V70: 0.0000 | Y70: 0.0000 | AC70: 0.0000 | AG70: 0.0000 | AH70: 0.000 | AI70: 0.000
A71: 59 | B71: томатная паста | C71: кг | D71: ='Пт День 5 Нед 1'!AB71 -> -0.0152 | L71: 0.0000 | M71: 0.0000 | U71: 0.0000 | V71: 0.0000 | Y71: 0.0000 | AC71: 0.0000 | AD71: 0.0030 | AG71: 0.0030 | AH71: 0.003 | AI71: =(D71+E71)-AH71 -> -0.018
A72: 60 | B72: рыбные консервы | C72: кг | D72: ='Пт День 5 Нед 1'!AB72 -> 0 | L72: =(K72+J72+G72+F72+I72)*$L$5 -> 0.0000 | M72: =(K72+J72+I72+F72+H72)*$M$5 -> 0.0000 | U72: =(N72+O72+Q72+R72+S72)*$U$5 -> 0.0000 | V72: =(N72+P72+Q72+R72+S72)*$V$5 -> 0.0000 | Y72: =(X72+W72)*$Y$5 -> 0.0000 | AC72: =(AB72+AA72+Z72)*$AC$5 -> 0.0000 | AG72: 0.0000 | AH72: =L72+M72+U72+V72+Y72+AG72 -> 0.000 | AI72: 0.000
B73: Напитки | D73: ='Пт День 5 Нед 1'!AB73 -> 0 | L73: 0.0000 | M73: 0.0000 | U73: 0.0000 | V73: 0.0000 | Y73: 0.0000 | AC73: 0.0000 | AG73: =(AD73+AE73+AF73)*$AG$5 -> 0.0000 | AH73: 0.000 | AI73: 0.000
A74: 61 | B74: чай весовой | C74: кг | D74: ='Пт День 5 Нед 1'!AB74 -> -0.006 | J74: 0.0010 | L74: 0.0010 | M74: 0.0010 | R74: 0.0010 | U74: 0.0010 | V74: 0.0010 | X74: 0.0005 | Y74: 0.0005 | AC74: 0.0000 | AE74: 0.0005 | AG74: 0.0005 | AH74: 0.005 | AI74: -0.011
A75: 62 | B75: какао | C75: кг | D75: ='Пт День 5 Нед 1'!AB75 -> 0 | L75: 0.0000 | M75: 0.0000 | U75: 0.0000 | V75: 0.0000 | Y75: 0.0000 | AC75: 0.0000 | AG75: 0.0000 | AH75: 0.000 | AI75: 0.000
A76: 63 | B76: кисель | C76: кг | D76: ='Пт День 5 Нед 1'!AB76 -> 0 | L76: 0.0000 | M76: 0.0000 | U76: 0.0000 | V76: 0.0000 | Y76: 0.0000 | AC76: 0.0000 | AG76: 0.0000 | AH76: 0.000 | AI76: 0.000
A77: 64 | B77: кофейный напиток | C77: кг | D77: ='Пт День 5 Нед 1'!AB77 -> -0.01 | L77: 0.0000 | M77: 0.0000 | U77: 0.0000 | V77: 0.0000 | Y77: 0.0000 | AC77: 0.0000 | AG77: 0.0000 | AH77: 0.000 | AI77: -0.010
A78: 65 | B78: цикорий | C78: кг | D78: ='Пт День 5 Нед 1'!AB78 -> 0 | L78: 0.0000 | M78: 0.0000 | U78: 0.0000 | V78: 0.0000 | Y78: 0.0000 | AC78: 0.0000 | AG78: 0.0000 | AH78: 0.000 | AI78: 0.000
B79: Сухофрукты | D79: ='Пт День 5 Нед 1'!AB79 -> 0 | L79: 0.0000 | M79: 0.0000 | U79: 0.0000 | V79: 0.0000 | Y79: 0.0000 | AC79: 0.0000 | AG79: 0.0000 | AH79: 0.000 | AI79: 0.000
A80: 66 | B80: ассорти для компота (сухофрукты) | C80: кг | D80: ='Пт День 5 Нед 1'!AB80 -> -0.0816 | L80: 0.0000 | M80: 0.0000 | U80: 0.0000 | V80: 0.0000 | Y80: 0.0000 | AC80: 0.0000 | AG80: 0.0000 | AH80: 0.000 | AI80: -0.082
A81: 67 | B81: изюм | C81: кг | D81: ='Пт День 5 Нед 1'!AB81 -> -0.0102 | L81: 0.0000 | M81: 0.0000 | U81: 0.0000 | V81: 0.0000 | Y81: 0.0000 | AC81: 0.0000 | AG81: 0.0000 | AH81: 0.000 | AI81: -0.010
A82: 68 | B82: курага | C82: кг | D82: ='Пт День 5 Нед 1'!AB82 -> 0 | L82: 0.0000 | M82: 0.0000 | U82: 0.0000 | V82: 0.0000 | Y82: 0.0000 | AC82: 0.0000 | AG82: 0.0000 | AH82: 0.000 | AI82: 0.000
A83: 69 | B83: урюк | C83: кг | D83: ='Пт День 5 Нед 1'!AB83 -> -0.0204 | L83: 0.0000 | M83: 0.0000 | U83: 0.0000 | V83: 0.0000 | Y83: 0.0000 | AA83: 0.0204 | AC83: 0.0000 | AG83: 0.0000 | AH83: 0.000 | AI83: -0.020
A84: 70 | B84: шиповник | C84: кг | D84: ='Пт День 5 Нед 1'!AB84 -> -0.0253 | L84: 0.0000 | M84: 0.0000 | U84: 0.0000 | V84: 0.0000 | Y84: 0.0000 | AC84: 0.0000 | AG84: 0.0000 | AH84: 0.000 | AI84: -0.025
A85: 71 | B85: компотная смесь с/м | C85: кг | D85: ='Пт День 5 Нед 1'!AB85 -> 0 | L85: 0.0000 | M85: 0.0000 | U85: 0.0000 | V85: 0.0000 | Y85: 0.0000 | AC85: 0.0000 | AG85: 0.0000 | AH85: 0.000 | AI85: 0.000
A86: 72 | B86: вишня с/м | C86: кг | D86: ='Пт День 5 Нед 1'!AB86 -> 0 | L86: 0.0000 | M86: 0.0000 | U86: 0.0000 | V86: 0.0000 | Y86: 0.0000 | AC86: 0.0000 | AG86: 0.0000 | AH86: 0.000 | AI86: 0.000
A87: 73 | B87: клюква с/м | C87: кг | D87: ='Пт День 5 Нед 1'!AB87 -> 0 | L87: 0.0000 | M87: 0.0000 | U87: 0.0000 | V87: 0.0000 | Y87: 0.0000 | AC87: 0.0000 | AG87: 0.0000 | AH87: 0.000 | AI87: 0.000
A88: 74 | B88: смородина в ассорт с/м | C88: кг | D88: ='Пт День 5 Нед 1'!AB88 -> 0 | L88: 0.0000 | M88: 0.0000 | U88: 0.0000 | V88: 0.0000 | Y88: 0.0000 | AC88: 0.0000 | AG88: 0.0000 | AH88: 0.000 | AI88: 0.000
A89: 75 | B89: облепиха с/м | C89: кг | D89: ='Пт День 5 Нед 1'!AB89 -> 0 | L89: 0.0000 | M89: 0.0000 | U89: 0.0000 | V89: 0.0000 | Y89: 0.0000 | AC89: 0.0000 | AG89: 0.0000 | AH89: 0.000 | AI89: 0.000
B90: сок | D90: ='Пт День 5 Нед 1'!AB90 -> 0 | L90: 0.0000 | M90: 0.0000 | U90: 0.0000 | V90: 0.0000 | Y90: 0.0000 | AC90: 0.0000 | AG90: =(AD90+AE90+AF90)*$AG$5 -> 0.0000 | AH90: 0.000 | AI90: 0.000
A91: 76 | B91: сок 0,125л или 0,2л | C91: л | D91: ='Пт День 5 Нед 1'!AB91 -> 0 | L91: 0.0000 | M91: 0.0000 | U91: 0.0000 | V91: 0.0000 | Y91: 0.0000 | AC91: 0.0000 | AG91: =(AD91+AE91+AF91)*$AG$5 -> 0.0000 | AH91: 0.000 | AI91: 0.000
A92: 77 | B92: нектар плодовый | C92: л | D92: ='Пт День 5 Нед 1'!AB92 -> 0 | L92: 0.0000 | M92: 0.0000 | U92: 0.0000 | V92: 0.0000 | Y92: 0.0000 | AC92: 0.0000 | AG92: =(AD92+AE92+AF92)*$AG$5 -> 0.0000 | AH92: 0.000 | AI92: 0.000
B93: Кондитерка | D93: ='Пт День 5 Нед 1'!AB93 -> 0 | L93: 0.0000 | M93: 0.0000 | U93: 0.0000 | V93: 0.0000 | Y93: 0.0000 | AC93: 0.0000 | AG93: 0.0000 | AH93: 0.000 | AI93: 0.000
A94: 78 | B94: батончик злаковый | C94: шт | D94: ='Пт День 5 Нед 1'!AB94 -> 0 | L94: 0.0000 | M94: 0.0000 | U94: 0.0000 | V94: 0.0000 | Y94: 0.0000 | AC94: 0.0000 | AG94: 0.0000 | AH94: 0.000 | AI94: 0.000
A95: 79 | B95: пряник | C95: кг | D95: ='Пт День 5 Нед 1'!AB95 -> -0.035 | L95: 0.0000 | M95: 0.0000 | U95: 0.0000 | V95: 0.0000 | Y95: 0.0000 | AC95: 0.0000 | AG95: 0.0000 | AH95: 0.000 | AI95: -0.035
A96: 80 | B96: вафли | C96: кг | D96: ='Пт День 5 Нед 1'!AB96 -> -0.2 | L96: 0.0000 | M96: 0.0000 | U96: 0.0000 | V96: 0.0000 | Y96: 0.0000 | AC96: 0.0000 | AG96: 0.0000 | AH96: 0.000 | AI96: -0.200
A97: 81 | B97: печенье | C97: кг | D97: ='Пт День 5 Нед 1'!AB97 -> -0.02 | L97: 0.0000 | M97: 0.0000 | U97: 0.0000 | V97: 0.0000 | W97: 0.0200 | Y97: 0.0200 | AC97: 0.0000 | AG97: 0.0000 | AH97: 0.020 | AI97: -0.040
A98: 82 | B98: крекер | C98: кг | D98: ='Пт День 5 Нед 1'!AB98 -> -0.03 | L98: 0.0000 | M98: 0.0000 | U98: 0.0000 | V98: 0.0000 | Y98: 0.0000 | AC98: 0.0000 | AG98: 0.0000 | AH98: 0.000 | AI98: -0.030
A99: 83 | B99: сушки | C99: кг | D99: ='Пт День 5 Нед 1'!AB99 -> 0 | L99: 0.0000 | M99: 0.0000 | U99: 0.0000 | V99: 0.0000 | Y99: 0.0000 | AC99: 0.0000 | AG99: 0.0000 | AH99: 0.000 | AI99: 0.000
A100: 84 | B100: мармелад | C100: кг | D100: ='Пт День 5 Нед 1'!AB100 -> 0 | L100: 0.0000 | M100: 0.0000 | U100: 0.0000 | V100: 0.0000 | Y100: 0.0000 | AC100: 0.0000 | AG100: =(AD100+AE100+AF100)*$AG$5 -> 0.0000 | AH100: 0.000 | AI100: 0.000
A101: 85 | B101: блины п/ф | C101: кг | D101: ='Пт День 5 Нед 1'!AB101 -> 0 | L101: 0.0000 | M101: 0.0000 | U101: 0.0000 | V101: 0.0000 | Y101: 0.0000 | AC101: 0.0000 | AG101: 0.0000 | AH101: 0.000 | AI101: 0.000
A102: 86 | B102: выпечка п/ф со склада | C102: шт | D102: ='Пт День 5 Нед 1'!AB102 -> 0 | L102: 0.0000 | M102: 0.0000 | U102: 0.0000 | V102: 0.0000 | Y102: 0.0000 | AC102: 0.0000 | AG102: 0.0000 | AH102: 0.000 | AI102: 0.000
B103: Яйцо | D103: ='Пт День 5 Нед 1'!AB103 -> 0 | L103: 0.0000 | M103: 0.0000 | U103: 0.0000 | V103: 0.0000 | Y103: 0.0000 | AC103: 0.0000 | AG103: 0.0000 | AH103: 0.000 | AI103: =(D103+E103)-AH103 -> 0.000
A104: 87 | B104: яйцо куриное | C104: кг | D104: ='Пт День 5 Нед 1'!AB104 -> -0.00288 | L104: 0.0000 | M104: 0.0000 | U104: 0.0000 | V104: 0.0000 | Y104: 0.0000 | AC104: 0.0000 | AD104: 0.0010 | AG104: 0.0010 | AH104: 0.001 | AI104: -0.004
B105: 0.048 | C105: шт | D105: ='Пт День 5 Нед 1'!AB105 -> 0 | L105: 0.0000 | M105: 0.0000 | U105: 0.0000 | V105: 0.0000 | Y105: 0.0000 | AC105: 0.0000 | AG105: 0.0000 | AH105: 0.000 | AI105: 0.000
B106: Овощи заморозка | D106: ='Пт День 5 Нед 1'!AB106 -> 0 | L106: 0.0000 | M106: 0.0000 | U106: 0.0000 | V106: 0.0000 | Y106: 0.0000 | AC106: 0.0000 | AG106: 0.0000 | AH106: 0.000 | AI106: 0.000
A107: 88 | B107: зеленый горошек с/м | C107: кг | D107: ='Пт День 5 Нед 1'!AB107 -> 0 | L107: 0.0000 | M107: 0.0000 | U107: 0.0000 | V107: 0.0000 | Y107: 0.0000 | AC107: 0.0000 | AG107: 0.0000 | AH107: 0.000 | AI107: 0.000
A108: 89 | B108: кабачки с/м | C108: кг | D108: ='Пт День 5 Нед 1'!AB108 -> 0 | L108: 0.0000 | M108: 0.0000 | U108: 0.0000 | V108: 0.0000 | Y108: 0.0000 | AC108: 0.0000 | AG108: 0.0000 | AH108: 0.000 | AI108: 0.000
A109: 90 | B109: мексиканс смесь с/м | C109: кг | D109: ='Пт День 5 Нед 1'!AB109 -> 0 | L109: 0.0000 | M109: 0.0000 | U109: 0.0000 | V109: 0.0000 | Y109: 0.0000 | AC109: 0.0000 | AG109: 0.0000 | AH109: 0.000 | AI109: 0.000
A110: 91 | B110: капуста цветная с/м | C110: кг | D110: ='Пт День 5 Нед 1'!AB110 -> 0 | L110: 0.0000 | M110: 0.0000 | U110: 0.0000 | V110: 0.0000 | Y110: 0.0000 | AC110: 0.0000 | AG110: 0.0000 | AH110: 0.000 | AI110: 0.000
A111: 92 | B111: брокколи с/м | C111: кг | D111: ='Пт День 5 Нед 1'!AB111 -> 0 | L111: 0.0000 | M111: 0.0000 | U111: 0.0000 | V111: 0.0000 | Y111: 0.0000 | AC111: 0.0000 | AG111: 0.0000 | AH111: 0.000 | AI111: 0.000
A112: 93 | B112: кукуруза с/м | C112: кг | D112: ='Пт День 5 Нед 1'!AB112 -> 0 | L112: 0.0000 | M112: 0.0000 | U112: 0.0000 | V112: 0.0000 | Y112: 0.0000 | AC112: 0.0000 | AG112: 0.0000 | AH112: 0.000 | AI112: 0.000
A113: 94 | B113: фасоль стручковая с/м | C113: кг | D113: ='Пт День 5 Нед 1'!AB113 -> 0 | L113: 0.0000 | M113: 0.0000 | U113: 0.0000 | V113: 0.0000 | Y113: 0.0000 | AC113: 0.0000 | AG113: 0.0000 | AH113: 0.000 | AI113: 0.000
B114: Фрукты | D114: ='Пт День 5 Нед 1'!AB114 -> 0 | L114: 0.0000 | M114: 0.0000 | U114: 0.0000 | V114: 0.0000 | Y114: 0.0000 | AC114: 0.0000 | AG114: 0.0000 | AH114: 0.000 | AI114: 0.000
A115: 95 | B115: апельсин | C115: кг | D115: ='Пт День 5 Нед 1'!AB115 -> 0 | L115: 0.0000 | M115: 0.0000 | U115: 0.0000 | V115: 0.0000 | Y115: 0.0000 | AC115: 0.0000 | AG115: 0.0000 | AH115: 0.000 | AI115: 0.000
A116: 96 | B116: банан | C116: кг | D116: ='Пт День 5 Нед 1'!AB116 -> 0 | L116: 0.0000 | M116: 0.0000 | U116: 0.0000 | V116: 0.0000 | Y116: 0.0000 | AC116: 0.0000 | AG116: 0.0000 | AH116: 0.000 | AI116: 0.000
A117: 97 | B117: груши | C117: кг | D117: ='Пт День 5 Нед 1'!AB117 -> 0 | L117: 0.0000 | M117: 0.0000 | U117: 0.0000 | V117: 0.0000 | Y117: 0.0000 | AC117: 0.0000 | AG117: 0.0000 | AH117: 0.000 | AI117: 0.000
A118: 98 | B118: мандарины | C118: кг | D118: ='Пт День 5 Нед 1'!AB118 -> 0 | L118: 0.0000 | M118: 0.0000 | U118: 0.0000 | V118: 0.0000 | Y118: 0.0000 | AC118: 0.0000 | AG118: 0.0000 | AH118: 0.000 | AI118: 0.000
A119: 99 | B119: лимон | C119: кг | D119: ='Пт День 5 Нед 1'!AB119 -> -0.012 | J119: 0.0056 | L119: 0.0056 | M119: 0.0056 | R119: 0.0056 | U119: 0.0056 | V119: 0.0056 | Y119: 0.0000 | AC119: 0.0000 | AG119: 0.0000 | AH119: 0.022 | AI119: -0.034
A120: 100 | B120: яблоки свежие | C120: кг | D120: ='Пт День 5 Нед 1'!AB120 -> -0.691 | L120: 0.0000 | M120: 0.0000 | U120: 0.0000 | V120: 0.0000 | Y120: 0.0000 | AC120: 0.0000 | AG120: 0.0000 | AH120: 0.000 | AI120: -0.691
B121: Овощи / зелень | D121: ='Пт День 5 Нед 1'!AB121 -> 0 | L121: 0.0000 | M121: 0.0000 | U121: 0.0000 | V121: 0.0000 | Y121: 0.0000 | AC121: 0.0000 | AG121: 0.0000 | AH121: 0.000 | AI121: 0.000
A122: 101 | B122: капуста свежая | C122: кг | D122: ='Пт День 5 Нед 1'!AB122 -> -0.205 | L122: 0.0000 | M122: 0.0000 | U122: 0.0000 | V122: 0.0000 | Y122: 0.0000 | AC122: 0.0000 | AD122: 0.0250 | AG122: 0.0250 | AH122: 0.025 | AI122: -0.230
A123: 102 | B123: картофель | C123: кг | D123: ='Пт День 5 Нед 1'!AB123 -> -0.89137 | L123: 0.0000 | M123: 0.0000 | U123: 0.0000 | V123: 0.0000 | Y123: 0.0000 | AC123: 0.0000 | AD123: 0.0268 | AG123: 0.0268 | AH123: 0.027 | AI123: -0.918
A124: 103 | B124: лук репчатый | C124: кг | D124: ='Пт День 5 Нед 1'!AB124 -> -0.1488 | G124: 0.0120 | L124: 0.0120 | M124: 0.0000 | O124: 0.0120 | U124: 0.0120 | V124: 0.0000 | Y124: 0.0000 | AC124: 0.0000 | AD124: 0.0120 | AG124: 0.0120 | AH124: 0.036 | AI124: -0.185
A125: 104 | B125: морковь | C125: кг | D125: ='Пт День 5 Нед 1'!AB125 -> -0.11625 | L125: 0.0000 | M125: 0.0000 | U125: 0.0000 | V125: 0.0000 | Y125: 0.0000 | AC125: 0.0000 | AD125: 0.0125 | AG125: 0.0125 | AH125: 0.013 | AI125: -0.129
A126: 105 | B126: свекла | C126: кг | D126: ='Пт День 5 Нед 1'!AB126 -> -0.242 | L126: 0.0000 | M126: 0.0000 | U126: 0.0000 | V126: 0.0000 | Y126: 0.0000 | AC126: 0.0000 | AD126: 0.0500 | AG126: 0.0500 | AH126: 0.050 | AI126: -0.292
A127: 106 | B127: огурцы св. | C127: кг | D127: ='Пт День 5 Нед 1'!AB127 -> 0 | L127: 0.0000 | M127: 0.0000 | U127: 0.0000 | V127: 0.0000 | Y127: 0.0000 | AC127: 0.0000 | AG127: 0.0000 | AH127: 0.000 | AI127: 0.000
A128: 107 | B128: томаты св. | C128: кг | D128: ='Пт День 5 Нед 1'!AB128 -> 0 | L128: 0.0000 | M128: 0.0000 | U128: 0.0000 | V128: 0.0000 | Y128: 0.0000 | AC128: 0.0000 | AG128: 0.0000 | AH128: 0.000 | AI128: 0.000
A129: 108 | B129: перец болг.красный | C129: кг | D129: ='Пт День 5 Нед 1'!AB129 -> 0 | L129: 0.0000 | M129: 0.0000 | U129: 0.0000 | V129: 0.0000 | Y129: 0.0000 | AC129: 0.0000 | AG129: 0.0000 | AH129: 0.000 | AI129: 0.000
A130: 109 | B130: тыква | C130: кг | D130: ='Пт День 5 Нед 1'!AB130 -> 0 | L130: 0.0000 | M130: 0.0000 | U130: 0.0000 | V130: 0.0000 | Y130: 0.0000 | AC130: 0.0000 | AG130: 0.0000 | AH130: 0.000 | AI130: 0.000
B131: Овощи очищенные | D131: ='Пт День 5 Нед 1'!AB131 -> 0 | L131: 0.0000 | M131: 0.0000 | U131: 0.0000 | V131: 0.0000 | Y131: 0.0000 | AC131: 0.0000 | AG131: 0.0000 | AH131: 0.000 | AI131: 0.000
A132: 110 | B132: капуста св.очищенная | C132: кг | D132: ='Пт День 5 Нед 1'!AB132 -> 0 | L132: 0.0000 | M132: 0.0000 | U132: 0.0000 | V132: 0.0000 | Y132: 0.0000 | AC132: 0.0000 | AG132: 0.0000 | AH132: 0.000 | AI132: 0.000
A133: 111 | B133: картофель св. очищенный | C133: кг | D133: ='Пт День 5 Нед 1'!AB133 -> 0 | L133: 0.0000 | M133: 0.0000 | U133: 0.0000 | V133: 0.0000 | Y133: 0.0000 | AC133: 0.0000 | AG133: 0.0000 | AH133: 0.000 | AI133: 0.000
A134: 112 | B134: лук репчатый св.очищенный | C134: кг | D134: ='Пт День 5 Нед 1'!AB134 -> 0 | L134: 0.0000 | M134: 0.0000 | U134: 0.0000 | V134: 0.0000 | Y134: 0.0000 | AC134: 0.0000 | AG134: 0.0000 | AH134: 0.000 | AI134: 0.000
A135: 113 | B135: морковь св.очищенная | C135: кг | D135: ='Пт День 5 Нед 1'!AB135 -> 0 | L135: 0.0000 | M135: 0.0000 | U135: 0.0000 | V135: 0.0000 | Y135: 0.0000 | AC135: 0.0000 | AG135: 0.0000 | AH135: 0.000 | AI135: =(D135+E135)-AH135 -> 0.000
A136: 114 | B136: свекла св.очищенная | C136: кг | D136: ='Пт День 5 Нед 1'!AB136 -> 0 | L136: =(K136+J136+G136+F136+I136)*$L$5 -> 0.0000 | M136: =(K136+J136+I136+F136+H136)*$M$5 -> 0.0000 | U136: =(N136+O136+Q136+R136+S136)*$U$5 -> 0.0000 | V136: =(N136+P136+Q136+R136+S136)*$V$5 -> 0.0000 | Y136: =(X136+W136)*$Y$5 -> 0.0000 | AC136: =(AB136+AA136+Z136)*$AC$5 -> 0.0000 | AG136: 0.0000 | AH136: =L136+M136+U136+V136+Y136+AG136 -> 0.000 | AI136: 0.000
B137: Полуфабрикаты | D137: ='Пт День 5 Нед 1'!AB137 -> 0 | L137: 0.0000 | M137: 0.0000 | U137: 0.0000 | V137: 0.0000 | Y137: 0.0000 | AC137: 0.0000 | AG137: =(AD137+AE137+AF137)*$AG$5 -> 0.0000 | AH137: 0.000 | AI137: 0.000
A138: 115 | B138: сырники ПФ | C138: шт | D138: ='Пт День 5 Нед 1'!AB138 -> -2 | L138: 0.0000 | M138: 0.0000 | U138: 0.0000 | V138: 0.0000 | Y138: 0.0000 | AH138: 0.000 | AI138: -2.000
A139: 116 | B139: пельмени ПФ | C139: кг | D139: ='Пт День 5 Нед 1'!AB139 -> 0 | L139: 0.0000 | M139: 0.0000 | U139: 0.0000 | V139: 0.0000 | Y139: 0.0000 | AC139: 0.0000 | AG139: =(AD139+AE139+AF139)*$AG$5 -> 0.0000 | AH139: 0.000 | AI139: 0.000
A140: 117 | B140: биточки рыбные 85 гр | C140: шт | D140: ='Пт День 5 Нед 1'!AB140 -> 0 | H140: 1 | L140: 0.0000 | M140: 1.0000 | P140: 1 | U140: 0.0000 | V140: 1.0000 | Y140: 0.0000 | AC140: 0.0000 | AG140: =(AD140+AE140+AF140)*$AG$5 -> 0.0000 | AH140: 2.000 | AI140: -2.000
A141: 118 | B141: фрикадельки мясные | C141: кг | D141: ='Пт День 5 Нед 1'!AB141 -> 0 | L141: 0.0000 | M141: 0.0000 | U141: 0.0000 | V141: 0.0000 | Y141: 0.0000 | AC141: 0.0000 | AG141: =(AD141+AE141+AF141)*$AG$5 -> 0.0000 | AH141: 0.000 | AI141: 0.000
A142: 119 | B142: фрикадельки куриные | C142: кг | D142: ='Пт День 5 Нед 1'!AB142 -> 0 | L142: 0.0000 | M142: 0.0000 | U142: 0.0000 | V142: 0.0000 | Y142: 0.0000 | AC142: 0.0000 | AG142: =(AD142+AE142+AF142)*$AG$5 -> 0.0000 | AH142: 0.000 | AI142: 0.000
A143: 120 | B143: хинкали п/ф из говядины | C143: кг | D143: ='Пт День 5 Нед 1'!AB143 -> 0 | L143: 0.0000 | M143: 0.0000 | U143: 0.0000 | V143: 0.0000 | Y143: 0.0000 | AC143: 0.0000 | AG143: 0.0000 | AH143: 0.000 | AI143: 0.000
A144: 121 | B144: котлеты из говядины "Домашне" | C144: шт | D144: ='Пт День 5 Нед 1'!AB144 -> -2 | L144: 0.0000 | M144: 0.0000 | U144: 0.0000 | V144: 0.0000 | Y144: 0.0000 | AC144: 0.0000 | AG144: 0.0000 | AH144: 0.000 | AI144: -2.000
A145: 122 | B145: бифштекс из говядины | C145: шт | D145: ='Пт День 5 Нед 1'!AB145 -> 0 | L145: 0.0000 | M145: 0.0000 | U145: 0.0000 | V145: 0.0000 | Y145: 0.0000 | AC145: 0.0000 | AG145: 0.0000 | AH145: 0.000 | AI145: 0.000
A146: 123 | B146: котлеты из мяса кур | C146: шт | D146: ='Пт День 5 Нед 1'!AB146 -> 0 | L146: 0.0000 | M146: 0.0000 | U146: 0.0000 | V146: 0.0000 | Y146: 0.0000 | AC146: 0.0000 | AG146: 0.0000 | AH146: 0.000 | AI146: 0.000
A147: 124 | B147: котлеты "Аппетитные" мясо-куриные | C147: шт | D147: ='Пт День 5 Нед 1'!AB147 -> 0 | L147: 0.0000 | M147: 0.0000 | U147: 0.0000 | V147: 0.0000 | Y147: 0.0000 | AC147: 0.0000 | AG147: 0.0000 | AH147: 0.000 | AI147: 0.000
A148: 125 | B148: ежики мясные с рисом | C148: шт | D148: ='Пт День 5 Нед 1'!AB148 -> 0 | L148: 0.0000 | M148: 0.0000 | U148: 0.0000 | V148: 0.0000 | Y148: 0.0000 | AC148: 0.0000 | AG148: 0.0000 | AH148: 0.000 | AI148: 0.000

Sheet Итого за 1 нед
A1: Расход продуктов питания в образовательных учереждениях
B2: итого за 6 дней 1 неделя | D2: ИТОГО Кол-во учащихся 1 - 4 кл 69,43 РУБ | E2: ИТОГО Кол-во учащихся 5-11 кл 69,43 РУБ | F2: ИТОГО Кол-во учащихся по меню на 9,60 РУБ | G2: ИТОГО Кол-во учащихся по меню на КАШИ на молоке | H2: ИТОГО Кол-во учащихся по меню СУП 32,45 РУБ | I2: ВСЕГО ЗА неделю расход продуктов по всем рационам
B4: КОЛИЧЕСТВО ДЕТЕЙ | D4: ='Пн День 1 Нед 1'!J5+'Вт День 2 Нед 1'!L5+'Ср День 3 Нед 1'!L5+'Чт День 4 Нед 1'!L5+'Чт День 4 Нед 1'!M5+'Пт День 5 Нед 1'!J5+'Сб День 6 Нед 1'!L5+'Сб День 6 Нед 1'!M5 -> 8 | E4: ='Пн День 1 Нед 1'!O5+'Вт День 2 Нед 1'!T5+'Ср День 3 Нед 1'!R5+'Чт День 4 Нед 1'!T5+'Чт День 4 Нед 1'!U5+'Пт День 5 Нед 1'!O5+'Сб День 6 Нед 1'!U5+'Сб День 6 Нед 1'!V5 -> 8 | F4: ='Сб День 6 Нед 1'!Y5+'Пт День 5 Нед 1'!R5+'Чт День 4 Нед 1'!X5+'Ср День 3 Нед 1'!U5+'Вт День 2 Нед 1'!W5+'Пн День 1 Нед 1'!R5 -> 6 | G4: ='Сб День 6 Нед 1'!AC5+'Пт День 5 Нед 1'!V5+'Чт День 4 Нед 1'!AB5+'Ср День 3 Нед 1'!Y5+'Вт День 2 Нед 1'!AA5+'Пн День 1 Нед 1'!V5 -> 0 | H4: ='Сб День 6 Нед 1'!AG5+'Пт День 5 Нед 1'!Z5+'Чт День 4 Нед 1'!AF5+'Ср День 3 Нед 1'!AC5+'Вт День 2 Нед 1'!AE5+'Пн День 1 Нед 1'!Z5 -> 6 | I4: =D4+E4+F4+G4+H4 -> 28
B5: Выход,гр
B6: Хлеб
A7: 1 | B7: батон | C7: кг | D7: ='Пн День 1 Нед 1'!J7+'Вт День 2 Нед 1'!L7+'Ср День 3 Нед 1'!L7+'Чт День 4 Нед 1'!L7+'Чт День 4 Нед 1'!M7+'Пт День 5 Нед 1'!J7+'Сб День 6 Нед 1'!L7+'Сб День 6 Нед 1'!M7 -> 0.0000 | E7: ='Пн День 1 Нед 1'!O7+'Вт День 2 Нед 1'!T7+'Ср День 3 Нед 1'!R7+'Чт День 4 Нед 1'!T7+'Чт День 4 Нед 1'!U7+'Пт День 5 Нед 1'!O7+'Сб День 6 Нед 1'!U7+'Сб День 6 Нед 1'!V7 -> 0.0000 | F7: ='Сб День 6 Нед 1'!Y7+'Пт День 5 Нед 1'!R7+'Чт День 4 Нед 1'!X7+'Ср День 3 Нед 1'!U7+'Вт День 2 Нед 1'!W7+'Пн День 1 Нед 1'!R7 -> 0.0000 | G7: ='Сб День 6 Нед 1'!AC7+'Пт День 5 Нед 1'!V7+'Чт День 4 Нед 1'!AB7+'Ср День 3 Нед 1'!Y7+'Вт День 2 Нед 1'!AA7+'Пн День 1 Нед 1'!V7 -> 0.0000 | H7: ='Сб День 6 Нед 1'!AG7+'Пт День 5 Нед 1'!Z7+'Чт День 4 Нед 1'!AF7+'Ср День 3 Нед 1'!AC7+'Вт День 2 Нед 1'!AE7+'Пн День 1 Нед 1'!Z7 -> 0.0000 | I7: =D7+E7+F7+G7+H7 -> 0.000
A8: 2 | B8: хлеб пшеничный | C8: кг | D8: ='Пн День 1 Нед 1'!J8+'Вт День 2 Нед 1'!L8+'Ср День 3 Нед 1'!L8+'Чт День 4 Нед 1'!L8+'Чт День 4 Нед 1'!M8+'Пт День 5 Нед 1'!J8+'Сб День 6 Нед 1'!L8+'Сб День 6 Нед 1'!M8 -> 0.0833 | E8: ='Пн День 1 Нед 1'!O8+'Вт День 2 Нед 1'!T8+'Ср День 3 Нед 1'!R8+'Чт День 4 Нед 1'!T8+'Чт День 4 Нед 1'!U8+'Пт День 5 Нед 1'!O8+'Сб День 6 Нед 1'!U8+'Сб День 6 Нед 1'!V8 -> 0.1583 | F8: ='Сб День 6 Нед 1'!Y8+'Пт День 5 Нед 1'!R8+'Чт День 4 Нед 1'!X8+'Ср День 3 Нед 1'!U8+'Вт День 2 Нед 1'!W8+'Пн День 1 Нед 1'!R8 -> 0.0000 | G8: ='Сб День 6 Нед 1'!AC8+'Пт День 5 Нед 1'!V8+'Чт День 4 Нед 1'!AB8+'Ср День 3 Нед 1'!Y8+'Вт День 2 Нед 1'!AA8+'Пн День 1 Нед 1'!V8 -> 0.0000 | H8: ='Сб День 6 Нед 1'!AG8+'Пт День 5 Нед 1'!Z8+'Чт День 4 Нед 1'!AF8+'Ср День 3 Нед 1'!AC8+'Вт День 2 Нед 1'!AE8+'Пн День 1 Нед 1'!Z8 -> 0.0000 | I8: =D8+E8+F8+G8+H8 -> 0.242
A9: 3 | B9: хлеб ржаной | C9: кг | D9: ='Пн День 1 Нед 1'!J9+'Вт День 2 Нед 1'!L9+'Ср День 3 Нед 1'!L9+'Чт День 4 Нед 1'!L9+'Чт День 4 Нед 1'!M9+'Пт День 5 Нед 1'!J9+'Сб День 6 Нед 1'!L9+'Сб День 6 Нед 1'!M9 -> 0.2550 | E9: ='Пн День 1 Нед 1'!O9+'Вт День 2 Нед 1'!T9+'Ср День 3 Нед 1'!R9+'Чт День 4 Нед 1'!T9+'Чт День 4 Нед 1'!U9+'Пт День 5 Нед 1'!O9+'Сб День 6 Нед 1'!U9+'Сб День 6 Нед 1'!V9 -> 0.2600 | F9: ='Сб День 6 Нед 1'!Y9+'Пт День 5 Нед 1'!R9+'Чт День 4 Нед 1'!X9+'Ср День 3 Нед 1'!U9+'Вт День 2 Нед 1'!W9+'Пн День 1 Нед 1'!R9 -> 0.0000 | G9: ='Сб День 6 Нед 1'!AC9+'Пт День 5 Нед 1'!V9+'Чт День 4 Нед 1'!AB9+'Ср День 3 Нед 1'!Y9+'Вт День 2 Нед 1'!AA9+'Пн День 1 Нед 1'!V9 -> 0.0000 | H9: ='Сб День 6 Нед 1'!AG9+'Пт День 5 Нед 1'!Z9+'Чт День 4 Нед 1'!AF9+'Ср День 3 Нед 1'!AC9+'Вт День 2 Нед 1'!AE9+'Пн День 1 Нед 1'!Z9 -> 0.1800 | I9: 0.695
A10: 4 | B10: булоч/выпечка готов с х/клм | C10: шт | D10: ='Пн День 1 Нед 1'!J10+'Вт День 2 Нед 1'!L10+'Ср День 3 Нед 1'!L10+'Чт День 4 Нед 1'!L10+'Чт День 4 Нед 1'!M10+'Пт День 5 Нед 1'!J10+'Сб День 6 Нед 1'!L10+'Сб День 6 Нед 1'!M10 -> 0.0000 | E10: ='Пн День 1 Нед 1'!O10+'Вт День 2 Нед 1'!T10+'Ср День 3 Нед 1'!R10+'Чт День 4 Нед 1'!T10+'Чт День 4 Нед 1'!U10+'Пт День 5 Нед 1'!O10+'Сб День 6 Нед 1'!U10+'Сб День 6 Нед 1'!V10 -> 0.0000 | F10: ='Сб День 6 Нед 1'!Y10+'Пт День 5 Нед 1'!R10+'Чт День 4 Нед 1'!X10+'Ср День 3 Нед 1'!U10+'Вт День 2 Нед 1'!W10+'Пн День 1 Нед 1'!R10 -> 1.0000 | G10: ='Сб День 6 Нед 1'!AC10+'Пт День 5 Нед 1'!V10+'Чт День 4 Нед 1'!AB10+'Ср День 3 Нед 1'!Y10+'Вт День 2 Нед 1'!AA10+'Пн День 1 Нед 1'!V10 -> 0.0000 | H10: ='Сб День 6 Нед 1'!AG10+'Пт День 5 Нед 1'!Z10+'Чт День 4 Нед 1'!AF10+'Ср День 3 Нед 1'!AC10+'Вт День 2 Нед 1'!AE10+'Пн День 1 Нед 1'!Z10 -> 0.0000 | I10: 1.000
B11: Молочка
A12: 5 | B12: молоко 2,5% | C12: кг | D12: ='Пн День 1 Нед 1'!J12+'Вт День 2 Нед 1'!L12+'Ср День 3 Нед 1'!L12+'Чт День 4 Нед 1'!L12+'Чт День 4 Нед 1'!M12+'Пт День 5 Нед 1'!J12+'Сб День 6 Нед 1'!L12+'Сб День 6 Нед 1'!M12 -> 0.2137 | E12: ='Пн День 1 Нед 1'!O12+'Вт День 2 Нед 1'!T12+'Ср День 3 Нед 1'!R12+'Чт День 4 Нед 1'!T12+'Чт День 4 Нед 1'!U12+'Пт День 5 Нед 1'!O12+'Сб День 6 Нед 1'!U12+'Сб День 6 Нед 1'!V12 -> 0.2434 | F12: ='Сб День 6 Нед 1'!Y12+'Пт День 5 Нед 1'!R12+'Чт День 4 Нед 1'!X12+'Ср День 3 Нед 1'!U12+'Вт День 2 Нед 1'!W12+'Пн День 1 Нед 1'!R12 -> 0.0000 | G12: ='Сб День 6 Нед 1'!AC12+'Пт День 5 Нед 1'!V12+'Чт День 4 Нед 1'!AB12+'Ср День 3 Нед 1'!Y12+'Вт День 2 Нед 1'!AA12+'Пн День 1 Нед 1'!V12 -> 0.0000 | H12: ='Сб День 6 Нед 1'!AG12+'Пт День 5 Нед 1'!Z12+'Чт День 4 Нед 1'!AF12+'Ср День 3 Нед 1'!AC12+'Вт День 2 Нед 1'!AE12+'Пн День 1 Нед 1'!Z12 -> 0.0000 | I12: 0.457
A13: 6 | B13: творог 5% | C13: кг | D13: ='Пн День 1 Нед 1'!J13+'Вт День 2 Нед 1'!L13+'Ср День 3 Нед 1'!L13+'Чт День 4 Нед 1'!L13+'Чт День 4 Нед 1'!M13+'Пт День 5 Нед 1'!J13+'Сб День 6 Нед 1'!L13+'Сб День 6 Нед 1'!M13 -> 0.0000 | E13: ='Пн День 1 Нед 1'!O13+'Вт День 2 Нед 1'!T13+'Ср День 3 Нед 1'!R13+'Чт День 4 Нед 1'!T13+'Чт День 4 Нед 1'!U13+'Пт День 5 Нед 1'!O13+'Сб День 6 Нед 1'!U13+'Сб День 6 Нед 1'!V13 -> 0.0000 | F13: ='Сб День 6 Нед 1'!Y13+'Пт День 5 Нед 1'!R13+'Чт День 4 Нед 1'!X13+'Ср День 3 Нед 1'!U13+'Вт День 2 Нед 1'!W13+'Пн День 1 Нед 1'!R13 -> 0.0000 | G13: ='Сб День 6 Нед 1'!AC13+'Пт День 5 Нед 1'!V13+'Чт День 4 Нед 1'!AB13+'Ср День 3 Нед 1'!Y13+'Вт День 2 Нед 1'!AA13+'Пн День 1 Нед 1'!V13 -> 0.0000 | H13: ='Сб День 6 Нед 1'!AG13+'Пт День 5 Нед 1'!Z13+'Чт День 4 Нед 1'!AF13+'Ср День 3 Нед 1'!AC13+'Вт День 2 Нед 1'!AE13+'Пн День 1 Нед 1'!Z13 -> 0.0000 | I13: 0.000
A14: 7 | B14: сметана 15% | C14: кг | D14: ='Пн День 1 Нед 1'!J14+'Вт День 2 Нед 1'!L14+'Ср День 3 Нед 1'!L14+'Чт День 4 Нед 1'!L14+'Чт День 4 Нед 1'!M14+'Пт День 5 Нед 1'!J14+'Сб День 6 Нед 1'!L14+'Сб День 6 Нед 1'!M14 -> 0.0150 | E14: ='Пн День 1 Нед 1'!O14+'Вт День 2 Нед 1'!T14+'Ср День 3 Нед 1'!R14+'Чт День 4 Нед 1'!T14+'Чт День 4 Нед 1'!U14+'Пт День 5 Нед 1'!O14+'Сб День 6 Нед 1'!U14+'Сб День 6 Нед 1'!V14 -> 0.0150 | F14: ='Сб День 6 Нед 1'!Y14+'Пт День 5 Нед 1'!R14+'Чт День 4 Нед 1'!X14+'Ср День 3 Нед 1'!U14+'Вт День 2 Нед 1'!W14+'Пн День 1 Нед 1'!R14 -> 0.0000 | G14: ='Сб День 6 Нед 1'!AC14+'Пт День 5 Нед 1'!V14+'Чт День 4 Нед 1'!AB14+'Ср День 3 Нед 1'!Y14+'Вт День 2 Нед 1'!AA14+'Пн День 1 Нед 1'!V14 -> 0.0000 | H14: ='Сб День 6 Нед 1'!AG14+'Пт День 5 Нед 1'!Z14+'Чт День 4 Нед 1'!AF14+'Ср День 3 Нед 1'!AC14+'Вт День 2 Нед 1'!AE14+'Пн День 1 Нед 1'!Z14 -> 0.0250 | I14: 0.055
A15: 8 | B15: йогурт фруктов | C15: кг | D15: ='Пн День 1 Нед 1'!J15+'Вт День 2 Нед 1'!L15+'Ср День 3 Нед 1'!L15+'Чт День 4 Нед 1'!L15+'Чт День 4 Нед 1'!M15+'Пт День 5 Нед 1'!J15+'Сб День 6 Нед 1'!L15+'Сб День 6 Нед 1'!M15 -> 0.0000 | E15: ='Пн День 1 Нед 1'!O15+'Вт День 2 Нед 1'!T15+'Ср День 3 Нед 1'!R15+'Чт День 4 Нед 1'!T15+'Чт День 4 Нед 1'!U15+'Пт День 5 Нед 1'!O15+'Сб День 6 Нед 1'!U15+'Сб День 6 Нед 1'!V15 -> 0.0000 | F15: ='Сб День 6 Нед 1'!Y15+'Пт День 5 Нед 1'!R15+'Чт День 4 Нед 1'!X15+'Ср День 3 Нед 1'!U15+'Вт День 2 Нед 1'!W15+'Пн День 1 Нед 1'!R15 -> 0.0000 | G15: ='Сб День 6 Нед 1'!AC15+'Пт День 5 Нед 1'!V15+'Чт День 4 Нед 1'!AB15+'Ср День 3 Нед 1'!Y15+'Вт День 2 Нед 1'!AA15+'Пн День 1 Нед 1'!V15 -> 0.0000 | H15: ='Сб День 6 Нед 1'!AG15+'Пт День 5 Нед 1'!Z15+'Чт День 4 Нед 1'!AF15+'Ср День 3 Нед 1'!AC15+'Вт День 2 Нед 1'!AE15+'Пн День 1 Нед 1'!Z15 -> 0.0000 | I15: 0.000
A16: 9 | B16: катык 2,5% | C16: кг | D16: ='Пн День 1 Нед 1'!J16+'Вт День 2 Нед 1'!L16+'Ср День 3 Нед 1'!L16+'Чт День 4 Нед 1'!L16+'Чт День 4 Нед 1'!M16+'Пт День 5 Нед 1'!J16+'Сб День 6 Нед 1'!L16+'Сб День 6 Нед 1'!M16 -> 0.0000 | E16: ='Пн День 1 Нед 1'!O16+'Вт День 2 Нед 1'!T16+'Ср День 3 Нед 1'!R16+'Чт День 4 Нед 1'!T16+'Чт День 4 Нед 1'!U16+'Пт День 5 Нед 1'!O16+'Сб День 6 Нед 1'!U16+'Сб День 6 Нед 1'!V16 -> 0.0000 | F16: ='Сб День 6 Нед 1'!Y16+'Пт День 5 Нед 1'!R16+'Чт День 4 Нед 1'!X16+'Ср День 3 Нед 1'!U16+'Вт День 2 Нед 1'!W16+'Пн День 1 Нед 1'!R16 -> 0.0000 | G16: ='Сб День 6 Нед 1'!AC16+'Пт День 5 Нед 1'!V16+'Чт День 4 Нед 1'!AB16+'Ср День 3 Нед 1'!Y16+'Вт День 2 Нед 1'!AA16+'Пн День 1 Нед 1'!V16 -> 0.0000 | H16: ='Сб День 6 Нед 1'!AG16+'Пт День 5 Нед 1'!Z16+'Чт День 4 Нед 1'!AF16+'Ср День 3 Нед 1'!AC16+'Вт День 2 Нед 1'!AE16+'Пн День 1 Нед 1'!Z16 -> 0.0000 | I16: 0.000
A17: 10 | B17: кефир 2,5% | C17: кг | D17: ='Пн День 1 Нед 1'!J17+'Вт День 2 Нед 1'!L17+'Ср День 3 Нед 1'!L17+'Чт День 4 Нед 1'!L17+'Чт День 4 Нед 1'!M17+'Пт День 5 Нед 1'!J17+'Сб День 6 Нед 1'!L17+'Сб День 6 Нед 1'!M17 -> 0.0000 | E17: ='Пн День 1 Нед 1'!O17+'Вт День 2 Нед 1'!T17+'Ср День 3 Нед 1'!R17+'Чт День 4 Нед 1'!T17+'Чт День 4 Нед 1'!U17+'Пт День 5 Нед 1'!O17+'Сб День 6 Нед 1'!U17+'Сб День 6 Нед 1'!V17 -> 0.0000 | F17: ='Сб День 6 Нед 1'!Y17+'Пт День 5 Нед 1'!R17+'Чт День 4 Нед 1'!X17+'Ср День 3 Нед 1'!U17+'Вт День 2 Нед 1'!W17+'Пн День 1 Нед 1'!R17 -> 0.0000 | G17: ='Сб День 6 Нед 1'!AC17+'Пт День 5 Нед 1'!V17+'Чт День 4 Нед 1'!AB17+'Ср День 3 Нед 1'!Y17+'Вт День 2 Нед 1'!AA17+'Пн День 1 Нед 1'!V17 -> 0.0000 | H17: ='Сб День 6 Нед 1'!AG17+'Пт День 5 Нед 1'!Z17+'Чт День 4 Нед 1'!AF17+'Ср День 3 Нед 1'!AC17+'Вт День 2 Нед 1'!AE17+'Пн День 1 Нед 1'!Z17 -> 0.0000 | I17: 0.000
A18: 11 | B18: ряженка 2,5% | C18: кг | D18: ='Пн День 1 Нед 1'!J18+'Вт День 2 Нед 1'!L18+'Ср День 3 Нед 1'!L18+'Чт День 4 Нед 1'!L18+'Чт День 4 Нед 1'!M18+'Пт День 5 Нед 1'!J18+'Сб День 6 Нед 1'!L18+'Сб День 6 Нед 1'!M18 -> 0.0000 | E18: ='Пн День 1 Нед 1'!O18+'Вт День 2 Нед 1'!T18+'Ср День 3 Нед 1'!R18+'Чт День 4 Нед 1'!T18+'Чт День 4 Нед 1'!U18+'Пт День 5 Нед 1'!O18+'Сб День 6 Нед 1'!U18+'Сб День 6 Нед 1'!V18 -> 0.0000 | F18: ='Сб День 6 Нед 1'!Y18+'Пт День 5 Нед 1'!R18+'Чт День 4 Нед 1'!X18+'Ср День 3 Нед 1'!U18+'Вт День 2 Нед 1'!W18+'Пн День 1 Нед 1'!R18 -> 0.0000 | G18: ='Сб День 6 Нед 1'!AC18+'Пт День 5 Нед 1'!V18+'Чт День 4 Нед 1'!AB18+'Ср День 3 Нед 1'!Y18+'Вт День 2 Нед 1'!AA18+'Пн День 1 Нед 1'!V18 -> 0.0000 | H18: ='Сб День 6 Нед 1'!AG18+'Пт День 5 Нед 1'!Z18+'Чт День 4 Нед 1'!AF18+'Ср День 3 Нед 1'!AC18+'Вт День 2 Нед 1'!AE18+'Пн День 1 Нед 1'!Z18 -> 0.0000 | I18: 0.000
A19: 12 | B19: напиток ацидофильный | C19: кг | D19: ='Пн День 1 Нед 1'!J19+'Вт День 2 Нед 1'!L19+'Ср День 3 Нед 1'!L19+'Чт День 4 Нед 1'!L19+'Чт День 4 Нед 1'!M19+'Пт День 5 Нед 1'!J19+'Сб День 6 Нед 1'!L19+'Сб День 6 Нед 1'!M19 -> 0.0000 | E19: ='Пн День 1 Нед 1'!O19+'Вт День 2 Нед 1'!T19+'Ср День 3 Нед 1'!R19+'Чт День 4 Нед 1'!T19+'Чт День 4 Нед 1'!U19+'Пт День 5 Нед 1'!O19+'Сб День 6 Нед 1'!U19+'Сб День 6 Нед 1'!V19 -> 0.0000 | F19: ='Сб День 6 Нед 1'!Y19+'Пт День 5 Нед 1'!R19+'Чт День 4 Нед 1'!X19+'Ср День 3 Нед 1'!U19+'Вт День 2 Нед 1'!W19+'Пн День 1 Нед 1'!R19 -> 0.0000 | G19: ='Сб День 6 Нед 1'!AC19+'Пт День 5 Нед 1'!V19+'Чт День 4 Нед 1'!AB19+'Ср День 3 Нед 1'!Y19+'Вт День 2 Нед 1'!AA19+'Пн День 1 Нед 1'!V19 -> 0.0000 | H19: ='Сб День 6 Нед 1'!AG19+'Пт День 5 Нед 1'!Z19+'Чт День 4 Нед 1'!AF19+'Ср День 3 Нед 1'!AC19+'Вт День 2 Нед 1'!AE19+'Пн День 1 Нед 1'!Z19 -> 0.0000 | I19: 0.000
B20: Масло / сыр
A21: 13 | B21: масло растительное | C21: кг | D21: ='Пн День 1 Нед 1'!J21+'Вт День 2 Нед 1'!L21+'Ср День 3 Нед 1'!L21+'Чт День 4 Нед 1'!L21+'Чт День 4 Нед 1'!M21+'Пт День 5 Нед 1'!J21+'Сб День 6 Нед 1'!L21+'Сб День 6 Нед 1'!M21 -> 0.0253 | E21: ='Пн День 1 Нед 1'!O21+'Вт День 2 Нед 1'!T21+'Ср День 3 Нед 1'!R21+'Чт День 4 Нед 1'!T21+'Чт День 4 Нед 1'!U21+'Пт День 5 Нед 1'!O21+'Сб День 6 Нед 1'!U21+'Сб День 6 Нед 1'!V21 -> 0.0303 | F21: ='Сб День 6 Нед 1'!Y21+'Пт День 5 Нед 1'!R21+'Чт День 4 Нед 1'!X21+'Ср День 3 Нед 1'!U21+'Вт День 2 Нед 1'!W21+'Пн День 1 Нед 1'!R21 -> 0.0000 | G21: ='Сб День 6 Нед 1'!AC21+'Пт День 5 Нед 1'!V21+'Чт День 4 Нед 1'!AB21+'Ср День 3 Нед 1'!Y21+'Вт День 2 Нед 1'!AA21+'Пн День 1 Нед 1'!V21 -> 0.0000 | H21: ='Сб День 6 Нед 1'!AG21+'Пт День 5 Нед 1'!Z21+'Чт День 4 Нед 1'!AF21+'Ср День 3 Нед 1'!AC21+'Вт День 2 Нед 1'!AE21+'Пн День 1 Нед 1'!Z21 -> 0.0255 | I21: 0.081
A22: 14 | B22: масло сливочное | C22: кг | D22: ='Пн День 1 Нед 1'!J22+'Вт День 2 Нед 1'!L22+'Ср День 3 Нед 1'!L22+'Чт День 4 Нед 1'!L22+'Чт День 4 Нед 1'!M22+'Пт День 5 Нед 1'!J22+'Сб День 6 Нед 1'!L22+'Сб День 6 Нед 1'!M22 -> 0.0295 | E22: ='Пн День 1 Нед 1'!O22+'Вт День 2 Нед 1'!T22+'Ср День 3 Нед 1'!R22+'Чт День 4 Нед 1'!T22+'Чт День 4 Нед 1'!U22+'Пт День 5 Нед 1'!O22+'Сб День 6 Нед 1'!U22+'Сб День 6 Нед 1'!V22 -> 0.0255 | F22: ='Сб День 6 Нед 1'!Y22+'Пт День 5 Нед 1'!R22+'Чт День 4 Нед 1'!X22+'Ср День 3 Нед 1'!U22+'Вт День 2 Нед 1'!W22+'Пн День 1 Нед 1'!R22 -> 0.0000 | G22: ='Сб День 6 Нед 1'!AC22+'Пт День 5 Нед 1'!V22+'Чт День 4 Нед 1'!AB22+'Ср День 3 Нед 1'!Y22+'Вт День 2 Нед 1'!AA22+'Пн День 1 Нед 1'!V22 -> 0.0000 | H22: ='Сб День 6 Нед 1'!AG22+'Пт День 5 Нед 1'!Z22+'Чт День 4 Нед 1'!AF22+'Ср День 3 Нед 1'!AC22+'Вт День 2 Нед 1'!AE22+'Пн День 1 Нед 1'!Z22 -> 0.0000 | I22: 0.055
A23: 15 | B23: сыр голландский | C23: кг | D23: ='Пн День 1 Нед 1'!J23+'Вт День 2 Нед 1'!L23+'Ср День 3 Нед 1'!L23+'Чт День 4 Нед 1'!L23+'Чт День 4 Нед 1'!M23+'Пт День 5 Нед 1'!J23+'Сб День 6 Нед 1'!L23+'Сб День 6 Нед 1'!M23 -> 0.0000 | E23: ='Пн День 1 Нед 1'!O23+'Вт День 2 Нед 1'!T23+'Ср День 3 Нед 1'!R23+'Чт День 4 Нед 1'!T23+'Чт День 4 Нед 1'!U23+'Пт День 5 Нед 1'!O23+'Сб День 6 Нед 1'!U23+'Сб День 6 Нед 1'!V23 -> 0.0000 | F23: ='Сб День 6 Нед 1'!Y23+'Пт День 5 Нед 1'!R23+'Чт День 4 Нед 1'!X23+'Ср День 3 Нед 1'!U23+'Вт День 2 Нед 1'!W23+'Пн День 1 Нед 1'!R23 -> 0.0000 | G23: ='Сб День 6 Нед 1'!AC23+'Пт День 5 Нед 1'!V23+'Чт День 4 Нед 1'!AB23+'Ср День 3 Нед 1'!Y23+'Вт День 2 Нед 1'!AA23+'Пн День 1 Нед 1'!V23 -> 0.0000 | H23: ='Сб День 6 Нед 1'!AG23+'Пт День 5 Нед 1'!Z23+'Чт День 4 Нед 1'!AF23+'Ср День 3 Нед 1'!AC23+'Вт День 2 Нед 1'!AE23+'Пн День 1 Нед 1'!Z23 -> 0.0000 | I23: 0.000
B24: Мясо
A25: 16 | B25: говядина (котлетное мясо) | C25: кг | D25: ='Пн День 1 Нед 1'!J25+'Вт День 2 Нед 1'!L25+'Ср День 3 Нед 1'!L25+'Чт День 4 Нед 1'!L25+'Чт День 4 Нед 1'!M25+'Пт День 5 Нед 1'!J25+'Сб День 6 Нед 1'!L25+'Сб День 6 Нед 1'!M25 -> 0.0000 | E25: ='Пн День 1 Нед 1'!O25+'Вт День 2 Нед 1'!T25+'Ср День 3 Нед 1'!R25+'Чт День 4 Нед 1'!T25+'Чт День 4 Нед 1'!U25+'Пт День 5 Нед 1'!O25+'Сб День 6 Нед 1'!U25+'Сб День 6 Нед 1'!V25 -> 0.0000 | F25: ='Сб День 6 Нед 1'!Y25+'Пт День 5 Нед 1'!R25+'Чт День 4 Нед 1'!X25+'Ср День 3 Нед 1'!U25+'Вт День 2 Нед 1'!W25+'Пн День 1 Нед 1'!R25 -> 0.0000 | G25: ='Сб День 6 Нед 1'!AC25+'Пт День 5 Нед 1'!V25+'Чт День 4 Нед 1'!AB25+'Ср День 3 Нед 1'!Y25+'Вт День 2 Нед 1'!AA25+'Пн День 1 Нед 1'!V25 -> 0.0000 | H25: ='Сб День 6 Нед 1'!AG25+'Пт День 5 Нед 1'!Z25+'Чт День 4 Нед 1'!AF25+'Ср День 3 Нед 1'!AC25+'Вт День 2 Нед 1'!AE25+'Пн День 1 Нед 1'!Z25 -> 0.0000 | I25: 0.000
A26: 17 | B26: фарш говяжий | C26: кг | D26: ='Пн День 1 Нед 1'!J26+'Вт День 2 Нед 1'!L26+'Ср День 3 Нед 1'!L26+'Чт День 4 Нед 1'!L26+'Чт День 4 Нед 1'!M26+'Пт День 5 Нед 1'!J26+'Сб День 6 Нед 1'!L26+'Сб День 6 Нед 1'!M26 -> 0.0380 | E26: ='Пн День 1 Нед 1'!O26+'Вт День 2 Нед 1'!T26+'Ср День 3 Нед 1'!R26+'Чт День 4 Нед 1'!T26+'Чт День 4 Нед 1'!U26+'Пт День 5 Нед 1'!O26+'Сб День 6 Нед 1'!U26+'Сб День 6 Нед 1'!V26 -> 0.0380 | F26: ='Сб День 6 Нед 1'!Y26+'Пт День 5 Нед 1'!R26+'Чт День 4 Нед 1'!X26+'Ср День 3 Нед 1'!U26+'Вт День 2 Нед 1'!W26+'Пн День 1 Нед 1'!R26 -> 0.0000 | G26: ='Сб День 6 Нед 1'!AC26+'Пт День 5 Нед 1'!V26+'Чт День 4 Нед 1'!AB26+'Ср День 3 Нед 1'!Y26+'Вт День 2 Нед 1'!AA26+'Пн День 1 Нед 1'!V26 -> 0.0000 | H26: ='Сб День 6 Нед 1'!AG26+'Пт День 5 Нед 1'!Z26+'Чт День 4 Нед 1'!AF26+'Ср День 3 Нед 1'!AC26+'Вт День 2 Нед 1'!AE26+'Пн День 1 Нед 1'!Z26 -> 0.0239 | I26: 0.100
A27: 18 | B27: говядина лопатка б/к | C27: кг | D27: ='Пн День 1 Нед 1'!J27+'Вт День 2 Нед 1'!L27+'Ср День 3 Нед 1'!L27+'Чт День 4 Нед 1'!L27+'Чт День 4 Нед 1'!M27+'Пт День 5 Нед 1'!J27+'Сб День 6 Нед 1'!L27+'Сб День 6 Нед 1'!M27 -> 0.0000 | E27: ='Пн День 1 Нед 1'!O27+'Вт День 2 Нед 1'!T27+'Ср День 3 Нед 1'!R27+'Чт День 4 Нед 1'!T27+'Чт День 4 Нед 1'!U27+'Пт День 5 Нед 1'!O27+'Сб День 6 Нед 1'!U27+'Сб День 6 Нед 1'!V27 -> 0.0000 | F27: ='Сб День 6 Нед 1'!Y27+'Пт День 5 Нед 1'!R27+'Чт День 4 Нед 1'!X27+'Ср День 3 Нед 1'!U27+'Вт День 2 Нед 1'!W27+'Пн День 1 Нед 1'!R27 -> 0.0000 | G27: ='Сб День 6 Нед 1'!AC27+'Пт День 5 Нед 1'!V27+'Чт День 4 Нед 1'!AB27+'Ср День 3 Нед 1'!Y27+'Вт День 2 Нед 1'!AA27+'Пн День 1 Нед 1'!V27 -> 0.0000 | H27: ='Сб День 6 Нед 1'!AG27+'Пт День 5 Нед 1'!Z27+'Чт День 4 Нед 1'!AF27+'Ср День 3 Нед 1'!AC27+'Вт День 2 Нед 1'!AE27+'Пн День 1 Нед 1'!Z27 -> 0.0000 | I27: 0.000
A28: 19 | B28: сосиски | C28: кг | D28: ='Пн День 1 Нед 1'!J28+'Вт День 2 Нед 1'!L28+'Ср День 3 Нед 1'!L28+'Чт День 4 Нед 1'!L28+'Чт День 4 Нед 1'!M28+'Пт День 5 Нед 1'!J28+'Сб День 6 Нед 1'!L28+'Сб День 6 Нед 1'!M28 -> 0.1020 | E28: ='Пн День 1 Нед 1'!O28+'Вт День 2 Нед 1'!T28+'Ср День 3 Нед 1'!R28+'Чт День 4 Нед 1'!T28+'Чт День 4 Нед 1'!U28+'Пт День 5 Нед 1'!O28+'Сб День 6 Нед 1'!U28+'Сб День 6 Нед 1'!V28 -> 0.1020 | F28: ='Сб День 6 Нед 1'!Y28+'Пт День 5 Нед 1'!R28+'Чт День 4 Нед 1'!X28+'Ср День 3 Нед 1'!U28+'Вт День 2 Нед 1'!W28+'Пн День 1 Нед 1'!R28 -> 0.0000 | G28: ='Сб День 6 Нед 1'!AC28+'Пт День 5 Нед 1'!V28+'Чт День 4 Нед 1'!AB28+'Ср День 3 Нед 1'!Y28+'Вт День 2 Нед 1'!AA28+'Пн День 1 Нед 1'!V28 -> 0.0000 | H28: ='Сб День 6 Нед 1'!AG28+'Пт День 5 Нед 1'!Z28+'Чт День 4 Нед 1'!AF28+'Ср День 3 Нед 1'!AC28+'Вт День 2 Нед 1'!AE28+'Пн День 1 Нед 1'!Z28 -> 0.0000 | I28: 0.204
A29: 20 | B29: колбаса п/к Халяль | C29: кг | D29: ='Пн День 1 Нед 1'!J29+'Вт День 2 Нед 1'!L29+'Ср День 3 Нед 1'!L29+'Чт День 4 Нед 1'!L29+'Чт День 4 Нед 1'!M29+'Пт День 5 Нед 1'!J29+'Сб День 6 Нед 1'!L29+'Сб День 6 Нед 1'!M29 -> 0.0000 | E29: ='Пн День 1 Нед 1'!O29+'Вт День 2 Нед 1'!T29+'Ср День 3 Нед 1'!R29+'Чт День 4 Нед 1'!T29+'Чт День 4 Нед 1'!U29+'Пт День 5 Нед 1'!O29+'Сб День 6 Нед 1'!U29+'Сб День 6 Нед 1'!V29 -> 0.0000 | F29: ='Сб День 6 Нед 1'!Y29+'Пт День 5 Нед 1'!R29+'Чт День 4 Нед 1'!X29+'Ср День 3 Нед 1'!U29+'Вт День 2 Нед 1'!W29+'Пн День 1 Нед 1'!R29 -> 0.0000 | G29: ='Сб День 6 Нед 1'!AC29+'Пт День 5 Нед 1'!V29+'Чт День 4 Нед 1'!AB29+'Ср День 3 Нед 1'!Y29+'Вт День 2 Нед 1'!AA29+'Пн День 1 Нед 1'!V29 -> 0.0000 | H29: ='Сб День 6 Нед 1'!AG29+'Пт День 5 Нед 1'!Z29+'Чт День 4 Нед 1'!AF29+'Ср День 3 Нед 1'!AC29+'Вт День 2 Нед 1'!AE29+'Пн День 1 Нед 1'!Z29 -> 0.0000 | I29: 0.000
A30: 21 | B30: куриное бедро | C30: кг | D30: ='Пн День 1 Нед 1'!J30+'Вт День 2 Нед 1'!L30+'Ср День 3 Нед 1'!L30+'Чт День 4 Нед 1'!L30+'Чт День 4 Нед 1'!M30+'Пт День 5 Нед 1'!J30+'Сб День 6 Нед 1'!L30+'Сб День 6 Нед 1'!M30 -> 0.0000 | E30: ='Пн День 1 Нед 1'!O30+'Вт День 2 Нед 1'!T30+'Ср День 3 Нед 1'!R30+'Чт День 4 Нед 1'!T30+'Чт День 4 Нед 1'!U30+'Пт День 5 Нед 1'!O30+'Сб День 6 Нед 1'!U30+'Сб День 6 Нед 1'!V30 -> 0.0000 | F30: ='Сб День 6 Нед 1'!Y30+'Пт День 5 Нед 1'!R30+'Чт День 4 Нед 1'!X30+'Ср День 3 Нед 1'!U30+'Вт День 2 Нед 1'!W30+'Пн День 1 Нед 1'!R30 -> 0.0000 | G30: ='Сб День 6 Нед 1'!AC30+'Пт День 5 Нед 1'!V30+'Чт День 4 Нед 1'!AB30+'Ср День 3 Нед 1'!Y30+'Вт День 2 Нед 1'!AA30+'Пн День 1 Нед 1'!V30 -> 0.0000 | H30: ='Сб День 6 Нед 1'!AG30+'Пт День 5 Нед 1'!Z30+'Чт День 4 Нед 1'!AF30+'Ср День 3 Нед 1'!AC30+'Вт День 2 Нед 1'!AE30+'Пн День 1 Нед 1'!Z30 -> 0.0000 | I30: 0.000
A31: 22 | B31: куриная грудка | C31: кг | D31: ='Пн День 1 Нед 1'!J31+'Вт День 2 Нед 1'!L31+'Ср День 3 Нед 1'!L31+'Чт День 4 Нед 1'!L31+'Чт День 4 Нед 1'!M31+'Пт День 5 Нед 1'!J31+'Сб День 6 Нед 1'!L31+'Сб День 6 Нед 1'!M31 -> 0.0812 | E31: ='Пн День 1 Нед 1'!O31+'Вт День 2 Нед 1'!T31+'Ср День 3 Нед 1'!R31+'Чт День 4 Нед 1'!T31+'Чт День 4 Нед 1'!U31+'Пт День 5 Нед 1'!O31+'Сб День 6 Нед 1'!U31+'Сб День 6 Нед 1'!V31 -> 0.0812 | F31: ='Сб День 6 Нед 1'!Y31+'Пт День 5 Нед 1'!R31+'Чт День 4 Нед 1'!X31+'Ср День 3 Нед 1'!U31+'Вт День 2 Нед 1'!W31+'Пн День 1 Нед 1'!R31 -> 0.0000 | G31: ='Сб День 6 Нед 1'!AC31+'Пт День 5 Нед 1'!V31+'Чт День 4 Нед 1'!AB31+'Ср День 3 Нед 1'!Y31+'Вт День 2 Нед 1'!AA31+'Пн День 1 Нед 1'!V31 -> 0.0000 | H31: ='Сб День 6 Нед 1'!AG31+'Пт День 5 Нед 1'!Z31+'Чт День 4 Нед 1'!AF31+'Ср День 3 Нед 1'!AC31+'Вт День 2 Нед 1'!AE31+'Пн День 1 Нед 1'!Z31 -> 0.0588 | I31: 0.221
A32: 23 | B32: куры/цыплята потрош | C32: кг | D32: ='Пн День 1 Нед 1'!J32+'Вт День 2 Нед 1'!L32+'Ср День 3 Нед 1'!L32+'Чт День 4 Нед 1'!L32+'Чт День 4 Нед 1'!M32+'Пт День 5 Нед 1'!J32+'Сб День 6 Нед 1'!L32+'Сб День 6 Нед 1'!M32 -> 0.0000 | E32: ='Пн День 1 Нед 1'!O32+'Вт День 2 Нед 1'!T32+'Ср День 3 Нед 1'!R32+'Чт День 4 Нед 1'!T32+'Чт День 4 Нед 1'!U32+'Пт День 5 Нед 1'!O32+'Сб День 6 Нед 1'!U32+'Сб День 6 Нед 1'!V32 -> 0.0000 | F32: ='Сб День 6 Нед 1'!Y32+'Пт День 5 Нед 1'!R32+'Чт День 4 Нед 1'!X32+'Ср День 3 Нед 1'!U32+'Вт День 2 Нед 1'!W32+'Пн День 1 Нед 1'!R32 -> 0.0000 | G32: ='Сб День 6 Нед 1'!AC32+'Пт День 5 Нед 1'!V32+'Чт День 4 Нед 1'!AB32+'Ср День 3 Нед 1'!Y32+'Вт День 2 Нед 1'!AA32+'Пн День 1 Нед 1'!V32 -> 0.0000 | H32: ='Сб День 6 Нед 1'!AG32+'Пт День 5 Нед 1'!Z32+'Чт День 4 Нед 1'!AF32+'Ср День 3 Нед 1'!AC32+'Вт День 2 Нед 1'!AE32+'Пн День 1 Нед 1'!Z32 -> 0.0000 | I32: 0.000
A33: 24 | B33: фарш куриный | C33: кг | F33: ='Сб День 6 Нед 1'!Y33+'Пт День 5 Нед 1'!R33+'Чт День 4 Нед 1'!X33+'Ср День 3 Нед 1'!U33+'Вт День 2 Нед 1'!W33+'Пн День 1 Нед 1'!R33 -> 0.0000 | G33: ='Сб День 6 Нед 1'!AC33+'Пт День 5 Нед 1'!V33+'Чт День 4 Нед 1'!AB33+'Ср День 3 Нед 1'!Y33+'Вт День 2 Нед 1'!AA33+'Пн День 1 Нед 1'!V33 -> 0.0000 | H33: ='Сб День 6 Нед 1'!AG33+'Пт День 5 Нед 1'!Z33+'Чт День 4 Нед 1'!AF33+'Ср День 3 Нед 1'!AC33+'Вт День 2 Нед 1'!AE33+'Пн День 1 Нед 1'!Z33 -> 0.0000 | I33: 0.000
A34: 25 | B34: индейка бедро филе | C34: кг | D34: ='Пн День 1 Нед 1'!J34+'Вт День 2 Нед 1'!L34+'Ср День 3 Нед 1'!L34+'Чт День 4 Нед 1'!L34+'Чт День 4 Нед 1'!M34+'Пт День 5 Нед 1'!J34+'Сб День 6 Нед 1'!L34+'Сб День 6 Нед 1'!M34 -> 0.0735 | E34: ='Пн День 1 Нед 1'!O34+'Вт День 2 Нед 1'!T34+'Ср День 3 Нед 1'!R34+'Чт День 4 Нед 1'!T34+'Чт День 4 Нед 1'!U34+'Пт День 5 Нед 1'!O34+'Сб День 6 Нед 1'!U34+'Сб День 6 Нед 1'!V34 -> 0.0735 | F34: ='Сб День 6 Нед 1'!Y34+'Пт День 5 Нед 1'!R34+'Чт День 4 Нед 1'!X34+'Ср День 3 Нед 1'!U34+'Вт День 2 Нед 1'!W34+'Пн День 1 Нед 1'!R34 -> 0.0000 | G34: ='Сб День 6 Нед 1'!AC34+'Пт День 5 Нед 1'!V34+'Чт День 4 Нед 1'!AB34+'Ср День 3 Нед 1'!Y34+'Вт День 2 Нед 1'!AA34+'Пн День 1 Нед 1'!V34 -> 0.0000 | H34: ='Сб День 6 Нед 1'!AG34+'Пт День 5 Нед 1'!Z34+'Чт День 4 Нед 1'!AF34+'Ср День 3 Нед 1'!AC34+'Вт День 2 Нед 1'!AE34+'Пн День 1 Нед 1'!Z34 -> 0.0000 | I34: 0.147
A35: 26 | B35: индейка грудка филе | C35: кг | D35: ='Пн День 1 Нед 1'!J35+'Вт День 2 Нед 1'!L35+'Ср День 3 Нед 1'!L35+'Чт День 4 Нед 1'!L35+'Чт День 4 Нед 1'!M35+'Пт День 5 Нед 1'!J35+'Сб День 6 Нед 1'!L35+'Сб День 6 Нед 1'!M35 -> 0.0000 | E35: ='Пн День 1 Нед 1'!O35+'Вт День 2 Нед 1'!T35+'Ср День 3 Нед 1'!R35+'Чт День 4 Нед 1'!T35+'Чт День 4 Нед 1'!U35+'Пт День 5 Нед 1'!O35+'Сб День 6 Нед 1'!U35+'Сб День 6 Нед 1'!V35 -> 0.0000 | F35: ='Сб День 6 Нед 1'!Y35+'Пт День 5 Нед 1'!R35+'Чт День 4 Нед 1'!X35+'Ср День 3 Нед 1'!U35+'Вт День 2 Нед 1'!W35+'Пн День 1 Нед 1'!R35 -> 0.0000 | G35: ='Сб День 6 Нед 1'!AC35+'Пт День 5 Нед 1'!V35+'Чт День 4 Нед 1'!AB35+'Ср День 3 Нед 1'!Y35+'Вт День 2 Нед 1'!AA35+'Пн День 1 Нед 1'!V35 -> 0.0000 | H35: ='Сб День 6 Нед 1'!AG35+'Пт День 5 Нед 1'!Z35+'Чт День 4 Нед 1'!AF35+'Ср День 3 Нед 1'!AC35+'Вт День 2 Нед 1'!AE35+'Пн День 1 Нед 1'!Z35 -> 0.0000 | I35: 0.000
B36: Рыба | E36: ='Пн День 1 Нед 1'!O36+'Вт День 2 Нед 1'!T36+'Ср День 3 Нед 1'!R36+'Чт День 4 Нед 1'!T36+'Чт День 4 Нед 1'!U36+'Пт День 5 Нед 1'!O36+'Сб День 6 Нед 1'!U36+'Сб День 6 Нед 1'!V36 -> 0.0000
A37: 27 | B37: горбуша ПБГ с/м | C37: кг | D37: ='Пн День 1 Нед 1'!J37+'Вт День 2 Нед 1'!L37+'Ср День 3 Нед 1'!L37+'Чт День 4 Нед 1'!L37+'Чт День 4 Нед 1'!M37+'Пт День 5 Нед 1'!J37+'Сб День 6 Нед 1'!L37+'Сб День 6 Нед 1'!M37 -> 0.0000 | E37: ='Пн День 1 Нед 1'!O37+'Вт День 2 Нед 1'!T37+'Ср День 3 Нед 1'!R37+'Чт День 4 Нед 1'!T37+'Чт День 4 Нед 1'!U37+'Пт День 5 Нед 1'!O37+'Сб День 6 Нед 1'!U37+'Сб День 6 Нед 1'!V37 -> 0.0000 | F37: ='Сб День 6 Нед 1'!Y37+'Пт День 5 Нед 1'!R37+'Чт День 4 Нед 1'!X37+'Ср День 3 Нед 1'!U37+'Вт День 2 Нед 1'!W37+'Пн День 1 Нед 1'!R37 -> 0.0000 | G37: ='Сб День 6 Нед 1'!AC37+'Пт День 5 Нед 1'!V37+'Чт День 4 Нед 1'!AB37+'Ср День 3 Нед 1'!Y37+'Вт День 2 Нед 1'!AA37+'Пн День 1 Нед 1'!V37 -> 0.0000 | H37: ='Сб День 6 Нед 1'!AG37+'Пт День 5 Нед 1'!Z37+'Чт День 4 Нед 1'!AF37+'Ср День 3 Нед 1'!AC37+'Вт День 2 Нед 1'!AE37+'Пн День 1 Нед 1'!Z37 -> 0.0000 | I37: 0.000
A38: 28 | B38: минтай б/г с/м | C38: кг | D38: ='Пн День 1 Нед 1'!J38+'Вт День 2 Нед 1'!L38+'Ср День 3 Нед 1'!L38+'Чт День 4 Нед 1'!L38+'Чт День 4 Нед 1'!M38+'Пт День 5 Нед 1'!J38+'Сб День 6 Нед 1'!L38+'Сб День 6 Нед 1'!M38 -> 0.0776 | E38: ='Пн День 1 Нед 1'!O38+'Вт День 2 Нед 1'!T38+'Ср День 3 Нед 1'!R38+'Чт День 4 Нед 1'!T38+'Чт День 4 Нед 1'!U38+'Пт День 5 Нед 1'!O38+'Сб День 6 Нед 1'!U38+'Сб День 6 Нед 1'!V38 -> 0.0776 | F38: ='Сб День 6 Нед 1'!Y38+'Пт День 5 Нед 1'!R38+'Чт День 4 Нед 1'!X38+'Ср День 3 Нед 1'!U38+'Вт День 2 Нед 1'!W38+'Пн День 1 Нед 1'!R38 -> 0.0000 | G38: ='Сб День 6 Нед 1'!AC38+'Пт День 5 Нед 1'!V38+'Чт День 4 Нед 1'!AB38+'Ср День 3 Нед 1'!Y38+'Вт День 2 Нед 1'!AA38+'Пн День 1 Нед 1'!V38 -> 0.0000 | H38: ='Сб День 6 Нед 1'!AG38+'Пт День 5 Нед 1'!Z38+'Чт День 4 Нед 1'!AF38+'Ср День 3 Нед 1'!AC38+'Вт День 2 Нед 1'!AE38+'Пн День 1 Нед 1'!Z38 -> 0.0000 | I38: 0.155
A39: 29 | B39: фарш минтая | C39: кг | D39: ='Пн День 1 Нед 1'!J39+'Вт День 2 Нед 1'!L39+'Ср День 3 Нед 1'!L39+'Чт День 4 Нед 1'!L39+'Чт День 4 Нед 1'!M39+'Пт День 5 Нед 1'!J39+'Сб День 6 Нед 1'!L39+'Сб День 6 Нед 1'!M39 -> 0.0591 | E39: ='Пн День 1 Нед 1'!O39+'Вт День 2 Нед 1'!T39+'Ср День 3 Нед 1'!R39+'Чт День 4 Нед 1'!T39+'Чт День 4 Нед 1'!U39+'Пт День 5 Нед 1'!O39+'Сб День 6 Нед 1'!U39+'Сб День 6 Нед 1'!V39 -> 0.0591 | F39: ='Сб День 6 Нед 1'!Y39+'Пт День 5 Нед 1'!R39+'Чт День 4 Нед 1'!X39+'Ср День 3 Нед 1'!U39+'Вт День 2 Нед 1'!W39+'Пн День 1 Нед 1'!R39 -> 0.0000 | G39: ='Сб День 6 Нед 1'!AC39+'Пт День 5 Нед 1'!V39+'Чт День 4 Нед 1'!AB39+'Ср День 3 Нед 1'!Y39+'Вт День 2 Нед 1'!AA39+'Пн День 1 Нед 1'!V39 -> 0.0000 | H39: ='Сб День 6 Нед 1'!AG39+'Пт День 5 Нед 1'!Z39+'Чт День 4 Нед 1'!AF39+'Ср День 3 Нед 1'!AC39+'Вт День 2 Нед 1'!AE39+'Пн День 1 Нед 1'!Z39 -> 0.0000 | I39: 0.118
B40: Сыпучка
A41: 30 | B41: вермишель | C41: кг | D41: ='Пн День 1 Нед 1'!J41+'Вт День 2 Нед 1'!L41+'Ср День 3 Нед 1'!L41+'Чт День 4 Нед 1'!L41+'Чт День 4 Нед 1'!M41+'Пт День 5 Нед 1'!J41+'Сб День 6 Нед 1'!L41+'Сб День 6 Нед 1'!M41 -> 0.0000 | E41: ='Пн День 1 Нед 1'!O41+'Вт День 2 Нед 1'!T41+'Ср День 3 Нед 1'!R41+'Чт День 4 Нед 1'!T41+'Чт День 4 Нед 1'!U41+'Пт День 5 Нед 1'!O41+'Сб День 6 Нед 1'!U41+'Сб День 6 Нед 1'!V41 -> 0.0000 | F41: ='Сб День 6 Нед 1'!Y41+'Пт День 5 Нед 1'!R41+'Чт День 4 Нед 1'!X41+'Ср День 3 Нед 1'!U41+'Вт День 2 Нед 1'!W41+'Пн День 1 Нед 1'!R41 -> 0.0000 | G41: ='Сб День 6 Нед 1'!AC41+'Пт День 5 Нед 1'!V41+'Чт День 4 Нед 1'!AB41+'Ср День 3 Нед 1'!Y41+'Вт День 2 Нед 1'!AA41+'Пн День 1 Нед 1'!V41 -> 0.0000 | H41: ='Сб День 6 Нед 1'!AG41+'Пт День 5 Нед 1'!Z41+'Чт День 4 Нед 1'!AF41+'Ср День 3 Нед 1'!AC41+'Вт День 2 Нед 1'!AE41+'Пн День 1 Нед 1'!Z41 -> 0.0000 | I41: 0.000
A42: 31 | B42: геркулес | C42: кг | D42: ='Пн День 1 Нед 1'!J42+'Вт День 2 Нед 1'!L42+'Ср День 3 Нед 1'!L42+'Чт День 4 Нед 1'!L42+'Чт День 4 Нед 1'!M42+'Пт День 5 Нед 1'!J42+'Сб День 6 Нед 1'!L42+'Сб День 6 Нед 1'!M42 -> 0.0000 | E42: ='Пн День 1 Нед 1'!O42+'Вт День 2 Нед 1'!T42+'Ср День 3 Нед 1'!R42+'Чт День 4 Нед 1'!T42+'Чт День 4 Нед 1'!U42+'Пт День 5 Нед 1'!O42+'Сб День 6 Нед 1'!U42+'Сб День 6 Нед 1'!V42 -> 0.0000 | F42: ='Сб День 6 Нед 1'!Y42+'Пт День 5 Нед 1'!R42+'Чт День 4 Нед 1'!X42+'Ср День 3 Нед 1'!U42+'Вт День 2 Нед 1'!W42+'Пн День 1 Нед 1'!R42 -> 0.0000 | G42: ='Сб День 6 Нед 1'!AC42+'Пт День 5 Нед 1'!V42+'Чт День 4 Нед 1'!AB42+'Ср День 3 Нед 1'!Y42+'Вт День 2 Нед 1'!AA42+'Пн День 1 Нед 1'!V42 -> 0.0000 | H42: ='Сб День 6 Нед 1'!AG42+'Пт День 5 Нед 1'!Z42+'Чт День 4 Нед 1'!AF42+'Ср День 3 Нед 1'!AC42+'Вт День 2 Нед 1'!AE42+'Пн День 1 Нед 1'!Z42 -> 0.0000 | I42: 0.000
A43: 32 | B43: горох | C43: кг | D43: ='Пн День 1 Нед 1'!J43+'Вт День 2 Нед 1'!L43+'Ср День 3 Нед 1'!L43+'Чт День 4 Нед 1'!L43+'Чт День 4 Нед 1'!M43+'Пт День 5 Нед 1'!J43+'Сб День 6 Нед 1'!L43+'Сб День 6 Нед 1'!M43 -> 0.0000 | E43: ='Пн День 1 Нед 1'!O43+'Вт День 2 Нед 1'!T43+'Ср День 3 Нед 1'!R43+'Чт День 4 Нед 1'!T43+'Чт День 4 Нед 1'!U43+'Пт День 5 Нед 1'!O43+'Сб День 6 Нед 1'!U43+'Сб День 6 Нед 1'!V43 -> 0.0000 | F43: ='Сб День 6 Нед 1'!Y43+'Пт День 5 Нед 1'!R43+'Чт День 4 Нед 1'!X43+'Ср День 3 Нед 1'!U43+'Вт День 2 Нед 1'!W43+'Пн День 1 Нед 1'!R43 -> 0.0000 | G43: ='Сб День 6 Нед 1'!AC43+'Пт День 5 Нед 1'!V43+'Чт День 4 Нед 1'!AB43+'Ср День 3 Нед 1'!Y43+'Вт День 2 Нед 1'!AA43+'Пн День 1 Нед 1'!V43 -> 0.0000 | H43: ='Сб День 6 Нед 1'!AG43+'Пт День 5 Нед 1'!Z43+'Чт День 4 Нед 1'!AF43+'Ср День 3 Нед 1'!AC43+'Вт День 2 Нед 1'!AE43+'Пн День 1 Нед 1'!Z43 -> 0.0000 | I43: 0.000
A44: 33 | B44: гречневая крупа | C44: кг | D44: ='Пн День 1 Нед 1'!J44+'Вт День 2 Нед 1'!L44+'Ср День 3 Нед 1'!L44+'Чт День 4 Нед 1'!L44+'Чт День 4 Нед 1'!M44+'Пт День 5 Нед 1'!J44+'Сб День 6 Нед 1'!L44+'Сб День 6 Нед 1'!M44 -> 0.1440 | E44: ='Пн День 1 Нед 1'!O44+'Вт День 2 Нед 1'!T44+'Ср День 3 Нед 1'!R44+'Чт День 4 Нед 1'!T44+'Чт День 4 Нед 1'!U44+'Пт День 5 Нед 1'!O44+'Сб День 6 Нед 1'!U44+'Сб День 6 Нед 1'!V44 -> 0.1440 | F44: ='Сб День 6 Нед 1'!Y44+'Пт День 5 Нед 1'!R44+'Чт День 4 Нед 1'!X44+'Ср День 3 Нед 1'!U44+'Вт День 2 Нед 1'!W44+'Пн День 1 Нед 1'!R44 -> 0.0000 | G44: ='Сб День 6 Нед 1'!AC44+'Пт День 5 Нед 1'!V44+'Чт День 4 Нед 1'!AB44+'Ср День 3 Нед 1'!Y44+'Вт День 2 Нед 1'!AA44+'Пн День 1 Нед 1'!V44 -> 0.0000 | H44: ='Сб День 6 Нед 1'!AG44+'Пт День 5 Нед 1'!Z44+'Чт День 4 Нед 1'!AF44+'Ср День 3 Нед 1'!AC44+'Вт День 2 Нед 1'!AE44+'Пн День 1 Нед 1'!Z44 -> 0.0000 | I44: 0.288
A45: 34 | B45: кукурузная крупа | C45: кг | D45: ='Пн День 1 Нед 1'!J45+'Вт День 2 Нед 1'!L45+'Ср День 3 Нед 1'!L45+'Чт День 4 Нед 1'!L45+'Чт День 4 Нед 1'!M45+'Пт День 5 Нед 1'!J45+'Сб День 6 Нед 1'!L45+'Сб День 6 Нед 1'!M45 -> 0.0000 | E45: ='Пн День 1 Нед 1'!O45+'Вт День 2 Нед 1'!T45+'Ср День 3 Нед 1'!R45+'Чт День 4 Нед 1'!T45+'Чт День 4 Нед 1'!U45+'Пт День 5 Нед 1'!O45+'Сб День 6 Нед 1'!U45+'Сб День 6 Нед 1'!V45 -> 0.0000 | F45: ='Сб День 6 Нед 1'!Y45+'Пт День 5 Нед 1'!R45+'Чт День 4 Нед 1'!X45+'Ср День 3 Нед 1'!U45+'Вт День 2 Нед 1'!W45+'Пн День 1 Нед 1'!R45 -> 0.0000 | G45: ='Сб День 6 Нед 1'!AC45+'Пт День 5 Нед 1'!V45+'Чт День 4 Нед 1'!AB45+'Ср День 3 Нед 1'!Y45+'Вт День 2 Нед 1'!AA45+'Пн День 1 Нед 1'!V45 -> 0.0000 | H45: ='Сб День 6 Нед 1'!AG45+'Пт День 5 Нед 1'!Z45+'Чт День 4 Нед 1'!AF45+'Ср День 3 Нед 1'!AC45+'Вт День 2 Нед 1'!AE45+'Пн День 1 Нед 1'!Z45 -> 0.0000 | I45: 0.000
A46: 35 | B46: макаронные изделия | C46: кг | D46: ='Пн День 1 Нед 1'!J46+'Вт День 2 Нед 1'!L46+'Ср День 3 Нед 1'!L46+'Чт День 4 Нед 1'!L46+'Чт День 4 Нед 1'!M46+'Пт День 5 Нед 1'!J46+'Сб День 6 Нед 1'!L46+'Сб День 6 Нед 1'!M46 -> 0.0000 | E46: ='Пн День 1 Нед 1'!O46+'Вт День 2 Нед 1'!T46+'Ср День 3 Нед 1'!R46+'Чт День 4 Нед 1'!T46+'Чт День 4 Нед 1'!U46+'Пт День 5 Нед 1'!O46+'Сб День 6 Нед 1'!U46+'Сб День 6 Нед 1'!V46 -> 0.1420 | F46: ='Сб День 6 Нед 1'!Y46+'Пт День 5 Нед 1'!R46+'Чт День 4 Нед 1'!X46+'Ср День 3 Нед 1'!U46+'Вт День 2 Нед 1'!W46+'Пн День 1 Нед 1'!R46 -> 0.0000 | G46: ='Сб День 6 Нед 1'!AC46+'Пт День 5 Нед 1'!V46+'Чт День 4 Нед 1'!AB46+'Ср День 3 Нед 1'!Y46+'Вт День 2 Нед 1'!AA46+'Пн День 1 Нед 1'!V46 -> 0.0000 | H46: ='Сб День 6 Нед 1'!AG46+'Пт День 5 Нед 1'!Z46+'Чт День 4 Нед 1'!AF46+'Ср День 3 Нед 1'!AC46+'Вт День 2 Нед 1'!AE46+'Пн День 1 Нед 1'!Z46 -> 0.0000 | I46: 0.142
A47: 36 | B47: манная крупа | C47: кг | D47: ='Пн День 1 Нед 1'!J47+'Вт День 2 Нед 1'!L47+'Ср День 3 Нед 1'!L47+'Чт День 4 Нед 1'!L47+'Чт День 4 Нед 1'!M47+'Пт День 5 Нед 1'!J47+'Сб День 6 Нед 1'!L47+'Сб День 6 Нед 1'!M47 -> 0.0000 | E47: ='Пн День 1 Нед 1'!O47+'Вт День 2 Нед 1'!T47+'Ср День 3 Нед 1'!R47+'Чт День 4 Нед 1'!T47+'Чт День 4 Нед 1'!U47+'Пт День 5 Нед 1'!O47+'Сб День 6 Нед 1'!U47+'Сб День 6 Нед 1'!V47 -> 0.0000 | F47: ='Сб День 6 Нед 1'!Y47+'Пт День 5 Нед 1'!R47+'Чт День 4 Нед 1'!X47+'Ср День 3 Нед 1'!U47+'Вт День 2 Нед 1'!W47+'Пн День 1 Нед 1'!R47 -> 0.0000 | G47: ='Сб День 6 Нед 1'!AC47+'Пт День 5 Нед 1'!V47+'Чт День 4 Нед 1'!AB47+'Ср День 3 Нед 1'!Y47+'Вт День 2 Нед 1'!AA47+'Пн День 1 Нед 1'!V47 -> 0.0000 | H47: ='Сб День 6 Нед 1'!AG47+'Пт День 5 Нед 1'!Z47+'Чт День 4 Нед 1'!AF47+'Ср День 3 Нед 1'!AC47+'Вт День 2 Нед 1'!AE47+'Пн День 1 Нед 1'!Z47 -> 0.0000 | I47: 0.000
A48: 37 | B48: перловая крупа | C48: кг | D48: ='Пн День 1 Нед 1'!J48+'Вт День 2 Нед 1'!L48+'Ср День 3 Нед 1'!L48+'Чт День 4 Нед 1'!L48+'Чт День 4 Нед 1'!M48+'Пт День 5 Нед 1'!J48+'Сб День 6 Нед 1'!L48+'Сб День 6 Нед 1'!M48 -> 0.0000 | E48: ='Пн День 1 Нед 1'!O48+'Вт День 2 Нед 1'!T48+'Ср День 3 Нед 1'!R48+'Чт День 4 Нед 1'!T48+'Чт День 4 Нед 1'!U48+'Пт День 5 Нед 1'!O48+'Сб День 6 Нед 1'!U48+'Сб День 6 Нед 1'!V48 -> 0.0000 | F48: ='Сб День 6 Нед 1'!Y48+'Пт День 5 Нед 1'!R48+'Чт День 4 Нед 1'!X48+'Ср День 3 Нед 1'!U48+'Вт День 2 Нед 1'!W48+'Пн День 1 Нед 1'!R48 -> 0.0000 | G48: ='Сб День 6 Нед 1'!AC48+'Пт День 5 Нед 1'!V48+'Чт День 4 Нед 1'!AB48+'Ср День 3 Нед 1'!Y48+'Вт День 2 Нед 1'!AA48+'Пн День 1 Нед 1'!V48 -> 0.0000 | H48: ='Сб День 6 Нед 1'!AG48+'Пт День 5 Нед 1'!Z48+'Чт День 4 Нед 1'!AF48+'Ср День 3 Нед 1'!AC48+'Вт День 2 Нед 1'!AE48+'Пн День 1 Нед 1'!Z48 -> 0.0050 | I48: 0.005
A49: 38 | B49: полбяная крупа | C49: кг | D49: ='Пн День 1 Нед 1'!J49+'Вт День 2 Нед 1'!L49+'Ср День 3 Нед 1'!L49+'Чт День 4 Нед 1'!L49+'Чт День 4 Нед 1'!M49+'Пт День 5 Нед 1'!J49+'Сб День 6 Нед 1'!L49+'Сб День 6 Нед 1'!M49 -> 0.0000 | E49: ='Пн День 1 Нед 1'!O49+'Вт День 2 Нед 1'!T49+'Ср День 3 Нед 1'!R49+'Чт День 4 Нед 1'!T49+'Чт День 4 Нед 1'!U49+'Пт День 5 Нед 1'!O49+'Сб День 6 Нед 1'!U49+'Сб День 6 Нед 1'!V49 -> 0.0000 | F49: ='Сб День 6 Нед 1'!Y49+'Пт День 5 Нед 1'!R49+'Чт День 4 Нед 1'!X49+'Ср День 3 Нед 1'!U49+'Вт День 2 Нед 1'!W49+'Пн День 1 Нед 1'!R49 -> 0.0000 | G49: ='Сб День 6 Нед 1'!AC49+'Пт День 5 Нед 1'!V49+'Чт День 4 Нед 1'!AB49+'Ср День 3 Нед 1'!Y49+'Вт День 2 Нед 1'!AA49+'Пн День 1 Нед 1'!V49 -> 0.0000 | H49: ='Сб День 6 Нед 1'!AG49+'Пт День 5 Нед 1'!Z49+'Чт День 4 Нед 1'!AF49+'Ср День 3 Нед 1'!AC49+'Вт День 2 Нед 1'!AE49+'Пн День 1 Нед 1'!Z49 -> 0.0000 | I49: 0.000
A50: 39 | B50: пшеничная крупа | C50: кг | D50: ='Пн День 1 Нед 1'!J50+'Вт День 2 Нед 1'!L50+'Ср День 3 Нед 1'!L50+'Чт День 4 Нед 1'!L50+'Чт День 4 Нед 1'!M50+'Пт День 5 Нед 1'!J50+'Сб День 6 Нед 1'!L50+'Сб День 6 Нед 1'!M50 -> 0.0000 | E50: ='Пн День 1 Нед 1'!O50+'Вт День 2 Нед 1'!T50+'Ср День 3 Нед 1'!R50+'Чт День 4 Нед 1'!T50+'Чт День 4 Нед 1'!U50+'Пт День 5 Нед 1'!O50+'Сб День 6 Нед 1'!U50+'Сб День 6 Нед 1'!V50 -> 0.0000 | F50: ='Сб День 6 Нед 1'!Y50+'Пт День 5 Нед 1'!R50+'Чт День 4 Нед 1'!X50+'Ср День 3 Нед 1'!U50+'Вт День 2 Нед 1'!W50+'Пн День 1 Нед 1'!R50 -> 0.0000 | G50: ='Сб День 6 Нед 1'!AC50+'Пт День 5 Нед 1'!V50+'Чт День 4 Нед 1'!AB50+'Ср День 3 Нед 1'!Y50+'Вт День 2 Нед 1'!AA50+'Пн День 1 Нед 1'!V50 -> 0.0000 | H50: ='Сб День 6 Нед 1'!AG50+'Пт День 5 Нед 1'!Z50+'Чт День 4 Нед 1'!AF50+'Ср День 3 Нед 1'!AC50+'Вт День 2 Нед 1'!AE50+'Пн День 1 Нед 1'!Z50 -> 0.0000 | I50: 0.000
A51: 40 | B51: пшено | C51: кг | D51: ='Пн День 1 Нед 1'!J51+'Вт День 2 Нед 1'!L51+'Ср День 3 Нед 1'!L51+'Чт День 4 Нед 1'!L51+'Чт День 4 Нед 1'!M51+'Пт День 5 Нед 1'!J51+'Сб День 6 Нед 1'!L51+'Сб День 6 Нед 1'!M51 -> 0.0145 | E51: ='Пн День 1 Нед 1'!O51+'Вт День 2 Нед 1'!T51+'Ср День 3 Нед 1'!R51+'Чт День 4 Нед 1'!T51+'Чт День 4 Нед 1'!U51+'Пт День 5 Нед 1'!O51+'Сб День 6 Нед 1'!U51+'Сб День 6 Нед 1'!V51 -> 0.0100 | F51: ='Сб День 6 Нед 1'!Y51+'Пт День 5 Нед 1'!R51+'Чт День 4 Нед 1'!X51+'Ср День 3 Нед 1'!U51+'Вт День 2 Нед 1'!W51+'Пн День 1 Нед 1'!R51 -> 0.0000 | G51: ='Сб День 6 Нед 1'!AC51+'Пт День 5 Нед 1'!V51+'Чт День 4 Нед 1'!AB51+'Ср День 3 Нед 1'!Y51+'Вт День 2 Нед 1'!AA51+'Пн День 1 Нед 1'!V51 -> 0.0000 | H51: ='Сб День 6 Нед 1'!AG51+'Пт День 5 Нед 1'!Z51+'Чт День 4 Нед 1'!AF51+'Ср День 3 Нед 1'!AC51+'Вт День 2 Нед 1'!AE51+'Пн День 1 Нед 1'!Z51 -> 0.0050 | I51: 0.030
A52: 41 | B52: рис | C52: кг | D52: ='Пн День 1 Нед 1'!J52+'Вт День 2 Нед 1'!L52+'Ср День 3 Нед 1'!L52+'Чт День 4 Нед 1'!L52+'Чт День 4 Нед 1'!M52+'Пт День 5 Нед 1'!J52+'Сб День 6 Нед 1'!L52+'Сб День 6 Нед 1'!M52 -> 0.1446 | E52: ='Пн День 1 Нед 1'!O52+'Вт День 2 Нед 1'!T52+'Ср День 3 Нед 1'!R52+'Чт День 4 Нед 1'!T52+'Чт День 4 Нед 1'!U52+'Пт День 5 Нед 1'!O52+'Сб День 6 Нед 1'!U52+'Сб День 6 Нед 1'!V52 -> 0.2696 | F52: ='Сб День 6 Нед 1'!Y52+'Пт День 5 Нед 1'!R52+'Чт День 4 Нед 1'!X52+'Ср День 3 Нед 1'!U52+'Вт День 2 Нед 1'!W52+'Пн День 1 Нед 1'!R52 -> 0.0000 | G52: ='Сб День 6 Нед 1'!AC52+'Пт День 5 Нед 1'!V52+'Чт День 4 Нед 1'!AB52+'Ср День 3 Нед 1'!Y52+'Вт День 2 Нед 1'!AA52+'Пн День 1 Нед 1'!V52 -> 0.0000 | H52: ='Сб День 6 Нед 1'!AG52+'Пт День 5 Нед 1'!Z52+'Чт День 4 Нед 1'!AF52+'Ср День 3 Нед 1'!AC52+'Вт День 2 Нед 1'!AE52+'Пн День 1 Нед 1'!Z52 -> 0.0200 | I52: 0.434
A53: 42 | B53: ячневая крупа | C53: кг | D53: ='Пн День 1 Нед 1'!J53+'Вт День 2 Нед 1'!L53+'Ср День 3 Нед 1'!L53+'Чт День 4 Нед 1'!L53+'Чт День 4 Нед 1'!M53+'Пт День 5 Нед 1'!J53+'Сб День 6 Нед 1'!L53+'Сб День 6 Нед 1'!M53 -> 0.0000 | E53: ='Пн День 1 Нед 1'!O53+'Вт День 2 Нед 1'!T53+'Ср День 3 Нед 1'!R53+'Чт День 4 Нед 1'!T53+'Чт День 4 Нед 1'!U53+'Пт День 5 Нед 1'!O53+'Сб День 6 Нед 1'!U53+'Сб День 6 Нед 1'!V53 -> 0.0000 | F53: ='Сб День 6 Нед 1'!Y53+'Пт День 5 Нед 1'!R53+'Чт День 4 Нед 1'!X53+'Ср День 3 Нед 1'!U53+'Вт День 2 Нед 1'!W53+'Пн День 1 Нед 1'!R53 -> 0.0000 | G53: ='Сб День 6 Нед 1'!AC53+'Пт День 5 Нед 1'!V53+'Чт День 4 Нед 1'!AB53+'Ср День 3 Нед 1'!Y53+'Вт День 2 Нед 1'!AA53+'Пн День 1 Нед 1'!V53 -> 0.0000 | H53: ='Сб День 6 Нед 1'!AG53+'Пт День 5 Нед 1'!Z53+'Чт День 4 Нед 1'!AF53+'Ср День 3 Нед 1'!AC53+'Вт День 2 Нед 1'!AE53+'Пн День 1 Нед 1'!Z53 -> 0.0000 | I53: 0.000
A54: 43 | B54: лапша домашняя п/ф | C54: кг | D54: ='Пн День 1 Нед 1'!J54+'Вт День 2 Нед 1'!L54+'Ср День 3 Нед 1'!L54+'Чт День 4 Нед 1'!L54+'Чт День 4 Нед 1'!M54+'Пт День 5 Нед 1'!J54+'Сб День 6 Нед 1'!L54+'Сб День 6 Нед 1'!M54 -> 0.0000 | E54: ='Пн День 1 Нед 1'!O54+'Вт День 2 Нед 1'!T54+'Ср День 3 Нед 1'!R54+'Чт День 4 Нед 1'!T54+'Чт День 4 Нед 1'!U54+'Пт День 5 Нед 1'!O54+'Сб День 6 Нед 1'!U54+'Сб День 6 Нед 1'!V54 -> 0.0000 | F54: ='Сб День 6 Нед 1'!Y54+'Пт День 5 Нед 1'!R54+'Чт День 4 Нед 1'!X54+'Ср День 3 Нед 1'!U54+'Вт День 2 Нед 1'!W54+'Пн День 1 Нед 1'!R54 -> 0.0000 | G54: ='Сб День 6 Нед 1'!AC54+'Пт День 5 Нед 1'!V54+'Чт День 4 Нед 1'!AB54+'Ср День 3 Нед 1'!Y54+'Вт День 2 Нед 1'!AA54+'Пн День 1 Нед 1'!V54 -> 0.0000 | H54: ='Сб День 6 Нед 1'!AG54+'Пт День 5 Нед 1'!Z54+'Чт День 4 Нед 1'!AF54+'Ср День 3 Нед 1'!AC54+'Вт День 2 Нед 1'!AE54+'Пн День 1 Нед 1'!Z54 -> 0.0200 | I54: 0.020
A55: 44 | B55: мука пшеничная в/с | C55: кг | D55: ='Пн День 1 Нед 1'!J55+'Вт День 2 Нед 1'!L55+'Ср День 3 Нед 1'!L55+'Чт День 4 Нед 1'!L55+'Чт День 4 Нед 1'!M55+'Пт День 5 Нед 1'!J55+'Сб День 6 Нед 1'!L55+'Сб День 6 Нед 1'!M55 -> 0.0143 | E55: ='Пн День 1 Нед 1'!O55+'Вт День 2 Нед 1'!T55+'Ср День 3 Нед 1'!R55+'Чт День 4 Нед 1'!T55+'Чт День 4 Нед 1'!U55+'Пт День 5 Нед 1'!O55+'Сб День 6 Нед 1'!U55+'Сб День 6 Нед 1'!V55 -> 0.0143 | F55: ='Сб День 6 Нед 1'!Y55+'Пт День 5 Нед 1'!R55+'Чт День 4 Нед 1'!X55+'Ср День 3 Нед 1'!U55+'Вт День 2 Нед 1'!W55+'Пн День 1 Нед 1'!R55 -> 0.0000 | G55: ='Сб День 6 Нед 1'!AC55+'Пт День 5 Нед 1'!V55+'Чт День 4 Нед 1'!AB55+'Ср День 3 Нед 1'!Y55+'Вт День 2 Нед 1'!AA55+'Пн День 1 Нед 1'!V55 -> 0.0000 | H55: ='Сб День 6 Нед 1'!AG55+'Пт День 5 Нед 1'!Z55+'Чт День 4 Нед 1'!AF55+'Ср День 3 Нед 1'!AC55+'Вт День 2 Нед 1'!AE55+'Пн День 1 Нед 1'!Z55 -> 0.0000 | I55: 0.029
A56: 45 | B56: сахарный песок | C56: кг | D56: ='Пн День 1 Нед 1'!J56+'Вт День 2 Нед 1'!L56+'Ср День 3 Нед 1'!L56+'Чт День 4 Нед 1'!L56+'Чт День 4 Нед 1'!M56+'Пт День 5 Нед 1'!J56+'Сб День 6 Нед 1'!L56+'Сб День 6 Нед 1'!M56 -> 0.0823 | E56: ='Пн День 1 Нед 1'!O56+'Вт День 2 Нед 1'!T56+'Ср День 3 Нед 1'!R56+'Чт День 4 Нед 1'!T56+'Чт День 4 Нед 1'!U56+'Пт День 5 Нед 1'!O56+'Сб День 6 Нед 1'!U56+'Сб День 6 Нед 1'!V56 -> 0.0820 | F56: ='Сб День 6 Нед 1'!Y56+'Пт День 5 Нед 1'!R56+'Чт День 4 Нед 1'!X56+'Ср День 3 Нед 1'!U56+'Вт День 2 Нед 1'!W56+'Пн День 1 Нед 1'!R56 -> 0.0600 | G56: ='Сб День 6 Нед 1'!AC56+'Пт День 5 Нед 1'!V56+'Чт День 4 Нед 1'!AB56+'Ср День 3 Нед 1'!Y56+'Вт День 2 Нед 1'!AA56+'Пн День 1 Нед 1'!V56 -> 0.0000 | H56: ='Сб День 6 Нед 1'!AG56+'Пт День 5 Нед 1'!Z56+'Чт День 4 Нед 1'!AF56+'Ср День 3 Нед 1'!AC56+'Вт День 2 Нед 1'!AE56+'Пн День 1 Нед 1'!Z56 -> 0.0610 | I56: 0.285
A57: 46 | B57: соль | C57: кг | D57: ='Пн День 1 Нед 1'!J57+'Вт День 2 Нед 1'!L57+'Ср День 3 Нед 1'!L57+'Чт День 4 Нед 1'!L57+'Чт День 4 Нед 1'!M57+'Пт День 5 Нед 1'!J57+'Сб День 6 Нед 1'!L57+'Сб День 6 Нед 1'!M57 -> 0.0068 | E57: ='Пн День 1 Нед 1'!O57+'Вт День 2 Нед 1'!T57+'Ср День 3 Нед 1'!R57+'Чт День 4 Нед 1'!T57+'Чт День 4 Нед 1'!U57+'Пт День 5 Нед 1'!O57+'Сб День 6 Нед 1'!U57+'Сб День 6 Нед 1'!V57 -> 0.0109 | F57: ='Сб День 6 Нед 1'!Y57+'Пт День 5 Нед 1'!R57+'Чт День 4 Нед 1'!X57+'Ср День 3 Нед 1'!U57+'Вт День 2 Нед 1'!W57+'Пн День 1 Нед 1'!R57 -> 0.0000 | G57: ='Сб День 6 Нед 1'!AC57+'Пт День 5 Нед 1'!V57+'Чт День 4 Нед 1'!AB57+'Ср День 3 Нед 1'!Y57+'Вт День 2 Нед 1'!AA57+'Пн День 1 Нед 1'!V57 -> 0.0000 | H57: ='Сб День 6 Нед 1'!AG57+'Пт День 5 Нед 1'!Z57+'Чт День 4 Нед 1'!AF57+'Ср День 3 Нед 1'!AC57+'Вт День 2 Нед 1'!AE57+'Пн День 1 Нед 1'!Z57 -> 0.0058 | I57: 0.024
A58: 47 | B58: сухари панировочные | C58: кг | D58: ='Пн День 1 Нед 1'!J58+'Вт День 2 Нед 1'!L58+'Ср День 3 Нед 1'!L58+'Чт День 4 Нед 1'!L58+'Чт День 4 Нед 1'!M58+'Пт День 5 Нед 1'!J58+'Сб День 6 Нед 1'!L58+'Сб День 6 Нед 1'!M58 -> 0.0075 | E58: ='Пн День 1 Нед 1'!O58+'Вт День 2 Нед 1'!T58+'Ср День 3 Нед 1'!R58+'Чт День 4 Нед 1'!T58+'Чт День 4 Нед 1'!U58+'Пт День 5 Нед 1'!O58+'Сб День 6 Нед 1'!U58+'Сб День 6 Нед 1'!V58 -> 0.0075 | F58: ='Сб День 6 Нед 1'!Y58+'Пт День 5 Нед 1'!R58+'Чт День 4 Нед 1'!X58+'Ср День 3 Нед 1'!U58+'Вт День 2 Нед 1'!W58+'Пн День 1 Нед 1'!R58 -> 0.0000 | G58: ='Сб День 6 Нед 1'!AC58+'Пт День 5 Нед 1'!V58+'Чт День 4 Нед 1'!AB58+'Ср День 3 Нед 1'!Y58+'Вт День 2 Нед 1'!AA58+'Пн День 1 Нед 1'!V58 -> 0.0000 | H58: ='Сб День 6 Нед 1'!AG58+'Пт День 5 Нед 1'!Z58+'Чт День 4 Нед 1'!AF58+'Ср День 3 Нед 1'!AC58+'Вт День 2 Нед 1'!AE58+'Пн День 1 Нед 1'!Z58 -> 0.0000 | I58: 0.015
A59: 48 | B59: дрожжи сухие | C59: кг | D59: ='Пн День 1 Нед 1'!J59+'Вт День 2 Нед 1'!L59+'Ср День 3 Нед 1'!L59+'Чт День 4 Нед 1'!L59+'Чт День 4 Нед 1'!M59+'Пт День 5 Нед 1'!J59+'Сб День 6 Нед 1'!L59+'Сб День 6 Нед 1'!M59 -> 0.0000 | E59: ='Пн День 1 Нед 1'!O59+'Вт День 2 Нед 1'!T59+'Ср День 3 Нед 1'!R59+'Чт День 4 Нед 1'!T59+'Чт День 4 Нед 1'!U59+'Пт День 5 Нед 1'!O59+'Сб День 6 Нед 1'!U59+'Сб День 6 Нед 1'!V59 -> 0.0000 | F59: ='Сб День 6 Нед 1'!Y59+'Пт День 5 Нед 1'!R59+'Чт День 4 Нед 1'!X59+'Ср День 3 Нед 1'!U59+'Вт День 2 Нед 1'!W59+'Пн День 1 Нед 1'!R59 -> 0.0000 | G59: ='Сб День 6 Нед 1'!AC59+'Пт День 5 Нед 1'!V59+'Чт День 4 Нед 1'!AB59+'Ср День 3 Нед 1'!Y59+'Вт День 2 Нед 1'!AA59+'Пн День 1 Нед 1'!V59 -> 0.0000 | H59: ='Сб День 6 Нед 1'!AG59+'Пт День 5 Нед 1'!Z59+'Чт День 4 Нед 1'!AF59+'Ср День 3 Нед 1'!AC59+'Вт День 2 Нед 1'!AE59+'Пн День 1 Нед 1'!Z59 -> 0.0000 | I59: 0.000
A60: 49 | B60: фасоль | C60: кг | D60: ='Пн День 1 Нед 1'!J60+'Вт День 2 Нед 1'!L60+'Ср День 3 Нед 1'!L60+'Чт День 4 Нед 1'!L60+'Чт День 4 Нед 1'!M60+'Пт День 5 Нед 1'!J60+'Сб День 6 Нед 1'!L60+'Сб День 6 Нед 1'!M60 -> 0.0000 | E60: ='Пн День 1 Нед 1'!O60+'Вт День 2 Нед 1'!T60+'Ср День 3 Нед 1'!R60+'Чт День 4 Нед 1'!T60+'Чт День 4 Нед 1'!U60+'Пт День 5 Нед 1'!O60+'Сб День 6 Нед 1'!U60+'Сб День 6 Нед 1'!V60 -> 0.0000 | F60: ='Сб День 6 Нед 1'!Y60+'Пт День 5 Нед 1'!R60+'Чт День 4 Нед 1'!X60+'Ср День 3 Нед 1'!U60+'Вт День 2 Нед 1'!W60+'Пн День 1 Нед 1'!R60 -> 0.0000 | G60: ='Сб День 6 Нед 1'!AC60+'Пт День 5 Нед 1'!V60+'Чт День 4 Нед 1'!AB60+'Ср День 3 Нед 1'!Y60+'Вт День 2 Нед 1'!AA60+'Пн День 1 Нед 1'!V60 -> 0.0000 | H60: ='Сб День 6 Нед 1'!AG60+'Пт День 5 Нед 1'!Z60+'Чт День 4 Нед 1'!AF60+'Ср День 3 Нед 1'!AC60+'Вт День 2 Нед 1'!AE60+'Пн День 1 Нед 1'!Z60 -> 0.0000 | I60: 0.000
B61: Консервы
A62: 50 | B62: зеленый горошек к/с | C62: кг | D62: ='Пн День 1 Нед 1'!J62+'Вт День 2 Нед 1'!L62+'Ср День 3 Нед 1'!L62+'Чт День 4 Нед 1'!L62+'Чт День 4 Нед 1'!M62+'Пт День 5 Нед 1'!J62+'Сб День 6 Нед 1'!L62+'Сб День 6 Нед 1'!M62 -> 0.0962 | E62: ='Пн День 1 Нед 1'!O62+'Вт День 2 Нед 1'!T62+'Ср День 3 Нед 1'!R62+'Чт День 4 Нед 1'!T62+'Чт День 4 Нед 1'!U62+'Пт День 5 Нед 1'!O62+'Сб День 6 Нед 1'!U62+'Сб День 6 Нед 1'!V62 -> 0.1940 | F62: ='Сб День 6 Нед 1'!Y62+'Пт День 5 Нед 1'!R62+'Чт День 4 Нед 1'!X62+'Ср День 3 Нед 1'!U62+'Вт День 2 Нед 1'!W62+'Пн День 1 Нед 1'!R62 -> 0.0000 | G62: ='Сб День 6 Нед 1'!AC62+'Пт День 5 Нед 1'!V62+'Чт День 4 Нед 1'!AB62+'Ср День 3 Нед 1'!Y62+'Вт День 2 Нед 1'!AA62+'Пн День 1 Нед 1'!V62 -> 0.0000 | H62: ='Сб День 6 Нед 1'!AG62+'Пт День 5 Нед 1'!Z62+'Чт День 4 Нед 1'!AF62+'Ср День 3 Нед 1'!AC62+'Вт День 2 Нед 1'!AE62+'Пн День 1 Нед 1'!Z62 -> 0.0000 | I62: 0.290
A63: 51 | B63: кукуруза к/с | C63: кг | D63: ='Пн День 1 Нед 1'!J63+'Вт День 2 Нед 1'!L63+'Ср День 3 Нед 1'!L63+'Чт День 4 Нед 1'!L63+'Чт День 4 Нед 1'!M63+'Пт День 5 Нед 1'!J63+'Сб День 6 Нед 1'!L63+'Сб День 6 Нед 1'!M63 -> 0.0000 | E63: ='Пн День 1 Нед 1'!O63+'Вт День 2 Нед 1'!T63+'Ср День 3 Нед 1'!R63+'Чт День 4 Нед 1'!T63+'Чт День 4 Нед 1'!U63+'Пт День 5 Нед 1'!O63+'Сб День 6 Нед 1'!U63+'Сб День 6 Нед 1'!V63 -> 0.0000 | F63: ='Сб День 6 Нед 1'!Y63+'Пт День 5 Нед 1'!R63+'Чт День 4 Нед 1'!X63+'Ср День 3 Нед 1'!U63+'Вт День 2 Нед 1'!W63+'Пн День 1 Нед 1'!R63 -> 0.0000 | G63: ='Сб День 6 Нед 1'!AC63+'Пт День 5 Нед 1'!V63+'Чт День 4 Нед 1'!AB63+'Ср День 3 Нед 1'!Y63+'Вт День 2 Нед 1'!AA63+'Пн День 1 Нед 1'!V63 -> 0.0000 | H63: ='Сб День 6 Нед 1'!AG63+'Пт День 5 Нед 1'!Z63+'Чт День 4 Нед 1'!AF63+'Ср День 3 Нед 1'!AC63+'Вт День 2 Нед 1'!AE63+'Пн День 1 Нед 1'!Z63 -> 0.0000 | I63: 0.000
A64: 52 | B64: фасоль к/с | C64: кг | D64: ='Пн День 1 Нед 1'!J64+'Вт День 2 Нед 1'!L64+'Ср День 3 Нед 1'!L64+'Чт День 4 Нед 1'!L64+'Чт День 4 Нед 1'!M64+'Пт День 5 Нед 1'!J64+'Сб День 6 Нед 1'!L64+'Сб День 6 Нед 1'!M64 -> 0.0000 | E64: ='Пн День 1 Нед 1'!O64+'Вт День 2 Нед 1'!T64+'Ср День 3 Нед 1'!R64+'Чт День 4 Нед 1'!T64+'Чт День 4 Нед 1'!U64+'Пт День 5 Нед 1'!O64+'Сб День 6 Нед 1'!U64+'Сб День 6 Нед 1'!V64 -> 0.0000 | F64: ='Сб День 6 Нед 1'!Y64+'Пт День 5 Нед 1'!R64+'Чт День 4 Нед 1'!X64+'Ср День 3 Нед 1'!U64+'Вт День 2 Нед 1'!W64+'Пн День 1 Нед 1'!R64 -> 0.0000 | G64: ='Сб День 6 Нед 1'!AC64+'Пт День 5 Нед 1'!V64+'Чт День 4 Нед 1'!AB64+'Ср День 3 Нед 1'!Y64+'Вт День 2 Нед 1'!AA64+'Пн День 1 Нед 1'!V64 -> 0.0000 | H64: ='Сб День 6 Нед 1'!AG64+'Пт День 5 Нед 1'!Z64+'Чт День 4 Нед 1'!AF64+'Ср День 3 Нед 1'!AC64+'Вт День 2 Нед 1'!AE64+'Пн День 1 Нед 1'!Z64 -> 0.0000 | I64: 0.000
A65: 53 | B65: икра кабач/икра баклаж | C65: кг | D65: ='Пн День 1 Нед 1'!J65+'Вт День 2 Нед 1'!L65+'Ср День 3 Нед 1'!L65+'Чт День 4 Нед 1'!L65+'Чт День 4 Нед 1'!M65+'Пт День 5 Нед 1'!J65+'Сб День 6 Нед 1'!L65+'Сб День 6 Нед 1'!M65 -> 0.0000 | E65: ='Пн День 1 Нед 1'!O65+'Вт День 2 Нед 1'!T65+'Ср День 3 Нед 1'!R65+'Чт День 4 Нед 1'!T65+'Чт День 4 Нед 1'!U65+'Пт День 5 Нед 1'!O65+'Сб День 6 Нед 1'!U65+'Сб День 6 Нед 1'!V65 -> 0.0000 | F65: ='Сб День 6 Нед 1'!Y65+'Пт День 5 Нед 1'!R65+'Чт День 4 Нед 1'!X65+'Ср День 3 Нед 1'!U65+'Вт День 2 Нед 1'!W65+'Пн День 1 Нед 1'!R65 -> 0.0000 | G65: ='Сб День 6 Нед 1'!AC65+'Пт День 5 Нед 1'!V65+'Чт День 4 Нед 1'!AB65+'Ср День 3 Нед 1'!Y65+'Вт День 2 Нед 1'!AA65+'Пн День 1 Нед 1'!V65 -> 0.0000 | H65: ='Сб День 6 Нед 1'!AG65+'Пт День 5 Нед 1'!Z65+'Чт День 4 Нед 1'!AF65+'Ср День 3 Нед 1'!AC65+'Вт День 2 Нед 1'!AE65+'Пн День 1 Нед 1'!Z65 -> 0.0000 | I65: 0.000
A66: 54 | B66: капуста морская сушеная | C66: кг | D66: ='Пн День 1 Нед 1'!J66+'Вт День 2 Нед 1'!L66+'Ср День 3 Нед 1'!L66+'Чт День 4 Нед 1'!L66+'Чт День 4 Нед 1'!M66+'Пт День 5 Нед 1'!J66+'Сб День 6 Нед 1'!L66+'Сб День 6 Нед 1'!M66 -> 0.0000 | E66: ='Пн День 1 Нед 1'!O66+'Вт День 2 Нед 1'!T66+'Ср День 3 Нед 1'!R66+'Чт День 4 Нед 1'!T66+'Чт День 4 Нед 1'!U66+'Пт День 5 Нед 1'!O66+'Сб День 6 Нед 1'!U66+'Сб День 6 Нед 1'!V66 -> 0.0000 | F66: ='Сб День 6 Нед 1'!Y66+'Пт День 5 Нед 1'!R66+'Чт День 4 Нед 1'!X66+'Ср День 3 Нед 1'!U66+'Вт День 2 Нед 1'!W66+'Пн День 1 Нед 1'!R66 -> 0.0000 | G66: ='Сб День 6 Нед 1'!AC66+'Пт День 5 Нед 1'!V66+'Чт День 4 Нед 1'!AB66+'Ср День 3 Нед 1'!Y66+'Вт День 2 Нед 1'!AA66+'Пн День 1 Нед 1'!V66 -> 0.0000 | H66: ='Сб День 6 Нед 1'!AG66+'Пт День 5 Нед 1'!Z66+'Чт День 4 Нед 1'!AF66+'Ср День 3 Нед 1'!AC66+'Вт День 2 Нед 1'!AE66+'Пн День 1 Нед 1'!Z66 -> 0.0000 | I66: 0.000
A67: 55 | B67: капуста квашеная | C67: кг | D67: ='Пн День 1 Нед 1'!J67+'Вт День 2 Нед 1'!L67+'Ср День 3 Нед 1'!L67+'Чт День 4 Нед 1'!L67+'Чт День 4 Нед 1'!M67+'Пт День 5 Нед 1'!J67+'Сб День 6 Нед 1'!L67+'Сб День 6 Нед 1'!M67 -> 0.0000 | E67: ='Пн День 1 Нед 1'!O67+'Вт День 2 Нед 1'!T67+'Ср День 3 Нед 1'!R67+'Чт День 4 Нед 1'!T67+'Чт День 4 Нед 1'!U67+'Пт День 5 Нед 1'!O67+'Сб День 6 Нед 1'!U67+'Сб День 6 Нед 1'!V67 -> 0.0000 | F67: ='Сб День 6 Нед 1'!Y67+'Пт День 5 Нед 1'!R67+'Чт День 4 Нед 1'!X67+'Ср День 3 Нед 1'!U67+'Вт День 2 Нед 1'!W67+'Пн День 1 Нед 1'!R67 -> 0.0000 | G67: ='Сб День 6 Нед 1'!AC67+'Пт День 5 Нед 1'!V67+'Чт День 4 Нед 1'!AB67+'Ср День 3 Нед 1'!Y67+'Вт День 2 Нед 1'!AA67+'Пн День 1 Нед 1'!V67 -> 0.0000 | H67: ='Сб День 6 Нед 1'!AG67+'Пт День 5 Нед 1'!Z67+'Чт День 4 Нед 1'!AF67+'Ср День 3 Нед 1'!AC67+'Вт День 2 Нед 1'!AE67+'Пн День 1 Нед 1'!Z67 -> 0.0000 | I67: 0.000
A68: 56 | B68: молоко сгущенное | C68: кг | D68: ='Пн День 1 Нед 1'!J68+'Вт День 2 Нед 1'!L68+'Ср День 3 Нед 1'!L68+'Чт День 4 Нед 1'!L68+'Чт День 4 Нед 1'!M68+'Пт День 5 Нед 1'!J68+'Сб День 6 Нед 1'!L68+'Сб День 6 Нед 1'!M68 -> 0.0000 | E68: ='Пн День 1 Нед 1'!O68+'Вт День 2 Нед 1'!T68+'Ср День 3 Нед 1'!R68+'Чт День 4 Нед 1'!T68+'Чт День 4 Нед 1'!U68+'Пт День 5 Нед 1'!O68+'Сб День 6 Нед 1'!U68+'Сб День 6 Нед 1'!V68 -> 0.0000 | F68: ='Сб День 6 Нед 1'!Y68+'Пт День 5 Нед 1'!R68+'Чт День 4 Нед 1'!X68+'Ср День 3 Нед 1'!U68+'Вт День 2 Нед 1'!W68+'Пн День 1 Нед 1'!R68 -> 0.0000 | G68: ='Сб День 6 Нед 1'!AC68+'Пт День 5 Нед 1'!V68+'Чт День 4 Нед 1'!AB68+'Ср День 3 Нед 1'!Y68+'Вт День 2 Нед 1'!AA68+'Пн День 1 Нед 1'!V68 -> 0.0000 | H68: ='Сб День 6 Нед 1'!AG68+'Пт День 5 Нед 1'!Z68+'Чт День 4 Нед 1'!AF68+'Ср День 3 Нед 1'!AC68+'Вт День 2 Нед 1'!AE68+'Пн День 1 Нед 1'!Z68 -> 0.0000 | I68: 0.000
A69: 57 | B69: огурцы соленые | C69: кг | D69: ='Пн День 1 Нед 1'!J69+'Вт День 2 Нед 1'!L69+'Ср День 3 Нед 1'!L69+'Чт День 4 Нед 1'!L69+'Чт День 4 Нед 1'!M69+'Пт День 5 Нед 1'!J69+'Сб День 6 Нед 1'!L69+'Сб День 6 Нед 1'!M69 -> 0.0000 | E69: ='Пн День 1 Нед 1'!O69+'Вт День 2 Нед 1'!T69+'Ср День 3 Нед 1'!R69+'Чт День 4 Нед 1'!T69+'Чт День 4 Нед 1'!U69+'Пт День 5 Нед 1'!O69+'Сб День 6 Нед 1'!U69+'Сб День 6 Нед 1'!V69 -> 0.0000 | F69: ='Сб День 6 Нед 1'!Y69+'Пт День 5 Нед 1'!R69+'Чт День 4 Нед 1'!X69+'Ср День 3 Нед 1'!U69+'Вт День 2 Нед 1'!W69+'Пн День 1 Нед 1'!R69 -> 0.0000 | G69: ='Сб День 6 Нед 1'!AC69+'Пт День 5 Нед 1'!V69+'Чт День 4 Нед 1'!AB69+'Ср День 3 Нед 1'!Y69+'Вт День 2 Нед 1'!AA69+'Пн День 1 Нед 1'!V69 -> 0.0000 | H69: ='Сб День 6 Нед 1'!AG69+'Пт День 5 Нед 1'!Z69+'Чт День 4 Нед 1'!AF69+'Ср День 3 Нед 1'!AC69+'Вт День 2 Нед 1'!AE69+'Пн День 1 Нед 1'!Z69 -> 0.0273 | I69: 0.027
A70: 58 | B70: повидло | C70: кг | D70: ='Пн День 1 Нед 1'!J70+'Вт День 2 Нед 1'!L70+'Ср День 3 Нед 1'!L70+'Чт День 4 Нед 1'!L70+'Чт День 4 Нед 1'!M70+'Пт День 5 Нед 1'!J70+'Сб День 6 Нед 1'!L70+'Сб День 6 Нед 1'!M70 -> 0.0000 | E70: ='Пн День 1 Нед 1'!O70+'Вт День 2 Нед 1'!T70+'Ср День 3 Нед 1'!R70+'Чт День 4 Нед 1'!T70+'Чт День 4 Нед 1'!U70+'Пт День 5 Нед 1'!O70+'Сб День 6 Нед 1'!U70+'Сб День 6 Нед 1'!V70 -> 0.0000 | F70: ='Сб День 6 Нед 1'!Y70+'Пт День 5 Нед 1'!R70+'Чт День 4 Нед 1'!X70+'Ср День 3 Нед 1'!U70+'Вт День 2 Нед 1'!W70+'Пн День 1 Нед 1'!R70 -> 0.0000 | G70: ='Сб День 6 Нед 1'!AC70+'Пт День 5 Нед 1'!V70+'Чт День 4 Нед 1'!AB70+'Ср День 3 Нед 1'!Y70+'Вт День 2 Нед 1'!AA70+'Пн День 1 Нед 1'!V70 -> 0.0000 | H70: ='Сб День 6 Нед 1'!AG70+'Пт День 5 Нед 1'!Z70+'Чт День 4 Нед 1'!AF70+'Ср День 3 Нед 1'!AC70+'Вт День 2 Нед 1'!AE70+'Пн День 1 Нед 1'!Z70 -> 0.0000 | I70: 0.000
A71: 59 | B71: томатная паста | C71: кг | D71: ='Пн День 1 Нед 1'!J71+'Вт День 2 Нед 1'!L71+'Ср День 3 Нед 1'!L71+'Чт День 4 Нед 1'!L71+'Чт День 4 Нед 1'!M71+'Пт День 5 Нед 1'!J71+'Сб День 6 Нед 1'!L71+'Сб День 6 Нед 1'!M71 -> 0.0046 | E71: ='Пн День 1 Нед 1'!O71+'Вт День 2 Нед 1'!T71+'Ср День 3 Нед 1'!R71+'Чт День 4 Нед 1'!T71+'Чт День 4 Нед 1'!U71+'Пт День 5 Нед 1'!O71+'Сб День 6 Нед 1'!U71+'Сб День 6 Нед 1'!V71 -> 0.0046 | F71: ='Сб День 6 Нед 1'!Y71+'Пт День 5 Нед 1'!R71+'Чт День 4 Нед 1'!X71+'Ср День 3 Нед 1'!U71+'Вт День 2 Нед 1'!W71+'Пн День 1 Нед 1'!R71 -> 0.0000 | G71: ='Сб День 6 Нед 1'!AC71+'Пт День 5 Нед 1'!V71+'Чт День 4 Нед 1'!AB71+'Ср День 3 Нед 1'!Y71+'Вт День 2 Нед 1'!AA71+'Пн День 1 Нед 1'!V71 -> 0.0000 | H71: ='Сб День 6 Нед 1'!AG71+'Пт День 5 Нед 1'!Z71+'Чт День 4 Нед 1'!AF71+'Ср День 3 Нед 1'!AC71+'Вт День 2 Нед 1'!AE71+'Пн День 1 Нед 1'!Z71 -> 0.0090 | I71: 0.018
A72: 60 | B72: рыбные консервы | C72: кг | D72: ='Пн День 1 Нед 1'!J72+'Вт День 2 Нед 1'!L72+'Ср День 3 Нед 1'!L72+'Чт День 4 Нед 1'!L72+'Чт День 4 Нед 1'!M72+'Пт День 5 Нед 1'!J72+'Сб День 6 Нед 1'!L72+'Сб День 6 Нед 1'!M72 -> 0.0000 | E72: ='Пн День 1 Нед 1'!O72+'Вт День 2 Нед 1'!T72+'Ср День 3 Нед 1'!R72+'Чт День 4 Нед 1'!T72+'Чт День 4 Нед 1'!U72+'Пт День 5 Нед 1'!O72+'Сб День 6 Нед 1'!U72+'Сб День 6 Нед 1'!V72 -> 0.0000 | F72: ='Сб День 6 Нед 1'!Y72+'Пт День 5 Нед 1'!R72+'Чт День 4 Нед 1'!X72+'Ср День 3 Нед 1'!U72+'Вт День 2 Нед 1'!W72+'Пн День 1 Нед 1'!R72 -> 0.0000 | G72: ='Сб День 6 Нед 1'!AC72+'Пт День 5 Нед 1'!V72+'Чт День 4 Нед 1'!AB72+'Ср День 3 Нед 1'!Y72+'Вт День 2 Нед 1'!AA72+'Пн День 1 Нед 1'!V72 -> 0.0000 | H72: ='Сб День 6 Нед 1'!AG72+'Пт День 5 Нед 1'!Z72+'Чт День 4 Нед 1'!AF72+'Ср День 3 Нед 1'!AC72+'Вт День 2 Нед 1'!AE72+'Пн День 1 Нед 1'!Z72 -> 0.0000 | I72: =D72+E72+F72+G72+H72 -> 0.000
B73: Напитки
A74: 61 | B74: чай весовой | C74: кг | D74: ='Пн День 1 Нед 1'!J74+'Вт День 2 Нед 1'!L74+'Ср День 3 Нед 1'!L74+'Чт День 4 Нед 1'!L74+'Чт День 4 Нед 1'!M74+'Пт День 5 Нед 1'!J74+'Сб День 6 Нед 1'!L74+'Сб День 6 Нед 1'!M74 -> 0.0040 | E74: ='Пн День 1 Нед 1'!O74+'Вт День 2 Нед 1'!T74+'Ср День 3 Нед 1'!R74+'Чт День 4 Нед 1'!T74+'Чт День 4 Нед 1'!U74+'Пт День 5 Нед 1'!O74+'Сб День 6 Нед 1'!U74+'Сб День 6 Нед 1'!V74 -> 0.0040 | F74: ='Сб День 6 Нед 1'!Y74+'Пт День 5 Нед 1'!R74+'Чт День 4 Нед 1'!X74+'Ср День 3 Нед 1'!U74+'Вт День 2 Нед 1'!W74+'Пн День 1 Нед 1'!R74 -> 0.0020 | G74: ='Сб День 6 Нед 1'!AC74+'Пт День 5 Нед 1'!V74+'Чт День 4 Нед 1'!AB74+'Ср День 3 Нед 1'!Y74+'Вт День 2 Нед 1'!AA74+'Пн День 1 Нед 1'!V74 -> 0.0000 | H74: ='Сб День 6 Нед 1'!AG74+'Пт День 5 Нед 1'!Z74+'Чт День 4 Нед 1'!AF74+'Ср День 3 Нед 1'!AC74+'Вт День 2 Нед 1'!AE74+'Пн День 1 Нед 1'!Z74 -> 0.0010 | I74: 0.011
A75: 62 | B75: какао | C75: кг | D75: ='Пн День 1 Нед 1'!J75+'Вт День 2 Нед 1'!L75+'Ср День 3 Нед 1'!L75+'Чт День 4 Нед 1'!L75+'Чт День 4 Нед 1'!M75+'Пт День 5 Нед 1'!J75+'Сб День 6 Нед 1'!L75+'Сб День 6 Нед 1'!M75 -> 0.0000 | E75: ='Пн День 1 Нед 1'!O75+'Вт День 2 Нед 1'!T75+'Ср День 3 Нед 1'!R75+'Чт День 4 Нед 1'!T75+'Чт День 4 Нед 1'!U75+'Пт День 5 Нед 1'!O75+'Сб День 6 Нед 1'!U75+'Сб День 6 Нед 1'!V75 -> 0.0000 | F75: ='Сб День 6 Нед 1'!Y75+'Пт День 5 Нед 1'!R75+'Чт День 4 Нед 1'!X75+'Ср День 3 Нед 1'!U75+'Вт День 2 Нед 1'!W75+'Пн День 1 Нед 1'!R75 -> 0.0000 | G75: ='Сб День 6 Нед 1'!AC75+'Пт День 5 Нед 1'!V75+'Чт День 4 Нед 1'!AB75+'Ср День 3 Нед 1'!Y75+'Вт День 2 Нед 1'!AA75+'Пн День 1 Нед 1'!V75 -> 0.0000 | H75: ='Сб День 6 Нед 1'!AG75+'Пт День 5 Нед 1'!Z75+'Чт День 4 Нед 1'!AF75+'Ср День 3 Нед 1'!AC75+'Вт День 2 Нед 1'!AE75+'Пн День 1 Нед 1'!Z75 -> 0.0000 | I75: 0.000
A76: 63 | B76: кисель | C76: кг | D76: ='Пн День 1 Нед 1'!J76+'Вт День 2 Нед 1'!L76+'Ср День 3 Нед 1'!L76+'Чт День 4 Нед 1'!L76+'Чт День 4 Нед 1'!M76+'Пт День 5 Нед 1'!J76+'Сб День 6 Нед 1'!L76+'Сб День 6 Нед 1'!M76 -> 0.0000 | E76: ='Пн День 1 Нед 1'!O76+'Вт День 2 Нед 1'!T76+'Ср День 3 Нед 1'!R76+'Чт День 4 Нед 1'!T76+'Чт День 4 Нед 1'!U76+'Пт День 5 Нед 1'!O76+'Сб День 6 Нед 1'!U76+'Сб День 6 Нед 1'!V76 -> 0.0000 | F76: ='Сб День 6 Нед 1'!Y76+'Пт День 5 Нед 1'!R76+'Чт День 4 Нед 1'!X76+'Ср День 3 Нед 1'!U76+'Вт День 2 Нед 1'!W76+'Пн День 1 Нед 1'!R76 -> 0.0000 | G76: ='Сб День 6 Нед 1'!AC76+'Пт День 5 Нед 1'!V76+'Чт День 4 Нед 1'!AB76+'Ср День 3 Нед 1'!Y76+'Вт День 2 Нед 1'!AA76+'Пн День 1 Нед 1'!V76 -> 0.0000 | H76: ='Сб День 6 Нед 1'!AG76+'Пт День 5 Нед 1'!Z76+'Чт День 4 Нед 1'!AF76+'Ср День 3 Нед 1'!AC76+'Вт День 2 Нед 1'!AE76+'Пн День 1 Нед 1'!Z76 -> 0.0000 | I76: 0.000
A77: 64 | B77: кофейный напиток | C77: кг | D77: ='Пн День 1 Нед 1'!J77+'Вт День 2 Нед 1'!L77+'Ср День 3 Нед 1'!L77+'Чт День 4 Нед 1'!L77+'Чт День 4 Нед 1'!M77+'Пт День 5 Нед 1'!J77+'Сб День 6 Нед 1'!L77+'Сб День 6 Нед 1'!M77 -> 0.0050 | E77: ='Пн День 1 Нед 1'!O77+'Вт День 2 Нед 1'!T77+'Ср День 3 Нед 1'!R77+'Чт День 4 Нед 1'!T77+'Чт День 4 Нед 1'!U77+'Пт День 5 Нед 1'!O77+'Сб День 6 Нед 1'!U77+'Сб День 6 Нед 1'!V77 -> 0.0050 | F77: ='Сб День 6 Нед 1'!Y77+'Пт День 5 Нед 1'!R77+'Чт День 4 Нед 1'!X77+'Ср День 3 Нед 1'!U77+'Вт День 2 Нед 1'!W77+'Пн День 1 Нед 1'!R77 -> 0.0000 | G77: ='Сб День 6 Нед 1'!AC77+'Пт День 5 Нед 1'!V77+'Чт День 4 Нед 1'!AB77+'Ср День 3 Нед 1'!Y77+'Вт День 2 Нед 1'!AA77+'Пн День 1 Нед 1'!V77 -> 0.0000 | H77: ='Сб День 6 Нед 1'!AG77+'Пт День 5 Нед 1'!Z77+'Чт День 4 Нед 1'!AF77+'Ср День 3 Нед 1'!AC77+'Вт День 2 Нед 1'!AE77+'Пн День 1 Нед 1'!Z77 -> 0.0000 | I77: 0.010
A78: 65 | B78: цикорий | C78: кг | D78: ='Пн День 1 Нед 1'!J78+'Вт День 2 Нед 1'!L78+'Ср День 3 Нед 1'!L78+'Чт День 4 Нед 1'!L78+'Чт День 4 Нед 1'!M78+'Пт День 5 Нед 1'!J78+'Сб День 6 Нед 1'!L78+'Сб День 6 Нед 1'!M78 -> 0.0000 | E78: ='Пн День 1 Нед 1'!O78+'Вт День 2 Нед 1'!T78+'Ср День 3 Нед 1'!R78+'Чт День 4 Нед 1'!T78+'Чт День 4 Нед 1'!U78+'Пт День 5 Нед 1'!O78+'Сб День 6 Нед 1'!U78+'Сб День 6 Нед 1'!V78 -> 0.0000 | F78: ='Сб День 6 Нед 1'!Y78+'Пт День 5 Нед 1'!R78+'Чт День 4 Нед 1'!X78+'Ср День 3 Нед 1'!U78+'Вт День 2 Нед 1'!W78+'Пн День 1 Нед 1'!R78 -> 0.0000 | G78: ='Сб День 6 Нед 1'!AC78+'Пт День 5 Нед 1'!V78+'Чт День 4 Нед 1'!AB78+'Ср День 3 Нед 1'!Y78+'Вт День 2 Нед 1'!AA78+'Пн День 1 Нед 1'!V78 -> 0.0000 | H78: ='Сб День 6 Нед 1'!AG78+'Пт День 5 Нед 1'!Z78+'Чт День 4 Нед 1'!AF78+'Ср День 3 Нед 1'!AC78+'Вт День 2 Нед 1'!AE78+'Пн День 1 Нед 1'!Z78 -> 0.0000 | I78: 0.000
B79: Сухофрукты
A80: 66 | B80: ассорти для компота (сухофрукты) | C80: кг | D80: ='Пн День 1 Нед 1'!J80+'Вт День 2 Нед 1'!L80+'Ср День 3 Нед 1'!L80+'Чт День 4 Нед 1'!L80+'Чт День 4 Нед 1'!M80+'Пт День 5 Нед 1'!J80+'Сб День 6 Нед 1'!L80+'Сб День 6 Нед 1'!M80 -> 0.0204 | E80: ='Пн День 1 Нед 1'!O80+'Вт День 2 Нед 1'!T80+'Ср День 3 Нед 1'!R80+'Чт День 4 Нед 1'!T80+'Чт День 4 Нед 1'!U80+'Пт День 5 Нед 1'!O80+'Сб День 6 Нед 1'!U80+'Сб День 6 Нед 1'!V80 -> 0.0204 | F80: ='Сб День 6 Нед 1'!Y80+'Пт День 5 Нед 1'!R80+'Чт День 4 Нед 1'!X80+'Ср День 3 Нед 1'!U80+'Вт День 2 Нед 1'!W80+'Пн День 1 Нед 1'!R80 -> 0.0204 | G80: ='Сб День 6 Нед 1'!AC80+'Пт День 5 Нед 1'!V80+'Чт День 4 Нед 1'!AB80+'Ср День 3 Нед 1'!Y80+'Вт День 2 Нед 1'!AA80+'Пн День 1 Нед 1'!V80 -> 0.0000 | H80: ='Сб День 6 Нед 1'!AG80+'Пт День 5 Нед 1'!Z80+'Чт День 4 Нед 1'!AF80+'Ср День 3 Нед 1'!AC80+'Вт День 2 Нед 1'!AE80+'Пн День 1 Нед 1'!Z80 -> 0.0204 | I80: 0.082
A81: 67 | B81: изюм | C81: кг | D81: ='Пн День 1 Нед 1'!J81+'Вт День 2 Нед 1'!L81+'Ср День 3 Нед 1'!L81+'Чт День 4 Нед 1'!L81+'Чт День 4 Нед 1'!M81+'Пт День 5 Нед 1'!J81+'Сб День 6 Нед 1'!L81+'Сб День 6 Нед 1'!M81 -> 0.0000 | E81: ='Пн День 1 Нед 1'!O81+'Вт День 2 Нед 1'!T81+'Ср День 3 Нед 1'!R81+'Чт День 4 Нед 1'!T81+'Чт День 4 Нед 1'!U81+'Пт День 5 Нед 1'!O81+'Сб День 6 Нед 1'!U81+'Сб День 6 Нед 1'!V81 -> 0.0000 | F81: ='Сб День 6 Нед 1'!Y81+'Пт День 5 Нед 1'!R81+'Чт День 4 Нед 1'!X81+'Ср День 3 Нед 1'!U81+'Вт День 2 Нед 1'!W81+'Пн День 1 Нед 1'!R81 -> 0.0000 | G81: ='Сб День 6 Нед 1'!AC81+'Пт День 5 Нед 1'!V81+'Чт День 4 Нед 1'!AB81+'Ср День 3 Нед 1'!Y81+'Вт День 2 Нед 1'!AA81+'Пн День 1 Нед 1'!V81 -> 0.0000 | H81: ='Сб День 6 Нед 1'!AG81+'Пт День 5 Нед 1'!Z81+'Чт День 4 Нед 1'!AF81+'Ср День 3 Нед 1'!AC81+'Вт День 2 Нед 1'!AE81+'Пн День 1 Нед 1'!Z81 -> 0.0102 | I81: 0.010
A82: 68 | B82: курага | C82: кг | D82: ='Пн День 1 Нед 1'!J82+'Вт День 2 Нед 1'!L82+'Ср День 3 Нед 1'!L82+'Чт День 4 Нед 1'!L82+'Чт День 4 Нед 1'!M82+'Пт День 5 Нед 1'!J82+'Сб День 6 Нед 1'!L82+'Сб День 6 Нед 1'!M82 -> 0.0000 | E82: ='Пн День 1 Нед 1'!O82+'Вт День 2 Нед 1'!T82+'Ср День 3 Нед 1'!R82+'Чт День 4 Нед 1'!T82+'Чт День 4 Нед 1'!U82+'Пт День 5 Нед 1'!O82+'Сб День 6 Нед 1'!U82+'Сб День 6 Нед 1'!V82 -> 0.0000 | F82: ='Сб День 6 Нед 1'!Y82+'Пт День 5 Нед 1'!R82+'Чт День 4 Нед 1'!X82+'Ср День 3 Нед 1'!U82+'Вт День 2 Нед 1'!W82+'Пн День 1 Нед 1'!R82 -> 0.0000 | G82: ='Сб День 6 Нед 1'!AC82+'Пт День 5 Нед 1'!V82+'Чт День 4 Нед 1'!AB82+'Ср День 3 Нед 1'!Y82+'Вт День 2 Нед 1'!AA82+'Пн День 1 Нед 1'!V82 -> 0.0000 | H82: ='Сб День 6 Нед 1'!AG82+'Пт День 5 Нед 1'!Z82+'Чт День 4 Нед 1'!AF82+'Ср День 3 Нед 1'!AC82+'Вт День 2 Нед 1'!AE82+'Пн День 1 Нед 1'!Z82 -> 0.0000 | I82: 0.000
A83: 69 | B83: урюк | C83: кг | D83: ='Пн День 1 Нед 1'!J83+'Вт День 2 Нед 1'!L83+'Ср День 3 Нед 1'!L83+'Чт День 4 Нед 1'!L83+'Чт День 4 Нед 1'!M83+'Пт День 5 Нед 1'!J83+'Сб День 6 Нед 1'!L83+'Сб День 6 Нед 1'!M83 -> 0.0000 | E83: ='Пн День 1 Нед 1'!O83+'Вт День 2 Нед 1'!T83+'Ср День 3 Нед 1'!R83+'Чт День 4 Нед 1'!T83+'Чт День 4 Нед 1'!U83+'Пт День 5 Нед 1'!O83+'Сб День 6 Нед 1'!U83+'Сб День 6 Нед 1'!V83 -> 0.0000 | F83: ='Сб День 6 Нед 1'!Y83+'Пт День 5 Нед 1'!R83+'Чт День 4 Нед 1'!X83+'Ср День 3 Нед 1'!U83+'Вт День 2 Нед 1'!W83+'Пн День 1 Нед 1'!R83 -> 0.0000 | G83: ='Сб День 6 Нед 1'!AC83+'Пт День 5 Нед 1'!V83+'Чт День 4 Нед 1'!AB83+'Ср День 3 Нед 1'!Y83+'Вт День 2 Нед 1'!AA83+'Пн День 1 Нед 1'!V83 -> 0.0000 | H83: ='Сб День 6 Нед 1'!AG83+'Пт День 5 Нед 1'!Z83+'Чт День 4 Нед 1'!AF83+'Ср День 3 Нед 1'!AC83+'Вт День 2 Нед 1'!AE83+'Пн День 1 Нед 1'!Z83 -> 0.0204 | I83: 0.020
A84: 70 | B84: шиповник | C84: кг | D84: ='Пн День 1 Нед 1'!J84+'Вт День 2 Нед 1'!L84+'Ср День 3 Нед 1'!L84+'Чт День 4 Нед 1'!L84+'Чт День 4 Нед 1'!M84+'Пт День 5 Нед 1'!J84+'Сб День 6 Нед 1'!L84+'Сб День 6 Нед 1'!M84 -> 0.0050 | E84: ='Пн День 1 Нед 1'!O84+'Вт День 2 Нед 1'!T84+'Ср День 3 Нед 1'!R84+'Чт День 4 Нед 1'!T84+'Чт День 4 Нед 1'!U84+'Пт День 5 Нед 1'!O84+'Сб День 6 Нед 1'!U84+'Сб День 6 Нед 1'!V84 -> 0.0050 | F84: ='Сб День 6 Нед 1'!Y84+'Пт День 5 Нед 1'!R84+'Чт День 4 Нед 1'!X84+'Ср День 3 Нед 1'!U84+'Вт День 2 Нед 1'!W84+'Пн День 1 Нед 1'!R84 -> 0.0000 | G84: ='Сб День 6 Нед 1'!AC84+'Пт День 5 Нед 1'!V84+'Чт День 4 Нед 1'!AB84+'Ср День 3 Нед 1'!Y84+'Вт День 2 Нед 1'!AA84+'Пн День 1 Нед 1'!V84 -> 0.0000 | H84: ='Сб День 6 Нед 1'!AG84+'Пт День 5 Нед 1'!Z84+'Чт День 4 Нед 1'!AF84+'Ср День 3 Нед 1'!AC84+'Вт День 2 Нед 1'!AE84+'Пн День 1 Нед 1'!Z84 -> 0.0153 | I84: 0.025
A85: 71 | B85: компотная смесь с/м | C85: кг | D85: ='Пн День 1 Нед 1'!J85+'Вт День 2 Нед 1'!L85+'Ср День 3 Нед 1'!L85+'Чт День 4 Нед 1'!L85+'Чт День 4 Нед 1'!M85+'Пт День 5 Нед 1'!J85+'Сб День 6 Нед 1'!L85+'Сб День 6 Нед 1'!M85 -> 0.0000 | E85: ='Пн День 1 Нед 1'!O85+'Вт День 2 Нед 1'!T85+'Ср День 3 Нед 1'!R85+'Чт День 4 Нед 1'!T85+'Чт День 4 Нед 1'!U85+'Пт День 5 Нед 1'!O85+'Сб День 6 Нед 1'!U85+'Сб День 6 Нед 1'!V85 -> 0.0000 | F85: ='Сб День 6 Нед 1'!Y85+'Пт День 5 Нед 1'!R85+'Чт День 4 Нед 1'!X85+'Ср День 3 Нед 1'!U85+'Вт День 2 Нед 1'!W85+'Пн День 1 Нед 1'!R85 -> 0.0000 | G85: ='Сб День 6 Нед 1'!AC85+'Пт День 5 Нед 1'!V85+'Чт День 4 Нед 1'!AB85+'Ср День 3 Нед 1'!Y85+'Вт День 2 Нед 1'!AA85+'Пн День 1 Нед 1'!V85 -> 0.0000 | H85: ='Сб День 6 Нед 1'!AG85+'Пт День 5 Нед 1'!Z85+'Чт День 4 Нед 1'!AF85+'Ср День 3 Нед 1'!AC85+'Вт День 2 Нед 1'!AE85+'Пн День 1 Нед 1'!Z85 -> 0.0000 | I85: 0.000
A86: 72 | B86: вишня с/м | C86: кг | D86: ='Пн День 1 Нед 1'!J86+'Вт День 2 Нед 1'!L86+'Ср День 3 Нед 1'!L86+'Чт День 4 Нед 1'!L86+'Чт День 4 Нед 1'!M86+'Пт День 5 Нед 1'!J86+'Сб День 6 Нед 1'!L86+'Сб День 6 Нед 1'!M86 -> 0.0000 | E86: ='Пн День 1 Нед 1'!O86+'Вт День 2 Нед 1'!T86+'Ср День 3 Нед 1'!R86+'Чт День 4 Нед 1'!T86+'Чт День 4 Нед 1'!U86+'Пт День 5 Нед 1'!O86+'Сб День 6 Нед 1'!U86+'Сб День 6 Нед 1'!V86 -> 0.0000 | F86: ='Сб День 6 Нед 1'!Y86+'Пт День 5 Нед 1'!R86+'Чт День 4 Нед 1'!X86+'Ср День 3 Нед 1'!U86+'Вт День 2 Нед 1'!W86+'Пн День 1 Нед 1'!R86 -> 0.0000 | G86: ='Сб День 6 Нед 1'!AC86+'Пт День 5 Нед 1'!V86+'Чт День 4 Нед 1'!AB86+'Ср День 3 Нед 1'!Y86+'Вт День 2 Нед 1'!AA86+'Пн День 1 Нед 1'!V86 -> 0.0000 | H86: ='Сб День 6 Нед 1'!AG86+'Пт День 5 Нед 1'!Z86+'Чт День 4 Нед 1'!AF86+'Ср День 3 Нед 1'!AC86+'Вт День 2 Нед 1'!AE86+'Пн День 1 Нед 1'!Z86 -> 0.0000 | I86: 0.000
A87: 73 | B87: клюква с/м | C87: кг | D87: ='Пн День 1 Нед 1'!J87+'Вт День 2 Нед 1'!L87+'Ср День 3 Нед 1'!L87+'Чт День 4 Нед 1'!L87+'Чт День 4 Нед 1'!M87+'Пт День 5 Нед 1'!J87+'Сб День 6 Нед 1'!L87+'Сб День 6 Нед 1'!M87 -> 0.0000 | E87: ='Пн День 1 Нед 1'!O87+'Вт День 2 Нед 1'!T87+'Ср День 3 Нед 1'!R87+'Чт День 4 Нед 1'!T87+'Чт День 4 Нед 1'!U87+'Пт День 5 Нед 1'!O87+'Сб День 6 Нед 1'!U87+'Сб День 6 Нед 1'!V87 -> 0.0000 | F87: ='Сб День 6 Нед 1'!Y87+'Пт День 5 Нед 1'!R87+'Чт День 4 Нед 1'!X87+'Ср День 3 Нед 1'!U87+'Вт День 2 Нед 1'!W87+'Пн День 1 Нед 1'!R87 -> 0.0000 | G87: ='Сб День 6 Нед 1'!AC87+'Пт День 5 Нед 1'!V87+'Чт День 4 Нед 1'!AB87+'Ср День 3 Нед 1'!Y87+'Вт День 2 Нед 1'!AA87+'Пн День 1 Нед 1'!V87 -> 0.0000 | H87: ='Сб День 6 Нед 1'!AG87+'Пт День 5 Нед 1'!Z87+'Чт День 4 Нед 1'!AF87+'Ср День 3 Нед 1'!AC87+'Вт День 2 Нед 1'!AE87+'Пн День 1 Нед 1'!Z87 -> 0.0000 | I87: 0.000
A88: 74 | B88: смородина в ассорт с/м | C88: кг | D88: ='Пн День 1 Нед 1'!J88+'Вт День 2 Нед 1'!L88+'Ср День 3 Нед 1'!L88+'Чт День 4 Нед 1'!L88+'Чт День 4 Нед 1'!M88+'Пт День 5 Нед 1'!J88+'Сб День 6 Нед 1'!L88+'Сб День 6 Нед 1'!M88 -> 0.0000 | E88: ='Пн День 1 Нед 1'!O88+'Вт День 2 Нед 1'!T88+'Ср День 3 Нед 1'!R88+'Чт День 4 Нед 1'!T88+'Чт День 4 Нед 1'!U88+'Пт День 5 Нед 1'!O88+'Сб День 6 Нед 1'!U88+'Сб День 6 Нед 1'!V88 -> 0.0000 | F88: ='Сб День 6 Нед 1'!Y88+'Пт День 5 Нед 1'!R88+'Чт День 4 Нед 1'!X88+'Ср День 3 Нед 1'!U88+'Вт День 2 Нед 1'!W88+'Пн День 1 Нед 1'!R88 -> 0.0000 | G88: ='Сб День 6 Нед 1'!AC88+'Пт День 5 Нед 1'!V88+'Чт День 4 Нед 1'!AB88+'Ср День 3 Нед 1'!Y88+'Вт День 2 Нед 1'!AA88+'Пн День 1 Нед 1'!V88 -> 0.0000 | H88: ='Сб День 6 Нед 1'!AG88+'Пт День 5 Нед 1'!Z88+'Чт День 4 Нед 1'!AF88+'Ср День 3 Нед 1'!AC88+'Вт День 2 Нед 1'!AE88+'Пн День 1 Нед 1'!Z88 -> 0.0000 | I88: 0.000
A89: 75 | B89: облепиха с/м | C89: кг | D89: ='Пн День 1 Нед 1'!J89+'Вт День 2 Нед 1'!L89+'Ср День 3 Нед 1'!L89+'Чт День 4 Нед 1'!L89+'Чт День 4 Нед 1'!M89+'Пт День 5 Нед 1'!J89+'Сб День 6 Нед 1'!L89+'Сб День 6 Нед 1'!M89 -> 0.0000 | E89: ='Пн День 1 Нед 1'!O89+'Вт День 2 Нед 1'!T89+'Ср День 3 Нед 1'!R89+'Чт День 4 Нед 1'!T89+'Чт День 4 Нед 1'!U89+'Пт День 5 Нед 1'!O89+'Сб День 6 Нед 1'!U89+'Сб День 6 Нед 1'!V89 -> 0.0000 | F89: ='Сб День 6 Нед 1'!Y89+'Пт День 5 Нед 1'!R89+'Чт День 4 Нед 1'!X89+'Ср День 3 Нед 1'!U89+'Вт День 2 Нед 1'!W89+'Пн День 1 Нед 1'!R89 -> 0.0000 | G89: ='Сб День 6 Нед 1'!AC89+'Пт День 5 Нед 1'!V89+'Чт День 4 Нед 1'!AB89+'Ср День 3 Нед 1'!Y89+'Вт День 2 Нед 1'!AA89+'Пн День 1 Нед 1'!V89 -> 0.0000 | H89: ='Сб День 6 Нед 1'!AG89+'Пт День 5 Нед 1'!Z89+'Чт День 4 Нед 1'!AF89+'Ср День 3 Нед 1'!AC89+'Вт День 2 Нед 1'!AE89+'Пн День 1 Нед 1'!Z89 -> 0.0000 | I89: 0.000
B90: Сок
A91: 76 | B91: сок 0,125л или 0,2л | C91: л | D91: ='Пн День 1 Нед 1'!J91+'Вт День 2 Нед 1'!L91+'Ср День 3 Нед 1'!L91+'Чт День 4 Нед 1'!L91+'Чт День 4 Нед 1'!M91+'Пт День 5 Нед 1'!J91+'Сб День 6 Нед 1'!L91+'Сб День 6 Нед 1'!M91 -> 0.0000 | E91: ='Пн День 1 Нед 1'!O91+'Вт День 2 Нед 1'!T91+'Ср День 3 Нед 1'!R91+'Чт День 4 Нед 1'!T91+'Чт День 4 Нед 1'!U91+'Пт День 5 Нед 1'!O91+'Сб День 6 Нед 1'!U91+'Сб День 6 Нед 1'!V91 -> 0.0000 | F91: ='Сб День 6 Нед 1'!Y91+'Пт День 5 Нед 1'!R91+'Чт День 4 Нед 1'!X91+'Ср День 3 Нед 1'!U91+'Вт День 2 Нед 1'!W91+'Пн День 1 Нед 1'!R91 -> 0.0000 | G91: ='Сб День 6 Нед 1'!AC91+'Пт День 5 Нед 1'!V91+'Чт День 4 Нед 1'!AB91+'Ср День 3 Нед 1'!Y91+'Вт День 2 Нед 1'!AA91+'Пн День 1 Нед 1'!V91 -> 0.0000 | H91: ='Сб День 6 Нед 1'!AG91+'Пт День 5 Нед 1'!Z91+'Чт День 4 Нед 1'!AF91+'Ср День 3 Нед 1'!AC91+'Вт День 2 Нед 1'!AE91+'Пн День 1 Нед 1'!Z91 -> 0.0000 | I91: 0.000
A92: 77 | B92: нектар плодовый | C92: л | D92: ='Пн День 1 Нед 1'!J92+'Вт День 2 Нед 1'!L92+'Ср День 3 Нед 1'!L92+'Чт День 4 Нед 1'!L92+'Чт День 4 Нед 1'!M92+'Пт День 5 Нед 1'!J92+'Сб День 6 Нед 1'!L92+'Сб День 6 Нед 1'!M92 -> 0.0000 | E92: ='Пн День 1 Нед 1'!O92+'Вт День 2 Нед 1'!T92+'Ср День 3 Нед 1'!R92+'Чт День 4 Нед 1'!T92+'Чт День 4 Нед 1'!U92+'Пт День 5 Нед 1'!O92+'Сб День 6 Нед 1'!U92+'Сб День 6 Нед 1'!V92 -> 0.0000 | F92: ='Сб День 6 Нед 1'!Y92+'Пт День 5 Нед 1'!R92+'Чт День 4 Нед 1'!X92+'Ср День 3 Нед 1'!U92+'Вт День 2 Нед 1'!W92+'Пн День 1 Нед 1'!R92 -> 0.0000 | G92: ='Сб День 6 Нед 1'!AC92+'Пт День 5 Нед 1'!V92+'Чт День 4 Нед 1'!AB92+'Ср День 3 Нед 1'!Y92+'Вт День 2 Нед 1'!AA92+'Пн День 1 Нед 1'!V92 -> 0.0000 | H92: ='Сб День 6 Нед 1'!AG92+'Пт День 5 Нед 1'!Z92+'Чт День 4 Нед 1'!AF92+'Ср День 3 Нед 1'!AC92+'Вт День 2 Нед 1'!AE92+'Пн День 1 Нед 1'!Z92 -> 0.0000 | I92: 0.000
B93: Кондитерка
A94: 78 | B94: батончик злаковый | C94: шт | D94: ='Пн День 1 Нед 1'!J94+'Вт День 2 Нед 1'!L94+'Ср День 3 Нед 1'!L94+'Чт День 4 Нед 1'!L94+'Чт День 4 Нед 1'!M94+'Пт День 5 Нед 1'!J94+'Сб День 6 Нед 1'!L94+'Сб День 6 Нед 1'!M94 -> 0.0000 | E94: ='Пн День 1 Нед 1'!O94+'Вт День 2 Нед 1'!T94+'Ср День 3 Нед 1'!R94+'Чт День 4 Нед 1'!T94+'Чт День 4 Нед 1'!U94+'Пт День 5 Нед 1'!O94+'Сб День 6 Нед 1'!U94+'Сб День 6 Нед 1'!V94 -> 0.0000 | F94: ='Сб День 6 Нед 1'!Y94+'Пт День 5 Нед 1'!R94+'Чт День 4 Нед 1'!X94+'Ср День 3 Нед 1'!U94+'Вт День 2 Нед 1'!W94+'Пн День 1 Нед 1'!R94 -> 0.0000 | G94: ='Сб День 6 Нед 1'!AC94+'Пт День 5 Нед 1'!V94+'Чт День 4 Нед 1'!AB94+'Ср День 3 Нед 1'!Y94+'Вт День 2 Нед 1'!AA94+'Пн День 1 Нед 1'!V94 -> 0.0000 | H94: ='Сб День 6 Нед 1'!AG94+'Пт День 5 Нед 1'!Z94+'Чт День 4 Нед 1'!AF94+'Ср День 3 Нед 1'!AC94+'Вт День 2 Нед 1'!AE94+'Пн День 1 Нед 1'!Z94 -> 0.0000 | I94: 0.000
A95: 79 | B95: пряник | C95: кг | D95: ='Пн День 1 Нед 1'!J95+'Вт День 2 Нед 1'!L95+'Ср День 3 Нед 1'!L95+'Чт День 4 Нед 1'!L95+'Чт День 4 Нед 1'!M95+'Пт День 5 Нед 1'!J95+'Сб День 6 Нед 1'!L95+'Сб День 6 Нед 1'!M95 -> 0.0000 | E95: ='Пн День 1 Нед 1'!O95+'Вт День 2 Нед 1'!T95+'Ср День 3 Нед 1'!R95+'Чт День 4 Нед 1'!T95+'Чт День 4 Нед 1'!U95+'Пт День 5 Нед 1'!O95+'Сб День 6 Нед 1'!U95+'Сб День 6 Нед 1'!V95 -> 0.0000 | F95: ='Сб День 6 Нед 1'!Y95+'Пт День 5 Нед 1'!R95+'Чт День 4 Нед 1'!X95+'Ср День 3 Нед 1'!U95+'Вт День 2 Нед 1'!W95+'Пн День 1 Нед 1'!R95 -> 0.0350 | G95: ='Сб День 6 Нед 1'!AC95+'Пт День 5 Нед 1'!V95+'Чт День 4 Нед 1'!AB95+'Ср День 3 Нед 1'!Y95+'Вт День 2 Нед 1'!AA95+'Пн День 1 Нед 1'!V95 -> 0.0000 | H95: ='Сб День 6 Нед 1'!AG95+'Пт День 5 Нед 1'!Z95+'Чт День 4 Нед 1'!AF95+'Ср День 3 Нед 1'!AC95+'Вт День 2 Нед 1'!AE95+'Пн День 1 Нед 1'!Z95 -> 0.0000 | I95: 0.035
A96: 80 | B96: вафли | C96: кг | D96: ='Пн День 1 Нед 1'!J96+'Вт День 2 Нед 1'!L96+'Ср День 3 Нед 1'!L96+'Чт День 4 Нед 1'!L96+'Чт День 4 Нед 1'!M96+'Пт День 5 Нед 1'!J96+'Сб День 6 Нед 1'!L96+'Сб День 6 Нед 1'!M96 -> 0.0000 | E96: ='Пн День 1 Нед 1'!O96+'Вт День 2 Нед 1'!T96+'Ср День 3 Нед 1'!R96+'Чт День 4 Нед 1'!T96+'Чт День 4 Нед 1'!U96+'Пт День 5 Нед 1'!O96+'Сб День 6 Нед 1'!U96+'Сб День 6 Нед 1'!V96 -> 0.0000 | F96: ='Сб День 6 Нед 1'!Y96+'Пт День 5 Нед 1'!R96+'Чт День 4 Нед 1'!X96+'Ср День 3 Нед 1'!U96+'Вт День 2 Нед 1'!W96+'Пн День 1 Нед 1'!R96 -> 0.2000 | G96: ='Сб День 6 Нед 1'!AC96+'Пт День 5 Нед 1'!V96+'Чт День 4 Нед 1'!AB96+'Ср День 3 Нед 1'!Y96+'Вт День 2 Нед 1'!AA96+'Пн День 1 Нед 1'!V96 -> 0.0000 | H96: ='Сб День 6 Нед 1'!AG96+'Пт День 5 Нед 1'!Z96+'Чт День 4 Нед 1'!AF96+'Ср День 3 Нед 1'!AC96+'Вт День 2 Нед 1'!AE96+'Пн День 1 Нед 1'!Z96 -> 0.0000 | I96: 0.200
A97: 81 | B97: печенье | C97: кг | D97: ='Пн День 1 Нед 1'!J97+'Вт День 2 Нед 1'!L97+'Ср День 3 Нед 1'!L97+'Чт День 4 Нед 1'!L97+'Чт День 4 Нед 1'!M97+'Пт День 5 Нед 1'!J97+'Сб День 6 Нед 1'!L97+'Сб День 6 Нед 1'!M97 -> 0.0000 | E97: ='Пн День 1 Нед 1'!O97+'Вт День 2 Нед 1'!T97+'Ср День 3 Нед 1'!R97+'Чт День 4 Нед 1'!T97+'Чт День 4 Нед 1'!U97+'Пт День 5 Нед 1'!O97+'Сб День 6 Нед 1'!U97+'Сб День 6 Нед 1'!V97 -> 0.0000 | F97: ='Сб День 6 Нед 1'!Y97+'Пт День 5 Нед 1'!R97+'Чт День 4 Нед 1'!X97+'Ср День 3 Нед 1'!U97+'Вт День 2 Нед 1'!W97+'Пн День 1 Нед 1'!R97 -> 0.0400 | G97: ='Сб День 6 Нед 1'!AC97+'Пт День 5 Нед 1'!V97+'Чт День 4 Нед 1'!AB97+'Ср День 3 Нед 1'!Y97+'Вт День 2 Нед 1'!AA97+'Пн День 1 Нед 1'!V97 -> 0.0000 | H97: ='Сб День 6 Нед 1'!AG97+'Пт День 5 Нед 1'!Z97+'Чт День 4 Нед 1'!AF97+'Ср День 3 Нед 1'!AC97+'Вт День 2 Нед 1'!AE97+'Пн День 1 Нед 1'!Z97 -> 0.0000 | I97: 0.040
A98: 82 | B98: крекер | C98: кг | D98: ='Пн День 1 Нед 1'!J98+'Вт День 2 Нед 1'!L98+'Ср День 3 Нед 1'!L98+'Чт День 4 Нед 1'!L98+'Чт День 4 Нед 1'!M98+'Пт День 5 Нед 1'!J98+'Сб День 6 Нед 1'!L98+'Сб День 6 Нед 1'!M98 -> 0.0000 | E98: ='Пн День 1 Нед 1'!O98+'Вт День 2 Нед 1'!T98+'Ср День 3 Нед 1'!R98+'Чт День 4 Нед 1'!T98+'Чт День 4 Нед 1'!U98+'Пт День 5 Нед 1'!O98+'Сб День 6 Нед 1'!U98+'Сб День 6 Нед 1'!V98 -> 0.0000 | F98: ='Сб День 6 Нед 1'!Y98+'Пт День 5 Нед 1'!R98+'Чт День 4 Нед 1'!X98+'Ср День 3 Нед 1'!U98+'Вт День 2 Нед 1'!W98+'Пн День 1 Нед 1'!R98 -> 0.0300 | G98: ='Сб День 6 Нед 1'!AC98+'Пт День 5 Нед 1'!V98+'Чт День 4 Нед 1'!AB98+'Ср День 3 Нед 1'!Y98+'Вт День 2 Нед 1'!AA98+'Пн День 1 Нед 1'!V98 -> 0.0000 | H98: ='Сб День 6 Нед 1'!AG98+'Пт День 5 Нед 1'!Z98+'Чт День 4 Нед 1'!AF98+'Ср День 3 Нед 1'!AC98+'Вт День 2 Нед 1'!AE98+'Пн День 1 Нед 1'!Z98 -> 0.0000 | I98: 0.030
A99: 83 | B99: сушки | C99: кг | D99: ='Пн День 1 Нед 1'!J99+'Вт День 2 Нед 1'!L99+'Ср День 3 Нед 1'!L99+'Чт День 4 Нед 1'!L99+'Чт День 4 Нед 1'!M99+'Пт День 5 Нед 1'!J99+'Сб День 6 Нед 1'!L99+'Сб День 6 Нед 1'!M99 -> 0.0000 | E99: ='Пн День 1 Нед 1'!O99+'Вт День 2 Нед 1'!T99+'Ср День 3 Нед 1'!R99+'Чт День 4 Нед 1'!T99+'Чт День 4 Нед 1'!U99+'Пт День 5 Нед 1'!O99+'Сб День 6 Нед 1'!U99+'Сб День 6 Нед 1'!V99 -> 0.0000 | F99: ='Сб День 6 Нед 1'!Y99+'Пт День 5 Нед 1'!R99+'Чт День 4 Нед 1'!X99+'Ср День 3 Нед 1'!U99+'Вт День 2 Нед 1'!W99+'Пн День 1 Нед 1'!R99 -> 0.0000 | G99: ='Сб День 6 Нед 1'!AC99+'Пт День 5 Нед 1'!V99+'Чт День 4 Нед 1'!AB99+'Ср День 3 Нед 1'!Y99+'Вт День 2 Нед 1'!AA99+'Пн День 1 Нед 1'!V99 -> 0.0000 | H99: ='Сб День 6 Нед 1'!AG99+'Пт День 5 Нед 1'!Z99+'Чт День 4 Нед 1'!AF99+'Ср День 3 Нед 1'!AC99+'Вт День 2 Нед 1'!AE99+'Пн День 1 Нед 1'!Z99 -> 0.0000 | I99: 0.000
A100: 84 | B100: мармелад | C100: кг | D100: ='Пн День 1 Нед 1'!J100+'Вт День 2 Нед 1'!L100+'Ср День 3 Нед 1'!L100+'Чт День 4 Нед 1'!L100+'Чт День 4 Нед 1'!M100+'Пт День 5 Нед 1'!J100+'Сб День 6 Нед 1'!L100+'Сб День 6 Нед 1'!M100 -> 0.0000 | E100: ='Пн День 1 Нед 1'!O100+'Вт День 2 Нед 1'!T100+'Ср День 3 Нед 1'!R100+'Чт День 4 Нед 1'!T100+'Чт День 4 Нед 1'!U100+'Пт День 5 Нед 1'!O100+'Сб День 6 Нед 1'!U100+'Сб День 6 Нед 1'!V100 -> 0.0000 | F100: ='Сб День 6 Нед 1'!Y100+'Пт День 5 Нед 1'!R100+'Чт День 4 Нед 1'!X100+'Ср День 3 Нед 1'!U100+'Вт День 2 Нед 1'!W100+'Пн День 1 Нед 1'!R100 -> 0.0000 | G100: ='Сб День 6 Нед 1'!AC100+'Пт День 5 Нед 1'!V100+'Чт День 4 Нед 1'!AB100+'Ср День 3 Нед 1'!Y100+'Вт День 2 Нед 1'!AA100+'Пн День 1 Нед 1'!V100 -> 0.0000 | H100: ='Сб День 6 Нед 1'!AG100+'Пт День 5 Нед 1'!Z100+'Чт День 4 Нед 1'!AF100+'Ср День 3 Нед 1'!AC100+'Вт День 2 Нед 1'!AE100+'Пн День 1 Нед 1'!Z100 -> 0.0000 | I100: 0.000
A101: 85 | B101: блины п/ф | C101: кг | D101: ='Пн День 1 Нед 1'!J101+'Вт День 2 Нед 1'!L101+'Ср День 3 Нед 1'!L101+'Чт День 4 Нед 1'!L101+'Чт День 4 Нед 1'!M101+'Пт День 5 Нед 1'!J101+'Сб День 6 Нед 1'!L101+'Сб День 6 Нед 1'!M101 -> 0.0000 | E101: ='Пн День 1 Нед 1'!O101+'Вт День 2 Нед 1'!T101+'Ср День 3 Нед 1'!R101+'Чт День 4 Нед 1'!T101+'Чт День 4 Нед 1'!U101+'Пт День 5 Нед 1'!O101+'Сб День 6 Нед 1'!U101+'Сб День 6 Нед 1'!V101 -> 0.0000 | F101: ='Сб День 6 Нед 1'!Y101+'Пт День 5 Нед 1'!R101+'Чт День 4 Нед 1'!X101+'Ср День 3 Нед 1'!U101+'Вт День 2 Нед 1'!W101+'Пн День 1 Нед 1'!R101 -> 0.0000 | G101: ='Сб День 6 Нед 1'!AC101+'Пт День 5 Нед 1'!V101+'Чт День 4 Нед 1'!AB101+'Ср День 3 Нед 1'!Y101+'Вт День 2 Нед 1'!AA101+'Пн День 1 Нед 1'!V101 -> 0.0000 | H101: ='Сб День 6 Нед 1'!AG101+'Пт День 5 Нед 1'!Z101+'Чт День 4 Нед 1'!AF101+'Ср День 3 Нед 1'!AC101+'Вт День 2 Нед 1'!AE101+'Пн День 1 Нед 1'!Z101 -> 0.0000 | I101: 0.000
A102: 86 | B102: выпечка п/ф со склада | C102: шт | D102: ='Пн День 1 Нед 1'!J102+'Вт День 2 Нед 1'!L102+'Ср День 3 Нед 1'!L102+'Чт День 4 Нед 1'!L102+'Чт День 4 Нед 1'!M102+'Пт День 5 Нед 1'!J102+'Сб День 6 Нед 1'!L102+'Сб День 6 Нед 1'!M102 -> 0.0000 | E102: ='Пн День 1 Нед 1'!O102+'Вт День 2 Нед 1'!T102+'Ср День 3 Нед 1'!R102+'Чт День 4 Нед 1'!T102+'Чт День 4 Нед 1'!U102+'Пт День 5 Нед 1'!O102+'Сб День 6 Нед 1'!U102+'Сб День 6 Нед 1'!V102 -> 0.0000 | F102: ='Сб День 6 Нед 1'!Y102+'Пт День 5 Нед 1'!R102+'Чт День 4 Нед 1'!X102+'Ср День 3 Нед 1'!U102+'Вт День 2 Нед 1'!W102+'Пн День 1 Нед 1'!R102 -> 0.0000 | G102: ='Сб День 6 Нед 1'!AC102+'Пт День 5 Нед 1'!V102+'Чт День 4 Нед 1'!AB102+'Ср День 3 Нед 1'!Y102+'Вт День 2 Нед 1'!AA102+'Пн День 1 Нед 1'!V102 -> 0.0000 | H102: ='Сб День 6 Нед 1'!AG102+'Пт День 5 Нед 1'!Z102+'Чт День 4 Нед 1'!AF102+'Ср День 3 Нед 1'!AC102+'Вт День 2 Нед 1'!AE102+'Пн День 1 Нед 1'!Z102 -> 0.0000 | I102: 0.000
B103: Яйцо | D103: ='Пн День 1 Нед 1'!J103+'Вт День 2 Нед 1'!L103+'Ср День 3 Нед 1'!L103+'Чт День 4 Нед 1'!L103+'Чт День 4 Нед 1'!M103+'Пт День 5 Нед 1'!J103+'Сб День 6 Нед 1'!L103+'Сб День 6 Нед 1'!M103 -> 0.0000 | E103: ='Пн День 1 Нед 1'!O103+'Вт День 2 Нед 1'!T103+'Ср День 3 Нед 1'!R103+'Чт День 4 Нед 1'!T103+'Чт День 4 Нед 1'!U103+'Пт День 5 Нед 1'!O103+'Сб День 6 Нед 1'!U103+'Сб День 6 Нед 1'!V103 -> 0.0000 | I103: 0.000
A104: 87 | B104: яйцо куриное | C104: кг | D104: ='Пн День 1 Нед 1'!J104+'Вт День 2 Нед 1'!L104+'Ср День 3 Нед 1'!L104+'Чт День 4 Нед 1'!L104+'Чт День 4 Нед 1'!M104+'Пт День 5 Нед 1'!J104+'Сб День 6 Нед 1'!L104+'Сб День 6 Нед 1'!M104 -> 0.0000 | E104: ='Пн День 1 Нед 1'!O104+'Вт День 2 Нед 1'!T104+'Ср День 3 Нед 1'!R104+'Чт День 4 Нед 1'!T104+'Чт День 4 Нед 1'!U104+'Пт День 5 Нед 1'!O104+'Сб День 6 Нед 1'!U104+'Сб День 6 Нед 1'!V104 -> 0.0000 | F104: ='Сб День 6 Нед 1'!Y104+'Пт День 5 Нед 1'!R104+'Чт День 4 Нед 1'!X104+'Ср День 3 Нед 1'!U104+'Вт День 2 Нед 1'!W104+'Пн День 1 Нед 1'!R104 -> 0.0000 | G104: ='Сб День 6 Нед 1'!AC104+'Пт День 5 Нед 1'!V104+'Чт День 4 Нед 1'!AB104+'Ср День 3 Нед 1'!Y104+'Вт День 2 Нед 1'!AA104+'Пн День 1 Нед 1'!V104 -> 0.0000 | H104: ='Сб День 6 Нед 1'!AG104+'Пт День 5 Нед 1'!Z104+'Чт День 4 Нед 1'!AF104+'Ср День 3 Нед 1'!AC104+'Вт День 2 Нед 1'!AE104+'Пн День 1 Нед 1'!Z104 -> 0.0038 | I104: 0.004
B105: 0.048 | C105: шт | D105: ='Пн День 1 Нед 1'!J105+'Вт День 2 Нед 1'!L105+'Ср День 3 Нед 1'!L105+'Чт День 4 Нед 1'!L105+'Чт День 4 Нед 1'!M105+'Пт День 5 Нед 1'!J105+'Сб День 6 Нед 1'!L105+'Сб День 6 Нед 1'!M105 -> 0.0000 | E105: ='Пн День 1 Нед 1'!O105+'Вт День 2 Нед 1'!T105+'Ср День 3 Нед 1'!R105+'Чт День 4 Нед 1'!T105+'Чт День 4 Нед 1'!U105+'Пт День 5 Нед 1'!O105+'Сб День 6 Нед 1'!U105+'Сб День 6 Нед 1'!V105 -> 0.0000 | F105: =F104/B105 -> 0.0 | G105: =G104/B105 -> 0.0 | H105: =H104/B105 -> 0.1 | I105: 0.080
B106: Овощи заморозка
A107: 88 | B107: зеленый горошек с/м | C107: кг | D107: ='Пн День 1 Нед 1'!J107+'Вт День 2 Нед 1'!L107+'Ср День 3 Нед 1'!L107+'Чт День 4 Нед 1'!L107+'Чт День 4 Нед 1'!M107+'Пт День 5 Нед 1'!J107+'Сб День 6 Нед 1'!L107+'Сб День 6 Нед 1'!M107 -> 0.0000 | E107: ='Пн День 1 Нед 1'!O107+'Вт День 2 Нед 1'!T107+'Ср День 3 Нед 1'!R107+'Чт День 4 Нед 1'!T107+'Чт День 4 Нед 1'!U107+'Пт День 5 Нед 1'!O107+'Сб День 6 Нед 1'!U107+'Сб День 6 Нед 1'!V107 -> 0.0000 | F107: ='Сб День 6 Нед 1'!Y107+'Пт День 5 Нед 1'!R107+'Чт День 4 Нед 1'!X107+'Ср День 3 Нед 1'!U107+'Вт День 2 Нед 1'!W107+'Пн День 1 Нед 1'!R107 -> 0.0000 | G107: ='Сб День 6 Нед 1'!AC107+'Пт День 5 Нед 1'!V107+'Чт День 4 Нед 1'!AB107+'Ср День 3 Нед 1'!Y107+'Вт День 2 Нед 1'!AA107+'Пн День 1 Нед 1'!V107 -> 0.0000 | H107: ='Сб День 6 Нед 1'!AG107+'Пт День 5 Нед 1'!Z107+'Чт День 4 Нед 1'!AF107+'Ср День 3 Нед 1'!AC107+'Вт День 2 Нед 1'!AE107+'Пн День 1 Нед 1'!Z107 -> 0.0000 | I107: 0.000
A108: 89 | B108: кабачки с/м | C108: кг | D108: ='Пн День 1 Нед 1'!J108+'Вт День 2 Нед 1'!L108+'Ср День 3 Нед 1'!L108+'Чт День 4 Нед 1'!L108+'Чт День 4 Нед 1'!M108+'Пт День 5 Нед 1'!J108+'Сб День 6 Нед 1'!L108+'Сб День 6 Нед 1'!M108 -> 0.0000 | E108: ='Пн День 1 Нед 1'!O108+'Вт День 2 Нед 1'!T108+'Ср День 3 Нед 1'!R108+'Чт День 4 Нед 1'!T108+'Чт День 4 Нед 1'!U108+'Пт День 5 Нед 1'!O108+'Сб День 6 Нед 1'!U108+'Сб День 6 Нед 1'!V108 -> 0.0000 | F108: ='Сб День 6 Нед 1'!Y108+'Пт День 5 Нед 1'!R108+'Чт День 4 Нед 1'!X108+'Ср День 3 Нед 1'!U108+'Вт День 2 Нед 1'!W108+'Пн День 1 Нед 1'!R108 -> 0.0000 | G108: ='Сб День 6 Нед 1'!AC108+'Пт День 5 Нед 1'!V108+'Чт День 4 Нед 1'!AB108+'Ср День 3 Нед 1'!Y108+'Вт День 2 Нед 1'!AA108+'Пн День 1 Нед 1'!V108 -> 0.0000 | H108: ='Сб День 6 Нед 1'!AG108+'Пт День 5 Нед 1'!Z108+'Чт День 4 Нед 1'!AF108+'Ср День 3 Нед 1'!AC108+'Вт День 2 Нед 1'!AE108+'Пн День 1 Нед 1'!Z108 -> 0.0000 | I108: 0.000
A109: 90 | B109: мексиканс смесь с/м | C109: кг | D109: ='Пн День 1 Нед 1'!J109+'Вт День 2 Нед 1'!L109+'Ср День 3 Нед 1'!L109+'Чт День 4 Нед 1'!L109+'Чт День 4 Нед 1'!M109+'Пт День 5 Нед 1'!J109+'Сб День 6 Нед 1'!L109+'Сб День 6 Нед 1'!M109 -> 0.0000 | E109: ='Пн День 1 Нед 1'!O109+'Вт День 2 Нед 1'!T109+'Ср День 3 Нед 1'!R109+'Чт День 4 Нед 1'!T109+'Чт День 4 Нед 1'!U109+'Пт День 5 Нед 1'!O109+'Сб День 6 Нед 1'!U109+'Сб День 6 Нед 1'!V109 -> 0.0000 | F109: ='Сб День 6 Нед 1'!Y109+'Пт День 5 Нед 1'!R109+'Чт День 4 Нед 1'!X109+'Ср День 3 Нед 1'!U109+'Вт День 2 Нед 1'!W109+'Пн День 1 Нед 1'!R109 -> 0.0000 | G109: ='Сб День 6 Нед 1'!AC109+'Пт День 5 Нед 1'!V109+'Чт День 4 Нед 1'!AB109+'Ср День 3 Нед 1'!Y109+'Вт День 2 Нед 1'!AA109+'Пн День 1 Нед 1'!V109 -> 0.0000 | H109: ='Сб День 6 Нед 1'!AG109+'Пт День 5 Нед 1'!Z109+'Чт День 4 Нед 1'!AF109+'Ср День 3 Нед 1'!AC109+'Вт День 2 Нед 1'!AE109+'Пн День 1 Нед 1'!Z109 -> 0.0000 | I109: 0.000
A110: 91 | B110: капуста цветная с/м | C110: кг | D110: ='Пн День 1 Нед 1'!J110+'Вт День 2 Нед 1'!L110+'Ср День 3 Нед 1'!L110+'Чт День 4 Нед 1'!L110+'Чт День 4 Нед 1'!M110+'Пт День 5 Нед 1'!J110+'Сб День 6 Нед 1'!L110+'Сб День 6 Нед 1'!M110 -> 0.0000 | E110: ='Пн День 1 Нед 1'!O110+'Вт День 2 Нед 1'!T110+'Ср День 3 Нед 1'!R110+'Чт День 4 Нед 1'!T110+'Чт День 4 Нед 1'!U110+'Пт День 5 Нед 1'!O110+'Сб День 6 Нед 1'!U110+'Сб День 6 Нед 1'!V110 -> 0.0000 | F110: ='Сб День 6 Нед 1'!Y110+'Пт День 5 Нед 1'!R110+'Чт День 4 Нед 1'!X110+'Ср День 3 Нед 1'!U110+'Вт День 2 Нед 1'!W110+'Пн День 1 Нед 1'!R110 -> 0.0000 | G110: ='Сб День 6 Нед 1'!AC110+'Пт День 5 Нед 1'!V110+'Чт День 4 Нед 1'!AB110+'Ср День 3 Нед 1'!Y110+'Вт День 2 Нед 1'!AA110+'Пн День 1 Нед 1'!V110 -> 0.0000 | H110: ='Сб День 6 Нед 1'!AG110+'Пт День 5 Нед 1'!Z110+'Чт День 4 Нед 1'!AF110+'Ср День 3 Нед 1'!AC110+'Вт День 2 Нед 1'!AE110+'Пн День 1 Нед 1'!Z110 -> 0.0000 | I110: 0.000
A111: 92 | B111: брокколи с/м | C111: кг | D111: ='Пн День 1 Нед 1'!J111+'Вт День 2 Нед 1'!L111+'Ср День 3 Нед 1'!L111+'Чт День 4 Нед 1'!L111+'Чт День 4 Нед 1'!M111+'Пт День 5 Нед 1'!J111+'Сб День 6 Нед 1'!L111+'Сб День 6 Нед 1'!M111 -> 0.0000 | E111: ='Пн День 1 Нед 1'!O111+'Вт День 2 Нед 1'!T111+'Ср День 3 Нед 1'!R111+'Чт День 4 Нед 1'!T111+'Чт День 4 Нед 1'!U111+'Пт День 5 Нед 1'!O111+'Сб День 6 Нед 1'!U111+'Сб День 6 Нед 1'!V111 -> 0.0000 | F111: ='Сб День 6 Нед 1'!Y111+'Пт День 5 Нед 1'!R111+'Чт День 4 Нед 1'!X111+'Ср День 3 Нед 1'!U111+'Вт День 2 Нед 1'!W111+'Пн День 1 Нед 1'!R111 -> 0.0000 | G111: ='Сб День 6 Нед 1'!AC111+'Пт День 5 Нед 1'!V111+'Чт День 4 Нед 1'!AB111+'Ср День 3 Нед 1'!Y111+'Вт День 2 Нед 1'!AA111+'Пн День 1 Нед 1'!V111 -> 0.0000 | H111: ='Сб День 6 Нед 1'!AG111+'Пт День 5 Нед 1'!Z111+'Чт День 4 Нед 1'!AF111+'Ср День 3 Нед 1'!AC111+'Вт День 2 Нед 1'!AE111+'Пн День 1 Нед 1'!Z111 -> 0.0000 | I111: 0.000
A112: 93 | B112: кукуруза с/м | C112: кг | D112: ='Пн День 1 Нед 1'!J112+'Вт День 2 Нед 1'!L112+'Ср День 3 Нед 1'!L112+'Чт День 4 Нед 1'!L112+'Чт День 4 Нед 1'!M112+'Пт День 5 Нед 1'!J112+'Сб День 6 Нед 1'!L112+'Сб День 6 Нед 1'!M112 -> 0.0000 | E112: ='Пн День 1 Нед 1'!O112+'Вт День 2 Нед 1'!T112+'Ср День 3 Нед 1'!R112+'Чт День 4 Нед 1'!T112+'Чт День 4 Нед 1'!U112+'Пт День 5 Нед 1'!O112+'Сб День 6 Нед 1'!U112+'Сб День 6 Нед 1'!V112 -> 0.0000 | F112: ='Сб День 6 Нед 1'!Y112+'Пт День 5 Нед 1'!R112+'Чт День 4 Нед 1'!X112+'Ср День 3 Нед 1'!U112+'Вт День 2 Нед 1'!W112+'Пн День 1 Нед 1'!R112 -> 0.0000 | G112: ='Сб День 6 Нед 1'!AC112+'Пт День 5 Нед 1'!V112+'Чт День 4 Нед 1'!AB112+'Ср День 3 Нед 1'!Y112+'Вт День 2 Нед 1'!AA112+'Пн День 1 Нед 1'!V112 -> 0.0000 | H112: ='Сб День 6 Нед 1'!AG112+'Пт День 5 Нед 1'!Z112+'Чт День 4 Нед 1'!AF112+'Ср День 3 Нед 1'!AC112+'Вт День 2 Нед 1'!AE112+'Пн День 1 Нед 1'!Z112 -> 0.0000 | I112: 0.000
A113: 94 | B113: фасоль стручковая с/м | C113: кг | D113: ='Пн День 1 Нед 1'!J113+'Вт День 2 Нед 1'!L113+'Ср День 3 Нед 1'!L113+'Чт День 4 Нед 1'!L113+'Чт День 4 Нед 1'!M113+'Пт День 5 Нед 1'!J113+'Сб День 6 Нед 1'!L113+'Сб День 6 Нед 1'!M113 -> 0.0000 | E113: ='Пн День 1 Нед 1'!O113+'Вт День 2 Нед 1'!T113+'Ср День 3 Нед 1'!R113+'Чт День 4 Нед 1'!T113+'Чт День 4 Нед 1'!U113+'Пт День 5 Нед 1'!O113+'Сб День 6 Нед 1'!U113+'Сб День 6 Нед 1'!V113 -> 0.0000 | F113: ='Сб День 6 Нед 1'!Y113+'Пт День 5 Нед 1'!R113+'Чт День 4 Нед 1'!X113+'Ср День 3 Нед 1'!U113+'Вт День 2 Нед 1'!W113+'Пн День 1 Нед 1'!R113 -> 0.0000 | G113: ='Сб День 6 Нед 1'!AC113+'Пт День 5 Нед 1'!V113+'Чт День 4 Нед 1'!AB113+'Ср День 3 Нед 1'!Y113+'Вт День 2 Нед 1'!AA113+'Пн День 1 Нед 1'!V113 -> 0.0000 | H113: ='Сб День 6 Нед 1'!AG113+'Пт День 5 Нед 1'!Z113+'Чт День 4 Нед 1'!AF113+'Ср День 3 Нед 1'!AC113+'Вт День 2 Нед 1'!AE113+'Пн День 1 Нед 1'!Z113 -> 0.0000 | I113: 0.000
B114: Фрукты
A115: 95 | B115: апельсин | C115: кг | D115: ='Пн День 1 Нед 1'!J115+'Вт День 2 Нед 1'!L115+'Ср День 3 Нед 1'!L115+'Чт День 4 Нед 1'!L115+'Чт День 4 Нед 1'!M115+'Пт День 5 Нед 1'!J115+'Сб День 6 Нед 1'!L115+'Сб День 6 Нед 1'!M115 -> 0.0000 | E115: ='Пн День 1 Нед 1'!O115+'Вт День 2 Нед 1'!T115+'Ср День 3 Нед 1'!R115+'Чт День 4 Нед 1'!T115+'Чт День 4 Нед 1'!U115+'Пт День 5 Нед 1'!O115+'Сб День 6 Нед 1'!U115+'Сб День 6 Нед 1'!V115 -> 0.0000 | F115: ='Сб День 6 Нед 1'!Y115+'Пт День 5 Нед 1'!R115+'Чт День 4 Нед 1'!X115+'Ср День 3 Нед 1'!U115+'Вт День 2 Нед 1'!W115+'Пн День 1 Нед 1'!R115 -> 0.0000 | G115: ='Сб День 6 Нед 1'!AC115+'Пт День 5 Нед 1'!V115+'Чт День 4 Нед 1'!AB115+'Ср День 3 Нед 1'!Y115+'Вт День 2 Нед 1'!AA115+'Пн День 1 Нед 1'!V115 -> 0.0000 | H115: ='Сб День 6 Нед 1'!AG115+'Пт День 5 Нед 1'!Z115+'Чт День 4 Нед 1'!AF115+'Ср День 3 Нед 1'!AC115+'Вт День 2 Нед 1'!AE115+'Пн День 1 Нед 1'!Z115 -> 0.0000 | I115: 0.000
A116: 96 | B116: банан | C116: кг | D116: ='Пн День 1 Нед 1'!J116+'Вт День 2 Нед 1'!L116+'Ср День 3 Нед 1'!L116+'Чт День 4 Нед 1'!L116+'Чт День 4 Нед 1'!M116+'Пт День 5 Нед 1'!J116+'Сб День 6 Нед 1'!L116+'Сб День 6 Нед 1'!M116 -> 0.0000 | E116: ='Пн День 1 Нед 1'!O116+'Вт День 2 Нед 1'!T116+'Ср День 3 Нед 1'!R116+'Чт День 4 Нед 1'!T116+'Чт День 4 Нед 1'!U116+'Пт День 5 Нед 1'!O116+'Сб День 6 Нед 1'!U116+'Сб День 6 Нед 1'!V116 -> 0.0000 | F116: ='Сб День 6 Нед 1'!Y116+'Пт День 5 Нед 1'!R116+'Чт День 4 Нед 1'!X116+'Ср День 3 Нед 1'!U116+'Вт День 2 Нед 1'!W116+'Пн День 1 Нед 1'!R116 -> 0.0000 | G116: ='Сб День 6 Нед 1'!AC116+'Пт День 5 Нед 1'!V116+'Чт День 4 Нед 1'!AB116+'Ср День 3 Нед 1'!Y116+'Вт День 2 Нед 1'!AA116+'Пн День 1 Нед 1'!V116 -> 0.0000 | H116: ='Сб День 6 Нед 1'!AG116+'Пт День 5 Нед 1'!Z116+'Чт День 4 Нед 1'!AF116+'Ср День 3 Нед 1'!AC116+'Вт День 2 Нед 1'!AE116+'Пн День 1 Нед 1'!Z116 -> 0.0000 | I116: 0.000
A117: 97 | B117: груши | C117: кг | D117: ='Пн День 1 Нед 1'!J117+'Вт День 2 Нед 1'!L117+'Ср День 3 Нед 1'!L117+'Чт День 4 Нед 1'!L117+'Чт День 4 Нед 1'!M117+'Пт День 5 Нед 1'!J117+'Сб День 6 Нед 1'!L117+'Сб День 6 Нед 1'!M117 -> 0.0000 | E117: ='Пн День 1 Нед 1'!O117+'Вт День 2 Нед 1'!T117+'Ср День 3 Нед 1'!R117+'Чт День 4 Нед 1'!T117+'Чт День 4 Нед 1'!U117+'Пт День 5 Нед 1'!O117+'Сб День 6 Нед 1'!U117+'Сб День 6 Нед 1'!V117 -> 0.0000 | F117: ='Сб День 6 Нед 1'!Y117+'Пт День 5 Нед 1'!R117+'Чт День 4 Нед 1'!X117+'Ср День 3 Нед 1'!U117+'Вт День 2 Нед 1'!W117+'Пн День 1 Нед 1'!R117 -> 0.0000 | G117: ='Сб День 6 Нед 1'!AC117+'Пт День 5 Нед 1'!V117+'Чт День 4 Нед 1'!AB117+'Ср День 3 Нед 1'!Y117+'Вт День 2 Нед 1'!AA117+'Пн День 1 Нед 1'!V117 -> 0.0000 | H117: ='Сб День 6 Нед 1'!AG117+'Пт День 5 Нед 1'!Z117+'Чт День 4 Нед 1'!AF117+'Ср День 3 Нед 1'!AC117+'Вт День 2 Нед 1'!AE117+'Пн День 1 Нед 1'!Z117 -> 0.0000 | I117: 0.000
A118: 98 | B118: мандарины | C118: кг | D118: ='Пн День 1 Нед 1'!J118+'Вт День 2 Нед 1'!L118+'Ср День 3 Нед 1'!L118+'Чт День 4 Нед 1'!L118+'Чт День 4 Нед 1'!M118+'Пт День 5 Нед 1'!J118+'Сб День 6 Нед 1'!L118+'Сб День 6 Нед 1'!M118 -> 0.0000 | E118: ='Пн День 1 Нед 1'!O118+'Вт День 2 Нед 1'!T118+'Ср День 3 Нед 1'!R118+'Чт День 4 Нед 1'!T118+'Чт День 4 Нед 1'!U118+'Пт День 5 Нед 1'!O118+'Сб День 6 Нед 1'!U118+'Сб День 6 Нед 1'!V118 -> 0.0000 | F118: ='Сб День 6 Нед 1'!Y118+'Пт День 5 Нед 1'!R118+'Чт День 4 Нед 1'!X118+'Ср День 3 Нед 1'!U118+'Вт День 2 Нед 1'!W118+'Пн День 1 Нед 1'!R118 -> 0.0000 | G118: ='Сб День 6 Нед 1'!AC118+'Пт День 5 Нед 1'!V118+'Чт День 4 Нед 1'!AB118+'Ср День 3 Нед 1'!Y118+'Вт День 2 Нед 1'!AA118+'Пн День 1 Нед 1'!V118 -> 0.0000 | H118: ='Сб День 6 Нед 1'!AG118+'Пт День 5 Нед 1'!Z118+'Чт День 4 Нед 1'!AF118+'Ср День 3 Нед 1'!AC118+'Вт День 2 Нед 1'!AE118+'Пн День 1 Нед 1'!Z118 -> 0.0000 | I118: 0.000
A119: 99 | B119: лимон | C119: кг | D119: ='Пн День 1 Нед 1'!J119+'Вт День 2 Нед 1'!L119+'Ср День 3 Нед 1'!L119+'Чт День 4 Нед 1'!L119+'Чт День 4 Нед 1'!M119+'Пт День 5 Нед 1'!J119+'Сб День 6 Нед 1'!L119+'Сб День 6 Нед 1'!M119 -> 0.0162 | E119: ='Пн День 1 Нед 1'!O119+'Вт День 2 Нед 1'!T119+'Ср День 3 Нед 1'!R119+'Чт День 4 Нед 1'!T119+'Чт День 4 Нед 1'!U119+'Пт День 5 Нед 1'!O119+'Сб День 6 Нед 1'!U119+'Сб День 6 Нед 1'!V119 -> 0.0112 | F119: ='Сб День 6 Нед 1'!Y119+'Пт День 5 Нед 1'!R119+'Чт День 4 Нед 1'!X119+'Ср День 3 Нед 1'!U119+'Вт День 2 Нед 1'!W119+'Пн День 1 Нед 1'!R119 -> 0.0070 | G119: ='Сб День 6 Нед 1'!AC119+'Пт День 5 Нед 1'!V119+'Чт День 4 Нед 1'!AB119+'Ср День 3 Нед 1'!Y119+'Вт День 2 Нед 1'!AA119+'Пн День 1 Нед 1'!V119 -> 0.0000 | H119: ='Сб День 6 Нед 1'!AG119+'Пт День 5 Нед 1'!Z119+'Чт День 4 Нед 1'!AF119+'Ср День 3 Нед 1'!AC119+'Вт День 2 Нед 1'!AE119+'Пн День 1 Нед 1'!Z119 -> 0.0000 | I119: 0.034
A120: 100 | B120: яблоки свежие | C120: кг | D120: ='Пн День 1 Нед 1'!J120+'Вт День 2 Нед 1'!L120+'Ср День 3 Нед 1'!L120+'Чт День 4 Нед 1'!L120+'Чт День 4 Нед 1'!M120+'Пт День 5 Нед 1'!J120+'Сб День 6 Нед 1'!L120+'Сб День 6 Нед 1'!M120 -> 0.3114 | E120: ='Пн День 1 Нед 1'!O120+'Вт День 2 Нед 1'!T120+'Ср День 3 Нед 1'!R120+'Чт День 4 Нед 1'!T120+'Чт День 4 Нед 1'!U120+'Пт День 5 Нед 1'!O120+'Сб День 6 Нед 1'!U120+'Сб День 6 Нед 1'!V120 -> 0.3114 | F120: ='Сб День 6 Нед 1'!Y120+'Пт День 5 Нед 1'!R120+'Чт День 4 Нед 1'!X120+'Ср День 3 Нед 1'!U120+'Вт День 2 Нед 1'!W120+'Пн День 1 Нед 1'!R120 -> 0.0454 | G120: ='Сб День 6 Нед 1'!AC120+'Пт День 5 Нед 1'!V120+'Чт День 4 Нед 1'!AB120+'Ср День 3 Нед 1'!Y120+'Вт День 2 Нед 1'!AA120+'Пн День 1 Нед 1'!V120 -> 0.0000 | H120: ='Сб День 6 Нед 1'!AG120+'Пт День 5 Нед 1'!Z120+'Чт День 4 Нед 1'!AF120+'Ср День 3 Нед 1'!AC120+'Вт День 2 Нед 1'!AE120+'Пн День 1 Нед 1'!Z120 -> 0.0228 | I120: 0.691
B121: Овощи / зелень
A122: 101 | B122: капуста свежая | C122: кг | D122: ='Пн День 1 Нед 1'!J122+'Вт День 2 Нед 1'!L122+'Ср День 3 Нед 1'!L122+'Чт День 4 Нед 1'!L122+'Чт День 4 Нед 1'!M122+'Пт День 5 Нед 1'!J122+'Сб День 6 Нед 1'!L122+'Сб День 6 Нед 1'!M122 -> 0.0713 | E122: ='Пн День 1 Нед 1'!O122+'Вт День 2 Нед 1'!T122+'Ср День 3 Нед 1'!R122+'Чт День 4 Нед 1'!T122+'Чт День 4 Нед 1'!U122+'Пт День 5 Нед 1'!O122+'Сб День 6 Нед 1'!U122+'Сб День 6 Нед 1'!V122 -> 0.0713 | F122: ='Сб День 6 Нед 1'!Y122+'Пт День 5 Нед 1'!R122+'Чт День 4 Нед 1'!X122+'Ср День 3 Нед 1'!U122+'Вт День 2 Нед 1'!W122+'Пн День 1 Нед 1'!R122 -> 0.0000 | G122: ='Сб День 6 Нед 1'!AC122+'Пт День 5 Нед 1'!V122+'Чт День 4 Нед 1'!AB122+'Ср День 3 Нед 1'!Y122+'Вт День 2 Нед 1'!AA122+'Пн День 1 Нед 1'!V122 -> 0.0000 | H122: ='Сб День 6 Нед 1'!AG122+'Пт День 5 Нед 1'!Z122+'Чт День 4 Нед 1'!AF122+'Ср День 3 Нед 1'!AC122+'Вт День 2 Нед 1'!AE122+'Пн День 1 Нед 1'!Z122 -> 0.0875 | I122: 0.230
A123: 102 | B123: картофель | C123: кг | D123: ='Пн День 1 Нед 1'!J123+'Вт День 2 Нед 1'!L123+'Ср День 3 Нед 1'!L123+'Чт День 4 Нед 1'!L123+'Чт День 4 Нед 1'!M123+'Пт День 5 Нед 1'!J123+'Сб День 6 Нед 1'!L123+'Сб День 6 Нед 1'!M123 -> 0.3486 | E123: ='Пн День 1 Нед 1'!O123+'Вт День 2 Нед 1'!T123+'Ср День 3 Нед 1'!R123+'Чт День 4 Нед 1'!T123+'Чт День 4 Нед 1'!U123+'Пт День 5 Нед 1'!O123+'Сб День 6 Нед 1'!U123+'Сб День 6 Нед 1'!V123 -> 0.3828 | F123: ='Сб День 6 Нед 1'!Y123+'Пт День 5 Нед 1'!R123+'Чт День 4 Нед 1'!X123+'Ср День 3 Нед 1'!U123+'Вт День 2 Нед 1'!W123+'Пн День 1 Нед 1'!R123 -> 0.0000 | G123: ='Сб День 6 Нед 1'!AC123+'Пт День 5 Нед 1'!V123+'Чт День 4 Нед 1'!AB123+'Ср День 3 Нед 1'!Y123+'Вт День 2 Нед 1'!AA123+'Пн День 1 Нед 1'!V123 -> 0.0000 | H123: ='Сб День 6 Нед 1'!AG123+'Пт День 5 Нед 1'!Z123+'Чт День 4 Нед 1'!AF123+'Ср День 3 Нед 1'!AC123+'Вт День 2 Нед 1'!AE123+'Пн День 1 Нед 1'!Z123 -> 0.1869 | I123: 0.918
A124: 103 | B124: лук репчатый | C124: кг | D124: ='Пн День 1 Нед 1'!J124+'Вт День 2 Нед 1'!L124+'Ср День 3 Нед 1'!L124+'Чт День 4 Нед 1'!L124+'Чт День 4 Нед 1'!M124+'Пт День 5 Нед 1'!J124+'Сб День 6 Нед 1'!L124+'Сб День 6 Нед 1'!M124 -> 0.0612 | E124: ='Пн День 1 Нед 1'!O124+'Вт День 2 Нед 1'!T124+'Ср День 3 Нед 1'!R124+'Чт День 4 Нед 1'!T124+'Чт День 4 Нед 1'!U124+'Пт День 5 Нед 1'!O124+'Сб День 6 Нед 1'!U124+'Сб День 6 Нед 1'!V124 -> 0.0612 | F124: ='Сб День 6 Нед 1'!Y124+'Пт День 5 Нед 1'!R124+'Чт День 4 Нед 1'!X124+'Ср День 3 Нед 1'!U124+'Вт День 2 Нед 1'!W124+'Пн День 1 Нед 1'!R124 -> 0.0000 | G124: ='Сб День 6 Нед 1'!AC124+'Пт День 5 Нед 1'!V124+'Чт День 4 Нед 1'!AB124+'Ср День 3 Нед 1'!Y124+'Вт День 2 Нед 1'!AA124+'Пн День 1 Нед 1'!V124 -> 0.0000 | H124: ='Сб День 6 Нед 1'!AG124+'Пт День 5 Нед 1'!Z124+'Чт День 4 Нед 1'!AF124+'Ср День 3 Нед 1'!AC124+'Вт День 2 Нед 1'!AE124+'Пн День 1 Нед 1'!Z124 -> 0.0624 | I124: 0.185
A125: 104 | B125: морковь | C125: кг | D125: ='Пн День 1 Нед 1'!J125+'Вт День 2 Нед 1'!L125+'Ср День 3 Нед 1'!L125+'Чт День 4 Нед 1'!L125+'Чт День 4 Нед 1'!M125+'Пт День 5 Нед 1'!J125+'Сб День 6 Нед 1'!L125+'Сб День 6 Нед 1'!M125 -> 0.0300 | E125: ='Пн День 1 Нед 1'!O125+'Вт День 2 Нед 1'!T125+'Ср День 3 Нед 1'!R125+'Чт День 4 Нед 1'!T125+'Чт День 4 Нед 1'!U125+'Пт День 5 Нед 1'!O125+'Сб День 6 Нед 1'!U125+'Сб День 6 Нед 1'!V125 -> 0.0300 | F125: ='Сб День 6 Нед 1'!Y125+'Пт День 5 Нед 1'!R125+'Чт День 4 Нед 1'!X125+'Ср День 3 Нед 1'!U125+'Вт День 2 Нед 1'!W125+'Пн День 1 Нед 1'!R125 -> 0.0000 | G125: ='Сб День 6 Нед 1'!AC125+'Пт День 5 Нед 1'!V125+'Чт День 4 Нед 1'!AB125+'Ср День 3 Нед 1'!Y125+'Вт День 2 Нед 1'!AA125+'Пн День 1 Нед 1'!V125 -> 0.0000 | H125: ='Сб День 6 Нед 1'!AG125+'Пт День 5 Нед 1'!Z125+'Чт День 4 Нед 1'!AF125+'Ср День 3 Нед 1'!AC125+'Вт День 2 Нед 1'!AE125+'Пн День 1 Нед 1'!Z125 -> 0.0688 | I125: 0.129
A126: 105 | B126: свекла | C126: кг | D126: ='Пн День 1 Нед 1'!J126+'Вт День 2 Нед 1'!L126+'Ср День 3 Нед 1'!L126+'Чт День 4 Нед 1'!L126+'Чт День 4 Нед 1'!M126+'Пт День 5 Нед 1'!J126+'Сб День 6 Нед 1'!L126+'Сб День 6 Нед 1'!M126 -> 0.0730 | E126: ='Пн День 1 Нед 1'!O126+'Вт День 2 Нед 1'!T126+'Ср День 3 Нед 1'!R126+'Чт День 4 Нед 1'!T126+'Чт День 4 Нед 1'!U126+'Пт День 5 Нед 1'!O126+'Сб День 6 Нед 1'!U126+'Сб День 6 Нед 1'!V126 -> 0.1190 | F126: ='Сб День 6 Нед 1'!Y126+'Пт День 5 Нед 1'!R126+'Чт День 4 Нед 1'!X126+'Ср День 3 Нед 1'!U126+'Вт День 2 Нед 1'!W126+'Пн День 1 Нед 1'!R126 -> 0.0000 | G126: ='Сб День 6 Нед 1'!AC126+'Пт День 5 Нед 1'!V126+'Чт День 4 Нед 1'!AB126+'Ср День 3 Нед 1'!Y126+'Вт День 2 Нед 1'!AA126+'Пн День 1 Нед 1'!V126 -> 0.0000 | H126: ='Сб День 6 Нед 1'!AG126+'Пт День 5 Нед 1'!Z126+'Чт День 4 Нед 1'!AF126+'Ср День 3 Нед 1'!AC126+'Вт День 2 Нед 1'!AE126+'Пн День 1 Нед 1'!Z126 -> 0.1000 | I126: 0.292
A127: 106 | B127: огурцы св. | C127: кг | D127: ='Пн День 1 Нед 1'!J127+'Вт День 2 Нед 1'!L127+'Ср День 3 Нед 1'!L127+'Чт День 4 Нед 1'!L127+'Чт День 4 Нед 1'!M127+'Пт День 5 Нед 1'!J127+'Сб День 6 Нед 1'!L127+'Сб День 6 Нед 1'!M127 -> 0.0000 | E127: ='Пн День 1 Нед 1'!O127+'Вт День 2 Нед 1'!T127+'Ср День 3 Нед 1'!R127+'Чт День 4 Нед 1'!T127+'Чт День 4 Нед 1'!U127+'Пт День 5 Нед 1'!O127+'Сб День 6 Нед 1'!U127+'Сб День 6 Нед 1'!V127 -> 0.0000 | F127: ='Сб День 6 Нед 1'!Y127+'Пт День 5 Нед 1'!R127+'Чт День 4 Нед 1'!X127+'Ср День 3 Нед 1'!U127+'Вт День 2 Нед 1'!W127+'Пн День 1 Нед 1'!R127 -> 0.0000 | G127: ='Сб День 6 Нед 1'!AC127+'Пт День 5 Нед 1'!V127+'Чт День 4 Нед 1'!AB127+'Ср День 3 Нед 1'!Y127+'Вт День 2 Нед 1'!AA127+'Пн День 1 Нед 1'!V127 -> 0.0000 | H127: ='Сб День 6 Нед 1'!AG127+'Пт День 5 Нед 1'!Z127+'Чт День 4 Нед 1'!AF127+'Ср День 3 Нед 1'!AC127+'Вт День 2 Нед 1'!AE127+'Пн День 1 Нед 1'!Z127 -> 0.0000 | I127: 0.000
A128: 107 | B128: томаты св. | C128: кг | D128: ='Пн День 1 Нед 1'!J128+'Вт День 2 Нед 1'!L128+'Ср День 3 Нед 1'!L128+'Чт День 4 Нед 1'!L128+'Чт День 4 Нед 1'!M128+'Пт День 5 Нед 1'!J128+'Сб День 6 Нед 1'!L128+'Сб День 6 Нед 1'!M128 -> 0.0000 | E128: ='Пн День 1 Нед 1'!O128+'Вт День 2 Нед 1'!T128+'Ср День 3 Нед 1'!R128+'Чт День 4 Нед 1'!T128+'Чт День 4 Нед 1'!U128+'Пт День 5 Нед 1'!O128+'Сб День 6 Нед 1'!U128+'Сб День 6 Нед 1'!V128 -> 0.0000 | F128: ='Сб День 6 Нед 1'!Y128+'Пт День 5 Нед 1'!R128+'Чт День 4 Нед 1'!X128+'Ср День 3 Нед 1'!U128+'Вт День 2 Нед 1'!W128+'Пн День 1 Нед 1'!R128 -> 0.0000 | G128: ='Сб День 6 Нед 1'!AC128+'Пт День 5 Нед 1'!V128+'Чт День 4 Нед 1'!AB128+'Ср День 3 Нед 1'!Y128+'Вт День 2 Нед 1'!AA128+'Пн День 1 Нед 1'!V128 -> 0.0000 | H128: ='Сб День 6 Нед 1'!AG128+'Пт День 5 Нед 1'!Z128+'Чт День 4 Нед 1'!AF128+'Ср День 3 Нед 1'!AC128+'Вт День 2 Нед 1'!AE128+'Пн День 1 Нед 1'!Z128 -> 0.0000 | I128: 0.000
A129: 108 | B129: перец болг.красный | C129: кг | D129: ='Пн День 1 Нед 1'!J129+'Вт День 2 Нед 1'!L129+'Ср День 3 Нед 1'!L129+'Чт День 4 Нед 1'!L129+'Чт День 4 Нед 1'!M129+'Пт День 5 Нед 1'!J129+'Сб День 6 Нед 1'!L129+'Сб День 6 Нед 1'!M129 -> 0.0000 | E129: ='Пн День 1 Нед 1'!O129+'Вт День 2 Нед 1'!T129+'Ср День 3 Нед 1'!R129+'Чт День 4 Нед 1'!T129+'Чт День 4 Нед 1'!U129+'Пт День 5 Нед 1'!O129+'Сб День 6 Нед 1'!U129+'Сб День 6 Нед 1'!V129 -> 0.0000 | F129: ='Сб День 6 Нед 1'!Y129+'Пт День 5 Нед 1'!R129+'Чт День 4 Нед 1'!X129+'Ср День 3 Нед 1'!U129+'Вт День 2 Нед 1'!W129+'Пн День 1 Нед 1'!R129 -> 0.0000 | G129: ='Сб День 6 Нед 1'!AC129+'Пт День 5 Нед 1'!V129+'Чт День 4 Нед 1'!AB129+'Ср День 3 Нед 1'!Y129+'Вт День 2 Нед 1'!AA129+'Пн День 1 Нед 1'!V129 -> 0.0000 | H129: ='Сб День 6 Нед 1'!AG129+'Пт День 5 Нед 1'!Z129+'Чт День 4 Нед 1'!AF129+'Ср День 3 Нед 1'!AC129+'Вт День 2 Нед 1'!AE129+'Пн День 1 Нед 1'!Z129 -> 0.0000 | I129: 0.000
A130: 109 | B130: тыква | C130: кг | D130: ='Пн День 1 Нед 1'!J130+'Вт День 2 Нед 1'!L130+'Ср День 3 Нед 1'!L130+'Чт День 4 Нед 1'!L130+'Чт День 4 Нед 1'!M130+'Пт День 5 Нед 1'!J130+'Сб День 6 Нед 1'!L130+'Сб День 6 Нед 1'!M130 -> 0.0000 | E130: ='Пн День 1 Нед 1'!O130+'Вт День 2 Нед 1'!T130+'Ср День 3 Нед 1'!R130+'Чт День 4 Нед 1'!T130+'Чт День 4 Нед 1'!U130+'Пт День 5 Нед 1'!O130+'Сб День 6 Нед 1'!U130+'Сб День 6 Нед 1'!V130 -> 0.0000 | F130: ='Сб День 6 Нед 1'!Y130+'Пт День 5 Нед 1'!R130+'Чт День 4 Нед 1'!X130+'Ср День 3 Нед 1'!U130+'Вт День 2 Нед 1'!W130+'Пн День 1 Нед 1'!R130 -> 0.0000 | G130: ='Сб День 6 Нед 1'!AC130+'Пт День 5 Нед 1'!V130+'Чт День 4 Нед 1'!AB130+'Ср День 3 Нед 1'!Y130+'Вт День 2 Нед 1'!AA130+'Пн День 1 Нед 1'!V130 -> 0.0000 | H130: ='Сб День 6 Нед 1'!AG130+'Пт День 5 Нед 1'!Z130+'Чт День 4 Нед 1'!AF130+'Ср День 3 Нед 1'!AC130+'Вт День 2 Нед 1'!AE130+'Пн День 1 Нед 1'!Z130 -> 0.0000 | I130: 0.000
B131: Овощи очищенные
A132: 110 | B132: капуста св.очищенная | C132: кг | D132: ='Пн День 1 Нед 1'!J132+'Вт День 2 Нед 1'!L132+'Ср День 3 Нед 1'!L132+'Чт День 4 Нед 1'!L132+'Чт День 4 Нед 1'!M132+'Пт День 5 Нед 1'!J132+'Сб День 6 Нед 1'!L132+'Сб День 6 Нед 1'!M132 -> 0.0000 | E132: ='Пн День 1 Нед 1'!O132+'Вт День 2 Нед 1'!T132+'Ср День 3 Нед 1'!R132+'Чт День 4 Нед 1'!T132+'Чт День 4 Нед 1'!U132+'Пт День 5 Нед 1'!O132+'Сб День 6 Нед 1'!U132+'Сб День 6 Нед 1'!V132 -> 0.0000 | F132: ='Сб День 6 Нед 1'!Y132+'Пт День 5 Нед 1'!R132+'Чт День 4 Нед 1'!X132+'Ср День 3 Нед 1'!U132+'Вт День 2 Нед 1'!W132+'Пн День 1 Нед 1'!R132 -> 0.0000 | G132: ='Сб День 6 Нед 1'!AC132+'Пт День 5 Нед 1'!V132+'Чт День 4 Нед 1'!AB132+'Ср День 3 Нед 1'!Y132+'Вт День 2 Нед 1'!AA132+'Пн День 1 Нед 1'!V132 -> 0.0000 | H132: ='Сб День 6 Нед 1'!AG132+'Пт День 5 Нед 1'!Z132+'Чт День 4 Нед 1'!AF132+'Ср День 3 Нед 1'!AC132+'Вт День 2 Нед 1'!AE132+'Пн День 1 Нед 1'!Z132 -> 0.0000 | I132: 0.000
A133: 111 | B133: картофель св. очищенный | C133: кг | D133: ='Пн День 1 Нед 1'!J133+'Вт День 2 Нед 1'!L133+'Ср День 3 Нед 1'!L133+'Чт День 4 Нед 1'!L133+'Чт День 4 Нед 1'!M133+'Пт День 5 Нед 1'!J133+'Сб День 6 Нед 1'!L133+'Сб День 6 Нед 1'!M133 -> 0.0000 | E133: ='Пн День 1 Нед 1'!O133+'Вт День 2 Нед 1'!T133+'Ср День 3 Нед 1'!R133+'Чт День 4 Нед 1'!T133+'Чт День 4 Нед 1'!U133+'Пт День 5 Нед 1'!O133+'Сб День 6 Нед 1'!U133+'Сб День 6 Нед 1'!V133 -> 0.0000 | F133: ='Сб День 6 Нед 1'!Y133+'Пт День 5 Нед 1'!R133+'Чт День 4 Нед 1'!X133+'Ср День 3 Нед 1'!U133+'Вт День 2 Нед 1'!W133+'Пн День 1 Нед 1'!R133 -> 0.0000 | G133: ='Сб День 6 Нед 1'!AC133+'Пт День 5 Нед 1'!V133+'Чт День 4 Нед 1'!AB133+'Ср День 3 Нед 1'!Y133+'Вт День 2 Нед 1'!AA133+'Пн День 1 Нед 1'!V133 -> 0.0000 | H133: ='Сб День 6 Нед 1'!AG133+'Пт День 5 Нед 1'!Z133+'Чт День 4 Нед 1'!AF133+'Ср День 3 Нед 1'!AC133+'Вт День 2 Нед 1'!AE133+'Пн День 1 Нед 1'!Z133 -> 0.0000 | I133: 0.000
A134: 112 | B134: лук репчатый св.очищенный | C134: кг | D134: ='Пн День 1 Нед 1'!J134+'Вт День 2 Нед 1'!L134+'Ср День 3 Нед 1'!L134+'Чт День 4 Нед 1'!L134+'Чт День 4 Нед 1'!M134+'Пт День 5 Нед 1'!J134+'Сб День 6 Нед 1'!L134+'Сб День 6 Нед 1'!M134 -> 0.0000 | E134: ='Пн День 1 Нед 1'!O134+'Вт День 2 Нед 1'!T134+'Ср День 3 Нед 1'!R134+'Чт День 4 Нед 1'!T134+'Чт День 4 Нед 1'!U134+'Пт День 5 Нед 1'!O134+'Сб День 6 Нед 1'!U134+'Сб День 6 Нед 1'!V134 -> 0.0000 | F134: ='Сб День 6 Нед 1'!Y134+'Пт День 5 Нед 1'!R134+'Чт День 4 Нед 1'!X134+'Ср День 3 Нед 1'!U134+'Вт День 2 Нед 1'!W134+'Пн День 1 Нед 1'!R134 -> 0.0000 | G134: ='Сб День 6 Нед 1'!AC134+'Пт День 5 Нед 1'!V134+'Чт День 4 Нед 1'!AB134+'Ср День 3 Нед 1'!Y134+'Вт День 2 Нед 1'!AA134+'Пн День 1 Нед 1'!V134 -> 0.0000 | H134: ='Сб День 6 Нед 1'!AG134+'Пт День 5 Нед 1'!Z134+'Чт День 4 Нед 1'!AF134+'Ср День 3 Нед 1'!AC134+'Вт День 2 Нед 1'!AE134+'Пн День 1 Нед 1'!Z134 -> 0.0000 | I134: 0.000
A135: 113 | B135: морковь св.очищенная | C135: кг | D135: ='Пн День 1 Нед 1'!J135+'Вт День 2 Нед 1'!L135+'Ср День 3 Нед 1'!L135+'Чт День 4 Нед 1'!L135+'Чт День 4 Нед 1'!M135+'Пт День 5 Нед 1'!J135+'Сб День 6 Нед 1'!L135+'Сб День 6 Нед 1'!M135 -> 0.0000 | E135: ='Пн День 1 Нед 1'!O135+'Вт День 2 Нед 1'!T135+'Ср День 3 Нед 1'!R135+'Чт День 4 Нед 1'!T135+'Чт День 4 Нед 1'!U135+'Пт День 5 Нед 1'!O135+'Сб День 6 Нед 1'!U135+'Сб День 6 Нед 1'!V135 -> 0.0000 | F135: ='Сб День 6 Нед 1'!Y135+'Пт День 5 Нед 1'!R135+'Чт День 4 Нед 1'!X135+'Ср День 3 Нед 1'!U135+'Вт День 2 Нед 1'!W135+'Пн День 1 Нед 1'!R135 -> 0.0000 | G135: ='Сб День 6 Нед 1'!AC135+'Пт День 5 Нед 1'!V135+'Чт День 4 Нед 1'!AB135+'Ср День 3 Нед 1'!Y135+'Вт День 2 Нед 1'!AA135+'Пн День 1 Нед 1'!V135 -> 0.0000 | H135: ='Сб День 6 Нед 1'!AG135+'Пт День 5 Нед 1'!Z135+'Чт День 4 Нед 1'!AF135+'Ср День 3 Нед 1'!AC135+'Вт День 2 Нед 1'!AE135+'Пн День 1 Нед 1'!Z135 -> 0.0000 | I135: 0.000
A136: 114 | B136: свекла св.очищенная | C136: кг | D136: ='Пн День 1 Нед 1'!J136+'Вт День 2 Нед 1'!L136+'Ср День 3 Нед 1'!L136+'Чт День 4 Нед 1'!L136+'Чт День 4 Нед 1'!M136+'Пт День 5 Нед 1'!J136+'Сб День 6 Нед 1'!L136+'Сб День 6 Нед 1'!M136 -> 0.0000 | E136: ='Пн День 1 Нед 1'!O136+'Вт День 2 Нед 1'!T136+'Ср День 3 Нед 1'!R136+'Чт День 4 Нед 1'!T136+'Чт День 4 Нед 1'!U136+'Пт День 5 Нед 1'!O136+'Сб День 6 Нед 1'!U136+'Сб День 6 Нед 1'!V136 -> 0.0000 | F136: ='Сб День 6 Нед 1'!Y136+'Пт День 5 Нед 1'!R136+'Чт День 4 Нед 1'!X136+'Ср День 3 Нед 1'!U136+'Вт День 2 Нед 1'!W136+'Пн День 1 Нед 1'!R136 -> 0.0000 | G136: ='Сб День 6 Нед 1'!AC136+'Пт День 5 Нед 1'!V136+'Чт День 4 Нед 1'!AB136+'Ср День 3 Нед 1'!Y136+'Вт День 2 Нед 1'!AA136+'Пн День 1 Нед 1'!V136 -> 0.0000 | H136: ='Сб День 6 Нед 1'!AG136+'Пт День 5 Нед 1'!Z136+'Чт День 4 Нед 1'!AF136+'Ср День 3 Нед 1'!AC136+'Вт День 2 Нед 1'!AE136+'Пн День 1 Нед 1'!Z136 -> 0.0000 | I136: =D136+E136+F136+G136+H136 -> 0.000
B137: Полуфабрикаты
A138: 115 | B138: сырники ПФ | C138: шт | D138: ='Пн День 1 Нед 1'!J138+'Вт День 2 Нед 1'!L138+'Ср День 3 Нед 1'!L138+'Чт День 4 Нед 1'!L138+'Чт День 4 Нед 1'!M138+'Пт День 5 Нед 1'!J138+'Сб День 6 Нед 1'!L138+'Сб День 6 Нед 1'!M138 -> 1.0000 | E138: ='Пн День 1 Нед 1'!O138+'Вт День 2 Нед 1'!T138+'Ср День 3 Нед 1'!R138+'Чт День 4 Нед 1'!T138+'Чт День 4 Нед 1'!U138+'Пт День 5 Нед 1'!O138+'Сб День 6 Нед 1'!U138+'Сб День 6 Нед 1'!V138 -> 1.0000 | F138: ='Сб День 6 Нед 1'!Y138+'Пт День 5 Нед 1'!R138+'Чт День 4 Нед 1'!X138+'Ср День 3 Нед 1'!U138+'Вт День 2 Нед 1'!W138+'Пн День 1 Нед 1'!R138 -> 0.0000 | G138: ='Сб День 6 Нед 1'!AC138+'Пт День 5 Нед 1'!V138+'Чт День 4 Нед 1'!AB138+'Ср День 3 Нед 1'!Y138+'Вт День 2 Нед 1'!AA138+'Пн День 1 Нед 1'!V138 -> 0.0000 | H138: ='Сб День 6 Нед 1'!AG138+'Пт День 5 Нед 1'!Z138+'Чт День 4 Нед 1'!AF138+'Ср День 3 Нед 1'!AC138+'Вт День 2 Нед 1'!AE138+'Пн День 1 Нед 1'!Z138 -> 0.0000 | I138: 2.000
A139: 116 | B139: пельмени ПФ | C139: кг | D139: ='Пн День 1 Нед 1'!J139+'Вт День 2 Нед 1'!L139+'Ср День 3 Нед 1'!L139+'Чт День 4 Нед 1'!L139+'Чт День 4 Нед 1'!M139+'Пт День 5 Нед 1'!J139+'Сб День 6 Нед 1'!L139+'Сб День 6 Нед 1'!M139 -> 0.0000 | E139: ='Пн День 1 Нед 1'!O139+'Вт День 2 Нед 1'!T139+'Ср День 3 Нед 1'!R139+'Чт День 4 Нед 1'!T139+'Чт День 4 Нед 1'!U139+'Пт День 5 Нед 1'!O139+'Сб День 6 Нед 1'!U139+'Сб День 6 Нед 1'!V139 -> 0.0000 | F139: ='Сб День 6 Нед 1'!Y139+'Пт День 5 Нед 1'!R139+'Чт День 4 Нед 1'!X139+'Ср День 3 Нед 1'!U139+'Вт День 2 Нед 1'!W139+'Пн День 1 Нед 1'!R139 -> 0.0000 | G139: ='Сб День 6 Нед 1'!AC139+'Пт День 5 Нед 1'!V139+'Чт День 4 Нед 1'!AB139+'Ср День 3 Нед 1'!Y139+'Вт День 2 Нед 1'!AA139+'Пн День 1 Нед 1'!V139 -> 0.0000 | H139: ='Сб День 6 Нед 1'!AG139+'Пт День 5 Нед 1'!Z139+'Чт День 4 Нед 1'!AF139+'Ср День 3 Нед 1'!AC139+'Вт День 2 Нед 1'!AE139+'Пн День 1 Нед 1'!Z139 -> 0.0000 | I139: 0.000
A140: 117 | B140: биточки рыбные | C140: шт | D140: ='Пн День 1 Нед 1'!J140+'Вт День 2 Нед 1'!L140+'Ср День 3 Нед 1'!L140+'Чт День 4 Нед 1'!L140+'Чт День 4 Нед 1'!M140+'Пт День 5 Нед 1'!J140+'Сб День 6 Нед 1'!L140+'Сб День 6 Нед 1'!M140 -> 1.0000 | E140: ='Пн День 1 Нед 1'!O140+'Вт День 2 Нед 1'!T140+'Ср День 3 Нед 1'!R140+'Чт День 4 Нед 1'!T140+'Чт День 4 Нед 1'!U140+'Пт День 5 Нед 1'!O140+'Сб День 6 Нед 1'!U140+'Сб День 6 Нед 1'!V140 -> 1.0000 | F140: ='Сб День 6 Нед 1'!Y140+'Пт День 5 Нед 1'!R140+'Чт День 4 Нед 1'!X140+'Ср День 3 Нед 1'!U140+'Вт День 2 Нед 1'!W140+'Пн День 1 Нед 1'!R140 -> 0.0000 | G140: ='Сб День 6 Нед 1'!AC140+'Пт День 5 Нед 1'!V140+'Чт День 4 Нед 1'!AB140+'Ср День 3 Нед 1'!Y140+'Вт День 2 Нед 1'!AA140+'Пн День 1 Нед 1'!V140 -> 0.0000 | H140: ='Сб День 6 Нед 1'!AG140+'Пт День 5 Нед 1'!Z140+'Чт День 4 Нед 1'!AF140+'Ср День 3 Нед 1'!AC140+'Вт День 2 Нед 1'!AE140+'Пн День 1 Нед 1'!Z140 -> 0.0000 | I140: 2.000
A141: 118 | B141: фрикадельки мясные | C141: кг | D141: ='Пн День 1 Нед 1'!J141+'Вт День 2 Нед 1'!L141+'Ср День 3 Нед 1'!L141+'Чт День 4 Нед 1'!L141+'Чт День 4 Нед 1'!M141+'Пт День 5 Нед 1'!J141+'Сб День 6 Нед 1'!L141+'Сб День 6 Нед 1'!M141 -> 0.0000 | E141: ='Пн День 1 Нед 1'!O141+'Вт День 2 Нед 1'!T141+'Ср День 3 Нед 1'!R141+'Чт День 4 Нед 1'!T141+'Чт День 4 Нед 1'!U141+'Пт День 5 Нед 1'!O141+'Сб День 6 Нед 1'!U141+'Сб День 6 Нед 1'!V141 -> 0.0000 | F141: ='Сб День 6 Нед 1'!Y141+'Пт День 5 Нед 1'!R141+'Чт День 4 Нед 1'!X141+'Ср День 3 Нед 1'!U141+'Вт День 2 Нед 1'!W141+'Пн День 1 Нед 1'!R141 -> 0.0000 | G141: ='Сб День 6 Нед 1'!AC141+'Пт День 5 Нед 1'!V141+'Чт День 4 Нед 1'!AB141+'Ср День 3 Нед 1'!Y141+'Вт День 2 Нед 1'!AA141+'Пн День 1 Нед 1'!V141 -> 0.0000 | H141: ='Сб День 6 Нед 1'!AG141+'Пт День 5 Нед 1'!Z141+'Чт День 4 Нед 1'!AF141+'Ср День 3 Нед 1'!AC141+'Вт День 2 Нед 1'!AE141+'Пн День 1 Нед 1'!Z141 -> 0.0000 | I141: 0.000
A142: 119 | B142: фрикадельки куриные | C142: кг | D142: ='Пн День 1 Нед 1'!J142+'Вт День 2 Нед 1'!L142+'Ср День 3 Нед 1'!L142+'Чт День 4 Нед 1'!L142+'Чт День 4 Нед 1'!M142+'Пт День 5 Нед 1'!J142+'Сб День 6 Нед 1'!L142+'Сб День 6 Нед 1'!M142 -> 0.0000 | E142: ='Пн День 1 Нед 1'!O142+'Вт День 2 Нед 1'!T142+'Ср День 3 Нед 1'!R142+'Чт День 4 Нед 1'!T142+'Чт День 4 Нед 1'!U142+'Пт День 5 Нед 1'!O142+'Сб День 6 Нед 1'!U142+'Сб День 6 Нед 1'!V142 -> 0.0000 | F142: ='Сб День 6 Нед 1'!Y142+'Пт День 5 Нед 1'!R142+'Чт День 4 Нед 1'!X142+'Ср День 3 Нед 1'!U142+'Вт День 2 Нед 1'!W142+'Пн День 1 Нед 1'!R142 -> 0.0000 | G142: ='Сб День 6 Нед 1'!AC142+'Пт День 5 Нед 1'!V142+'Чт День 4 Нед 1'!AB142+'Ср День 3 Нед 1'!Y142+'Вт День 2 Нед 1'!AA142+'Пн День 1 Нед 1'!V142 -> 0.0000 | H142: ='Сб День 6 Нед 1'!AG142+'Пт День 5 Нед 1'!Z142+'Чт День 4 Нед 1'!AF142+'Ср День 3 Нед 1'!AC142+'Вт День 2 Нед 1'!AE142+'Пн День 1 Нед 1'!Z142 -> 0.0000 | I142: 0.000
A143: 120 | B143: хинкали п/ф из говядины | C143: кг | D143: ='Пн День 1 Нед 1'!J143+'Вт День 2 Нед 1'!L143+'Ср День 3 Нед 1'!L143+'Чт День 4 Нед 1'!L143+'Чт День 4 Нед 1'!M143+'Пт День 5 Нед 1'!J143+'Сб День 6 Нед 1'!L143+'Сб День 6 Нед 1'!M143 -> 0.0000 | E143: ='Пн День 1 Нед 1'!O143+'Вт День 2 Нед 1'!T143+'Ср День 3 Нед 1'!R143+'Чт День 4 Нед 1'!T143+'Чт День 4 Нед 1'!U143+'Пт День 5 Нед 1'!O143+'Сб День 6 Нед 1'!U143+'Сб День 6 Нед 1'!V143 -> 0.0000 | F143: ='Сб День 6 Нед 1'!Y143+'Пт День 5 Нед 1'!R143+'Чт День 4 Нед 1'!X143+'Ср День 3 Нед 1'!U143+'Вт День 2 Нед 1'!W143+'Пн День 1 Нед 1'!R143 -> 0.0000 | G143: ='Сб День 6 Нед 1'!AC143+'Пт День 5 Нед 1'!V143+'Чт День 4 Нед 1'!AB143+'Ср День 3 Нед 1'!Y143+'Вт День 2 Нед 1'!AA143+'Пн День 1 Нед 1'!V143 -> 0.0000 | H143: ='Сб День 6 Нед 1'!AG143+'Пт День 5 Нед 1'!Z143+'Чт День 4 Нед 1'!AF143+'Ср День 3 Нед 1'!AC143+'Вт День 2 Нед 1'!AE143+'Пн День 1 Нед 1'!Z143 -> 0.0000 | I143: 0.000
A144: 121 | B144: котлеты из говядины "Домашние" | C144: шт | D144: ='Пн День 1 Нед 1'!J144+'Вт День 2 Нед 1'!L144+'Ср День 3 Нед 1'!L144+'Чт День 4 Нед 1'!L144+'Чт День 4 Нед 1'!M144+'Пт День 5 Нед 1'!J144+'Сб День 6 Нед 1'!L144+'Сб День 6 Нед 1'!M144 -> 1.0000 | E144: ='Пн День 1 Нед 1'!O144+'Вт День 2 Нед 1'!T144+'Ср День 3 Нед 1'!R144+'Чт День 4 Нед 1'!T144+'Чт День 4 Нед 1'!U144+'Пт День 5 Нед 1'!O144+'Сб День 6 Нед 1'!U144+'Сб День 6 Нед 1'!V144 -> 1.0000 | F144: ='Сб День 6 Нед 1'!Y144+'Пт День 5 Нед 1'!R144+'Чт День 4 Нед 1'!X144+'Ср День 3 Нед 1'!U144+'Вт День 2 Нед 1'!W144+'Пн День 1 Нед 1'!R144 -> 0.0000 | G144: ='Сб День 6 Нед 1'!AC144+'Пт День 5 Нед 1'!V144+'Чт День 4 Нед 1'!AB144+'Ср День 3 Нед 1'!Y144+'Вт День 2 Нед 1'!AA144+'Пн День 1 Нед 1'!V144 -> 0.0000 | H144: ='Сб День 6 Нед 1'!AG144+'Пт День 5 Нед 1'!Z144+'Чт День 4 Нед 1'!AF144+'Ср День 3 Нед 1'!AC144+'Вт День 2 Нед 1'!AE144+'Пн День 1 Нед 1'!Z144 -> 0.0000 | I144: 2.000
A145: 122 | B145: бифштекс из говядины | C145: шт | D145: ='Пн День 1 Нед 1'!J145+'Вт День 2 Нед 1'!L145+'Ср День 3 Нед 1'!L145+'Чт День 4 Нед 1'!L145+'Чт День 4 Нед 1'!M145+'Пт День 5 Нед 1'!J145+'Сб День 6 Нед 1'!L145+'Сб День 6 Нед 1'!M145 -> 0.0000 | E145: ='Пн День 1 Нед 1'!O145+'Вт День 2 Нед 1'!T145+'Ср День 3 Нед 1'!R145+'Чт День 4 Нед 1'!T145+'Чт День 4 Нед 1'!U145+'Пт День 5 Нед 1'!O145+'Сб День 6 Нед 1'!U145+'Сб День 6 Нед 1'!V145 -> 0.0000 | F145: ='Сб День 6 Нед 1'!Y145+'Пт День 5 Нед 1'!R145+'Чт День 4 Нед 1'!X145+'Ср День 3 Нед 1'!U145+'Вт День 2 Нед 1'!W145+'Пн День 1 Нед 1'!R145 -> 0.0000 | G145: ='Сб День 6 Нед 1'!AC145+'Пт День 5 Нед 1'!V145+'Чт День 4 Нед 1'!AB145+'Ср День 3 Нед 1'!Y145+'Вт День 2 Нед 1'!AA145+'Пн День 1 Нед 1'!V145 -> 0.0000 | H145: ='Сб День 6 Нед 1'!AG145+'Пт День 5 Нед 1'!Z145+'Чт День 4 Нед 1'!AF145+'Ср День 3 Нед 1'!AC145+'Вт День 2 Нед 1'!AE145+'Пн День 1 Нед 1'!Z145 -> 0.0000 | I145: 0.000
A146: 123 | B146: котлеты из мяса кур | C146: шт | D146: ='Пн День 1 Нед 1'!J146+'Вт День 2 Нед 1'!L146+'Ср День 3 Нед 1'!L146+'Чт День 4 Нед 1'!L146+'Чт День 4 Нед 1'!M146+'Пт День 5 Нед 1'!J146+'Сб День 6 Нед 1'!L146+'Сб День 6 Нед 1'!M146 -> 0.0000 | E146: ='Пн День 1 Нед 1'!O146+'Вт День 2 Нед 1'!T146+'Ср День 3 Нед 1'!R146+'Чт День 4 Нед 1'!T146+'Чт День 4 Нед 1'!U146+'Пт День 5 Нед 1'!O146+'Сб День 6 Нед 1'!U146+'Сб День 6 Нед 1'!V146 -> 0.0000 | F146: ='Сб День 6 Нед 1'!Y146+'Пт День 5 Нед 1'!R146+'Чт День 4 Нед 1'!X146+'Ср День 3 Нед 1'!U146+'Вт День 2 Нед 1'!W146+'Пн День 1 Нед 1'!R146 -> 0.0000 | G146: ='Сб День 6 Нед 1'!AC146+'Пт День 5 Нед 1'!V146+'Чт День 4 Нед 1'!AB146+'Ср День 3 Нед 1'!Y146+'Вт День 2 Нед 1'!AA146+'Пн День 1 Нед 1'!V146 -> 0.0000 | H146: ='Сб День 6 Нед 1'!AG146+'Пт День 5 Нед 1'!Z146+'Чт День 4 Нед 1'!AF146+'Ср День 3 Нед 1'!AC146+'Вт День 2 Нед 1'!AE146+'Пн День 1 Нед 1'!Z146 -> 0.0000 | I146: 0.000
A147: 124 | B147: котлеты "Аппетитные" мясо-куриные | C147: шт | D147: ='Пн День 1 Нед 1'!J147+'Вт День 2 Нед 1'!L147+'Ср День 3 Нед 1'!L147+'Чт День 4 Нед 1'!L147+'Чт День 4 Нед 1'!M147+'Пт День 5 Нед 1'!J147+'Сб День 6 Нед 1'!L147+'Сб День 6 Нед 1'!M147 -> 0.0000 | E147: ='Пн День 1 Нед 1'!O147+'Вт День 2 Нед 1'!T147+'Ср День 3 Нед 1'!R147+'Чт День 4 Нед 1'!T147+'Чт День 4 Нед 1'!U147+'Пт День 5 Нед 1'!O147+'Сб День 6 Нед 1'!U147+'Сб День 6 Нед 1'!V147 -> 0.0000 | F147: ='Сб День 6 Нед 1'!Y147+'Пт День 5 Нед 1'!R147+'Чт День 4 Нед 1'!X147+'Ср День 3 Нед 1'!U147+'Вт День 2 Нед 1'!W147+'Пн День 1 Нед 1'!R147 -> 0.0000 | G147: ='Сб День 6 Нед 1'!AC147+'Пт День 5 Нед 1'!V147+'Чт День 4 Нед 1'!AB147+'Ср День 3 Нед 1'!Y147+'Вт День 2 Нед 1'!AA147+'Пн День 1 Нед 1'!V147 -> 0.0000 | H147: ='Сб День 6 Нед 1'!AG147+'Пт День 5 Нед 1'!Z147+'Чт День 4 Нед 1'!AF147+'Ср День 3 Нед 1'!AC147+'Вт День 2 Нед 1'!AE147+'Пн День 1 Нед 1'!Z147 -> 0.0000 | I147: 0.000
A148: 125 | B148: ежики мясные с рисом | C148: шт | D148: ='Пн День 1 Нед 1'!J148+'Вт День 2 Нед 1'!L148+'Ср День 3 Нед 1'!L148+'Чт День 4 Нед 1'!L148+'Чт День 4 Нед 1'!M148+'Пт День 5 Нед 1'!J148+'Сб День 6 Нед 1'!L148+'Сб День 6 Нед 1'!M148 -> 0.0000 | E148: ='Пн День 1 Нед 1'!O148+'Вт День 2 Нед 1'!T148+'Ср День 3 Нед 1'!R148+'Чт День 4 Нед 1'!T148+'Чт День 4 Нед 1'!U148+'Пт День 5 Нед 1'!O148+'Сб День 6 Нед 1'!U148+'Сб День 6 Нед 1'!V148 -> 0.0000 | F148: ='Сб День 6 Нед 1'!Y148+'Пт День 5 Нед 1'!R148+'Чт День 4 Нед 1'!X148+'Ср День 3 Нед 1'!U148+'Вт День 2 Нед 1'!W148+'Пн День 1 Нед 1'!R148 -> 0.0000 | G148: ='Сб День 6 Нед 1'!AC148+'Пт День 5 Нед 1'!V148+'Чт День 4 Нед 1'!AB148+'Ср День 3 Нед 1'!Y148+'Вт День 2 Нед 1'!AA148+'Пн День 1 Нед 1'!V148 -> 0.0000 | H148: ='Сб День 6 Нед 1'!AG148+'Пт День 5 Нед 1'!Z148+'Чт День 4 Нед 1'!AF148+'Ср День 3 Нед 1'!AC148+'Вт День 2 Нед 1'!AE148+'Пн День 1 Нед 1'!Z148 -> 0.0000 | I148: 0.000

Sheet Пн 1 день нед 2
A1: Расход продуктов питания в образовательных учереждениях
F2: Меню с 1 по 4 класс 69,43 РУБ | K2: Кол-во учащихся 1 - 4 кл СОСИСКА с кашей гречнев | L2: Кол-во учащихся 1 - 4 кл котлета с кашей гречнев | M2: Меню с 5 по 11 класс 69,43 РУБ | S2: Кол-во учащихся 5-11 кл СОСИСКА с кашей | T2: Кол-во учащихся 5-11 кл котлеты с кашей | U2: Меню на сумму 9,60 РУБ | W2: ИТОГО | X2: Меню КАШИ НА молоке | AA2: ИТОГО | AB2: Меню СУПА | AE2: ИТОГО | AF2: ВСЕГО ЗА ДЕНЬ расход продуктов по всем рационам | AG2: остаток на конец
